Workbook

Sheet Feuil1
A1: المؤسسة | B1: اللجنة | C1: الشعبة | D1: المادة | E1: ععد الوثائق
A2: ثانوية الطارف مركز الطارف | B2: 6209 | C2: آداب وفلسفة | D2: اللغة العربية وآدابها | E2: 180
A3: ثانوية النهضة سكيكدة | B3: 6209 | C3: آداب وفلسفة | D3: الفلسفة | E3: 180
A4: ثانوية الطارف مركز الطارف | B4: 6209 | C4: آداب وفلسفة | D4: التاريخ والجغرافيا | E4: 180
A5: ثانوية النهضة سكيكدة | B5: 6209 | C5: آداب وفلسفة | D5: فرنسية - لغة أجنبية أولى | E5: 180
A6: ثانوية الطارف مركز الطارف | B6: 6209 | C6: آداب وفلسفة | D6: إنجليزية - لغة أجنبية ثانية | E6: 180
A7: ثانوية النهضة سكيكدة | B7: 6209 | C7: آداب وفلسفة | D7: الرياضيات | E7: 180
A8: ثانوية الطارف مركز الطارف | B8: 6209 | C8: آداب وفلسفة | D8: العلوم الإسلامية | E8: 180
A9: ثانوية الطارف مركز الطارف | B9: 6210 | C9: آداب وفلسفة | D9: اللغة العربية وآدابها | E9: 180
A10: ثانوية النهضة سكيكدة | B10: 6210 | C10: آداب وفلسفة | D10: الفلسفة | E10: 180
A11: ثانوية الطارف مركز الطارف | B11: 6210 | C11: آداب وفلسفة | D11: التاريخ والجغرافيا | E11: 180
A12: ثانوية النهضة سكيكدة | B12: 6210 | C12: آداب وفلسفة | D12: فرنسية - لغة أجنبية أولى | E12: 180
A13: ثانوية الطارف مركز الطارف | B13: 6210 | C13: آداب وفلسفة | D13: إنجليزية - لغة أجنبية ثانية | E13: 180
A14: ثانوية النهضة سكيكدة | B14: 6210 | C14: آداب وفلسفة | D14: الرياضيات | E14: 180
A15: ثانوية الطارف مركز الطارف | B15: 6210 | C15: آداب وفلسفة | D15: العلوم الإسلامية | E15: 180
A16: ثانوية الطارف مركز الطارف | B16: 6211 | C16: آداب وفلسفة | D16: اللغة العربية وآدابها | E16: 180
A17: ثانوية النهضة سكيكدة | B17: 6211 | C17: آداب وفلسفة | D17: الفلسفة | E17: 180
A18: ثانوية الطارف مركز الطارف | B18: 6211 | C18: آداب وفلسفة | D18: التاريخ والجغرافيا | E18: 180
A19: ثانوية النهضة سكيكدة | B19: 6211 | C19: آداب وفلسفة | D19: فرنسية - لغة أجنبية أولى | E19: 180
A20: ثانوية الطارف مركز الطارف | B20: 6211 | C20: آداب وفلسفة | D20: إنجليزية - لغة أجنبية ثانية | E20: 180
A21: ثانوية النهضة سكيكدة | B21: 6211 | C21: آداب وفلسفة | D21: الرياضيات | E21: 180
A22: ثانوية الطارف مركز الطارف | B22: 6211 | C22: آداب وفلسفة | D22: العلوم الإسلامية | E22: 180
A23: ثانوية الطارف مركز الطارف | B23: 6212 | C23: آداب وفلسفة | D23: اللغة العربية وآدابها | E23: 180
A24: ثانوية النهضة سكيكدة | B24: 6212 | C24: آداب وفلسفة | D24: الفلسفة | E24: 180
A25: ثانوية الطارف مركز الطارف | B25: 6212 | C25: آداب وفلسفة | D25: التاريخ والجغرافيا | E25: 180
A26: ثانوية النهضة سكيكدة | B26: 6212 | C26: آداب وفلسفة | D26: فرنسية - لغة أجنبية أولى | E26: 180
A27: ثانوية الطارف مركز الطارف | B27: 6212 | C27: آداب وفلسفة | D27: إنجليزية - لغة أجنبية ثانية | E27: 180
A28: ثانوية النهضة سكيكدة | B28: 6212 | C28: آداب وفلسفة | D28: الرياضيات | E28: 180
A29: ثانوية الطارف مركز الطارف | B29: 6212 | C29: آداب وفلسفة | D29: العلوم الإسلامية | E29: 180
A30: ثانوية الطارف مركز الطارف | B30: 6213 | C30: آداب وفلسفة | D30: اللغة العربية وآدابها | E30: 180
A31: ثانوية النهضة سكيكدة | B31: 6213 | C31: آداب وفلسفة | D31: الفلسفة | E31: 180
A32: ثانوية الطارف مركز الطارف | B32: 6213 | C32: آداب وفلسفة | D32: التاريخ والجغرافيا | E32: 180
A33: ثانوية النهضة سكيكدة | B33: 6213 | C33: آداب وفلسفة | D33: فرنسية - لغة أجنبية أولى | E33: 180
A34: ثانوية الطارف مركز الطارف | B34: 6213 | C34: آداب وفلسفة | D34: إنجليزية - لغة أجنبية ثانية | E34: 180
A35: ثانوية النهضة سكيكدة | B35: 6213 | C35: آداب وفلسفة | D35: الرياضيات | E35: 180
A36: ثانوية الطارف مركز الطارف | B36: 6213 | C36: آداب وفلسفة | D36: العلوم الإسلامية | E36: 180
A37: ثانوية الطارف مركز الطارف | B37: 6214 | C37: آداب وفلسفة | D37: اللغة العربية وآدابها | E37: 180
A38: ثانوية النهضة سكيكدة | B38: 6214 | C38: آداب وفلسفة | D38: الفلسفة | E38: 180
A39: ثانوية الطارف مركز الطارف | B39: 6214 | C39: آداب وفلسفة | D39: التاريخ والجغرافيا | E39: 180
A40: ثانوية النهضة سكيكدة | B40: 6214 | C40: آداب وفلسفة | D40: فرنسية - لغة أجنبية أولى | E40: 180
A41: ثانوية الطارف مركز الطارف | B41: 6214 | C41: آداب وفلسفة | D41: إنجليزية - لغة أجنبية ثانية | E41: 180
A42: ثانوية النهضة سكيكدة | B42: 6214 | C42: آداب وفلسفة | D42: الرياضيات | E42: 180
A43: ثانوية الطارف مركز الطارف | B43: 6214 | C43: آداب وفلسفة | D43: العلوم الإسلامية | E43: 180
A44: ثانوية الطارف مركز الطارف | B44: 6215 | C44: آداب وفلسفة | D44: اللغة العربية وآدابها | E44: 180
A45: ثانوية النهضة سكيكدة | B45: 6215 | C45: آداب وفلسفة | D45: الفلسفة | E45: 180
A46: ثانوية الطارف مركز الطارف | B46: 6215 | C46: آداب وفلسفة | D46: التاريخ والجغرافيا | E46: 180
A47: ثانوية النهضة سكيكدة | B47: 6215 | C47: آداب وفلسفة | D47: فرنسية - لغة أجنبية أولى | E47: 180
A48: ثانوية الطارف مركز الطارف | B48: 6215 | C48: آداب وفلسفة | D48: إنجليزية - لغة أجنبية ثانية | E48: 180
A49: ثانوية النهضة سكيكدة | B49: 6215 | C49: آداب وفلسفة | D49: الرياضيات | E49: 180
A50: ثانوية الطارف مركز الطارف | B50: 6215 | C50: آداب وفلسفة | D50: العلوم الإسلامية | E50: 180
A51: ثانوية الطارف مركز الطارف | B51: 6216 | C51: آداب وفلسفة | D51: اللغة العربية وآدابها | E51: 179
A52: ثانوية النهضة سكيكدة | B52: 6216 | C52: آداب وفلسفة | D52: الفلسفة | E52: 179
A53: ثانوية الطارف مركز الطارف | B53: 6216 | C53: آداب وفلسفة | D53: التاريخ والجغرافيا | E53: 179
A54: ثانوية النهضة سكيكدة | B54: 6216 | C54: آداب وفلسفة | D54: فرنسية - لغة أجنبية أولى | E54: 179
A55: ثانوية الطارف مركز الطارف | B55: 6216 | C55: آداب وفلسفة | D55: إنجليزية - لغة أجنبية ثانية | E55: 179
A56: ثانوية النهضة سكيكدة | B56: 6216 | C56: آداب وفلسفة | D56: الرياضيات | E56: 179
A57: ثانوية الطارف مركز الطارف | B57: 6216 | C57: آداب وفلسفة | D57: العلوم الإسلامية | E57: 179
A58: ثانوية الطارف مركز الطارف | B58: 6217 | C58: آداب وفلسفة | D58: اللغة العربية وآدابها | E58: 180
A59: ثانوية النهضة سكيكدة | B59: 6217 | C59: آداب وفلسفة | D59: الفلسفة | E59: 180
A60: ثانوية الطارف مركز الطارف | B60: 6217 | C60: آداب وفلسفة | D60: التاريخ والجغرافيا | E60: 180
A61: ثانوية النهضة سكيكدة | B61: 6217 | C61: آداب وفلسفة | D61: فرنسية - لغة أجنبية أولى | E61: 180
A62: ثانوية الطارف مركز الطارف | B62: 6217 | C62: آداب وفلسفة | D62: إنجليزية - لغة أجنبية ثانية | E62: 180
A63: ثانوية النهضة سكيكدة | B63: 6217 | C63: آداب وفلسفة | D63: الرياضيات | E63: 180
A64: ثانوية الطارف مركز الطارف | B64: 6217 | C64: آداب وفلسفة | D64: العلوم الإسلامية | E64: 180
A65: ثانوية الطارف مركز الطارف | B65: 6218 | C65: آداب وفلسفة | D65: اللغة العربية وآدابها | E65: 180
A66: ثانوية النهضة سكيكدة | B66: 6218 | C66: آداب وفلسفة | D66: الفلسفة | E66: 180
A67: ثانوية الطارف مركز الطارف | B67: 6218 | C67: آداب وفلسفة | D67: التاريخ والجغرافيا | E67: 180
A68: ثانوية النهضة سكيكدة | B68: 6218 | C68: آداب وفلسفة | D68: فرنسية - لغة أجنبية أولى | E68: 180
A69: ثانوية الطارف مركز الطارف | B69: 6218 | C69: آداب وفلسفة | D69: إنجليزية - لغة أجنبية ثانية | E69: 180
A70: ثانوية النهضة سكيكدة | B70: 6218 | C70: آداب وفلسفة | D70: الرياضيات | E70: 180
A71: ثانوية الطارف مركز الطارف | B71: 6218 | C71: آداب وفلسفة | D71: العلوم الإسلامية | E71: 180
A72: ثانوية الطارف مركز الطارف | B72: 6219 | C72: آداب وفلسفة | D72: اللغة العربية وآدابها | E72: 180
A73: ثانوية النهضة سكيكدة | B73: 6219 | C73: آداب وفلسفة | D73: الفلسفة | E73: 180
A74: ثانوية الطارف مركز الطارف | B74: 6219 | C74: آداب وفلسفة | D74: التاريخ والجغرافيا | E74: 180
A75: ثانوية النهضة سكيكدة | B75: 6219 | C75: آداب وفلسفة | D75: فرنسية - لغة أجنبية أولى | E75: 180
A76: ثانوية الطارف مركز الطارف | B76: 6219 | C76: آداب وفلسفة | D76: إنجليزية - لغة أجنبية ثانية | E76: 180
A77: ثانوية النهضة سكيكدة | B77: 6219 | C77: آداب وفلسفة | D77: الرياضيات | E77: 180
A78: ثانوية الطارف مركز الطارف | B78: 6219 | C78: آداب وفلسفة | D78: العلوم الإسلامية | E78: 180
A79: ثانوية الطارف مركز الطارف | B79: 6220 | C79: آداب وفلسفة | D79: اللغة العربية وآدابها | E79: 180
A80: ثانوية النهضة سكيكدة | B80: 6220 | C80: آداب وفلسفة | D80: الفلسفة | E80: 180
A81: ثانوية الطارف مركز الطارف | B81: 6220 | C81: آداب وفلسفة | D81: التاريخ والجغرافيا | E81: 180
A82: ثانوية النهضة سكيكدة | B82: 6220 | C82: آداب وفلسفة | D82: فرنسية - لغة أجنبية أولى | E82: 180
A83: ثانوية الطارف مركز الطارف | B83: 6220 | C83: آداب وفلسفة | D83: إنجليزية - لغة أجنبية ثانية | E83: 180
A84: ثانوية النهضة سكيكدة | B84: 6220 | C84: آداب وفلسفة | D84: الرياضيات | E84: 180
A85: ثانوية الطارف مركز الطارف | B85: 6220 | C85: آداب وفلسفة | D85: العلوم الإسلامية | E85: 180
A86: ثانوية الطارف مركز الطارف | B86: 6221 | C86: آداب وفلسفة | D86: اللغة العربية وآدابها | E86: 180
A87: ثانوية العربي التبسي سكيكدة | B87: 6221 | C87: آداب وفلسفة | D87: الفلسفة | E87: 180
A88: ثانوية الطارف مركز الطارف | B88: 6221 | C88: آداب وفلسفة | D88: التاريخ والجغرافيا | E88: 180
A89: ثانوية العربي التبسي سكيكدة | B89: 6221 | C89: آداب وفلسفة | D89: فرنسية - لغة أجنبية أولى | E89: 180
A90: ثانوية الطارف مركز الطارف | B90: 6221 | C90: آداب وفلسفة | D90: إنجليزية - لغة أجنبية ثانية | E90: 180
A91: ثانوية العربي التبسي سكيكدة | B91: 6221 | C91: آداب وفلسفة | D91: الرياضيات | E91: 180
A92: ثانوية الطارف مركز الطارف | B92: 6221 | C92: آداب وفلسفة | D92: العلوم الإسلامية | E92: 180
A93: ثانوية الطارف مركز الطارف | B93: 6222 | C93: آداب وفلسفة | D93: اللغة العربية وآدابها | E93: 180
A94: ثانوية العربي التبسي سكيكدة | B94: 6222 | C94: آداب وفلسفة | D94: الفلسفة | E94: 180
A95: ثانوية الطارف مركز الطارف | B95: 6222 | C95: آداب وفلسفة | D95: التاريخ والجغرافيا | E95: 180
A96: ثانوية العربي التبسي سكيكدة | B96: 6222 | C96: آداب وفلسفة | D96: فرنسية - لغة أجنبية أولى | E96: 180
A97: ثانوية الطارف مركز الطارف | B97: 6222 | C97: آداب وفلسفة | D97: إنجليزية - لغة أجنبية ثانية | E97: 180
A98: ثانوية العربي التبسي سكيكدة | B98: 6222 | C98: آداب وفلسفة | D98: الرياضيات | E98: 180
A99: ثانوية الطارف مركز الطارف | B99: 6222 | C99: آداب وفلسفة | D99: العلوم الإسلامية | E99: 180
A100: ثانوية الطارف مركز الطارف | B100: 6223 | C100: آداب وفلسفة | D100: اللغة العربية وآدابها | E100: 180
A101: ثانوية العربي التبسي سكيكدة | B101: 6223 | C101: آداب وفلسفة | D101: الفلسفة | E101: 180
A102: ثانوية الطارف مركز الطارف | B102: 6223 | C102: آداب وفلسفة | D102: التاريخ والجغرافيا | E102: 180
A103: ثانوية العربي التبسي سكيكدة | B103: 6223 | C103: آداب وفلسفة | D103: فرنسية - لغة أجنبية أولى | E103: 180
A104: ثانوية الطارف مركز الطارف | B104: 6223 | C104: آداب وفلسفة | D104: إنجليزية - لغة أجنبية ثانية | E104: 180
A105: ثانوية العربي التبسي سكيكدة | B105: 6223 | C105: آداب وفلسفة | D105: الرياضيات | E105: 180
A106: ثانوية الطارف مركز الطارف | B106: 6223 | C106: آداب وفلسفة | D106: العلوم الإسلامية | E106: 180
A107: ثانوية الطارف مركز الطارف | B107: 6224 | C107: آداب وفلسفة | D107: اللغة العربية وآدابها | E107: 180
A108: ثانوية العربي التبسي سكيكدة | B108: 6224 | C108: آداب وفلسفة | D108: الفلسفة | E108: 180
A109: ثانوية الطارف مركز الطارف | B109: 6224 | C109: آداب وفلسفة | D109: التاريخ والجغرافيا | E109: 180
A110: ثانوية العربي التبسي سكيكدة | B110: 6224 | C110: آداب وفلسفة | D110: فرنسية - لغة أجنبية أولى | E110: 180
A111: ثانوية الطارف مركز الطارف | B111: 6224 | C111: آداب وفلسفة | D111: إنجليزية - لغة أجنبية ثانية | E111: 180
A112: ثانوية العربي التبسي سكيكدة | B112: 6224 | C112: آداب وفلسفة | D112: الرياضيات | E112: 180
A113: ثانوية الطارف مركز الطارف | B113: 6224 | C113: آداب وفلسفة | D113: العلوم الإسلامية | E113: 180
A114: ثانوية الطارف مركز الطارف | B114: 6225 | C114: آداب وفلسفة | D114: اللغة العربية وآدابها | E114: 180
A115: ثانوية العربي التبسي سكيكدة | B115: 6225 | C115: آداب وفلسفة | D115: الفلسفة | E115: 180
A116: ثانوية الطارف مركز الطارف | B116: 6225 | C116: آداب وفلسفة | D116: التاريخ والجغرافيا | E116: 180
A117: ثانوية العربي التبسي سكيكدة | B117: 6225 | C117: آداب وفلسفة | D117: فرنسية - لغة أجنبية أولى | E117: 180
A118: ثانوية الطارف مركز الطارف | B118: 6225 | C118: آداب وفلسفة | D118: إنجليزية - لغة أجنبية ثانية | E118: 180
A119: ثانوية العربي التبسي سكيكدة | B119: 6225 | C119: آداب وفلسفة | D119: الرياضيات | E119: 180
A120: ثانوية الطارف مركز الطارف | B120: 6225 | C120: آداب وفلسفة | D120: العلوم الإسلامية | E120: 180
A121: ثانوية الطارف مركز الطارف | B121: 6226 | C121: آداب وفلسفة | D121: اللغة العربية وآدابها | E121: 180
A122: ثانوية العربي التبسي سكيكدة | B122: 6226 | C122: آداب وفلسفة | D122: الفلسفة | E122: 180
A123: ثانوية الطارف مركز الطارف | B123: 6226 | C123: آداب وفلسفة | D123: التاريخ والجغرافيا | E123: 180
A124: ثانوية العربي التبسي سكيكدة | B124: 6226 | C124: آداب وفلسفة | D124: فرنسية - لغة أجنبية أولى | E124: 180
A125: ثانوية الطارف مركز الطارف | B125: 6226 | C125: آداب وفلسفة | D125: إنجليزية - لغة أجنبية ثانية | E125: 180
A126: ثانوية العربي التبسي سكيكدة | B126: 6226 | C126: آداب وفلسفة | D126: الرياضيات | E126: 180
A127: ثانوية الطارف مركز الطارف | B127: 6226 | C127: آداب وفلسفة | D127: العلوم الإسلامية | E127: 180
A128: ثانوية الجيلالي اليابس بن مهيدي | B128: 6227 | C128: آداب وفلسفة | D128: اللغة العربية وآدابها | E128: 180
A129: ثانوية العربي التبسي سكيكدة | B129: 6227 | C129: آداب وفلسفة | D129: الفلسفة | E129: 180
A130: ثانوية الجيلالي اليابس بن مهيدي | B130: 6227 | C130: آداب وفلسفة | D130: التاريخ والجغرافيا | E130: 180
A131: ثانوية العربي التبسي سكيكدة | B131: 6227 | C131: آداب وفلسفة | D131: فرنسية - لغة أجنبية أولى | E131: 180
A132: ثانوية الجيلالي اليابس بن مهيدي | B132: 6227 | C132: آداب وفلسفة | D132: إنجليزية - لغة أجنبية ثانية | E132: 180
A133: ثانوية العربي التبسي سكيكدة | B133: 6227 | C133: آداب وفلسفة | D133: الرياضيات | E133: 180
A134: ثانوية الجيلالي اليابس بن مهيدي | B134: 6227 | C134: آداب وفلسفة | D134: العلوم الإسلامية | E134: 180
A135: ثانوية الجيلالي اليابس بن مهيدي | B135: 6228 | C135: آداب وفلسفة | D135: اللغة العربية وآدابها | E135: 180
A136: ثانوية العربي التبسي سكيكدة | B136: 6228 | C136: آداب وفلسفة | D136: الفلسفة | E136: 180
A137: ثانوية الجيلالي اليابس بن مهيدي | B137: 6228 | C137: آداب وفلسفة | D137: التاريخ والجغرافيا | E137: 180
A138: ثانوية العربي التبسي سكيكدة | B138: 6228 | C138: آداب وفلسفة | D138: فرنسية - لغة أجنبية أولى | E138: 180
A139: ثانوية الجيلالي اليابس بن مهيدي | B139: 6228 | C139: آداب وفلسفة | D139: إنجليزية - لغة أجنبية ثانية | E139: 180
A140: ثانوية العربي التبسي سكيكدة | B140: 6228 | C140: آداب وفلسفة | D140: الرياضيات | E140: 180
A141: ثانوية الجيلالي اليابس بن مهيدي | B141: 6228 | C141: آداب وفلسفة | D141: العلوم الإسلامية | E141: 180
A142: ثانوية الجيلالي اليابس بن مهيدي | B142: 6229 | C142: آداب وفلسفة | D142: اللغة العربية وآدابها | E142: 180
A143: ثانوية العربي التبسي سكيكدة | B143: 6229 | C143: آداب وفلسفة | D143: الفلسفة | E143: 180
A144: ثانوية الجيلالي اليابس بن مهيدي | B144: 6229 | C144: آداب وفلسفة | D144: التاريخ والجغرافيا | E144: 180
A145: ثانوية العربي التبسي سكيكدة | B145: 6229 | C145: آداب وفلسفة | D145: فرنسية - لغة أجنبية أولى | E145: 180
A146: ثانوية الجيلالي اليابس بن مهيدي | B146: 6229 | C146: آداب وفلسفة | D146: إنجليزية - لغة أجنبية ثانية | E146: 180
A147: ثانوية العربي التبسي سكيكدة | B147: 6229 | C147: آداب وفلسفة | D147: الرياضيات | E147: 180
A148: ثانوية الجيلالي اليابس بن مهيدي | B148: 6229 | C148: آداب وفلسفة | D148: العلوم الإسلامية | E148: 180
A149: ثانوية الجيلالي اليابس بن مهيدي | B149: 6230 | C149: آداب وفلسفة | D149: اللغة العربية وآدابها | E149: 180
A150: ثانوية العربي التبسي سكيكدة | B150: 6230 | C150: آداب وفلسفة | D150: الفلسفة | E150: 180
A151: ثانوية الجيلالي اليابس بن مهيدي | B151: 6230 | C151: آداب وفلسفة | D151: التاريخ والجغرافيا | E151: 180
A152: ثانوية العربي التبسي سكيكدة | B152: 6230 | C152: آداب وفلسفة | D152: فرنسية - لغة أجنبية أولى | E152: 180
A153: ثانوية الجيلالي اليابس بن مهيدي | B153: 6230 | C153: آداب وفلسفة | D153: إنجليزية - لغة أجنبية ثانية | E153: 180
A154: ثانوية العربي التبسي سكيكدة | B154: 6230 | C154: آداب وفلسفة | D154: الرياضيات | E154: 180
A155: ثانوية الجيلالي اليابس بن مهيدي | B155: 6230 | C155: آداب وفلسفة | D155: العلوم الإسلامية | E155: 180
A156: ثانوية الجيلالي اليابس بن مهيدي | B156: 6231 | C156: آداب وفلسفة | D156: اللغة العربية وآدابها | E156: 180
A157: ثانوية العربي التبسي سكيكدة | B157: 6231 | C157: آداب وفلسفة | D157: الفلسفة | E157: 180
A158: ثانوية الجيلالي اليابس بن مهيدي | B158: 6231 | C158: آداب وفلسفة | D158: التاريخ والجغرافيا | E158: 180
A159: ثانوية العربي التبسي سكيكدة | B159: 6231 | C159: آداب وفلسفة | D159: فرنسية - لغة أجنبية أولى | E159: 180
A160: ثانوية الجيلالي اليابس بن مهيدي | B160: 6231 | C160: آداب وفلسفة | D160: إنجليزية - لغة أجنبية ثانية | E160: 180
A161: ثانوية العربي التبسي سكيكدة | B161: 6231 | C161: آداب وفلسفة | D161: الرياضيات | E161: 180
A162: ثانوية الجيلالي اليابس بن مهيدي | B162: 6231 | C162: آداب وفلسفة | D162: العلوم الإسلامية | E162: 180
A163: ثانوية الجيلالي اليابس بن مهيدي | B163: 6232 | C163: آداب وفلسفة | D163: اللغة العربية وآدابها | E163: 180
A164: ثانوية العربي التبسي سكيكدة | B164: 6232 | C164: آداب وفلسفة | D164: الفلسفة | E164: 180
A165: ثانوية الجيلالي اليابس بن مهيدي | B165: 6232 | C165: آداب وفلسفة | D165: التاريخ والجغرافيا | E165: 180
A166: ثانوية العربي التبسي سكيكدة | B166: 6232 | C166: آداب وفلسفة | D166: فرنسية - لغة أجنبية أولى | E166: 180
A167: ثانوية الجيلالي اليابس بن مهيدي | B167: 6232 | C167: آداب وفلسفة | D167: إنجليزية - لغة أجنبية ثانية | E167: 180
A168: ثانوية العربي التبسي سكيكدة | B168: 6232 | C168: آداب وفلسفة | D168: الرياضيات | E168: 180
A169: ثانوية الجيلالي اليابس بن مهيدي | B169: 6232 | C169: آداب وفلسفة | D169: العلوم الإسلامية | E169: 180
A170: ثانوية الجيلالي اليابس بن مهيدي | B170: 6233 | C170: آداب وفلسفة | D170: اللغة العربية وآدابها | E170: 180
A171: ثانوية العربي التبسي سكيكدة | B171: 6233 | C171: آداب وفلسفة | D171: الفلسفة | E171: 180
A172: ثانوية الجيلالي اليابس بن مهيدي | B172: 6233 | C172: آداب وفلسفة | D172: التاريخ والجغرافيا | E172: 180
A173: ثانوية العربي التبسي سكيكدة | B173: 6233 | C173: آداب وفلسفة | D173: فرنسية - لغة أجنبية أولى | E173: 180
A174: ثانوية الجيلالي اليابس بن مهيدي | B174: 6233 | C174: آداب وفلسفة | D174: إنجليزية - لغة أجنبية ثانية | E174: 180
A175: ثانوية العربي التبسي سكيكدة | B175: 6233 | C175: آداب وفلسفة | D175: الرياضيات | E175: 180
A176: ثانوية الجيلالي اليابس بن مهيدي | B176: 6233 | C176: آداب وفلسفة | D176: العلوم الإسلامية | E176: 180
A177: ثانوية الجيلالي اليابس بن مهيدي | B177: 6234 | C177: آداب وفلسفة | D177: اللغة العربية وآدابها | E177: 180
A178: ثانوية العربي التبسي سكيكدة | B178: 6234 | C178: آداب وفلسفة | D178: الفلسفة | E178: 180
A179: ثانوية الجيلالي اليابس بن مهيدي | B179: 6234 | C179: آداب وفلسفة | D179: التاريخ والجغرافيا | E179: 180
A180: ثانوية العربي التبسي سكيكدة | B180: 6234 | C180: آداب وفلسفة | D180: فرنسية - لغة أجنبية أولى | E180: 180
A181: ثانوية الجيلالي اليابس بن مهيدي | B181: 6234 | C181: آداب وفلسفة | D181: إنجليزية - لغة أجنبية ثانية | E181: 180
A182: ثانوية العربي التبسي سكيكدة | B182: 6234 | C182: آداب وفلسفة | D182: الرياضيات | E182: 180
A183: ثانوية الجيلالي اليابس بن مهيدي | B183: 6234 | C183: آداب وفلسفة | D183: العلوم الإسلامية | E183: 180
A184: ثانوية الجيلالي اليابس بن مهيدي | B184: 6235 | C184: آداب وفلسفة | D184: اللغة العربية وآدابها | E184: 180
A185: ثانوية العربي التبسي سكيكدة | B185: 6235 | C185: آداب وفلسفة | D185: الفلسفة | E185: 180
A186: ثانوية الجيلالي اليابس بن مهيدي | B186: 6235 | C186: آداب وفلسفة | D186: التاريخ والجغرافيا | E186: 180
A187: ثانوية العربي التبسي سكيكدة | B187: 6235 | C187: آداب وفلسفة | D187: فرنسية - لغة أجنبية أولى | E187: 180
A188: ثانوية الجيلالي اليابس بن مهيدي | B188: 6235 | C188: آداب وفلسفة | D188: إنجليزية - لغة أجنبية ثانية | E188: 180
A189: ثانوية العربي التبسي سكيكدة | B189: 6235 | C189: آداب وفلسفة | D189: الرياضيات | E189: 180
A190: ثانوية الجيلالي اليابس بن مهيدي | B190: 6235 | C190: آداب وفلسفة | D190: العلوم الإسلامية | E190: 180
A191: ثانوية الجيلالي اليابس بن مهيدي | B191: 6236 | C191: آداب وفلسفة | D191: اللغة العربية وآدابها | E191: 180
A192: ثانوية العربي التبسي سكيكدة | B192: 6236 | C192: آداب وفلسفة | D192: الفلسفة | E192: 180
A193: ثانوية الجيلالي اليابس بن مهيدي | B193: 6236 | C193: آداب وفلسفة | D193: التاريخ والجغرافيا | E193: 180
A194: ثانوية العربي التبسي سكيكدة | B194: 6236 | C194: آداب وفلسفة | D194: فرنسية - لغة أجنبية أولى | E194: 180
A195: ثانوية الجيلالي اليابس بن مهيدي | B195: 6236 | C195: آداب وفلسفة | D195: إنجليزية - لغة أجنبية ثانية | E195: 180
A196: ثانوية العربي التبسي سكيكدة | B196: 6236 | C196: آداب وفلسفة | D196: الرياضيات | E196: 180
A197: ثانوية الجيلالي اليابس بن مهيدي | B197: 6236 | C197: آداب وفلسفة | D197: العلوم الإسلامية | E197: 180
A198: ثانوية الجيلالي اليابس بن مهيدي | B198: 6237 | C198: آداب وفلسفة | D198: اللغة العربية وآدابها | E198: 180
A199: ثانوية الطارف مركز الطارف | B199: 6237 | C199: آداب وفلسفة | D199: الفلسفة | E199: 180
A200: ثانوية الجيلالي اليابس بن مهيدي | B200: 6237 | C200: آداب وفلسفة | D200: التاريخ والجغرافيا | E200: 180
... 1613 more rows

Sheet Feuil2
A1: ثانوية النهضة سكيكدة | S1: اختر اسم المؤسسة من القائمة المنسدلة
W2: ثانوية الطارف مركز الطارف
A3: الرقم | B3: اللجنة | C3: اللغة العربية وآدابها | D3: العلوم الإسلامية | E3: الرياضيات | F3: إنجليزية - لغة أجنبية ثانية | G3: التاريخ والجغرافيا | H3: فرنسية - لغة أجنبية أولى | I3: الفلسفة | J3: القانون | K3: الاقتصاد والمناجمنت | L3: التسيير المحاسبي والمالي | M3: علوم الطبيعة والحياة | N3: العلوم الفيزيائية | O3: التكنولوجيا - هندسة الطرائق | P3: التكنولوجيا -هندسة ميكانيكية | Q3: التكنولوجيا - هندسة مدنية | R3: التكنولوجيا - هندسة كهربائية | W3: ثانوية النهضة سكيكدة
A4: =IF(B4="","",MAX($A$3:A3)+1) -> 1 | B4: =IF(ROWS(B$1:B1)>COUNTIF(Feuil1!$A$2:$A$5000,$A$1),"",INDEX(Feuil1!$B$2:$B$5000,SMALL(IF(Feuil1!$A$2:$A$5000<>"",IF(Feuil1!$A$2:$A$5000=$A$1,ROW($A$2:$A$5000)-ROW($A$2)+1)),ROWS(B$1:B1)))) -> 6209 | C4: =SUMPRODUCT((Feuil1!$B$2:$B$5000=$B4)*(Feuil1!$D$2:$D$5000=C$3)*(Feuil1!$E$2:$E$5000)) -> 180 | D4: =SUMPRODUCT((Feuil1!$B$2:$B$5000=$B4)*(Feuil1!$D$2:$D$5000=D$3)*(Feuil1!$E$2:$E$5000)) -> 180 | E4: =SUMPRODUCT((Feuil1!$B$2:$B$5000=$B4)*(Feuil1!$D$2:$D$5000=E$3)*(Feuil1!$E$2:$E$5000)) -> 180 | F4: =SUMPRODUCT((Feuil1!$B$2:$B$5000=$B4)*(Feuil1!$D$2:$D$5000=F$3)*(Feuil1!$E$2:$E$5000)) -> 180 | G4: =SUMPRODUCT((Feuil1!$B$2:$B$5000=$B4)*(Feuil1!$D$2:$D$5000=G$3)*(Feuil1!$E$2:$E$5000)) -> 180 | H4: =SUMPRODUCT((Feuil1!$B$2:$B$5000=$B4)*(Feuil1!$D$2:$D$5000=H$3)*(Feuil1!$E$2:$E$5000)) -> 180 | I4: =SUMPRODUCT((Feuil1!$B$2:$B$5000=$B4)*(Feuil1!$D$2:$D$5000=I$3)*(Feuil1!$E$2:$E$5000)) -> 180 | J4: =SUMPRODUCT((Feuil1!$B$2:$B$5000=$B4)*(Feuil1!$D$2:$D$5000=J$3)*(Feuil1!$E$2:$E$5000)) -> 0 | K4: =SUMPRODUCT((Feuil1!$B$2:$B$5000=$B4)*(Feuil1!$D$2:$D$5000=K$3)*(Feuil1!$E$2:$E$5000)) -> 0 | L4: =SUMPRODUCT((Feuil1!$B$2:$B$5000=$B4)*(Feuil1!$D$2:$D$5000=L$3)*(Feuil1!$E$2:$E$5000)) -> 0 | M4: =SUMPRODUCT((Feuil1!$B$2:$B$5000=$B4)*(Feuil1!$D$2:$D$5000=M$3)*(Feuil1!$E$2:$E$5000)) -> 0 | N4: =SUMPRODUCT((Feuil1!$B$2:$B$5000=$B4)*(Feuil1!$D$2:$D$5000=N$3)*(Feuil1!$E$2:$E$5000)) -> 0 | O4: =SUMPRODUCT((Feuil1!$B$2:$B$5000=$B4)*(Feuil1!$D$2:$D$5000=O$3)*(Feuil1!$E$2:$E$5000)) -> 0 | P4: =SUMPRODUCT((Feuil1!$B$2:$B$5000=$B4)*(Feuil1!$D$2:$D$5000=P$3)*(Feuil1!$E$2:$E$5000)) -> 0 | Q4: =SUMPRODUCT((Feuil1!$B$2:$B$5000=$B4)*(Feuil1!$D$2:$D$5000=Q$3)*(Feuil1!$E$2:$E$5000)) -> 0 | R4: =SUMPRODUCT((Feuil1!$B$2:$B$5000=$B4)*(Feuil1!$D$2:$D$5000=R$3)*(Feuil1!$E$2:$E$5000)) -> 0 | W4: ثانوية العربي التبسي سكيكدة
A5: =IF(B5="","",MAX($A$3:A4)+1) -> 2 | B5: =IF(ROWS(B$1:B2)>COUNTIF(Feuil1!$A$2:$A$5000,$A$1),"",INDEX(Feuil1!$B$2:$B$5000,SMALL(IF(Feuil1!$A$2:$A$5000<>"",IF(Feuil1!$A$2:$A$5000=$A$1,ROW($A$2:$A$5000)-ROW($A$2)+1)),ROWS(B$1:B2)))) -> 6209 | C5: =SUMPRODUCT((Feuil1!$B$2:$B$5000=$B5)*(Feuil1!$D$2:$D$5000=C$3)*(Feuil1!$E$2:$E$5000)) -> 180 | D5: =SUMPRODUCT((Feuil1!$B$2:$B$5000=$B5)*(Feuil1!$D$2:$D$5000=D$3)*(Feuil1!$E$2:$E$5000)) -> 180 | E5: =SUMPRODUCT((Feuil1!$B$2:$B$5000=$B5)*(Feuil1!$D$2:$D$5000=E$3)*(Feuil1!$E$2:$E$5000)) -> 180 | F5: =SUMPRODUCT((Feuil1!$B$2:$B$5000=$B5)*(Feuil1!$D$2:$D$5000=F$3)*(Feuil1!$E$2:$E$5000)) -> 180 | G5: =SUMPRODUCT((Feuil1!$B$2:$B$5000=$B5)*(Feuil1!$D$2:$D$5000=G$3)*(Feuil1!$E$2:$E$5000)) -> 180 | H5: =SUMPRODUCT((Feuil1!$B$2:$B$5000=$B5)*(Feuil1!$D$2:$D$5000=H$3)*(Feuil1!$E$2:$E$5000)) -> 180 | I5: =SUMPRODUCT((Feuil1!$B$2:$B$5000=$B5)*(Feuil1!$D$2:$D$5000=I$3)*(Feuil1!$E$2:$E$5000)) -> 180 | J5: =SUMPRODUCT((Feuil1!$B$2:$B$5000=$B5)*(Feuil1!$D$2:$D$5000=J$3)*(Feuil1!$E$2:$E$5000)) -> 0 | K5: =SUMPRODUCT((Feuil1!$B$2:$B$5000=$B5)*(Feuil1!$D$2:$D$5000=K$3)*(Feuil1!$E$2:$E$5000)) -> 0 | L5: =SUMPRODUCT((Feuil1!$B$2:$B$5000=$B5)*(Feuil1!$D$2:$D$5000=L$3)*(Feuil1!$E$2:$E$5000)) -> 0 | M5: =SUMPRODUCT((Feuil1!$B$2:$B$5000=$B5)*(Feuil1!$D$2:$D$5000=M$3)*(Feuil1!$E$2:$E$5000)) -> 0 | N5: =SUMPRODUCT((Feuil1!$B$2:$B$5000=$B5)*(Feuil1!$D$2:$D$5000=N$3)*(Feuil1!$E$2:$E$5000)) -> 0 | O5: =SUMPRODUCT((Feuil1!$B$2:$B$5000=$B5)*(Feuil1!$D$2:$D$5000=O$3)*(Feuil1!$E$2:$E$5000)) -> 0 | P5: =SUMPRODUCT((Feuil1!$B$2:$B$5000=$B5)*(Feuil1!$D$2:$D$5000=P$3)*(Feuil1!$E$2:$E$5000)) -> 0 | Q5: =SUMPRODUCT((Feuil1!$B$2:$B$5000=$B5)*(Feuil1!$D$2:$D$5000=Q$3)*(Feuil1!$E$2:$E$5000)) -> 0 | R5: =SUMPRODUCT((Feuil1!$B$2:$B$5000=$B5)*(Feuil1!$D$2:$D$5000=R$3)*(Feuil1!$E$2:$E$5000)) -> 0 | W5: ثانوية الجيلالي اليابس بن مهيدي
A6: =IF(B6="","",MAX($A$3:A5)+1) -> 3 | B6: =IF(ROWS(B$1:B3)>COUNTIF(Feuil1!$A$2:$A$5000,$A$1),"",INDEX(Feuil1!$B$2:$B$5000,SMALL(IF(Feuil1!$A$2:$A$5000<>"",IF(Feuil1!$A$2:$A$5000=$A$1,ROW($A$2:$A$5000)-ROW($A$2)+1)),ROWS(B$1:B3)))) -> 6209 | C6: =SUMPRODUCT((Feuil1!$B$2:$B$5000=$B6)*(Feuil1!$D$2:$D$5000=C$3)*(Feuil1!$E$2:$E$5000)) -> 180 | D6: =SUMPRODUCT((Feuil1!$B$2:$B$5000=$B6)*(Feuil1!$D$2:$D$5000=D$3)*(Feuil1!$E$2:$E$5000)) -> 180 | E6: =SUMPRODUCT((Feuil1!$B$2:$B$5000=$B6)*(Feuil1!$D$2:$D$5000=E$3)*(Feuil1!$E$2:$E$5000)) -> 180 | F6: =SUMPRODUCT((Feuil1!$B$2:$B$5000=$B6)*(Feuil1!$D$2:$D$5000=F$3)*(Feuil1!$E$2:$E$5000)) -> 180 | G6: =SUMPRODUCT((Feuil1!$B$2:$B$5000=$B6)*(Feuil1!$D$2:$D$5000=G$3)*(Feuil1!$E$2:$E$5000)) -> 180 | H6: =SUMPRODUCT((Feuil1!$B$2:$B$5000=$B6)*(Feuil1!$D$2:$D$5000=H$3)*(Feuil1!$E$2:$E$5000)) -> 180 | I6: =SUMPRODUCT((Feuil1!$B$2:$B$5000=$B6)*(Feuil1!$D$2:$D$5000=I$3)*(Feuil1!$E$2:$E$5000)) -> 180 | J6: =SUMPRODUCT((Feuil1!$B$2:$B$5000=$B6)*(Feuil1!$D$2:$D$5000=J$3)*(Feuil1!$E$2:$E$5000)) -> 0 | K6: =SUMPRODUCT((Feuil1!$B$2:$B$5000=$B6)*(Feuil1!$D$2:$D$5000=K$3)*(Feuil1!$E$2:$E$5000)) -> 0 | L6: =SUMPRODUCT((Feuil1!$B$2:$B$5000=$B6)*(Feuil1!$D$2:$D$5000=L$3)*(Feuil1!$E$2:$E$5000)) -> 0 | M6: =SUMPRODUCT((Feuil1!$B$2:$B$5000=$B6)*(Feuil1!$D$2:$D$5000=M$3)*(Feuil1!$E$2:$E$5000)) -> 0 | N6: =SUMPRODUCT((Feuil1!$B$2:$B$5000=$B6)*(Feuil1!$D$2:$D$5000=N$3)*(Feuil1!$E$2:$E$5000)) -> 0 | O6: =SUMPRODUCT((Feuil1!$B$2:$B$5000=$B6)*(Feuil1!$D$2:$D$5000=O$3)*(Feuil1!$E$2:$E$5000)) -> 0 | P6: =SUMPRODUCT((Feuil1!$B$2:$B$5000=$B6)*(Feuil1!$D$2:$D$5000=P$3)*(Feuil1!$E$2:$E$5000)) -> 0 | Q6: =SUMPRODUCT((Feuil1!$B$2:$B$5000=$B6)*(Feuil1!$D$2:$D$5000=Q$3)*(Feuil1!$E$2:$E$5000)) -> 0 | R6: =SUMPRODUCT((Feuil1!$B$2:$B$5000=$B6)*(Feuil1!$D$2:$D$5000=R$3)*(Feuil1!$E$2:$E$5000)) -> 0
A7: =IF(B7="","",MAX($A$3:A6)+1) -> 4 | B7: =IF(ROWS(B$1:B4)>COUNTIF(Feuil1!$A$2:$A$5000,$A$1),"",INDEX(Feuil1!$B$2:$B$5000,SMALL(IF(Feuil1!$A$2:$A$5000<>"",IF(Feuil1!$A$2:$A$5000=$A$1,ROW($A$2:$A$5000)-ROW($A$2)+1)),ROWS(B$1:B4)))) -> 6210 | C7: =SUMPRODUCT((Feuil1!$B$2:$B$5000=$B7)*(Feuil1!$D$2:$D$5000=C$3)*(Feuil1!$E$2:$E$5000)) -> 180 | D7: =SUMPRODUCT((Feuil1!$B$2:$B$5000=$B7)*(Feuil1!$D$2:$D$5000=D$3)*(Feuil1!$E$2:$E$5000)) -> 180 | E7: =SUMPRODUCT((Feuil1!$B$2:$B$5000=$B7)*(Feuil1!$D$2:$D$5000=E$3)*(Feuil1!$E$2:$E$5000)) -> 180 | F7: =SUMPRODUCT((Feuil1!$B$2:$B$5000=$B7)*(Feuil1!$D$2:$D$5000=F$3)*(Feuil1!$E$2:$E$5000)) -> 180 | G7: =SUMPRODUCT((Feuil1!$B$2:$B$5000=$B7)*(Feuil1!$D$2:$D$5000=G$3)*(Feuil1!$E$2:$E$5000)) -> 180 | H7: =SUMPRODUCT((Feuil1!$B$2:$B$5000=$B7)*(Feuil1!$D$2:$D$5000=H$3)*(Feuil1!$E$2:$E$5000)) -> 180 | I7: =SUMPRODUCT((Feuil1!$B$2:$B$5000=$B7)*(Feuil1!$D$2:$D$5000=I$3)*(Feuil1!$E$2:$E$5000)) -> 180 | J7: =SUMPRODUCT((Feuil1!$B$2:$B$5000=$B7)*(Feuil1!$D$2:$D$5000=J$3)*(Feuil1!$E$2:$E$5000)) -> 0 | K7: =SUMPRODUCT((Feuil1!$B$2:$B$5000=$B7)*(Feuil1!$D$2:$D$5000=K$3)*(Feuil1!$E$2:$E$5000)) -> 0 | L7: =SUMPRODUCT((Feuil1!$B$2:$B$5000=$B7)*(Feuil1!$D$2:$D$5000=L$3)*(Feuil1!$E$2:$E$5000)) -> 0 | M7: =SUMPRODUCT((Feuil1!$B$2:$B$5000=$B7)*(Feuil1!$D$2:$D$5000=M$3)*(Feuil1!$E$2:$E$5000)) -> 0 | N7: =SUMPRODUCT((Feuil1!$B$2:$B$5000=$B7)*(Feuil1!$D$2:$D$5000=N$3)*(Feuil1!$E$2:$E$5000)) -> 0 | O7: =SUMPRODUCT((Feuil1!$B$2:$B$5000=$B7)*(Feuil1!$D$2:$D$5000=O$3)*(Feuil1!$E$2:$E$5000)) -> 0 | P7: =SUMPRODUCT((Feuil1!$B$2:$B$5000=$B7)*(Feuil1!$D$2:$D$5000=P$3)*(Feuil1!$E$2:$E$5000)) -> 0 | Q7: =SUMPRODUCT((Feuil1!$B$2:$B$5000=$B7)*(Feuil1!$D$2:$D$5000=Q$3)*(Feuil1!$E$2:$E$5000)) -> 0 | R7: =SUMPRODUCT((Feuil1!$B$2:$B$5000=$B7)*(Feuil1!$D$2:$D$5000=R$3)*(Feuil1!$E$2:$E$5000)) -> 0
A8: =IF(B8="","",MAX($A$3:A7)+1) -> 5 | B8: =IF(ROWS(B$1:B5)>COUNTIF(Feuil1!$A$2:$A$5000,$A$1),"",INDEX(Feuil1!$B$2:$B$5000,SMALL(IF(Feuil1!$A$2:$A$5000<>"",IF(Feuil1!$A$2:$A$5000=$A$1,ROW($A$2:$A$5000)-ROW($A$2)+1)),ROWS(B$1:B5)))) -> 6210 | C8: =SUMPRODUCT((Feuil1!$B$2:$B$5000=$B8)*(Feuil1!$D$2:$D$5000=C$3)*(Feuil1!$E$2:$E$5000)) -> 180 | D8: =SUMPRODUCT((Feuil1!$B$2:$B$5000=$B8)*(Feuil1!$D$2:$D$5000=D$3)*(Feuil1!$E$2:$E$5000)) -> 180 | E8: =SUMPRODUCT((Feuil1!$B$2:$B$5000=$B8)*(Feuil1!$D$2:$D$5000=E$3)*(Feuil1!$E$2:$E$5000)) -> 180 | F8: =SUMPRODUCT((Feuil1!$B$2:$B$5000=$B8)*(Feuil1!$D$2:$D$5000=F$3)*(Feuil1!$E$2:$E$5000)) -> 180 | G8: =SUMPRODUCT((Feuil1!$B$2:$B$5000=$B8)*(Feuil1!$D$2:$D$5000=G$3)*(Feuil1!$E$2:$E$5000)) -> 180 | H8: =SUMPRODUCT((Feuil1!$B$2:$B$5000=$B8)*(Feuil1!$D$2:$D$5000=H$3)*(Feuil1!$E$2:$E$5000)) -> 180 | I8: =SUMPRODUCT((Feuil1!$B$2:$B$5000=$B8)*(Feuil1!$D$2:$D$5000=I$3)*(Feuil1!$E$2:$E$5000)) -> 180 | J8: =SUMPRODUCT((Feuil1!$B$2:$B$5000=$B8)*(Feuil1!$D$2:$D$5000=J$3)*(Feuil1!$E$2:$E$5000)) -> 0 | K8: =SUMPRODUCT((Feuil1!$B$2:$B$5000=$B8)*(Feuil1!$D$2:$D$5000=K$3)*(Feuil1!$E$2:$E$5000)) -> 0 | L8: =SUMPRODUCT((Feuil1!$B$2:$B$5000=$B8)*(Feuil1!$D$2:$D$5000=L$3)*(Feuil1!$E$2:$E$5000)) -> 0 | M8: =SUMPRODUCT((Feuil1!$B$2:$B$5000=$B8)*(Feuil1!$D$2:$D$5000=M$3)*(Feuil1!$E$2:$E$5000)) -> 0 | N8: =SUMPRODUCT((Feuil1!$B$2:$B$5000=$B8)*(Feuil1!$D$2:$D$5000=N$3)*(Feuil1!$E$2:$E$5000)) -> 0 | O8: =SUMPRODUCT((Feuil1!$B$2:$B$5000=$B8)*(Feuil1!$D$2:$D$5000=O$3)*(Feuil1!$E$2:$E$5000)) -> 0 | P8: =SUMPRODUCT((Feuil1!$B$2:$B$5000=$B8)*(Feuil1!$D$2:$D$5000=P$3)*(Feuil1!$E$2:$E$5000)) -> 0 | Q8: =SUMPRODUCT((Feuil1!$B$2:$B$5000=$B8)*(Feuil1!$D$2:$D$5000=Q$3)*(Feuil1!$E$2:$E$5000)) -> 0 | R8: =SUMPRODUCT((Feuil1!$B$2:$B$5000=$B8)*(Feuil1!$D$2:$D$5000=R$3)*(Feuil1!$E$2:$E$5000)) -> 0
A9: =IF(B9="","",MAX($A$3:A8)+1) -> 6 | B9: =IF(ROWS(B$1:B6)>COUNTIF(Feuil1!$A$2:$A$5000,$A$1),"",INDEX(Feuil1!$B$2:$B$5000,SMALL(IF(Feuil1!$A$2:$A$5000<>"",IF(Feuil1!$A$2:$A$5000=$A$1,ROW($A$2:$A$5000)-ROW($A$2)+1)),ROWS(B$1:B6)))) -> 6210 | C9: =SUMPRODUCT((Feuil1!$B$2:$B$5000=$B9)*(Feuil1!$D$2:$D$5000=C$3)*(Feuil1!$E$2:$E$5000)) -> 180 | D9: =SUMPRODUCT((Feuil1!$B$2:$B$5000=$B9)*(Feuil1!$D$2:$D$5000=D$3)*(Feuil1!$E$2:$E$5000)) -> 180 | E9: =SUMPRODUCT((Feuil1!$B$2:$B$5000=$B9)*(Feuil1!$D$2:$D$5000=E$3)*(Feuil1!$E$2:$E$5000)) -> 180 | F9: =SUMPRODUCT((Feuil1!$B$2:$B$5000=$B9)*(Feuil1!$D$2:$D$5000=F$3)*(Feuil1!$E$2:$E$5000)) -> 180 | G9: =SUMPRODUCT((Feuil1!$B$2:$B$5000=$B9)*(Feuil1!$D$2:$D$5000=G$3)*(Feuil1!$E$2:$E$5000)) -> 180 | H9: =SUMPRODUCT((Feuil1!$B$2:$B$5000=$B9)*(Feuil1!$D$2:$D$5000=H$3)*(Feuil1!$E$2:$E$5000)) -> 180 | I9: =SUMPRODUCT((Feuil1!$B$2:$B$5000=$B9)*(Feuil1!$D$2:$D$5000=I$3)*(Feuil1!$E$2:$E$5000)) -> 180 | J9: =SUMPRODUCT((Feuil1!$B$2:$B$5000=$B9)*(Feuil1!$D$2:$D$5000=J$3)*(Feuil1!$E$2:$E$5000)) -> 0 | K9: =SUMPRODUCT((Feuil1!$B$2:$B$5000=$B9)*(Feuil1!$D$2:$D$5000=K$3)*(Feuil1!$E$2:$E$5000)) -> 0 | L9: =SUMPRODUCT((Feuil1!$B$2:$B$5000=$B9)*(Feuil1!$D$2:$D$5000=L$3)*(Feuil1!$E$2:$E$5000)) -> 0 | M9: =SUMPRODUCT((Feuil1!$B$2:$B$5000=$B9)*(Feuil1!$D$2:$D$5000=M$3)*(Feuil1!$E$2:$E$5000)) -> 0 | N9: =SUMPRODUCT((Feuil1!$B$2:$B$5000=$B9)*(Feuil1!$D$2:$D$5000=N$3)*(Feuil1!$E$2:$E$5000)) -> 0 | O9: =SUMPRODUCT((Feuil1!$B$2:$B$5000=$B9)*(Feuil1!$D$2:$D$5000=O$3)*(Feuil1!$E$2:$E$5000)) -> 0 | P9: =SUMPRODUCT((Feuil1!$B$2:$B$5000=$B9)*(Feuil1!$D$2:$D$5000=P$3)*(Feuil1!$E$2:$E$5000)) -> 0 | Q9: =SUMPRODUCT((Feuil1!$B$2:$B$5000=$B9)*(Feuil1!$D$2:$D$5000=Q$3)*(Feuil1!$E$2:$E$5000)) -> 0 | R9: =SUMPRODUCT((Feuil1!$B$2:$B$5000=$B9)*(Feuil1!$D$2:$D$5000=R$3)*(Feuil1!$E$2:$E$5000)) -> 0
A10: =IF(B10="","",MAX($A$3:A9)+1) -> 7 | B10: =IF(ROWS(B$1:B7)>COUNTIF(Feuil1!$A$2:$A$5000,$A$1),"",INDEX(Feuil1!$B$2:$B$5000,SMALL(IF(Feuil1!$A$2:$A$5000<>"",IF(Feuil1!$A$2:$A$5000=$A$1,ROW($A$2:$A$5000)-ROW($A$2)+1)),ROWS(B$1:B7)))) -> 6211 | C10: =SUMPRODUCT((Feuil1!$B$2:$B$5000=$B10)*(Feuil1!$D$2:$D$5000=C$3)*(Feuil1!$E$2:$E$5000)) -> 180 | D10: =SUMPRODUCT((Feuil1!$B$2:$B$5000=$B10)*(Feuil1!$D$2:$D$5000=D$3)*(Feuil1!$E$2:$E$5000)) -> 180 | E10: =SUMPRODUCT((Feuil1!$B$2:$B$5000=$B10)*(Feuil1!$D$2:$D$5000=E$3)*(Feuil1!$E$2:$E$5000)) -> 180 | F10: =SUMPRODUCT((Feuil1!$B$2:$B$5000=$B10)*(Feuil1!$D$2:$D$5000=F$3)*(Feuil1!$E$2:$E$5000)) -> 180 | G10: =SUMPRODUCT((Feuil1!$B$2:$B$5000=$B10)*(Feuil1!$D$2:$D$5000=G$3)*(Feuil1!$E$2:$E$5000)) -> 180 | H10: =SUMPRODUCT((Feuil1!$B$2:$B$5000=$B10)*(Feuil1!$D$2:$D$5000=H$3)*(Feuil1!$E$2:$E$5000)) -> 180 | I10: =SUMPRODUCT((Feuil1!$B$2:$B$5000=$B10)*(Feuil1!$D$2:$D$5000=I$3)*(Feuil1!$E$2:$E$5000)) -> 180 | J10: =SUMPRODUCT((Feuil1!$B$2:$B$5000=$B10)*(Feuil1!$D$2:$D$5000=J$3)*(Feuil1!$E$2:$E$5000)) -> 0 | K10: =SUMPRODUCT((Feuil1!$B$2:$B$5000=$B10)*(Feuil1!$D$2:$D$5000=K$3)*(Feuil1!$E$2:$E$5000)) -> 0 | L10: =SUMPRODUCT((Feuil1!$B$2:$B$5000=$B10)*(Feuil1!$D$2:$D$5000=L$3)*(Feuil1!$E$2:$E$5000)) -> 0 | M10: =SUMPRODUCT((Feuil1!$B$2:$B$5000=$B10)*(Feuil1!$D$2:$D$5000=M$3)*(Feuil1!$E$2:$E$5000)) -> 0 | N10: =SUMPRODUCT((Feuil1!$B$2:$B$5000=$B10)*(Feuil1!$D$2:$D$5000=N$3)*(Feuil1!$E$2:$E$5000)) -> 0 | O10: =SUMPRODUCT((Feuil1!$B$2:$B$5000=$B10)*(Feuil1!$D$2:$D$5000=O$3)*(Feuil1!$E$2:$E$5000)) -> 0 | P10: =SUMPRODUCT((Feuil1!$B$2:$B$5000=$B10)*(Feuil1!$D$2:$D$5000=P$3)*(Feuil1!$E$2:$E$5000)) -> 0 | Q10: =SUMPRODUCT((Feuil1!$B$2:$B$5000=$B10)*(Feuil1!$D$2:$D$5000=Q$3)*(Feuil1!$E$2:$E$5000)) -> 0 | R10: =SUMPRODUCT((Feuil1!$B$2:$B$5000=$B10)*(Feuil1!$D$2:$D$5000=R$3)*(Feuil1!$E$2:$E$5000)) -> 0
A11: =IF(B11="","",MAX($A$3:A10)+1) -> 8 | B11: =IF(ROWS(B$1:B8)>COUNTIF(Feuil1!$A$2:$A$5000,$A$1),"",INDEX(Feuil1!$B$2:$B$5000,SMALL(IF(Feuil1!$A$2:$A$5000<>"",IF(Feuil1!$A$2:$A$5000=$A$1,ROW($A$2:$A$5000)-ROW($A$2)+1)),ROWS(B$1:B8)))) -> 6211 | C11: =SUMPRODUCT((Feuil1!$B$2:$B$5000=$B11)*(Feuil1!$D$2:$D$5000=C$3)*(Feuil1!$E$2:$E$5000)) -> 180 | D11: =SUMPRODUCT((Feuil1!$B$2:$B$5000=$B11)*(Feuil1!$D$2:$D$5000=D$3)*(Feuil1!$E$2:$E$5000)) -> 180 | E11: =SUMPRODUCT((Feuil1!$B$2:$B$5000=$B11)*(Feuil1!$D$2:$D$5000=E$3)*(Feuil1!$E$2:$E$5000)) -> 180 | F11: =SUMPRODUCT((Feuil1!$B$2:$B$5000=$B11)*(Feuil1!$D$2:$D$5000=F$3)*(Feuil1!$E$2:$E$5000)) -> 180 | G11: =SUMPRODUCT((Feuil1!$B$2:$B$5000=$B11)*(Feuil1!$D$2:$D$5000=G$3)*(Feuil1!$E$2:$E$5000)) -> 180 | H11: =SUMPRODUCT((Feuil1!$B$2:$B$5000=$B11)*(Feuil1!$D$2:$D$5000=H$3)*(Feuil1!$E$2:$E$5000)) -> 180 | I11: =SUMPRODUCT((Feuil1!$B$2:$B$5000=$B11)*(Feuil1!$D$2:$D$5000=I$3)*(Feuil1!$E$2:$E$5000)) -> 180 | J11: =SUMPRODUCT((Feuil1!$B$2:$B$5000=$B11)*(Feuil1!$D$2:$D$5000=J$3)*(Feuil1!$E$2:$E$5000)) -> 0 | K11: =SUMPRODUCT((Feuil1!$B$2:$B$5000=$B11)*(Feuil1!$D$2:$D$5000=K$3)*(Feuil1!$E$2:$E$5000)) -> 0 | L11: =SUMPRODUCT((Feuil1!$B$2:$B$5000=$B11)*(Feuil1!$D$2:$D$5000=L$3)*(Feuil1!$E$2:$E$5000)) -> 0 | M11: =SUMPRODUCT((Feuil1!$B$2:$B$5000=$B11)*(Feuil1!$D$2:$D$5000=M$3)*(Feuil1!$E$2:$E$5000)) -> 0 | N11: =SUMPRODUCT((Feuil1!$B$2:$B$5000=$B11)*(Feuil1!$D$2:$D$5000=N$3)*(Feuil1!$E$2:$E$5000)) -> 0 | O11: =SUMPRODUCT((Feuil1!$B$2:$B$5000=$B11)*(Feuil1!$D$2:$D$5000=O$3)*(Feuil1!$E$2:$E$5000)) -> 0 | P11: =SUMPRODUCT((Feuil1!$B$2:$B$5000=$B11)*(Feuil1!$D$2:$D$5000=P$3)*(Feuil1!$E$2:$E$5000)) -> 0 | Q11: =SUMPRODUCT((Feuil1!$B$2:$B$5000=$B11)*(Feuil1!$D$2:$D$5000=Q$3)*(Feuil1!$E$2:$E$5000)) -> 0 | R11: =SUMPRODUCT((Feuil1!$B$2:$B$5000=$B11)*(Feuil1!$D$2:$D$5000=R$3)*(Feuil1!$E$2:$E$5000)) -> 0
A12: =IF(B12="","",MAX($A$3:A11)+1) -> 9 | B12: =IF(ROWS(B$1:B9)>COUNTIF(Feuil1!$A$2:$A$5000,$A$1),"",INDEX(Feuil1!$B$2:$B$5000,SMALL(IF(Feuil1!$A$2:$A$5000<>"",IF(Feuil1!$A$2:$A$5000=$A$1,ROW($A$2:$A$5000)-ROW($A$2)+1)),ROWS(B$1:B9)))) -> 6211 | C12: =SUMPRODUCT((Feuil1!$B$2:$B$5000=$B12)*(Feuil1!$D$2:$D$5000=C$3)*(Feuil1!$E$2:$E$5000)) -> 180 | D12: =SUMPRODUCT((Feuil1!$B$2:$B$5000=$B12)*(Feuil1!$D$2:$D$5000=D$3)*(Feuil1!$E$2:$E$5000)) -> 180 | E12: =SUMPRODUCT((Feuil1!$B$2:$B$5000=$B12)*(Feuil1!$D$2:$D$5000=E$3)*(Feuil1!$E$2:$E$5000)) -> 180 | F12: =SUMPRODUCT((Feuil1!$B$2:$B$5000=$B12)*(Feuil1!$D$2:$D$5000=F$3)*(Feuil1!$E$2:$E$5000)) -> 180 | G12: =SUMPRODUCT((Feuil1!$B$2:$B$5000=$B12)*(Feuil1!$D$2:$D$5000=G$3)*(Feuil1!$E$2:$E$5000)) -> 180 | H12: =SUMPRODUCT((Feuil1!$B$2:$B$5000=$B12)*(Feuil1!$D$2:$D$5000=H$3)*(Feuil1!$E$2:$E$5000)) -> 180 | I12: =SUMPRODUCT((Feuil1!$B$2:$B$5000=$B12)*(Feuil1!$D$2:$D$5000=I$3)*(Feuil1!$E$2:$E$5000)) -> 180 | J12: =SUMPRODUCT((Feuil1!$B$2:$B$5000=$B12)*(Feuil1!$D$2:$D$5000=J$3)*(Feuil1!$E$2:$E$5000)) -> 0 | K12: =SUMPRODUCT((Feuil1!$B$2:$B$5000=$B12)*(Feuil1!$D$2:$D$5000=K$3)*(Feuil1!$E$2:$E$5000)) -> 0 | L12: =SUMPRODUCT((Feuil1!$B$2:$B$5000=$B12)*(Feuil1!$D$2:$D$5000=L$3)*(Feuil1!$E$2:$E$5000)) -> 0 | M12: =SUMPRODUCT((Feuil1!$B$2:$B$5000=$B12)*(Feuil1!$D$2:$D$5000=M$3)*(Feuil1!$E$2:$E$5000)) -> 0 | N12: =SUMPRODUCT((Feuil1!$B$2:$B$5000=$B12)*(Feuil1!$D$2:$D$5000=N$3)*(Feuil1!$E$2:$E$5000)) -> 0 | O12: =SUMPRODUCT((Feuil1!$B$2:$B$5000=$B12)*(Feuil1!$D$2:$D$5000=O$3)*(Feuil1!$E$2:$E$5000)) -> 0 | P12: =SUMPRODUCT((Feuil1!$B$2:$B$5000=$B12)*(Feuil1!$D$2:$D$5000=P$3)*(Feuil1!$E$2:$E$5000)) -> 0 | Q12: =SUMPRODUCT((Feuil1!$B$2:$B$5000=$B12)*(Feuil1!$D$2:$D$5000=Q$3)*(Feuil1!$E$2:$E$5000)) -> 0 | R12: =SUMPRODUCT((Feuil1!$B$2:$B$5000=$B12)*(Feuil1!$D$2:$D$5000=R$3)*(Feuil1!$E$2:$E$5000)) -> 0
A13: =IF(B13="","",MAX($A$3:A12)+1) -> 10 | B13: =IF(ROWS(B$1:B10)>COUNTIF(Feuil1!$A$2:$A$5000,$A$1),"",INDEX(Feuil1!$B$2:$B$5000,SMALL(IF(Feuil1!$A$2:$A$5000<>"",IF(Feuil1!$A$2:$A$5000=$A$1,ROW($A$2:$A$5000)-ROW($A$2)+1)),ROWS(B$1:B10)))) -> 6212 | C13: =SUMPRODUCT((Feuil1!$B$2:$B$5000=$B13)*(Feuil1!$D$2:$D$5000=C$3)*(Feuil1!$E$2:$E$5000)) -> 180 | D13: =SUMPRODUCT((Feuil1!$B$2:$B$5000=$B13)*(Feuil1!$D$2:$D$5000=D$3)*(Feuil1!$E$2:$E$5000)) -> 180 | E13: =SUMPRODUCT((Feuil1!$B$2:$B$5000=$B13)*(Feuil1!$D$2:$D$5000=E$3)*(Feuil1!$E$2:$E$5000)) -> 180 | F13: =SUMPRODUCT((Feuil1!$B$2:$B$5000=$B13)*(Feuil1!$D$2:$D$5000=F$3)*(Feuil1!$E$2:$E$5000)) -> 180 | G13: =SUMPRODUCT((Feuil1!$B$2:$B$5000=$B13)*(Feuil1!$D$2:$D$5000=G$3)*(Feuil1!$E$2:$E$5000)) -> 180 | H13: =SUMPRODUCT((Feuil1!$B$2:$B$5000=$B13)*(Feuil1!$D$2:$D$5000=H$3)*(Feuil1!$E$2:$E$5000)) -> 180 | I13: =SUMPRODUCT((Feuil1!$B$2:$B$5000=$B13)*(Feuil1!$D$2:$D$5000=I$3)*(Feuil1!$E$2:$E$5000)) -> 180 | J13: =SUMPRODUCT((Feuil1!$B$2:$B$5000=$B13)*(Feuil1!$D$2:$D$5000=J$3)*(Feuil1!$E$2:$E$5000)) -> 0 | K13: =SUMPRODUCT((Feuil1!$B$2:$B$5000=$B13)*(Feuil1!$D$2:$D$5000=K$3)*(Feuil1!$E$2:$E$5000)) -> 0 | L13: =SUMPRODUCT((Feuil1!$B$2:$B$5000=$B13)*(Feuil1!$D$2:$D$5000=L$3)*(Feuil1!$E$2:$E$5000)) -> 0 | M13: =SUMPRODUCT((Feuil1!$B$2:$B$5000=$B13)*(Feuil1!$D$2:$D$5000=M$3)*(Feuil1!$E$2:$E$5000)) -> 0 | N13: =SUMPRODUCT((Feuil1!$B$2:$B$5000=$B13)*(Feuil1!$D$2:$D$5000=N$3)*(Feuil1!$E$2:$E$5000)) -> 0 | O13: =SUMPRODUCT((Feuil1!$B$2:$B$5000=$B13)*(Feuil1!$D$2:$D$5000=O$3)*(Feuil1!$E$2:$E$5000)) -> 0 | P13: =SUMPRODUCT((Feuil1!$B$2:$B$5000=$B13)*(Feuil1!$D$2:$D$5000=P$3)*(Feuil1!$E$2:$E$5000)) -> 0 | Q13: =SUMPRODUCT((Feuil1!$B$2:$B$5000=$B13)*(Feuil1!$D$2:$D$5000=Q$3)*(Feuil1!$E$2:$E$5000)) -> 0 | R13: =SUMPRODUCT((Feuil1!$B$2:$B$5000=$B13)*(Feuil1!$D$2:$D$5000=R$3)*(Feuil1!$E$2:$E$5000)) -> 0
A14: =IF(B14="","",MAX($A$3:A13)+1) -> 11 | B14: =IF(ROWS(B$1:B11)>COUNTIF(Feuil1!$A$2:$A$5000,$A$1),"",INDEX(Feuil1!$B$2:$B$5000,SMALL(IF(Feuil1!$A$2:$A$5000<>"",IF(Feuil1!$A$2:$A$5000=$A$1,ROW($A$2:$A$5000)-ROW($A$2)+1)),ROWS(B$1:B11)))) -> 6212 | C14: =SUMPRODUCT((Feuil1!$B$2:$B$5000=$B14)*(Feuil1!$D$2:$D$5000=C$3)*(Feuil1!$E$2:$E$5000)) -> 180 | D14: =SUMPRODUCT((Feuil1!$B$2:$B$5000=$B14)*(Feuil1!$D$2:$D$5000=D$3)*(Feuil1!$E$2:$E$5000)) -> 180 | E14: =SUMPRODUCT((Feuil1!$B$2:$B$5000=$B14)*(Feuil1!$D$2:$D$5000=E$3)*(Feuil1!$E$2:$E$5000)) -> 180 | F14: =SUMPRODUCT((Feuil1!$B$2:$B$5000=$B14)*(Feuil1!$D$2:$D$5000=F$3)*(Feuil1!$E$2:$E$5000)) -> 180 | G14: =SUMPRODUCT((Feuil1!$B$2:$B$5000=$B14)*(Feuil1!$D$2:$D$5000=G$3)*(Feuil1!$E$2:$E$5000)) -> 180 | H14: =SUMPRODUCT((Feuil1!$B$2:$B$5000=$B14)*(Feuil1!$D$2:$D$5000=H$3)*(Feuil1!$E$2:$E$5000)) -> 180 | I14: =SUMPRODUCT((Feuil1!$B$2:$B$5000=$B14)*(Feuil1!$D$2:$D$5000=I$3)*(Feuil1!$E$2:$E$5000)) -> 180 | J14: =SUMPRODUCT((Feuil1!$B$2:$B$5000=$B14)*(Feuil1!$D$2:$D$5000=J$3)*(Feuil1!$E$2:$E$5000)) -> 0 | K14: =SUMPRODUCT((Feuil1!$B$2:$B$5000=$B14)*(Feuil1!$D$2:$D$5000=K$3)*(Feuil1!$E$2:$E$5000)) -> 0 | L14: =SUMPRODUCT((Feuil1!$B$2:$B$5000=$B14)*(Feuil1!$D$2:$D$5000=L$3)*(Feuil1!$E$2:$E$5000)) -> 0 | M14: =SUMPRODUCT((Feuil1!$B$2:$B$5000=$B14)*(Feuil1!$D$2:$D$5000=M$3)*(Feuil1!$E$2:$E$5000)) -> 0 | N14: =SUMPRODUCT((Feuil1!$B$2:$B$5000=$B14)*(Feuil1!$D$2:$D$5000=N$3)*(Feuil1!$E$2:$E$5000)) -> 0 | O14: =SUMPRODUCT((Feuil1!$B$2:$B$5000=$B14)*(Feuil1!$D$2:$D$5000=O$3)*(Feuil1!$E$2:$E$5000)) -> 0 | P14: =SUMPRODUCT((Feuil1!$B$2:$B$5000=$B14)*(Feuil1!$D$2:$D$5000=P$3)*(Feuil1!$E$2:$E$5000)) -> 0 | Q14: =SUMPRODUCT((Feuil1!$B$2:$B$5000=$B14)*(Feuil1!$D$2:$D$5000=Q$3)*(Feuil1!$E$2:$E$5000)) -> 0 | R14: =SUMPRODUCT((Feuil1!$B$2:$B$5000=$B14)*(Feuil1!$D$2:$D$5000=R$3)*(Feuil1!$E$2:$E$5000)) -> 0
A15: =IF(B15="","",MAX($A$3:A14)+1) -> 12 | B15: =IF(ROWS(B$1:B12)>COUNTIF(Feuil1!$A$2:$A$5000,$A$1),"",INDEX(Feuil1!$B$2:$B$5000,SMALL(IF(Feuil1!$A$2:$A$5000<>"",IF(Feuil1!$A$2:$A$5000=$A$1,ROW($A$2:$A$5000)-ROW($A$2)+1)),ROWS(B$1:B12)))) -> 6212 | C15: =SUMPRODUCT((Feuil1!$B$2:$B$5000=$B15)*(Feuil1!$D$2:$D$5000=C$3)*(Feuil1!$E$2:$E$5000)) -> 180 | D15: =SUMPRODUCT((Feuil1!$B$2:$B$5000=$B15)*(Feuil1!$D$2:$D$5000=D$3)*(Feuil1!$E$2:$E$5000)) -> 180 | E15: =SUMPRODUCT((Feuil1!$B$2:$B$5000=$B15)*(Feuil1!$D$2:$D$5000=E$3)*(Feuil1!$E$2:$E$5000)) -> 180 | F15: =SUMPRODUCT((Feuil1!$B$2:$B$5000=$B15)*(Feuil1!$D$2:$D$5000=F$3)*(Feuil1!$E$2:$E$5000)) -> 180 | G15: =SUMPRODUCT((Feuil1!$B$2:$B$5000=$B15)*(Feuil1!$D$2:$D$5000=G$3)*(Feuil1!$E$2:$E$5000)) -> 180 | H15: =SUMPRODUCT((Feuil1!$B$2:$B$5000=$B15)*(Feuil1!$D$2:$D$5000=H$3)*(Feuil1!$E$2:$E$5000)) -> 180 | I15: =SUMPRODUCT((Feuil1!$B$2:$B$5000=$B15)*(Feuil1!$D$2:$D$5000=I$3)*(Feuil1!$E$2:$E$5000)) -> 180 | J15: =SUMPRODUCT((Feuil1!$B$2:$B$5000=$B15)*(Feuil1!$D$2:$D$5000=J$3)*(Feuil1!$E$2:$E$5000)) -> 0 | K15: =SUMPRODUCT((Feuil1!$B$2:$B$5000=$B15)*(Feuil1!$D$2:$D$5000=K$3)*(Feuil1!$E$2:$E$5000)) -> 0 | L15: =SUMPRODUCT((Feuil1!$B$2:$B$5000=$B15)*(Feuil1!$D$2:$D$5000=L$3)*(Feuil1!$E$2:$E$5000)) -> 0 | M15: =SUMPRODUCT((Feuil1!$B$2:$B$5000=$B15)*(Feuil1!$D$2:$D$5000=M$3)*(Feuil1!$E$2:$E$5000)) -> 0 | N15: =SUMPRODUCT((Feuil1!$B$2:$B$5000=$B15)*(Feuil1!$D$2:$D$5000=N$3)*(Feuil1!$E$2:$E$5000)) -> 0 | O15: =SUMPRODUCT((Feuil1!$B$2:$B$5000=$B15)*(Feuil1!$D$2:$D$5000=O$3)*(Feuil1!$E$2:$E$5000)) -> 0 | P15: =SUMPRODUCT((Feuil1!$B$2:$B$5000=$B15)*(Feuil1!$D$2:$D$5000=P$3)*(Feuil1!$E$2:$E$5000)) -> 0 | Q15: =SUMPRODUCT((Feuil1!$B$2:$B$5000=$B15)*(Feuil1!$D$2:$D$5000=Q$3)*(Feuil1!$E$2:$E$5000)) -> 0 | R15: =SUMPRODUCT((Feuil1!$B$2:$B$5000=$B15)*(Feuil1!$D$2:$D$5000=R$3)*(Feuil1!$E$2:$E$5000)) -> 0
A16: =IF(B16="","",MAX($A$3:A15)+1) -> 13 | B16: =IF(ROWS(B$1:B13)>COUNTIF(Feuil1!$A$2:$A$5000,$A$1),"",INDEX(Feuil1!$B$2:$B$5000,SMALL(IF(Feuil1!$A$2:$A$5000<>"",IF(Feuil1!$A$2:$A$5000=$A$1,ROW($A$2:$A$5000)-ROW($A$2)+1)),ROWS(B$1:B13)))) -> 6213 | C16: =SUMPRODUCT((Feuil1!$B$2:$B$5000=$B16)*(Feuil1!$D$2:$D$5000=C$3)*(Feuil1!$E$2:$E$5000)) -> 180 | D16: =SUMPRODUCT((Feuil1!$B$2:$B$5000=$B16)*(Feuil1!$D$2:$D$5000=D$3)*(Feuil1!$E$2:$E$5000)) -> 180 | E16: =SUMPRODUCT((Feuil1!$B$2:$B$5000=$B16)*(Feuil1!$D$2:$D$5000=E$3)*(Feuil1!$E$2:$E$5000)) -> 180 | F16: =SUMPRODUCT((Feuil1!$B$2:$B$5000=$B16)*(Feuil1!$D$2:$D$5000=F$3)*(Feuil1!$E$2:$E$5000)) -> 180 | G16: =SUMPRODUCT((Feuil1!$B$2:$B$5000=$B16)*(Feuil1!$D$2:$D$5000=G$3)*(Feuil1!$E$2:$E$5000)) -> 180 | H16: =SUMPRODUCT((Feuil1!$B$2:$B$5000=$B16)*(Feuil1!$D$2:$D$5000=H$3)*(Feuil1!$E$2:$E$5000)) -> 180 | I16: =SUMPRODUCT((Feuil1!$B$2:$B$5000=$B16)*(Feuil1!$D$2:$D$5000=I$3)*(Feuil1!$E$2:$E$5000)) -> 180 | J16: =SUMPRODUCT((Feuil1!$B$2:$B$5000=$B16)*(Feuil1!$D$2:$D$5000=J$3)*(Feuil1!$E$2:$E$5000)) -> 0 | K16: =SUMPRODUCT((Feuil1!$B$2:$B$5000=$B16)*(Feuil1!$D$2:$D$5000=K$3)*(Feuil1!$E$2:$E$5000)) -> 0 | L16: =SUMPRODUCT((Feuil1!$B$2:$B$5000=$B16)*(Feuil1!$D$2:$D$5000=L$3)*(Feuil1!$E$2:$E$5000)) -> 0 | M16: =SUMPRODUCT((Feuil1!$B$2:$B$5000=$B16)*(Feuil1!$D$2:$D$5000=M$3)*(Feuil1!$E$2:$E$5000)) -> 0 | N16: =SUMPRODUCT((Feuil1!$B$2:$B$5000=$B16)*(Feuil1!$D$2:$D$5000=N$3)*(Feuil1!$E$2:$E$5000)) -> 0 | O16: =SUMPRODUCT((Feuil1!$B$2:$B$5000=$B16)*(Feuil1!$D$2:$D$5000=O$3)*(Feuil1!$E$2:$E$5000)) -> 0 | P16: =SUMPRODUCT((Feuil1!$B$2:$B$5000=$B16)*(Feuil1!$D$2:$D$5000=P$3)*(Feuil1!$E$2:$E$5000)) -> 0 | Q16: =SUMPRODUCT((Feuil1!$B$2:$B$5000=$B16)*(Feuil1!$D$2:$D$5000=Q$3)*(Feuil1!$E$2:$E$5000)) -> 0 | R16: =SUMPRODUCT((Feuil1!$B$2:$B$5000=$B16)*(Feuil1!$D$2:$D$5000=R$3)*(Feuil1!$E$2:$E$5000)) -> 0
A17: =IF(B17="","",MAX($A$3:A16)+1) -> 14 | B17: =IF(ROWS(B$1:B14)>COUNTIF(Feuil1!$A$2:$A$5000,$A$1),"",INDEX(Feuil1!$B$2:$B$5000,SMALL(IF(Feuil1!$A$2:$A$5000<>"",IF(Feuil1!$A$2:$A$5000=$A$1,ROW($A$2:$A$5000)-ROW($A$2)+1)),ROWS(B$1:B14)))) -> 6213 | C17: =SUMPRODUCT((Feuil1!$B$2:$B$5000=$B17)*(Feuil1!$D$2:$D$5000=C$3)*(Feuil1!$E$2:$E$5000)) -> 180 | D17: =SUMPRODUCT((Feuil1!$B$2:$B$5000=$B17)*(Feuil1!$D$2:$D$5000=D$3)*(Feuil1!$E$2:$E$5000)) -> 180 | E17: =SUMPRODUCT((Feuil1!$B$2:$B$5000=$B17)*(Feuil1!$D$2:$D$5000=E$3)*(Feuil1!$E$2:$E$5000)) -> 180 | F17: =SUMPRODUCT((Feuil1!$B$2:$B$5000=$B17)*(Feuil1!$D$2:$D$5000=F$3)*(Feuil1!$E$2:$E$5000)) -> 180 | G17: =SUMPRODUCT((Feuil1!$B$2:$B$5000=$B17)*(Feuil1!$D$2:$D$5000=G$3)*(Feuil1!$E$2:$E$5000)) -> 180 | H17: =SUMPRODUCT((Feuil1!$B$2:$B$5000=$B17)*(Feuil1!$D$2:$D$5000=H$3)*(Feuil1!$E$2:$E$5000)) -> 180 | I17: =SUMPRODUCT((Feuil1!$B$2:$B$5000=$B17)*(Feuil1!$D$2:$D$5000=I$3)*(Feuil1!$E$2:$E$5000)) -> 180 | J17: =SUMPRODUCT((Feuil1!$B$2:$B$5000=$B17)*(Feuil1!$D$2:$D$5000=J$3)*(Feuil1!$E$2:$E$5000)) -> 0 | K17: =SUMPRODUCT((Feuil1!$B$2:$B$5000=$B17)*(Feuil1!$D$2:$D$5000=K$3)*(Feuil1!$E$2:$E$5000)) -> 0 | L17: =SUMPRODUCT((Feuil1!$B$2:$B$5000=$B17)*(Feuil1!$D$2:$D$5000=L$3)*(Feuil1!$E$2:$E$5000)) -> 0 | M17: =SUMPRODUCT((Feuil1!$B$2:$B$5000=$B17)*(Feuil1!$D$2:$D$5000=M$3)*(Feuil1!$E$2:$E$5000)) -> 0 | N17: =SUMPRODUCT((Feuil1!$B$2:$B$5000=$B17)*(Feuil1!$D$2:$D$5000=N$3)*(Feuil1!$E$2:$E$5000)) -> 0 | O17: =SUMPRODUCT((Feuil1!$B$2:$B$5000=$B17)*(Feuil1!$D$2:$D$5000=O$3)*(Feuil1!$E$2:$E$5000)) -> 0 | P17: =SUMPRODUCT((Feuil1!$B$2:$B$5000=$B17)*(Feuil1!$D$2:$D$5000=P$3)*(Feuil1!$E$2:$E$5000)) -> 0 | Q17: =SUMPRODUCT((Feuil1!$B$2:$B$5000=$B17)*(Feuil1!$D$2:$D$5000=Q$3)*(Feuil1!$E$2:$E$5000)) -> 0 | R17: =SUMPRODUCT((Feuil1!$B$2:$B$5000=$B17)*(Feuil1!$D$2:$D$5000=R$3)*(Feuil1!$E$2:$E$5000)) -> 0
A18: =IF(B18="","",MAX($A$3:A17)+1) -> 15 | B18: =IF(ROWS(B$1:B15)>COUNTIF(Feuil1!$A$2:$A$5000,$A$1),"",INDEX(Feuil1!$B$2:$B$5000,SMALL(IF(Feuil1!$A$2:$A$5000<>"",IF(Feuil1!$A$2:$A$5000=$A$1,ROW($A$2:$A$5000)-ROW($A$2)+1)),ROWS(B$1:B15)))) -> 6213 | C18: =SUMPRODUCT((Feuil1!$B$2:$B$5000=$B18)*(Feuil1!$D$2:$D$5000=C$3)*(Feuil1!$E$2:$E$5000)) -> 180 | D18: =SUMPRODUCT((Feuil1!$B$2:$B$5000=$B18)*(Feuil1!$D$2:$D$5000=D$3)*(Feuil1!$E$2:$E$5000)) -> 180 | E18: =SUMPRODUCT((Feuil1!$B$2:$B$5000=$B18)*(Feuil1!$D$2:$D$5000=E$3)*(Feuil1!$E$2:$E$5000)) -> 180 | F18: =SUMPRODUCT((Feuil1!$B$2:$B$5000=$B18)*(Feuil1!$D$2:$D$5000=F$3)*(Feuil1!$E$2:$E$5000)) -> 180 | G18: =SUMPRODUCT((Feuil1!$B$2:$B$5000=$B18)*(Feuil1!$D$2:$D$5000=G$3)*(Feuil1!$E$2:$E$5000)) -> 180 | H18: =SUMPRODUCT((Feuil1!$B$2:$B$5000=$B18)*(Feuil1!$D$2:$D$5000=H$3)*(Feuil1!$E$2:$E$5000)) -> 180 | I18: =SUMPRODUCT((Feuil1!$B$2:$B$5000=$B18)*(Feuil1!$D$2:$D$5000=I$3)*(Feuil1!$E$2:$E$5000)) -> 180 | J18: =SUMPRODUCT((Feuil1!$B$2:$B$5000=$B18)*(Feuil1!$D$2:$D$5000=J$3)*(Feuil1!$E$2:$E$5000)) -> 0 | K18: =SUMPRODUCT((Feuil1!$B$2:$B$5000=$B18)*(Feuil1!$D$2:$D$5000=K$3)*(Feuil1!$E$2:$E$5000)) -> 0 | L18: =SUMPRODUCT((Feuil1!$B$2:$B$5000=$B18)*(Feuil1!$D$2:$D$5000=L$3)*(Feuil1!$E$2:$E$5000)) -> 0 | M18: =SUMPRODUCT((Feuil1!$B$2:$B$5000=$B18)*(Feuil1!$D$2:$D$5000=M$3)*(Feuil1!$E$2:$E$5000)) -> 0 | N18: =SUMPRODUCT((Feuil1!$B$2:$B$5000=$B18)*(Feuil1!$D$2:$D$5000=N$3)*(Feuil1!$E$2:$E$5000)) -> 0 | O18: =SUMPRODUCT((Feuil1!$B$2:$B$5000=$B18)*(Feuil1!$D$2:$D$5000=O$3)*(Feuil1!$E$2:$E$5000)) -> 0 | P18: =SUMPRODUCT((Feuil1!$B$2:$B$5000=$B18)*(Feuil1!$D$2:$D$5000=P$3)*(Feuil1!$E$2:$E$5000)) -> 0 | Q18: =SUMPRODUCT((Feuil1!$B$2:$B$5000=$B18)*(Feuil1!$D$2:$D$5000=Q$3)*(Feuil1!$E$2:$E$5000)) -> 0 | R18: =SUMPRODUCT((Feuil1!$B$2:$B$5000=$B18)*(Feuil1!$D$2:$D$5000=R$3)*(Feuil1!$E$2:$E$5000)) -> 0
A19: =IF(B19="","",MAX($A$3:A18)+1) -> 16 | B19: =IF(ROWS(B$1:B16)>COUNTIF(Feuil1!$A$2:$A$5000,$A$1),"",INDEX(Feuil1!$B$2:$B$5000,SMALL(IF(Feuil1!$A$2:$A$5000<>"",IF(Feuil1!$A$2:$A$5000=$A$1,ROW($A$2:$A$5000)-ROW($A$2)+1)),ROWS(B$1:B16)))) -> 6214 | C19: =SUMPRODUCT((Feuil1!$B$2:$B$5000=$B19)*(Feuil1!$D$2:$D$5000=C$3)*(Feuil1!$E$2:$E$5000)) -> 180 | D19: =SUMPRODUCT((Feuil1!$B$2:$B$5000=$B19)*(Feuil1!$D$2:$D$5000=D$3)*(Feuil1!$E$2:$E$5000)) -> 180 | E19: =SUMPRODUCT((Feuil1!$B$2:$B$5000=$B19)*(Feuil1!$D$2:$D$5000=E$3)*(Feuil1!$E$2:$E$5000)) -> 180 | F19: =SUMPRODUCT((Feuil1!$B$2:$B$5000=$B19)*(Feuil1!$D$2:$D$5000=F$3)*(Feuil1!$E$2:$E$5000)) -> 180 | G19: =SUMPRODUCT((Feuil1!$B$2:$B$5000=$B19)*(Feuil1!$D$2:$D$5000=G$3)*(Feuil1!$E$2:$E$5000)) -> 180 | H19: =SUMPRODUCT((Feuil1!$B$2:$B$5000=$B19)*(Feuil1!$D$2:$D$5000=H$3)*(Feuil1!$E$2:$E$5000)) -> 180 | I19: =SUMPRODUCT((Feuil1!$B$2:$B$5000=$B19)*(Feuil1!$D$2:$D$5000=I$3)*(Feuil1!$E$2:$E$5000)) -> 180 | J19: =SUMPRODUCT((Feuil1!$B$2:$B$5000=$B19)*(Feuil1!$D$2:$D$5000=J$3)*(Feuil1!$E$2:$E$5000)) -> 0 | K19: =SUMPRODUCT((Feuil1!$B$2:$B$5000=$B19)*(Feuil1!$D$2:$D$5000=K$3)*(Feuil1!$E$2:$E$5000)) -> 0 | L19: =SUMPRODUCT((Feuil1!$B$2:$B$5000=$B19)*(Feuil1!$D$2:$D$5000=L$3)*(Feuil1!$E$2:$E$5000)) -> 0 | M19: =SUMPRODUCT((Feuil1!$B$2:$B$5000=$B19)*(Feuil1!$D$2:$D$5000=M$3)*(Feuil1!$E$2:$E$5000)) -> 0 | N19: =SUMPRODUCT((Feuil1!$B$2:$B$5000=$B19)*(Feuil1!$D$2:$D$5000=N$3)*(Feuil1!$E$2:$E$5000)) -> 0 | O19: =SUMPRODUCT((Feuil1!$B$2:$B$5000=$B19)*(Feuil1!$D$2:$D$5000=O$3)*(Feuil1!$E$2:$E$5000)) -> 0 | P19: =SUMPRODUCT((Feuil1!$B$2:$B$5000=$B19)*(Feuil1!$D$2:$D$5000=P$3)*(Feuil1!$E$2:$E$5000)) -> 0 | Q19: =SUMPRODUCT((Feuil1!$B$2:$B$5000=$B19)*(Feuil1!$D$2:$D$5000=Q$3)*(Feuil1!$E$2:$E$5000)) -> 0 | R19: =SUMPRODUCT((Feuil1!$B$2:$B$5000=$B19)*(Feuil1!$D$2:$D$5000=R$3)*(Feuil1!$E$2:$E$5000)) -> 0
A20: =IF(B20="","",MAX($A$3:A19)+1) -> 17 | B20: =IF(ROWS(B$1:B17)>COUNTIF(Feuil1!$A$2:$A$5000,$A$1),"",INDEX(Feuil1!$B$2:$B$5000,SMALL(IF(Feuil1!$A$2:$A$5000<>"",IF(Feuil1!$A$2:$A$5000=$A$1,ROW($A$2:$A$5000)-ROW($A$2)+1)),ROWS(B$1:B17)))) -> 6214 | C20: =SUMPRODUCT((Feuil1!$B$2:$B$5000=$B20)*(Feuil1!$D$2:$D$5000=C$3)*(Feuil1!$E$2:$E$5000)) -> 180 | D20: =SUMPRODUCT((Feuil1!$B$2:$B$5000=$B20)*(Feuil1!$D$2:$D$5000=D$3)*(Feuil1!$E$2:$E$5000)) -> 180 | E20: =SUMPRODUCT((Feuil1!$B$2:$B$5000=$B20)*(Feuil1!$D$2:$D$5000=E$3)*(Feuil1!$E$2:$E$5000)) -> 180 | F20: =SUMPRODUCT((Feuil1!$B$2:$B$5000=$B20)*(Feuil1!$D$2:$D$5000=F$3)*(Feuil1!$E$2:$E$5000)) -> 180 | G20: =SUMPRODUCT((Feuil1!$B$2:$B$5000=$B20)*(Feuil1!$D$2:$D$5000=G$3)*(Feuil1!$E$2:$E$5000)) -> 180 | H20: =SUMPRODUCT((Feuil1!$B$2:$B$5000=$B20)*(Feuil1!$D$2:$D$5000=H$3)*(Feuil1!$E$2:$E$5000)) -> 180 | I20: =SUMPRODUCT((Feuil1!$B$2:$B$5000=$B20)*(Feuil1!$D$2:$D$5000=I$3)*(Feuil1!$E$2:$E$5000)) -> 180 | J20: =SUMPRODUCT((Feuil1!$B$2:$B$5000=$B20)*(Feuil1!$D$2:$D$5000=J$3)*(Feuil1!$E$2:$E$5000)) -> 0 | K20: =SUMPRODUCT((Feuil1!$B$2:$B$5000=$B20)*(Feuil1!$D$2:$D$5000=K$3)*(Feuil1!$E$2:$E$5000)) -> 0 | L20: =SUMPRODUCT((Feuil1!$B$2:$B$5000=$B20)*(Feuil1!$D$2:$D$5000=L$3)*(Feuil1!$E$2:$E$5000)) -> 0 | M20: =SUMPRODUCT((Feuil1!$B$2:$B$5000=$B20)*(Feuil1!$D$2:$D$5000=M$3)*(Feuil1!$E$2:$E$5000)) -> 0 | N20: =SUMPRODUCT((Feuil1!$B$2:$B$5000=$B20)*(Feuil1!$D$2:$D$5000=N$3)*(Feuil1!$E$2:$E$5000)) -> 0 | O20: =SUMPRODUCT((Feuil1!$B$2:$B$5000=$B20)*(Feuil1!$D$2:$D$5000=O$3)*(Feuil1!$E$2:$E$5000)) -> 0 | P20: =SUMPRODUCT((Feuil1!$B$2:$B$5000=$B20)*(Feuil1!$D$2:$D$5000=P$3)*(Feuil1!$E$2:$E$5000)) -> 0 | Q20: =SUMPRODUCT((Feuil1!$B$2:$B$5000=$B20)*(Feuil1!$D$2:$D$5000=Q$3)*(Feuil1!$E$2:$E$5000)) -> 0 | R20: =SUMPRODUCT((Feuil1!$B$2:$B$5000=$B20)*(Feuil1!$D$2:$D$5000=R$3)*(Feuil1!$E$2:$E$5000)) -> 0
A21: =IF(B21="","",MAX($A$3:A20)+1) -> 18 | B21: =IF(ROWS(B$1:B18)>COUNTIF(Feuil1!$A$2:$A$5000,$A$1),"",INDEX(Feuil1!$B$2:$B$5000,SMALL(IF(Feuil1!$A$2:$A$5000<>"",IF(Feuil1!$A$2:$A$5000=$A$1,ROW($A$2:$A$5000)-ROW($A$2)+1)),ROWS(B$1:B18)))) -> 6214 | C21: =SUMPRODUCT((Feuil1!$B$2:$B$5000=$B21)*(Feuil1!$D$2:$D$5000=C$3)*(Feuil1!$E$2:$E$5000)) -> 180 | D21: =SUMPRODUCT((Feuil1!$B$2:$B$5000=$B21)*(Feuil1!$D$2:$D$5000=D$3)*(Feuil1!$E$2:$E$5000)) -> 180 | E21: =SUMPRODUCT((Feuil1!$B$2:$B$5000=$B21)*(Feuil1!$D$2:$D$5000=E$3)*(Feuil1!$E$2:$E$5000)) -> 180 | F21: =SUMPRODUCT((Feuil1!$B$2:$B$5000=$B21)*(Feuil1!$D$2:$D$5000=F$3)*(Feuil1!$E$2:$E$5000)) -> 180 | G21: =SUMPRODUCT((Feuil1!$B$2:$B$5000=$B21)*(Feuil1!$D$2:$D$5000=G$3)*(Feuil1!$E$2:$E$5000)) -> 180 | H21: =SUMPRODUCT((Feuil1!$B$2:$B$5000=$B21)*(Feuil1!$D$2:$D$5000=H$3)*(Feuil1!$E$2:$E$5000)) -> 180 | I21: =SUMPRODUCT((Feuil1!$B$2:$B$5000=$B21)*(Feuil1!$D$2:$D$5000=I$3)*(Feuil1!$E$2:$E$5000)) -> 180 | J21: =SUMPRODUCT((Feuil1!$B$2:$B$5000=$B21)*(Feuil1!$D$2:$D$5000=J$3)*(Feuil1!$E$2:$E$5000)) -> 0 | K21: =SUMPRODUCT((Feuil1!$B$2:$B$5000=$B21)*(Feuil1!$D$2:$D$5000=K$3)*(Feuil1!$E$2:$E$5000)) -> 0 | L21: =SUMPRODUCT((Feuil1!$B$2:$B$5000=$B21)*(Feuil1!$D$2:$D$5000=L$3)*(Feuil1!$E$2:$E$5000)) -> 0 | M21: =SUMPRODUCT((Feuil1!$B$2:$B$5000=$B21)*(Feuil1!$D$2:$D$5000=M$3)*(Feuil1!$E$2:$E$5000)) -> 0 | N21: =SUMPRODUCT((Feuil1!$B$2:$B$5000=$B21)*(Feuil1!$D$2:$D$5000=N$3)*(Feuil1!$E$2:$E$5000)) -> 0 | O21: =SUMPRODUCT((Feuil1!$B$2:$B$5000=$B21)*(Feuil1!$D$2:$D$5000=O$3)*(Feuil1!$E$2:$E$5000)) -> 0 | P21: =SUMPRODUCT((Feuil1!$B$2:$B$5000=$B21)*(Feuil1!$D$2:$D$5000=P$3)*(Feuil1!$E$2:$E$5000)) -> 0 | Q21: =SUMPRODUCT((Feuil1!$B$2:$B$5000=$B21)*(Feuil1!$D$2:$D$5000=Q$3)*(Feuil1!$E$2:$E$5000)) -> 0 | R21: =SUMPRODUCT((Feuil1!$B$2:$B$5000=$B21)*(Feuil1!$D$2:$D$5000=R$3)*(Feuil1!$E$2:$E$5000)) -> 0
A22: =IF(B22="","",MAX($A$3:A21)+1) -> 19 | B22: =IF(ROWS(B$1:B19)>COUNTIF(Feuil1!$A$2:$A$5000,$A$1),"",INDEX(Feuil1!$B$2:$B$5000,SMALL(IF(Feuil1!$A$2:$A$5000<>"",IF(Feuil1!$A$2:$A$5000=$A$1,ROW($A$2:$A$5000)-ROW($A$2)+1)),ROWS(B$1:B19)))) -> 6215 | C22: =SUMPRODUCT((Feuil1!$B$2:$B$5000=$B22)*(Feuil1!$D$2:$D$5000=C$3)*(Feuil1!$E$2:$E$5000)) -> 180 | D22: =SUMPRODUCT((Feuil1!$B$2:$B$5000=$B22)*(Feuil1!$D$2:$D$5000=D$3)*(Feuil1!$E$2:$E$5000)) -> 180 | E22: =SUMPRODUCT((Feuil1!$B$2:$B$5000=$B22)*(Feuil1!$D$2:$D$5000=E$3)*(Feuil1!$E$2:$E$5000)) -> 180 | F22: =SUMPRODUCT((Feuil1!$B$2:$B$5000=$B22)*(Feuil1!$D$2:$D$5000=F$3)*(Feuil1!$E$2:$E$5000)) -> 180 | G22: =SUMPRODUCT((Feuil1!$B$2:$B$5000=$B22)*(Feuil1!$D$2:$D$5000=G$3)*(Feuil1!$E$2:$E$5000)) -> 180 | H22: =SUMPRODUCT((Feuil1!$B$2:$B$5000=$B22)*(Feuil1!$D$2:$D$5000=H$3)*(Feuil1!$E$2:$E$5000)) -> 180 | I22: =SUMPRODUCT((Feuil1!$B$2:$B$5000=$B22)*(Feuil1!$D$2:$D$5000=I$3)*(Feuil1!$E$2:$E$5000)) -> 180 | J22: =SUMPRODUCT((Feuil1!$B$2:$B$5000=$B22)*(Feuil1!$D$2:$D$5000=J$3)*(Feuil1!$E$2:$E$5000)) -> 0 | K22: =SUMPRODUCT((Feuil1!$B$2:$B$5000=$B22)*(Feuil1!$D$2:$D$5000=K$3)*(Feuil1!$E$2:$E$5000)) -> 0 | L22: =SUMPRODUCT((Feuil1!$B$2:$B$5000=$B22)*(Feuil1!$D$2:$D$5000=L$3)*(Feuil1!$E$2:$E$5000)) -> 0 | M22: =SUMPRODUCT((Feuil1!$B$2:$B$5000=$B22)*(Feuil1!$D$2:$D$5000=M$3)*(Feuil1!$E$2:$E$5000)) -> 0 | N22: =SUMPRODUCT((Feuil1!$B$2:$B$5000=$B22)*(Feuil1!$D$2:$D$5000=N$3)*(Feuil1!$E$2:$E$5000)) -> 0 | O22: =SUMPRODUCT((Feuil1!$B$2:$B$5000=$B22)*(Feuil1!$D$2:$D$5000=O$3)*(Feuil1!$E$2:$E$5000)) -> 0 | P22: =SUMPRODUCT((Feuil1!$B$2:$B$5000=$B22)*(Feuil1!$D$2:$D$5000=P$3)*(Feuil1!$E$2:$E$5000)) -> 0 | Q22: =SUMPRODUCT((Feuil1!$B$2:$B$5000=$B22)*(Feuil1!$D$2:$D$5000=Q$3)*(Feuil1!$E$2:$E$5000)) -> 0 | R22: =SUMPRODUCT((Feuil1!$B$2:$B$5000=$B22)*(Feuil1!$D$2:$D$5000=R$3)*(Feuil1!$E$2:$E$5000)) -> 0
A23: =IF(B23="","",MAX($A$3:A22)+1) -> 20 | B23: =IF(ROWS(B$1:B20)>COUNTIF(Feuil1!$A$2:$A$5000,$A$1),"",INDEX(Feuil1!$B$2:$B$5000,SMALL(IF(Feuil1!$A$2:$A$5000<>"",IF(Feuil1!$A$2:$A$5000=$A$1,ROW($A$2:$A$5000)-ROW($A$2)+1)),ROWS(B$1:B20)))) -> 6215 | C23: =SUMPRODUCT((Feuil1!$B$2:$B$5000=$B23)*(Feuil1!$D$2:$D$5000=C$3)*(Feuil1!$E$2:$E$5000)) -> 180 | D23: =SUMPRODUCT((Feuil1!$B$2:$B$5000=$B23)*(Feuil1!$D$2:$D$5000=D$3)*(Feuil1!$E$2:$E$5000)) -> 180 | E23: =SUMPRODUCT((Feuil1!$B$2:$B$5000=$B23)*(Feuil1!$D$2:$D$5000=E$3)*(Feuil1!$E$2:$E$5000)) -> 180 | F23: =SUMPRODUCT((Feuil1!$B$2:$B$5000=$B23)*(Feuil1!$D$2:$D$5000=F$3)*(Feuil1!$E$2:$E$5000)) -> 180 | G23: =SUMPRODUCT((Feuil1!$B$2:$B$5000=$B23)*(Feuil1!$D$2:$D$5000=G$3)*(Feuil1!$E$2:$E$5000)) -> 180 | H23: =SUMPRODUCT((Feuil1!$B$2:$B$5000=$B23)*(Feuil1!$D$2:$D$5000=H$3)*(Feuil1!$E$2:$E$5000)) -> 180 | I23: =SUMPRODUCT((Feuil1!$B$2:$B$5000=$B23)*(Feuil1!$D$2:$D$5000=I$3)*(Feuil1!$E$2:$E$5000)) -> 180 | J23: =SUMPRODUCT((Feuil1!$B$2:$B$5000=$B23)*(Feuil1!$D$2:$D$5000=J$3)*(Feuil1!$E$2:$E$5000)) -> 0 | K23: =SUMPRODUCT((Feuil1!$B$2:$B$5000=$B23)*(Feuil1!$D$2:$D$5000=K$3)*(Feuil1!$E$2:$E$5000)) -> 0 | L23: =SUMPRODUCT((Feuil1!$B$2:$B$5000=$B23)*(Feuil1!$D$2:$D$5000=L$3)*(Feuil1!$E$2:$E$5000)) -> 0 | M23: =SUMPRODUCT((Feuil1!$B$2:$B$5000=$B23)*(Feuil1!$D$2:$D$5000=M$3)*(Feuil1!$E$2:$E$5000)) -> 0 | N23: =SUMPRODUCT((Feuil1!$B$2:$B$5000=$B23)*(Feuil1!$D$2:$D$5000=N$3)*(Feuil1!$E$2:$E$5000)) -> 0 | O23: =SUMPRODUCT((Feuil1!$B$2:$B$5000=$B23)*(Feuil1!$D$2:$D$5000=O$3)*(Feuil1!$E$2:$E$5000)) -> 0 | P23: =SUMPRODUCT((Feuil1!$B$2:$B$5000=$B23)*(Feuil1!$D$2:$D$5000=P$3)*(Feuil1!$E$2:$E$5000)) -> 0 | Q23: =SUMPRODUCT((Feuil1!$B$2:$B$5000=$B23)*(Feuil1!$D$2:$D$5000=Q$3)*(Feuil1!$E$2:$E$5000)) -> 0 | R23: =SUMPRODUCT((Feuil1!$B$2:$B$5000=$B23)*(Feuil1!$D$2:$D$5000=R$3)*(Feuil1!$E$2:$E$5000)) -> 0
A24: =IF(B24="","",MAX($A$3:A23)+1) -> 21 | B24: =IF(ROWS(B$1:B21)>COUNTIF(Feuil1!$A$2:$A$5000,$A$1),"",INDEX(Feuil1!$B$2:$B$5000,SMALL(IF(Feuil1!$A$2:$A$5000<>"",IF(Feuil1!$A$2:$A$5000=$A$1,ROW($A$2:$A$5000)-ROW($A$2)+1)),ROWS(B$1:B21)))) -> 6215 | C24: =SUMPRODUCT((Feuil1!$B$2:$B$5000=$B24)*(Feuil1!$D$2:$D$5000=C$3)*(Feuil1!$E$2:$E$5000)) -> 180 | D24: =SUMPRODUCT((Feuil1!$B$2:$B$5000=$B24)*(Feuil1!$D$2:$D$5000=D$3)*(Feuil1!$E$2:$E$5000)) -> 180 | E24: =SUMPRODUCT((Feuil1!$B$2:$B$5000=$B24)*(Feuil1!$D$2:$D$5000=E$3)*(Feuil1!$E$2:$E$5000)) -> 180 | F24: =SUMPRODUCT((Feuil1!$B$2:$B$5000=$B24)*(Feuil1!$D$2:$D$5000=F$3)*(Feuil1!$E$2:$E$5000)) -> 180 | G24: =SUMPRODUCT((Feuil1!$B$2:$B$5000=$B24)*(Feuil1!$D$2:$D$5000=G$3)*(Feuil1!$E$2:$E$5000)) -> 180 | H24: =SUMPRODUCT((Feuil1!$B$2:$B$5000=$B24)*(Feuil1!$D$2:$D$5000=H$3)*(Feuil1!$E$2:$E$5000)) -> 180 | I24: =SUMPRODUCT((Feuil1!$B$2:$B$5000=$B24)*(Feuil1!$D$2:$D$5000=I$3)*(Feuil1!$E$2:$E$5000)) -> 180 | J24: =SUMPRODUCT((Feuil1!$B$2:$B$5000=$B24)*(Feuil1!$D$2:$D$5000=J$3)*(Feuil1!$E$2:$E$5000)) -> 0 | K24: =SUMPRODUCT((Feuil1!$B$2:$B$5000=$B24)*(Feuil1!$D$2:$D$5000=K$3)*(Feuil1!$E$2:$E$5000)) -> 0 | L24: =SUMPRODUCT((Feuil1!$B$2:$B$5000=$B24)*(Feuil1!$D$2:$D$5000=L$3)*(Feuil1!$E$2:$E$5000)) -> 0 | M24: =SUMPRODUCT((Feuil1!$B$2:$B$5000=$B24)*(Feuil1!$D$2:$D$5000=M$3)*(Feuil1!$E$2:$E$5000)) -> 0 | N24: =SUMPRODUCT((Feuil1!$B$2:$B$5000=$B24)*(Feuil1!$D$2:$D$5000=N$3)*(Feuil1!$E$2:$E$5000)) -> 0 | O24: =SUMPRODUCT((Feuil1!$B$2:$B$5000=$B24)*(Feuil1!$D$2:$D$5000=O$3)*(Feuil1!$E$2:$E$5000)) -> 0 | P24: =SUMPRODUCT((Feuil1!$B$2:$B$5000=$B24)*(Feuil1!$D$2:$D$5000=P$3)*(Feuil1!$E$2:$E$5000)) -> 0 | Q24: =SUMPRODUCT((Feuil1!$B$2:$B$5000=$B24)*(Feuil1!$D$2:$D$5000=Q$3)*(Feuil1!$E$2:$E$5000)) -> 0 | R24: =SUMPRODUCT((Feuil1!$B$2:$B$5000=$B24)*(Feuil1!$D$2:$D$5000=R$3)*(Feuil1!$E$2:$E$5000)) -> 0
A25: =IF(B25="","",MAX($A$3:A24)+1) -> 22 | B25: =IF(ROWS(B$1:B22)>COUNTIF(Feuil1!$A$2:$A$5000,$A$1),"",INDEX(Feuil1!$B$2:$B$5000,SMALL(IF(Feuil1!$A$2:$A$5000<>"",IF(Feuil1!$A$2:$A$5000=$A$1,ROW($A$2:$A$5000)-ROW($A$2)+1)),ROWS(B$1:B22)))) -> 6216 | C25: =SUMPRODUCT((Feuil1!$B$2:$B$5000=$B25)*(Feuil1!$D$2:$D$5000=C$3)*(Feuil1!$E$2:$E$5000)) -> 179 | D25: =SUMPRODUCT((Feuil1!$B$2:$B$5000=$B25)*(Feuil1!$D$2:$D$5000=D$3)*(Feuil1!$E$2:$E$5000)) -> 179 | E25: =SUMPRODUCT((Feuil1!$B$2:$B$5000=$B25)*(Feuil1!$D$2:$D$5000=E$3)*(Feuil1!$E$2:$E$5000)) -> 179 | F25: =SUMPRODUCT((Feuil1!$B$2:$B$5000=$B25)*(Feuil1!$D$2:$D$5000=F$3)*(Feuil1!$E$2:$E$5000)) -> 179 | G25: =SUMPRODUCT((Feuil1!$B$2:$B$5000=$B25)*(Feuil1!$D$2:$D$5000=G$3)*(Feuil1!$E$2:$E$5000)) -> 179 | H25: =SUMPRODUCT((Feuil1!$B$2:$B$5000=$B25)*(Feuil1!$D$2:$D$5000=H$3)*(Feuil1!$E$2:$E$5000)) -> 179 | I25: =SUMPRODUCT((Feuil1!$B$2:$B$5000=$B25)*(Feuil1!$D$2:$D$5000=I$3)*(Feuil1!$E$2:$E$5000)) -> 179 | J25: =SUMPRODUCT((Feuil1!$B$2:$B$5000=$B25)*(Feuil1!$D$2:$D$5000=J$3)*(Feuil1!$E$2:$E$5000)) -> 0 | K25: =SUMPRODUCT((Feuil1!$B$2:$B$5000=$B25)*(Feuil1!$D$2:$D$5000=K$3)*(Feuil1!$E$2:$E$5000)) -> 0 | L25: =SUMPRODUCT((Feuil1!$B$2:$B$5000=$B25)*(Feuil1!$D$2:$D$5000=L$3)*(Feuil1!$E$2:$E$5000)) -> 0 | M25: =SUMPRODUCT((Feuil1!$B$2:$B$5000=$B25)*(Feuil1!$D$2:$D$5000=M$3)*(Feuil1!$E$2:$E$5000)) -> 0 | N25: =SUMPRODUCT((Feuil1!$B$2:$B$5000=$B25)*(Feuil1!$D$2:$D$5000=N$3)*(Feuil1!$E$2:$E$5000)) -> 0 | O25: =SUMPRODUCT((Feuil1!$B$2:$B$5000=$B25)*(Feuil1!$D$2:$D$5000=O$3)*(Feuil1!$E$2:$E$5000)) -> 0 | P25: =SUMPRODUCT((Feuil1!$B$2:$B$5000=$B25)*(Feuil1!$D$2:$D$5000=P$3)*(Feuil1!$E$2:$E$5000)) -> 0 | Q25: =SUMPRODUCT((Feuil1!$B$2:$B$5000=$B25)*(Feuil1!$D$2:$D$5000=Q$3)*(Feuil1!$E$2:$E$5000)) -> 0 | R25: =SUMPRODUCT((Feuil1!$B$2:$B$5000=$B25)*(Feuil1!$D$2:$D$5000=R$3)*(Feuil1!$E$2:$E$5000)) -> 0
A26: =IF(B26="","",MAX($A$3:A25)+1) -> 23 | B26: =IF(ROWS(B$1:B23)>COUNTIF(Feuil1!$A$2:$A$5000,$A$1),"",INDEX(Feuil1!$B$2:$B$5000,SMALL(IF(Feuil1!$A$2:$A$5000<>"",IF(Feuil1!$A$2:$A$5000=$A$1,ROW($A$2:$A$5000)-ROW($A$2)+1)),ROWS(B$1:B23)))) -> 6216 | C26: =SUMPRODUCT((Feuil1!$B$2:$B$5000=$B26)*(Feuil1!$D$2:$D$5000=C$3)*(Feuil1!$E$2:$E$5000)) -> 179 | D26: =SUMPRODUCT((Feuil1!$B$2:$B$5000=$B26)*(Feuil1!$D$2:$D$5000=D$3)*(Feuil1!$E$2:$E$5000)) -> 179 | E26: =SUMPRODUCT((Feuil1!$B$2:$B$5000=$B26)*(Feuil1!$D$2:$D$5000=E$3)*(Feuil1!$E$2:$E$5000)) -> 179 | F26: =SUMPRODUCT((Feuil1!$B$2:$B$5000=$B26)*(Feuil1!$D$2:$D$5000=F$3)*(Feuil1!$E$2:$E$5000)) -> 179 | G26: =SUMPRODUCT((Feuil1!$B$2:$B$5000=$B26)*(Feuil1!$D$2:$D$5000=G$3)*(Feuil1!$E$2:$E$5000)) -> 179 | H26: =SUMPRODUCT((Feuil1!$B$2:$B$5000=$B26)*(Feuil1!$D$2:$D$5000=H$3)*(Feuil1!$E$2:$E$5000)) -> 179 | I26: =SUMPRODUCT((Feuil1!$B$2:$B$5000=$B26)*(Feuil1!$D$2:$D$5000=I$3)*(Feuil1!$E$2:$E$5000)) -> 179 | J26: =SUMPRODUCT((Feuil1!$B$2:$B$5000=$B26)*(Feuil1!$D$2:$D$5000=J$3)*(Feuil1!$E$2:$E$5000)) -> 0 | K26: =SUMPRODUCT((Feuil1!$B$2:$B$5000=$B26)*(Feuil1!$D$2:$D$5000=K$3)*(Feuil1!$E$2:$E$5000)) -> 0 | L26: =SUMPRODUCT((Feuil1!$B$2:$B$5000=$B26)*(Feuil1!$D$2:$D$5000=L$3)*(Feuil1!$E$2:$E$5000)) -> 0 | M26: =SUMPRODUCT((Feuil1!$B$2:$B$5000=$B26)*(Feuil1!$D$2:$D$5000=M$3)*(Feuil1!$E$2:$E$5000)) -> 0 | N26: =SUMPRODUCT((Feuil1!$B$2:$B$5000=$B26)*(Feuil1!$D$2:$D$5000=N$3)*(Feuil1!$E$2:$E$5000)) -> 0 | O26: =SUMPRODUCT((Feuil1!$B$2:$B$5000=$B26)*(Feuil1!$D$2:$D$5000=O$3)*(Feuil1!$E$2:$E$5000)) -> 0 | P26: =SUMPRODUCT((Feuil1!$B$2:$B$5000=$B26)*(Feuil1!$D$2:$D$5000=P$3)*(Feuil1!$E$2:$E$5000)) -> 0 | Q26: =SUMPRODUCT((Feuil1!$B$2:$B$5000=$B26)*(Feuil1!$D$2:$D$5000=Q$3)*(Feuil1!$E$2:$E$5000)) -> 0 | R26: =SUMPRODUCT((Feuil1!$B$2:$B$5000=$B26)*(Feuil1!$D$2:$D$5000=R$3)*(Feuil1!$E$2:$E$5000)) -> 0
A27: =IF(B27="","",MAX($A$3:A26)+1) -> 24 | B27: =IF(ROWS(B$1:B24)>COUNTIF(Feuil1!$A$2:$A$5000,$A$1),"",INDEX(Feuil1!$B$2:$B$5000,SMALL(IF(Feuil1!$A$2:$A$5000<>"",IF(Feuil1!$A$2:$A$5000=$A$1,ROW($A$2:$A$5000)-ROW($A$2)+1)),ROWS(B$1:B24)))) -> 6216 | C27: =SUMPRODUCT((Feuil1!$B$2:$B$5000=$B27)*(Feuil1!$D$2:$D$5000=C$3)*(Feuil1!$E$2:$E$5000)) -> 179 | D27: =SUMPRODUCT((Feuil1!$B$2:$B$5000=$B27)*(Feuil1!$D$2:$D$5000=D$3)*(Feuil1!$E$2:$E$5000)) -> 179 | E27: =SUMPRODUCT((Feuil1!$B$2:$B$5000=$B27)*(Feuil1!$D$2:$D$5000=E$3)*(Feuil1!$E$2:$E$5000)) -> 179 | F27: =SUMPRODUCT((Feuil1!$B$2:$B$5000=$B27)*(Feuil1!$D$2:$D$5000=F$3)*(Feuil1!$E$2:$E$5000)) -> 179 | G27: =SUMPRODUCT((Feuil1!$B$2:$B$5000=$B27)*(Feuil1!$D$2:$D$5000=G$3)*(Feuil1!$E$2:$E$5000)) -> 179 | H27: =SUMPRODUCT((Feuil1!$B$2:$B$5000=$B27)*(Feuil1!$D$2:$D$5000=H$3)*(Feuil1!$E$2:$E$5000)) -> 179 | I27: =SUMPRODUCT((Feuil1!$B$2:$B$5000=$B27)*(Feuil1!$D$2:$D$5000=I$3)*(Feuil1!$E$2:$E$5000)) -> 179 | J27: =SUMPRODUCT((Feuil1!$B$2:$B$5000=$B27)*(Feuil1!$D$2:$D$5000=J$3)*(Feuil1!$E$2:$E$5000)) -> 0 | K27: =SUMPRODUCT((Feuil1!$B$2:$B$5000=$B27)*(Feuil1!$D$2:$D$5000=K$3)*(Feuil1!$E$2:$E$5000)) -> 0 | L27: =SUMPRODUCT((Feuil1!$B$2:$B$5000=$B27)*(Feuil1!$D$2:$D$5000=L$3)*(Feuil1!$E$2:$E$5000)) -> 0 | M27: =SUMPRODUCT((Feuil1!$B$2:$B$5000=$B27)*(Feuil1!$D$2:$D$5000=M$3)*(Feuil1!$E$2:$E$5000)) -> 0 | N27: =SUMPRODUCT((Feuil1!$B$2:$B$5000=$B27)*(Feuil1!$D$2:$D$5000=N$3)*(Feuil1!$E$2:$E$5000)) -> 0 | O27: =SUMPRODUCT((Feuil1!$B$2:$B$5000=$B27)*(Feuil1!$D$2:$D$5000=O$3)*(Feuil1!$E$2:$E$5000)) -> 0 | P27: =SUMPRODUCT((Feuil1!$B$2:$B$5000=$B27)*(Feuil1!$D$2:$D$5000=P$3)*(Feuil1!$E$2:$E$5000)) -> 0 | Q27: =SUMPRODUCT((Feuil1!$B$2:$B$5000=$B27)*(Feuil1!$D$2:$D$5000=Q$3)*(Feuil1!$E$2:$E$5000)) -> 0 | R27: =SUMPRODUCT((Feuil1!$B$2:$B$5000=$B27)*(Feuil1!$D$2:$D$5000=R$3)*(Feuil1!$E$2:$E$5000)) -> 0
A28: =IF(B28="","",MAX($A$3:A27)+1) -> 25 | B28: =IF(ROWS(B$1:B25)>COUNTIF(Feuil1!$A$2:$A$5000,$A$1),"",INDEX(Feuil1!$B$2:$B$5000,SMALL(IF(Feuil1!$A$2:$A$5000<>"",IF(Feuil1!$A$2:$A$5000=$A$1,ROW($A$2:$A$5000)-ROW($A$2)+1)),ROWS(B$1:B25)))) -> 6217 | C28: =SUMPRODUCT((Feuil1!$B$2:$B$5000=$B28)*(Feuil1!$D$2:$D$5000=C$3)*(Feuil1!$E$2:$E$5000)) -> 180 | D28: =SUMPRODUCT((Feuil1!$B$2:$B$5000=$B28)*(Feuil1!$D$2:$D$5000=D$3)*(Feuil1!$E$2:$E$5000)) -> 180 | E28: =SUMPRODUCT((Feuil1!$B$2:$B$5000=$B28)*(Feuil1!$D$2:$D$5000=E$3)*(Feuil1!$E$2:$E$5000)) -> 180 | F28: =SUMPRODUCT((Feuil1!$B$2:$B$5000=$B28)*(Feuil1!$D$2:$D$5000=F$3)*(Feuil1!$E$2:$E$5000)) -> 180 | G28: =SUMPRODUCT((Feuil1!$B$2:$B$5000=$B28)*(Feuil1!$D$2:$D$5000=G$3)*(Feuil1!$E$2:$E$5000)) -> 180 | H28: =SUMPRODUCT((Feuil1!$B$2:$B$5000=$B28)*(Feuil1!$D$2:$D$5000=H$3)*(Feuil1!$E$2:$E$5000)) -> 180 | I28: =SUMPRODUCT((Feuil1!$B$2:$B$5000=$B28)*(Feuil1!$D$2:$D$5000=I$3)*(Feuil1!$E$2:$E$5000)) -> 180 | J28: =SUMPRODUCT((Feuil1!$B$2:$B$5000=$B28)*(Feuil1!$D$2:$D$5000=J$3)*(Feuil1!$E$2:$E$5000)) -> 0 | K28: =SUMPRODUCT((Feuil1!$B$2:$B$5000=$B28)*(Feuil1!$D$2:$D$5000=K$3)*(Feuil1!$E$2:$E$5000)) -> 0 | L28: =SUMPRODUCT((Feuil1!$B$2:$B$5000=$B28)*(Feuil1!$D$2:$D$5000=L$3)*(Feuil1!$E$2:$E$5000)) -> 0 | M28: =SUMPRODUCT((Feuil1!$B$2:$B$5000=$B28)*(Feuil1!$D$2:$D$5000=M$3)*(Feuil1!$E$2:$E$5000)) -> 0 | N28: =SUMPRODUCT((Feuil1!$B$2:$B$5000=$B28)*(Feuil1!$D$2:$D$5000=N$3)*(Feuil1!$E$2:$E$5000)) -> 0 | O28: =SUMPRODUCT((Feuil1!$B$2:$B$5000=$B28)*(Feuil1!$D$2:$D$5000=O$3)*(Feuil1!$E$2:$E$5000)) -> 0 | P28: =SUMPRODUCT((Feuil1!$B$2:$B$5000=$B28)*(Feuil1!$D$2:$D$5000=P$3)*(Feuil1!$E$2:$E$5000)) -> 0 | Q28: =SUMPRODUCT((Feuil1!$B$2:$B$5000=$B28)*(Feuil1!$D$2:$D$5000=Q$3)*(Feuil1!$E$2:$E$5000)) -> 0 | R28: =SUMPRODUCT((Feuil1!$B$2:$B$5000=$B28)*(Feuil1!$D$2:$D$5000=R$3)*(Feuil1!$E$2:$E$5000)) -> 0
A29: =IF(B29="","",MAX($A$3:A28)+1) -> 26 | B29: =IF(ROWS(B$1:B26)>COUNTIF(Feuil1!$A$2:$A$5000,$A$1),"",INDEX(Feuil1!$B$2:$B$5000,SMALL(IF(Feuil1!$A$2:$A$5000<>"",IF(Feuil1!$A$2:$A$5000=$A$1,ROW($A$2:$A$5000)-ROW($A$2)+1)),ROWS(B$1:B26)))) -> 6217 | C29: =SUMPRODUCT((Feuil1!$B$2:$B$5000=$B29)*(Feuil1!$D$2:$D$5000=C$3)*(Feuil1!$E$2:$E$5000)) -> 180 | D29: =SUMPRODUCT((Feuil1!$B$2:$B$5000=$B29)*(Feuil1!$D$2:$D$5000=D$3)*(Feuil1!$E$2:$E$5000)) -> 180 | E29: =SUMPRODUCT((Feuil1!$B$2:$B$5000=$B29)*(Feuil1!$D$2:$D$5000=E$3)*(Feuil1!$E$2:$E$5000)) -> 180 | F29: =SUMPRODUCT((Feuil1!$B$2:$B$5000=$B29)*(Feuil1!$D$2:$D$5000=F$3)*(Feuil1!$E$2:$E$5000)) -> 180 | G29: =SUMPRODUCT((Feuil1!$B$2:$B$5000=$B29)*(Feuil1!$D$2:$D$5000=G$3)*(Feuil1!$E$2:$E$5000)) -> 180 | H29: =SUMPRODUCT((Feuil1!$B$2:$B$5000=$B29)*(Feuil1!$D$2:$D$5000=H$3)*(Feuil1!$E$2:$E$5000)) -> 180 | I29: =SUMPRODUCT((Feuil1!$B$2:$B$5000=$B29)*(Feuil1!$D$2:$D$5000=I$3)*(Feuil1!$E$2:$E$5000)) -> 180 | J29: =SUMPRODUCT((Feuil1!$B$2:$B$5000=$B29)*(Feuil1!$D$2:$D$5000=J$3)*(Feuil1!$E$2:$E$5000)) -> 0 | K29: =SUMPRODUCT((Feuil1!$B$2:$B$5000=$B29)*(Feuil1!$D$2:$D$5000=K$3)*(Feuil1!$E$2:$E$5000)) -> 0 | L29: =SUMPRODUCT((Feuil1!$B$2:$B$5000=$B29)*(Feuil1!$D$2:$D$5000=L$3)*(Feuil1!$E$2:$E$5000)) -> 0 | M29: =SUMPRODUCT((Feuil1!$B$2:$B$5000=$B29)*(Feuil1!$D$2:$D$5000=M$3)*(Feuil1!$E$2:$E$5000)) -> 0 | N29: =SUMPRODUCT((Feuil1!$B$2:$B$5000=$B29)*(Feuil1!$D$2:$D$5000=N$3)*(Feuil1!$E$2:$E$5000)) -> 0 | O29: =SUMPRODUCT((Feuil1!$B$2:$B$5000=$B29)*(Feuil1!$D$2:$D$5000=O$3)*(Feuil1!$E$2:$E$5000)) -> 0 | P29: =SUMPRODUCT((Feuil1!$B$2:$B$5000=$B29)*(Feuil1!$D$2:$D$5000=P$3)*(Feuil1!$E$2:$E$5000)) -> 0 | Q29: =SUMPRODUCT((Feuil1!$B$2:$B$5000=$B29)*(Feuil1!$D$2:$D$5000=Q$3)*(Feuil1!$E$2:$E$5000)) -> 0 | R29: =SUMPRODUCT((Feuil1!$B$2:$B$5000=$B29)*(Feuil1!$D$2:$D$5000=R$3)*(Feuil1!$E$2:$E$5000)) -> 0
A30: =IF(B30="","",MAX($A$3:A29)+1) -> 27 | B30: =IF(ROWS(B$1:B27)>COUNTIF(Feuil1!$A$2:$A$5000,$A$1),"",INDEX(Feuil1!$B$2:$B$5000,SMALL(IF(Feuil1!$A$2:$A$5000<>"",IF(Feuil1!$A$2:$A$5000=$A$1,ROW($A$2:$A$5000)-ROW($A$2)+1)),ROWS(B$1:B27)))) -> 6217 | C30: =SUMPRODUCT((Feuil1!$B$2:$B$5000=$B30)*(Feuil1!$D$2:$D$5000=C$3)*(Feuil1!$E$2:$E$5000)) -> 180 | D30: =SUMPRODUCT((Feuil1!$B$2:$B$5000=$B30)*(Feuil1!$D$2:$D$5000=D$3)*(Feuil1!$E$2:$E$5000)) -> 180 | E30: =SUMPRODUCT((Feuil1!$B$2:$B$5000=$B30)*(Feuil1!$D$2:$D$5000=E$3)*(Feuil1!$E$2:$E$5000)) -> 180 | F30: =SUMPRODUCT((Feuil1!$B$2:$B$5000=$B30)*(Feuil1!$D$2:$D$5000=F$3)*(Feuil1!$E$2:$E$5000)) -> 180 | G30: =SUMPRODUCT((Feuil1!$B$2:$B$5000=$B30)*(Feuil1!$D$2:$D$5000=G$3)*(Feuil1!$E$2:$E$5000)) -> 180 | H30: =SUMPRODUCT((Feuil1!$B$2:$B$5000=$B30)*(Feuil1!$D$2:$D$5000=H$3)*(Feuil1!$E$2:$E$5000)) -> 180 | I30: =SUMPRODUCT((Feuil1!$B$2:$B$5000=$B30)*(Feuil1!$D$2:$D$5000=I$3)*(Feuil1!$E$2:$E$5000)) -> 180 | J30: =SUMPRODUCT((Feuil1!$B$2:$B$5000=$B30)*(Feuil1!$D$2:$D$5000=J$3)*(Feuil1!$E$2:$E$5000)) -> 0 | K30: =SUMPRODUCT((Feuil1!$B$2:$B$5000=$B30)*(Feuil1!$D$2:$D$5000=K$3)*(Feuil1!$E$2:$E$5000)) -> 0 | L30: =SUMPRODUCT((Feuil1!$B$2:$B$5000=$B30)*(Feuil1!$D$2:$D$5000=L$3)*(Feuil1!$E$2:$E$5000)) -> 0 | M30: =SUMPRODUCT((Feuil1!$B$2:$B$5000=$B30)*(Feuil1!$D$2:$D$5000=M$3)*(Feuil1!$E$2:$E$5000)) -> 0 | N30: =SUMPRODUCT((Feuil1!$B$2:$B$5000=$B30)*(Feuil1!$D$2:$D$5000=N$3)*(Feuil1!$E$2:$E$5000)) -> 0 | O30: =SUMPRODUCT((Feuil1!$B$2:$B$5000=$B30)*(Feuil1!$D$2:$D$5000=O$3)*(Feuil1!$E$2:$E$5000)) -> 0 | P30: =SUMPRODUCT((Feuil1!$B$2:$B$5000=$B30)*(Feuil1!$D$2:$D$5000=P$3)*(Feuil1!$E$2:$E$5000)) -> 0 | Q30: =SUMPRODUCT((Feuil1!$B$2:$B$5000=$B30)*(Feuil1!$D$2:$D$5000=Q$3)*(Feuil1!$E$2:$E$5000)) -> 0 | R30: =SUMPRODUCT((Feuil1!$B$2:$B$5000=$B30)*(Feuil1!$D$2:$D$5000=R$3)*(Feuil1!$E$2:$E$5000)) -> 0
A31: =IF(B31="","",MAX($A$3:A30)+1) -> 28 | B31: =IF(ROWS(B$1:B28)>COUNTIF(Feuil1!$A$2:$A$5000,$A$1),"",INDEX(Feuil1!$B$2:$B$5000,SMALL(IF(Feuil1!$A$2:$A$5000<>"",IF(Feuil1!$A$2:$A$5000=$A$1,ROW($A$2:$A$5000)-ROW($A$2)+1)),ROWS(B$1:B28)))) -> 6218 | C31: =SUMPRODUCT((Feuil1!$B$2:$B$5000=$B31)*(Feuil1!$D$2:$D$5000=C$3)*(Feuil1!$E$2:$E$5000)) -> 180 | D31: =SUMPRODUCT((Feuil1!$B$2:$B$5000=$B31)*(Feuil1!$D$2:$D$5000=D$3)*(Feuil1!$E$2:$E$5000)) -> 180 | E31: =SUMPRODUCT((Feuil1!$B$2:$B$5000=$B31)*(Feuil1!$D$2:$D$5000=E$3)*(Feuil1!$E$2:$E$5000)) -> 180 | F31: =SUMPRODUCT((Feuil1!$B$2:$B$5000=$B31)*(Feuil1!$D$2:$D$5000=F$3)*(Feuil1!$E$2:$E$5000)) -> 180 | G31: =SUMPRODUCT((Feuil1!$B$2:$B$5000=$B31)*(Feuil1!$D$2:$D$5000=G$3)*(Feuil1!$E$2:$E$5000)) -> 180 | H31: =SUMPRODUCT((Feuil1!$B$2:$B$5000=$B31)*(Feuil1!$D$2:$D$5000=H$3)*(Feuil1!$E$2:$E$5000)) -> 180 | I31: =SUMPRODUCT((Feuil1!$B$2:$B$5000=$B31)*(Feuil1!$D$2:$D$5000=I$3)*(Feuil1!$E$2:$E$5000)) -> 180 | J31: =SUMPRODUCT((Feuil1!$B$2:$B$5000=$B31)*(Feuil1!$D$2:$D$5000=J$3)*(Feuil1!$E$2:$E$5000)) -> 0 | K31: =SUMPRODUCT((Feuil1!$B$2:$B$5000=$B31)*(Feuil1!$D$2:$D$5000=K$3)*(Feuil1!$E$2:$E$5000)) -> 0 | L31: =SUMPRODUCT((Feuil1!$B$2:$B$5000=$B31)*(Feuil1!$D$2:$D$5000=L$3)*(Feuil1!$E$2:$E$5000)) -> 0 | M31: =SUMPRODUCT((Feuil1!$B$2:$B$5000=$B31)*(Feuil1!$D$2:$D$5000=M$3)*(Feuil1!$E$2:$E$5000)) -> 0 | N31: =SUMPRODUCT((Feuil1!$B$2:$B$5000=$B31)*(Feuil1!$D$2:$D$5000=N$3)*(Feuil1!$E$2:$E$5000)) -> 0 | O31: =SUMPRODUCT((Feuil1!$B$2:$B$5000=$B31)*(Feuil1!$D$2:$D$5000=O$3)*(Feuil1!$E$2:$E$5000)) -> 0 | P31: =SUMPRODUCT((Feuil1!$B$2:$B$5000=$B31)*(Feuil1!$D$2:$D$5000=P$3)*(Feuil1!$E$2:$E$5000)) -> 0 | Q31: =SUMPRODUCT((Feuil1!$B$2:$B$5000=$B31)*(Feuil1!$D$2:$D$5000=Q$3)*(Feuil1!$E$2:$E$5000)) -> 0 | R31: =SUMPRODUCT((Feuil1!$B$2:$B$5000=$B31)*(Feuil1!$D$2:$D$5000=R$3)*(Feuil1!$E$2:$E$5000)) -> 0
A32: =IF(B32="","",MAX($A$3:A31)+1) -> 29 | B32: =IF(ROWS(B$1:B29)>COUNTIF(Feuil1!$A$2:$A$5000,$A$1),"",INDEX(Feuil1!$B$2:$B$5000,SMALL(IF(Feuil1!$A$2:$A$5000<>"",IF(Feuil1!$A$2:$A$5000=$A$1,ROW($A$2:$A$5000)-ROW($A$2)+1)),ROWS(B$1:B29)))) -> 6218 | C32: =SUMPRODUCT((Feuil1!$B$2:$B$5000=$B32)*(Feuil1!$D$2:$D$5000=C$3)*(Feuil1!$E$2:$E$5000)) -> 180 | D32: =SUMPRODUCT((Feuil1!$B$2:$B$5000=$B32)*(Feuil1!$D$2:$D$5000=D$3)*(Feuil1!$E$2:$E$5000)) -> 180 | E32: =SUMPRODUCT((Feuil1!$B$2:$B$5000=$B32)*(Feuil1!$D$2:$D$5000=E$3)*(Feuil1!$E$2:$E$5000)) -> 180 | F32: =SUMPRODUCT((Feuil1!$B$2:$B$5000=$B32)*(Feuil1!$D$2:$D$5000=F$3)*(Feuil1!$E$2:$E$5000)) -> 180 | G32: =SUMPRODUCT((Feuil1!$B$2:$B$5000=$B32)*(Feuil1!$D$2:$D$5000=G$3)*(Feuil1!$E$2:$E$5000)) -> 180 | H32: =SUMPRODUCT((Feuil1!$B$2:$B$5000=$B32)*(Feuil1!$D$2:$D$5000=H$3)*(Feuil1!$E$2:$E$5000)) -> 180 | I32: =SUMPRODUCT((Feuil1!$B$2:$B$5000=$B32)*(Feuil1!$D$2:$D$5000=I$3)*(Feuil1!$E$2:$E$5000)) -> 180 | J32: =SUMPRODUCT((Feuil1!$B$2:$B$5000=$B32)*(Feuil1!$D$2:$D$5000=J$3)*(Feuil1!$E$2:$E$5000)) -> 0 | K32: =SUMPRODUCT((Feuil1!$B$2:$B$5000=$B32)*(Feuil1!$D$2:$D$5000=K$3)*(Feuil1!$E$2:$E$5000)) -> 0 | L32: =SUMPRODUCT((Feuil1!$B$2:$B$5000=$B32)*(Feuil1!$D$2:$D$5000=L$3)*(Feuil1!$E$2:$E$5000)) -> 0 | M32: =SUMPRODUCT((Feuil1!$B$2:$B$5000=$B32)*(Feuil1!$D$2:$D$5000=M$3)*(Feuil1!$E$2:$E$5000)) -> 0 | N32: =SUMPRODUCT((Feuil1!$B$2:$B$5000=$B32)*(Feuil1!$D$2:$D$5000=N$3)*(Feuil1!$E$2:$E$5000)) -> 0 | O32: =SUMPRODUCT((Feuil1!$B$2:$B$5000=$B32)*(Feuil1!$D$2:$D$5000=O$3)*(Feuil1!$E$2:$E$5000)) -> 0 | P32: =SUMPRODUCT((Feuil1!$B$2:$B$5000=$B32)*(Feuil1!$D$2:$D$5000=P$3)*(Feuil1!$E$2:$E$5000)) -> 0 | Q32: =SUMPRODUCT((Feuil1!$B$2:$B$5000=$B32)*(Feuil1!$D$2:$D$5000=Q$3)*(Feuil1!$E$2:$E$5000)) -> 0 | R32: =SUMPRODUCT((Feuil1!$B$2:$B$5000=$B32)*(Feuil1!$D$2:$D$5000=R$3)*(Feuil1!$E$2:$E$5000)) -> 0
A33: =IF(B33="","",MAX($A$3:A32)+1) -> 30 | B33: =IF(ROWS(B$1:B30)>COUNTIF(Feuil1!$A$2:$A$5000,$A$1),"",INDEX(Feuil1!$B$2:$B$5000,SMALL(IF(Feuil1!$A$2:$A$5000<>"",IF(Feuil1!$A$2:$A$5000=$A$1,ROW($A$2:$A$5000)-ROW($A$2)+1)),ROWS(B$1:B30)))) -> 6218 | C33: =SUMPRODUCT((Feuil1!$B$2:$B$5000=$B33)*(Feuil1!$D$2:$D$5000=C$3)*(Feuil1!$E$2:$E$5000)) -> 180 | D33: =SUMPRODUCT((Feuil1!$B$2:$B$5000=$B33)*(Feuil1!$D$2:$D$5000=D$3)*(Feuil1!$E$2:$E$5000)) -> 180 | E33: =SUMPRODUCT((Feuil1!$B$2:$B$5000=$B33)*(Feuil1!$D$2:$D$5000=E$3)*(Feuil1!$E$2:$E$5000)) -> 180 | F33: =SUMPRODUCT((Feuil1!$B$2:$B$5000=$B33)*(Feuil1!$D$2:$D$5000=F$3)*(Feuil1!$E$2:$E$5000)) -> 180 | G33: =SUMPRODUCT((Feuil1!$B$2:$B$5000=$B33)*(Feuil1!$D$2:$D$5000=G$3)*(Feuil1!$E$2:$E$5000)) -> 180 | H33: =SUMPRODUCT((Feuil1!$B$2:$B$5000=$B33)*(Feuil1!$D$2:$D$5000=H$3)*(Feuil1!$E$2:$E$5000)) -> 180 | I33: =SUMPRODUCT((Feuil1!$B$2:$B$5000=$B33)*(Feuil1!$D$2:$D$5000=I$3)*(Feuil1!$E$2:$E$5000)) -> 180 | J33: =SUMPRODUCT((Feuil1!$B$2:$B$5000=$B33)*(Feuil1!$D$2:$D$5000=J$3)*(Feuil1!$E$2:$E$5000)) -> 0 | K33: =SUMPRODUCT((Feuil1!$B$2:$B$5000=$B33)*(Feuil1!$D$2:$D$5000=K$3)*(Feuil1!$E$2:$E$5000)) -> 0 | L33: =SUMPRODUCT((Feuil1!$B$2:$B$5000=$B33)*(Feuil1!$D$2:$D$5000=L$3)*(Feuil1!$E$2:$E$5000)) -> 0 | M33: =SUMPRODUCT((Feuil1!$B$2:$B$5000=$B33)*(Feuil1!$D$2:$D$5000=M$3)*(Feuil1!$E$2:$E$5000)) -> 0 | N33: =SUMPRODUCT((Feuil1!$B$2:$B$5000=$B33)*(Feuil1!$D$2:$D$5000=N$3)*(Feuil1!$E$2:$E$5000)) -> 0 | O33: =SUMPRODUCT((Feuil1!$B$2:$B$5000=$B33)*(Feuil1!$D$2:$D$5000=O$3)*(Feuil1!$E$2:$E$5000)) -> 0 | P33: =SUMPRODUCT((Feuil1!$B$2:$B$5000=$B33)*(Feuil1!$D$2:$D$5000=P$3)*(Feuil1!$E$2:$E$5000)) -> 0 | Q33: =SUMPRODUCT((Feuil1!$B$2:$B$5000=$B33)*(Feuil1!$D$2:$D$5000=Q$3)*(Feuil1!$E$2:$E$5000)) -> 0 | R33: =SUMPRODUCT((Feuil1!$B$2:$B$5000=$B33)*(Feuil1!$D$2:$D$5000=R$3)*(Feuil1!$E$2:$E$5000)) -> 0
A34: =IF(B34="","",MAX($A$3:A33)+1) -> 31 | B34: =IF(ROWS(B$1:B31)>COUNTIF(Feuil1!$A$2:$A$5000,$A$1),"",INDEX(Feuil1!$B$2:$B$5000,SMALL(IF(Feuil1!$A$2:$A$5000<>"",IF(Feuil1!$A$2:$A$5000=$A$1,ROW($A$2:$A$5000)-ROW($A$2)+1)),ROWS(B$1:B31)))) -> 6219 | C34: =SUMPRODUCT((Feuil1!$B$2:$B$5000=$B34)*(Feuil1!$D$2:$D$5000=C$3)*(Feuil1!$E$2:$E$5000)) -> 180 | D34: =SUMPRODUCT((Feuil1!$B$2:$B$5000=$B34)*(Feuil1!$D$2:$D$5000=D$3)*(Feuil1!$E$2:$E$5000)) -> 180 | E34: =SUMPRODUCT((Feuil1!$B$2:$B$5000=$B34)*(Feuil1!$D$2:$D$5000=E$3)*(Feuil1!$E$2:$E$5000)) -> 180 | F34: =SUMPRODUCT((Feuil1!$B$2:$B$5000=$B34)*(Feuil1!$D$2:$D$5000=F$3)*(Feuil1!$E$2:$E$5000)) -> 180 | G34: =SUMPRODUCT((Feuil1!$B$2:$B$5000=$B34)*(Feuil1!$D$2:$D$5000=G$3)*(Feuil1!$E$2:$E$5000)) -> 180 | H34: =SUMPRODUCT((Feuil1!$B$2:$B$5000=$B34)*(Feuil1!$D$2:$D$5000=H$3)*(Feuil1!$E$2:$E$5000)) -> 180 | I34: =SUMPRODUCT((Feuil1!$B$2:$B$5000=$B34)*(Feuil1!$D$2:$D$5000=I$3)*(Feuil1!$E$2:$E$5000)) -> 180 | J34: =SUMPRODUCT((Feuil1!$B$2:$B$5000=$B34)*(Feuil1!$D$2:$D$5000=J$3)*(Feuil1!$E$2:$E$5000)) -> 0 | K34: =SUMPRODUCT((Feuil1!$B$2:$B$5000=$B34)*(Feuil1!$D$2:$D$5000=K$3)*(Feuil1!$E$2:$E$5000)) -> 0 | L34: =SUMPRODUCT((Feuil1!$B$2:$B$5000=$B34)*(Feuil1!$D$2:$D$5000=L$3)*(Feuil1!$E$2:$E$5000)) -> 0 | M34: =SUMPRODUCT((Feuil1!$B$2:$B$5000=$B34)*(Feuil1!$D$2:$D$5000=M$3)*(Feuil1!$E$2:$E$5000)) -> 0 | N34: =SUMPRODUCT((Feuil1!$B$2:$B$5000=$B34)*(Feuil1!$D$2:$D$5000=N$3)*(Feuil1!$E$2:$E$5000)) -> 0 | O34: =SUMPRODUCT((Feuil1!$B$2:$B$5000=$B34)*(Feuil1!$D$2:$D$5000=O$3)*(Feuil1!$E$2:$E$5000)) -> 0 | P34: =SUMPRODUCT((Feuil1!$B$2:$B$5000=$B34)*(Feuil1!$D$2:$D$5000=P$3)*(Feuil1!$E$2:$E$5000)) -> 0 | Q34: =SUMPRODUCT((Feuil1!$B$2:$B$5000=$B34)*(Feuil1!$D$2:$D$5000=Q$3)*(Feuil1!$E$2:$E$5000)) -> 0 | R34: =SUMPRODUCT((Feuil1!$B$2:$B$5000=$B34)*(Feuil1!$D$2:$D$5000=R$3)*(Feuil1!$E$2:$E$5000)) -> 0
A35: =IF(B35="","",MAX($A$3:A34)+1) -> 32 | B35: =IF(ROWS(B$1:B32)>COUNTIF(Feuil1!$A$2:$A$5000,$A$1),"",INDEX(Feuil1!$B$2:$B$5000,SMALL(IF(Feuil1!$A$2:$A$5000<>"",IF(Feuil1!$A$2:$A$5000=$A$1,ROW($A$2:$A$5000)-ROW($A$2)+1)),ROWS(B$1:B32)))) -> 6219 | C35: =SUMPRODUCT((Feuil1!$B$2:$B$5000=$B35)*(Feuil1!$D$2:$D$5000=C$3)*(Feuil1!$E$2:$E$5000)) -> 180 | D35: =SUMPRODUCT((Feuil1!$B$2:$B$5000=$B35)*(Feuil1!$D$2:$D$5000=D$3)*(Feuil1!$E$2:$E$5000)) -> 180 | E35: =SUMPRODUCT((Feuil1!$B$2:$B$5000=$B35)*(Feuil1!$D$2:$D$5000=E$3)*(Feuil1!$E$2:$E$5000)) -> 180 | F35: =SUMPRODUCT((Feuil1!$B$2:$B$5000=$B35)*(Feuil1!$D$2:$D$5000=F$3)*(Feuil1!$E$2:$E$5000)) -> 180 | G35: =SUMPRODUCT((Feuil1!$B$2:$B$5000=$B35)*(Feuil1!$D$2:$D$5000=G$3)*(Feuil1!$E$2:$E$5000)) -> 180 | H35: =SUMPRODUCT((Feuil1!$B$2:$B$5000=$B35)*(Feuil1!$D$2:$D$5000=H$3)*(Feuil1!$E$2:$E$5000)) -> 180 | I35: =SUMPRODUCT((Feuil1!$B$2:$B$5000=$B35)*(Feuil1!$D$2:$D$5000=I$3)*(Feuil1!$E$2:$E$5000)) -> 180 | J35: =SUMPRODUCT((Feuil1!$B$2:$B$5000=$B35)*(Feuil1!$D$2:$D$5000=J$3)*(Feuil1!$E$2:$E$5000)) -> 0 | K35: =SUMPRODUCT((Feuil1!$B$2:$B$5000=$B35)*(Feuil1!$D$2:$D$5000=K$3)*(Feuil1!$E$2:$E$5000)) -> 0 | L35: =SUMPRODUCT((Feuil1!$B$2:$B$5000=$B35)*(Feuil1!$D$2:$D$5000=L$3)*(Feuil1!$E$2:$E$5000)) -> 0 | M35: =SUMPRODUCT((Feuil1!$B$2:$B$5000=$B35)*(Feuil1!$D$2:$D$5000=M$3)*(Feuil1!$E$2:$E$5000)) -> 0 | N35: =SUMPRODUCT((Feuil1!$B$2:$B$5000=$B35)*(Feuil1!$D$2:$D$5000=N$3)*(Feuil1!$E$2:$E$5000)) -> 0 | O35: =SUMPRODUCT((Feuil1!$B$2:$B$5000=$B35)*(Feuil1!$D$2:$D$5000=O$3)*(Feuil1!$E$2:$E$5000)) -> 0 | P35: =SUMPRODUCT((Feuil1!$B$2:$B$5000=$B35)*(Feuil1!$D$2:$D$5000=P$3)*(Feuil1!$E$2:$E$5000)) -> 0 | Q35: =SUMPRODUCT((Feuil1!$B$2:$B$5000=$B35)*(Feuil1!$D$2:$D$5000=Q$3)*(Feuil1!$E$2:$E$5000)) -> 0 | R35: =SUMPRODUCT((Feuil1!$B$2:$B$5000=$B35)*(Feuil1!$D$2:$D$5000=R$3)*(Feuil1!$E$2:$E$5000)) -> 0
A36: =IF(B36="","",MAX($A$3:A35)+1) -> 33 | B36: =IF(ROWS(B$1:B33)>COUNTIF(Feuil1!$A$2:$A$5000,$A$1),"",INDEX(Feuil1!$B$2:$B$5000,SMALL(IF(Feuil1!$A$2:$A$5000<>"",IF(Feuil1!$A$2:$A$5000=$A$1,ROW($A$2:$A$5000)-ROW($A$2)+1)),ROWS(B$1:B33)))) -> 6219 | C36: =SUMPRODUCT((Feuil1!$B$2:$B$5000=$B36)*(Feuil1!$D$2:$D$5000=C$3)*(Feuil1!$E$2:$E$5000)) -> 180 | D36: =SUMPRODUCT((Feuil1!$B$2:$B$5000=$B36)*(Feuil1!$D$2:$D$5000=D$3)*(Feuil1!$E$2:$E$5000)) -> 180 | E36: =SUMPRODUCT((Feuil1!$B$2:$B$5000=$B36)*(Feuil1!$D$2:$D$5000=E$3)*(Feuil1!$E$2:$E$5000)) -> 180 | F36: =SUMPRODUCT((Feuil1!$B$2:$B$5000=$B36)*(Feuil1!$D$2:$D$5000=F$3)*(Feuil1!$E$2:$E$5000)) -> 180 | G36: =SUMPRODUCT((Feuil1!$B$2:$B$5000=$B36)*(Feuil1!$D$2:$D$5000=G$3)*(Feuil1!$E$2:$E$5000)) -> 180 | H36: =SUMPRODUCT((Feuil1!$B$2:$B$5000=$B36)*(Feuil1!$D$2:$D$5000=H$3)*(Feuil1!$E$2:$E$5000)) -> 180 | I36: =SUMPRODUCT((Feuil1!$B$2:$B$5000=$B36)*(Feuil1!$D$2:$D$5000=I$3)*(Feuil1!$E$2:$E$5000)) -> 180 | J36: =SUMPRODUCT((Feuil1!$B$2:$B$5000=$B36)*(Feuil1!$D$2:$D$5000=J$3)*(Feuil1!$E$2:$E$5000)) -> 0 | K36: =SUMPRODUCT((Feuil1!$B$2:$B$5000=$B36)*(Feuil1!$D$2:$D$5000=K$3)*(Feuil1!$E$2:$E$5000)) -> 0 | L36: =SUMPRODUCT((Feuil1!$B$2:$B$5000=$B36)*(Feuil1!$D$2:$D$5000=L$3)*(Feuil1!$E$2:$E$5000)) -> 0 | M36: =SUMPRODUCT((Feuil1!$B$2:$B$5000=$B36)*(Feuil1!$D$2:$D$5000=M$3)*(Feuil1!$E$2:$E$5000)) -> 0 | N36: =SUMPRODUCT((Feuil1!$B$2:$B$5000=$B36)*(Feuil1!$D$2:$D$5000=N$3)*(Feuil1!$E$2:$E$5000)) -> 0 | O36: =SUMPRODUCT((Feuil1!$B$2:$B$5000=$B36)*(Feuil1!$D$2:$D$5000=O$3)*(Feuil1!$E$2:$E$5000)) -> 0 | P36: =SUMPRODUCT((Feuil1!$B$2:$B$5000=$B36)*(Feuil1!$D$2:$D$5000=P$3)*(Feuil1!$E$2:$E$5000)) -> 0 | Q36: =SUMPRODUCT((Feuil1!$B$2:$B$5000=$B36)*(Feuil1!$D$2:$D$5000=Q$3)*(Feuil1!$E$2:$E$5000)) -> 0 | R36: =SUMPRODUCT((Feuil1!$B$2:$B$5000=$B36)*(Feuil1!$D$2:$D$5000=R$3)*(Feuil1!$E$2:$E$5000)) -> 0
A37: =IF(B37="","",MAX($A$3:A36)+1) -> 34 | B37: =IF(ROWS(B$1:B34)>COUNTIF(Feuil1!$A$2:$A$5000,$A$1),"",INDEX(Feuil1!$B$2:$B$5000,SMALL(IF(Feuil1!$A$2:$A$5000<>"",IF(Feuil1!$A$2:$A$5000=$A$1,ROW($A$2:$A$5000)-ROW($A$2)+1)),ROWS(B$1:B34)))) -> 6220 | C37: =SUMPRODUCT((Feuil1!$B$2:$B$5000=$B37)*(Feuil1!$D$2:$D$5000=C$3)*(Feuil1!$E$2:$E$5000)) -> 180 | D37: =SUMPRODUCT((Feuil1!$B$2:$B$5000=$B37)*(Feuil1!$D$2:$D$5000=D$3)*(Feuil1!$E$2:$E$5000)) -> 180 | E37: =SUMPRODUCT((Feuil1!$B$2:$B$5000=$B37)*(Feuil1!$D$2:$D$5000=E$3)*(Feuil1!$E$2:$E$5000)) -> 180 | F37: =SUMPRODUCT((Feuil1!$B$2:$B$5000=$B37)*(Feuil1!$D$2:$D$5000=F$3)*(Feuil1!$E$2:$E$5000)) -> 180 | G37: =SUMPRODUCT((Feuil1!$B$2:$B$5000=$B37)*(Feuil1!$D$2:$D$5000=G$3)*(Feuil1!$E$2:$E$5000)) -> 180 | H37: =SUMPRODUCT((Feuil1!$B$2:$B$5000=$B37)*(Feuil1!$D$2:$D$5000=H$3)*(Feuil1!$E$2:$E$5000)) -> 180 | I37: =SUMPRODUCT((Feuil1!$B$2:$B$5000=$B37)*(Feuil1!$D$2:$D$5000=I$3)*(Feuil1!$E$2:$E$5000)) -> 180 | J37: =SUMPRODUCT((Feuil1!$B$2:$B$5000=$B37)*(Feuil1!$D$2:$D$5000=J$3)*(Feuil1!$E$2:$E$5000)) -> 0 | K37: =SUMPRODUCT((Feuil1!$B$2:$B$5000=$B37)*(Feuil1!$D$2:$D$5000=K$3)*(Feuil1!$E$2:$E$5000)) -> 0 | L37: =SUMPRODUCT((Feuil1!$B$2:$B$5000=$B37)*(Feuil1!$D$2:$D$5000=L$3)*(Feuil1!$E$2:$E$5000)) -> 0 | M37: =SUMPRODUCT((Feuil1!$B$2:$B$5000=$B37)*(Feuil1!$D$2:$D$5000=M$3)*(Feuil1!$E$2:$E$5000)) -> 0 | N37: =SUMPRODUCT((Feuil1!$B$2:$B$5000=$B37)*(Feuil1!$D$2:$D$5000=N$3)*(Feuil1!$E$2:$E$5000)) -> 0 | O37: =SUMPRODUCT((Feuil1!$B$2:$B$5000=$B37)*(Feuil1!$D$2:$D$5000=O$3)*(Feuil1!$E$2:$E$5000)) -> 0 | P37: =SUMPRODUCT((Feuil1!$B$2:$B$5000=$B37)*(Feuil1!$D$2:$D$5000=P$3)*(Feuil1!$E$2:$E$5000)) -> 0 | Q37: =SUMPRODUCT((Feuil1!$B$2:$B$5000=$B37)*(Feuil1!$D$2:$D$5000=Q$3)*(Feuil1!$E$2:$E$5000)) -> 0 | R37: =SUMPRODUCT((Feuil1!$B$2:$B$5000=$B37)*(Feuil1!$D$2:$D$5000=R$3)*(Feuil1!$E$2:$E$5000)) -> 0
A38: =IF(B38="","",MAX($A$3:A37)+1) -> 35 | B38: =IF(ROWS(B$1:B35)>COUNTIF(Feuil1!$A$2:$A$5000,$A$1),"",INDEX(Feuil1!$B$2:$B$5000,SMALL(IF(Feuil1!$A$2:$A$5000<>"",IF(Feuil1!$A$2:$A$5000=$A$1,ROW($A$2:$A$5000)-ROW($A$2)+1)),ROWS(B$1:B35)))) -> 6220 | C38: =SUMPRODUCT((Feuil1!$B$2:$B$5000=$B38)*(Feuil1!$D$2:$D$5000=C$3)*(Feuil1!$E$2:$E$5000)) -> 180 | D38: =SUMPRODUCT((Feuil1!$B$2:$B$5000=$B38)*(Feuil1!$D$2:$D$5000=D$3)*(Feuil1!$E$2:$E$5000)) -> 180 | E38: =SUMPRODUCT((Feuil1!$B$2:$B$5000=$B38)*(Feuil1!$D$2:$D$5000=E$3)*(Feuil1!$E$2:$E$5000)) -> 180 | F38: =SUMPRODUCT((Feuil1!$B$2:$B$5000=$B38)*(Feuil1!$D$2:$D$5000=F$3)*(Feuil1!$E$2:$E$5000)) -> 180 | G38: =SUMPRODUCT((Feuil1!$B$2:$B$5000=$B38)*(Feuil1!$D$2:$D$5000=G$3)*(Feuil1!$E$2:$E$5000)) -> 180 | H38: =SUMPRODUCT((Feuil1!$B$2:$B$5000=$B38)*(Feuil1!$D$2:$D$5000=H$3)*(Feuil1!$E$2:$E$5000)) -> 180 | I38: =SUMPRODUCT((Feuil1!$B$2:$B$5000=$B38)*(Feuil1!$D$2:$D$5000=I$3)*(Feuil1!$E$2:$E$5000)) -> 180 | J38: =SUMPRODUCT((Feuil1!$B$2:$B$5000=$B38)*(Feuil1!$D$2:$D$5000=J$3)*(Feuil1!$E$2:$E$5000)) -> 0 | K38: =SUMPRODUCT((Feuil1!$B$2:$B$5000=$B38)*(Feuil1!$D$2:$D$5000=K$3)*(Feuil1!$E$2:$E$5000)) -> 0 | L38: =SUMPRODUCT((Feuil1!$B$2:$B$5000=$B38)*(Feuil1!$D$2:$D$5000=L$3)*(Feuil1!$E$2:$E$5000)) -> 0 | M38: =SUMPRODUCT((Feuil1!$B$2:$B$5000=$B38)*(Feuil1!$D$2:$D$5000=M$3)*(Feuil1!$E$2:$E$5000)) -> 0 | N38: =SUMPRODUCT((Feuil1!$B$2:$B$5000=$B38)*(Feuil1!$D$2:$D$5000=N$3)*(Feuil1!$E$2:$E$5000)) -> 0 | O38: =SUMPRODUCT((Feuil1!$B$2:$B$5000=$B38)*(Feuil1!$D$2:$D$5000=O$3)*(Feuil1!$E$2:$E$5000)) -> 0 | P38: =SUMPRODUCT((Feuil1!$B$2:$B$5000=$B38)*(Feuil1!$D$2:$D$5000=P$3)*(Feuil1!$E$2:$E$5000)) -> 0 | Q38: =SUMPRODUCT((Feuil1!$B$2:$B$5000=$B38)*(Feuil1!$D$2:$D$5000=Q$3)*(Feuil1!$E$2:$E$5000)) -> 0 | R38: =SUMPRODUCT((Feuil1!$B$2:$B$5000=$B38)*(Feuil1!$D$2:$D$5000=R$3)*(Feuil1!$E$2:$E$5000)) -> 0
A39: =IF(B39="","",MAX($A$3:A38)+1) -> 36 | B39: =IF(ROWS(B$1:B36)>COUNTIF(Feuil1!$A$2:$A$5000,$A$1),"",INDEX(Feuil1!$B$2:$B$5000,SMALL(IF(Feuil1!$A$2:$A$5000<>"",IF(Feuil1!$A$2:$A$5000=$A$1,ROW($A$2:$A$5000)-ROW($A$2)+1)),ROWS(B$1:B36)))) -> 6220 | C39: =SUMPRODUCT((Feuil1!$B$2:$B$5000=$B39)*(Feuil1!$D$2:$D$5000=C$3)*(Feuil1!$E$2:$E$5000)) -> 180 | D39: =SUMPRODUCT((Feuil1!$B$2:$B$5000=$B39)*(Feuil1!$D$2:$D$5000=D$3)*(Feuil1!$E$2:$E$5000)) -> 180 | E39: =SUMPRODUCT((Feuil1!$B$2:$B$5000=$B39)*(Feuil1!$D$2:$D$5000=E$3)*(Feuil1!$E$2:$E$5000)) -> 180 | F39: =SUMPRODUCT((Feuil1!$B$2:$B$5000=$B39)*(Feuil1!$D$2:$D$5000=F$3)*(Feuil1!$E$2:$E$5000)) -> 180 | G39: =SUMPRODUCT((Feuil1!$B$2:$B$5000=$B39)*(Feuil1!$D$2:$D$5000=G$3)*(Feuil1!$E$2:$E$5000)) -> 180 | H39: =SUMPRODUCT((Feuil1!$B$2:$B$5000=$B39)*(Feuil1!$D$2:$D$5000=H$3)*(Feuil1!$E$2:$E$5000)) -> 180 | I39: =SUMPRODUCT((Feuil1!$B$2:$B$5000=$B39)*(Feuil1!$D$2:$D$5000=I$3)*(Feuil1!$E$2:$E$5000)) -> 180 | J39: =SUMPRODUCT((Feuil1!$B$2:$B$5000=$B39)*(Feuil1!$D$2:$D$5000=J$3)*(Feuil1!$E$2:$E$5000)) -> 0 | K39: =SUMPRODUCT((Feuil1!$B$2:$B$5000=$B39)*(Feuil1!$D$2:$D$5000=K$3)*(Feuil1!$E$2:$E$5000)) -> 0 | L39: =SUMPRODUCT((Feuil1!$B$2:$B$5000=$B39)*(Feuil1!$D$2:$D$5000=L$3)*(Feuil1!$E$2:$E$5000)) -> 0 | M39: =SUMPRODUCT((Feuil1!$B$2:$B$5000=$B39)*(Feuil1!$D$2:$D$5000=M$3)*(Feuil1!$E$2:$E$5000)) -> 0 | N39: =SUMPRODUCT((Feuil1!$B$2:$B$5000=$B39)*(Feuil1!$D$2:$D$5000=N$3)*(Feuil1!$E$2:$E$5000)) -> 0 | O39: =SUMPRODUCT((Feuil1!$B$2:$B$5000=$B39)*(Feuil1!$D$2:$D$5000=O$3)*(Feuil1!$E$2:$E$5000)) -> 0 | P39: =SUMPRODUCT((Feuil1!$B$2:$B$5000=$B39)*(Feuil1!$D$2:$D$5000=P$3)*(Feuil1!$E$2:$E$5000)) -> 0 | Q39: =SUMPRODUCT((Feuil1!$B$2:$B$5000=$B39)*(Feuil1!$D$2:$D$5000=Q$3)*(Feuil1!$E$2:$E$5000)) -> 0 | R39: =SUMPRODUCT((Feuil1!$B$2:$B$5000=$B39)*(Feuil1!$D$2:$D$5000=R$3)*(Feuil1!$E$2:$E$5000)) -> 0
A40: =IF(B40="","",MAX($A$3:A39)+1) -> 37 | B40: =IF(ROWS(B$1:B37)>COUNTIF(Feuil1!$A$2:$A$5000,$A$1),"",INDEX(Feuil1!$B$2:$B$5000,SMALL(IF(Feuil1!$A$2:$A$5000<>"",IF(Feuil1!$A$2:$A$5000=$A$1,ROW($A$2:$A$5000)-ROW($A$2)+1)),ROWS(B$1:B37)))) -> 6265 | C40: =SUMPRODUCT((Feuil1!$B$2:$B$5000=$B40)*(Feuil1!$D$2:$D$5000=C$3)*(Feuil1!$E$2:$E$5000)) -> 180 | D40: =SUMPRODUCT((Feuil1!$B$2:$B$5000=$B40)*(Feuil1!$D$2:$D$5000=D$3)*(Feuil1!$E$2:$E$5000)) -> 180 | E40: =SUMPRODUCT((Feuil1!$B$2:$B$5000=$B40)*(Feuil1!$D$2:$D$5000=E$3)*(Feuil1!$E$2:$E$5000)) -> 180 | F40: =SUMPRODUCT((Feuil1!$B$2:$B$5000=$B40)*(Feuil1!$D$2:$D$5000=F$3)*(Feuil1!$E$2:$E$5000)) -> 180 | G40: =SUMPRODUCT((Feuil1!$B$2:$B$5000=$B40)*(Feuil1!$D$2:$D$5000=G$3)*(Feuil1!$E$2:$E$5000)) -> 180 | H40: =SUMPRODUCT((Feuil1!$B$2:$B$5000=$B40)*(Feuil1!$D$2:$D$5000=H$3)*(Feuil1!$E$2:$E$5000)) -> 180 | I40: =SUMPRODUCT((Feuil1!$B$2:$B$5000=$B40)*(Feuil1!$D$2:$D$5000=I$3)*(Feuil1!$E$2:$E$5000)) -> 180 | J40: =SUMPRODUCT((Feuil1!$B$2:$B$5000=$B40)*(Feuil1!$D$2:$D$5000=J$3)*(Feuil1!$E$2:$E$5000)) -> 0 | K40: =SUMPRODUCT((Feuil1!$B$2:$B$5000=$B40)*(Feuil1!$D$2:$D$5000=K$3)*(Feuil1!$E$2:$E$5000)) -> 0 | L40: =SUMPRODUCT((Feuil1!$B$2:$B$5000=$B40)*(Feuil1!$D$2:$D$5000=L$3)*(Feuil1!$E$2:$E$5000)) -> 0 | M40: =SUMPRODUCT((Feuil1!$B$2:$B$5000=$B40)*(Feuil1!$D$2:$D$5000=M$3)*(Feuil1!$E$2:$E$5000)) -> 0 | N40: =SUMPRODUCT((Feuil1!$B$2:$B$5000=$B40)*(Feuil1!$D$2:$D$5000=N$3)*(Feuil1!$E$2:$E$5000)) -> 0 | O40: =SUMPRODUCT((Feuil1!$B$2:$B$5000=$B40)*(Feuil1!$D$2:$D$5000=O$3)*(Feuil1!$E$2:$E$5000)) -> 0 | P40: =SUMPRODUCT((Feuil1!$B$2:$B$5000=$B40)*(Feuil1!$D$2:$D$5000=P$3)*(Feuil1!$E$2:$E$5000)) -> 0 | Q40: =SUMPRODUCT((Feuil1!$B$2:$B$5000=$B40)*(Feuil1!$D$2:$D$5000=Q$3)*(Feuil1!$E$2:$E$5000)) -> 0 | R40: =SUMPRODUCT((Feuil1!$B$2:$B$5000=$B40)*(Feuil1!$D$2:$D$5000=R$3)*(Feuil1!$E$2:$E$5000)) -> 0
A41: =IF(B41="","",MAX($A$3:A40)+1) -> 38 | B41: =IF(ROWS(B$1:B38)>COUNTIF(Feuil1!$A$2:$A$5000,$A$1),"",INDEX(Feuil1!$B$2:$B$5000,SMALL(IF(Feuil1!$A$2:$A$5000<>"",IF(Feuil1!$A$2:$A$5000=$A$1,ROW($A$2:$A$5000)-ROW($A$2)+1)),ROWS(B$1:B38)))) -> 6265 | C41: =SUMPRODUCT((Feuil1!$B$2:$B$5000=$B41)*(Feuil1!$D$2:$D$5000=C$3)*(Feuil1!$E$2:$E$5000)) -> 180 | D41: =SUMPRODUCT((Feuil1!$B$2:$B$5000=$B41)*(Feuil1!$D$2:$D$5000=D$3)*(Feuil1!$E$2:$E$5000)) -> 180 | E41: =SUMPRODUCT((Feuil1!$B$2:$B$5000=$B41)*(Feuil1!$D$2:$D$5000=E$3)*(Feuil1!$E$2:$E$5000)) -> 180 | F41: =SUMPRODUCT((Feuil1!$B$2:$B$5000=$B41)*(Feuil1!$D$2:$D$5000=F$3)*(Feuil1!$E$2:$E$5000)) -> 180 | G41: =SUMPRODUCT((Feuil1!$B$2:$B$5000=$B41)*(Feuil1!$D$2:$D$5000=G$3)*(Feuil1!$E$2:$E$5000)) -> 180 | H41: =SUMPRODUCT((Feuil1!$B$2:$B$5000=$B41)*(Feuil1!$D$2:$D$5000=H$3)*(Feuil1!$E$2:$E$5000)) -> 180 | I41: =SUMPRODUCT((Feuil1!$B$2:$B$5000=$B41)*(Feuil1!$D$2:$D$5000=I$3)*(Feuil1!$E$2:$E$5000)) -> 180 | J41: =SUMPRODUCT((Feuil1!$B$2:$B$5000=$B41)*(Feuil1!$D$2:$D$5000=J$3)*(Feuil1!$E$2:$E$5000)) -> 0 | K41: =SUMPRODUCT((Feuil1!$B$2:$B$5000=$B41)*(Feuil1!$D$2:$D$5000=K$3)*(Feuil1!$E$2:$E$5000)) -> 0 | L41: =SUMPRODUCT((Feuil1!$B$2:$B$5000=$B41)*(Feuil1!$D$2:$D$5000=L$3)*(Feuil1!$E$2:$E$5000)) -> 0 | M41: =SUMPRODUCT((Feuil1!$B$2:$B$5000=$B41)*(Feuil1!$D$2:$D$5000=M$3)*(Feuil1!$E$2:$E$5000)) -> 0 | N41: =SUMPRODUCT((Feuil1!$B$2:$B$5000=$B41)*(Feuil1!$D$2:$D$5000=N$3)*(Feuil1!$E$2:$E$5000)) -> 0 | O41: =SUMPRODUCT((Feuil1!$B$2:$B$5000=$B41)*(Feuil1!$D$2:$D$5000=O$3)*(Feuil1!$E$2:$E$5000)) -> 0 | P41: =SUMPRODUCT((Feuil1!$B$2:$B$5000=$B41)*(Feuil1!$D$2:$D$5000=P$3)*(Feuil1!$E$2:$E$5000)) -> 0 | Q41: =SUMPRODUCT((Feuil1!$B$2:$B$5000=$B41)*(Feuil1!$D$2:$D$5000=Q$3)*(Feuil1!$E$2:$E$5000)) -> 0 | R41: =SUMPRODUCT((Feuil1!$B$2:$B$5000=$B41)*(Feuil1!$D$2:$D$5000=R$3)*(Feuil1!$E$2:$E$5000)) -> 0
A42: =IF(B42="","",MAX($A$3:A41)+1) -> 39 | B42: =IF(ROWS(B$1:B39)>COUNTIF(Feuil1!$A$2:$A$5000,$A$1),"",INDEX(Feuil1!$B$2:$B$5000,SMALL(IF(Feuil1!$A$2:$A$5000<>"",IF(Feuil1!$A$2:$A$5000=$A$1,ROW($A$2:$A$5000)-ROW($A$2)+1)),ROWS(B$1:B39)))) -> 6265 | C42: =SUMPRODUCT((Feuil1!$B$2:$B$5000=$B42)*(Feuil1!$D$2:$D$5000=C$3)*(Feuil1!$E$2:$E$5000)) -> 180 | D42: =SUMPRODUCT((Feuil1!$B$2:$B$5000=$B42)*(Feuil1!$D$2:$D$5000=D$3)*(Feuil1!$E$2:$E$5000)) -> 180 | E42: =SUMPRODUCT((Feuil1!$B$2:$B$5000=$B42)*(Feuil1!$D$2:$D$5000=E$3)*(Feuil1!$E$2:$E$5000)) -> 180 | F42: =SUMPRODUCT((Feuil1!$B$2:$B$5000=$B42)*(Feuil1!$D$2:$D$5000=F$3)*(Feuil1!$E$2:$E$5000)) -> 180 | G42: =SUMPRODUCT((Feuil1!$B$2:$B$5000=$B42)*(Feuil1!$D$2:$D$5000=G$3)*(Feuil1!$E$2:$E$5000)) -> 180 | H42: =SUMPRODUCT((Feuil1!$B$2:$B$5000=$B42)*(Feuil1!$D$2:$D$5000=H$3)*(Feuil1!$E$2:$E$5000)) -> 180 | I42: =SUMPRODUCT((Feuil1!$B$2:$B$5000=$B42)*(Feuil1!$D$2:$D$5000=I$3)*(Feuil1!$E$2:$E$5000)) -> 180 | J42: =SUMPRODUCT((Feuil1!$B$2:$B$5000=$B42)*(Feuil1!$D$2:$D$5000=J$3)*(Feuil1!$E$2:$E$5000)) -> 0 | K42: =SUMPRODUCT((Feuil1!$B$2:$B$5000=$B42)*(Feuil1!$D$2:$D$5000=K$3)*(Feuil1!$E$2:$E$5000)) -> 0 | L42: =SUMPRODUCT((Feuil1!$B$2:$B$5000=$B42)*(Feuil1!$D$2:$D$5000=L$3)*(Feuil1!$E$2:$E$5000)) -> 0 | M42: =SUMPRODUCT((Feuil1!$B$2:$B$5000=$B42)*(Feuil1!$D$2:$D$5000=M$3)*(Feuil1!$E$2:$E$5000)) -> 0 | N42: =SUMPRODUCT((Feuil1!$B$2:$B$5000=$B42)*(Feuil1!$D$2:$D$5000=N$3)*(Feuil1!$E$2:$E$5000)) -> 0 | O42: =SUMPRODUCT((Feuil1!$B$2:$B$5000=$B42)*(Feuil1!$D$2:$D$5000=O$3)*(Feuil1!$E$2:$E$5000)) -> 0 | P42: =SUMPRODUCT((Feuil1!$B$2:$B$5000=$B42)*(Feuil1!$D$2:$D$5000=P$3)*(Feuil1!$E$2:$E$5000)) -> 0 | Q42: =SUMPRODUCT((Feuil1!$B$2:$B$5000=$B42)*(Feuil1!$D$2:$D$5000=Q$3)*(Feuil1!$E$2:$E$5000)) -> 0 | R42: =SUMPRODUCT((Feuil1!$B$2:$B$5000=$B42)*(Feuil1!$D$2:$D$5000=R$3)*(Feuil1!$E$2:$E$5000)) -> 0
A43: =IF(B43="","",MAX($A$3:A42)+1) -> 40 | B43: =IF(ROWS(B$1:B40)>COUNTIF(Feuil1!$A$2:$A$5000,$A$1),"",INDEX(Feuil1!$B$2:$B$5000,SMALL(IF(Feuil1!$A$2:$A$5000<>"",IF(Feuil1!$A$2:$A$5000=$A$1,ROW($A$2:$A$5000)-ROW($A$2)+1)),ROWS(B$1:B40)))) -> 6265 | C43: =SUMPRODUCT((Feuil1!$B$2:$B$5000=$B43)*(Feuil1!$D$2:$D$5000=C$3)*(Feuil1!$E$2:$E$5000)) -> 180 | D43: =SUMPRODUCT((Feuil1!$B$2:$B$5000=$B43)*(Feuil1!$D$2:$D$5000=D$3)*(Feuil1!$E$2:$E$5000)) -> 180 | E43: =SUMPRODUCT((Feuil1!$B$2:$B$5000=$B43)*(Feuil1!$D$2:$D$5000=E$3)*(Feuil1!$E$2:$E$5000)) -> 180 | F43: =SUMPRODUCT((Feuil1!$B$2:$B$5000=$B43)*(Feuil1!$D$2:$D$5000=F$3)*(Feuil1!$E$2:$E$5000)) -> 180 | G43: =SUMPRODUCT((Feuil1!$B$2:$B$5000=$B43)*(Feuil1!$D$2:$D$5000=G$3)*(Feuil1!$E$2:$E$5000)) -> 180 | H43: =SUMPRODUCT((Feuil1!$B$2:$B$5000=$B43)*(Feuil1!$D$2:$D$5000=H$3)*(Feuil1!$E$2:$E$5000)) -> 180 | I43: =SUMPRODUCT((Feuil1!$B$2:$B$5000=$B43)*(Feuil1!$D$2:$D$5000=I$3)*(Feuil1!$E$2:$E$5000)) -> 180 | J43: =SUMPRODUCT((Feuil1!$B$2:$B$5000=$B43)*(Feuil1!$D$2:$D$5000=J$3)*(Feuil1!$E$2:$E$5000)) -> 0 | K43: =SUMPRODUCT((Feuil1!$B$2:$B$5000=$B43)*(Feuil1!$D$2:$D$5000=K$3)*(Feuil1!$E$2:$E$5000)) -> 0 | L43: =SUMPRODUCT((Feuil1!$B$2:$B$5000=$B43)*(Feuil1!$D$2:$D$5000=L$3)*(Feuil1!$E$2:$E$5000)) -> 0 | M43: =SUMPRODUCT((Feuil1!$B$2:$B$5000=$B43)*(Feuil1!$D$2:$D$5000=M$3)*(Feuil1!$E$2:$E$5000)) -> 0 | N43: =SUMPRODUCT((Feuil1!$B$2:$B$5000=$B43)*(Feuil1!$D$2:$D$5000=N$3)*(Feuil1!$E$2:$E$5000)) -> 0 | O43: =SUMPRODUCT((Feuil1!$B$2:$B$5000=$B43)*(Feuil1!$D$2:$D$5000=O$3)*(Feuil1!$E$2:$E$5000)) -> 0 | P43: =SUMPRODUCT((Feuil1!$B$2:$B$5000=$B43)*(Feuil1!$D$2:$D$5000=P$3)*(Feuil1!$E$2:$E$5000)) -> 0 | Q43: =SUMPRODUCT((Feuil1!$B$2:$B$5000=$B43)*(Feuil1!$D$2:$D$5000=Q$3)*(Feuil1!$E$2:$E$5000)) -> 0 | R43: =SUMPRODUCT((Feuil1!$B$2:$B$5000=$B43)*(Feuil1!$D$2:$D$5000=R$3)*(Feuil1!$E$2:$E$5000)) -> 0
A44: =IF(B44="","",MAX($A$3:A43)+1) -> 41 | B44: =IF(ROWS(B$1:B41)>COUNTIF(Feuil1!$A$2:$A$5000,$A$1),"",INDEX(Feuil1!$B$2:$B$5000,SMALL(IF(Feuil1!$A$2:$A$5000<>"",IF(Feuil1!$A$2:$A$5000=$A$1,ROW($A$2:$A$5000)-ROW($A$2)+1)),ROWS(B$1:B41)))) -> 6266 | C44: =SUMPRODUCT((Feuil1!$B$2:$B$5000=$B44)*(Feuil1!$D$2:$D$5000=C$3)*(Feuil1!$E$2:$E$5000)) -> 181 | D44: =SUMPRODUCT((Feuil1!$B$2:$B$5000=$B44)*(Feuil1!$D$2:$D$5000=D$3)*(Feuil1!$E$2:$E$5000)) -> 181 | E44: =SUMPRODUCT((Feuil1!$B$2:$B$5000=$B44)*(Feuil1!$D$2:$D$5000=E$3)*(Feuil1!$E$2:$E$5000)) -> 181 | F44: =SUMPRODUCT((Feuil1!$B$2:$B$5000=$B44)*(Feuil1!$D$2:$D$5000=F$3)*(Feuil1!$E$2:$E$5000)) -> 181 | G44: =SUMPRODUCT((Feuil1!$B$2:$B$5000=$B44)*(Feuil1!$D$2:$D$5000=G$3)*(Feuil1!$E$2:$E$5000)) -> 181 | H44: =SUMPRODUCT((Feuil1!$B$2:$B$5000=$B44)*(Feuil1!$D$2:$D$5000=H$3)*(Feuil1!$E$2:$E$5000)) -> 181 | I44: =SUMPRODUCT((Feuil1!$B$2:$B$5000=$B44)*(Feuil1!$D$2:$D$5000=I$3)*(Feuil1!$E$2:$E$5000)) -> 181 | J44: =SUMPRODUCT((Feuil1!$B$2:$B$5000=$B44)*(Feuil1!$D$2:$D$5000=J$3)*(Feuil1!$E$2:$E$5000)) -> 0 | K44: =SUMPRODUCT((Feuil1!$B$2:$B$5000=$B44)*(Feuil1!$D$2:$D$5000=K$3)*(Feuil1!$E$2:$E$5000)) -> 0 | L44: =SUMPRODUCT((Feuil1!$B$2:$B$5000=$B44)*(Feuil1!$D$2:$D$5000=L$3)*(Feuil1!$E$2:$E$5000)) -> 0 | M44: =SUMPRODUCT((Feuil1!$B$2:$B$5000=$B44)*(Feuil1!$D$2:$D$5000=M$3)*(Feuil1!$E$2:$E$5000)) -> 0 | N44: =SUMPRODUCT((Feuil1!$B$2:$B$5000=$B44)*(Feuil1!$D$2:$D$5000=N$3)*(Feuil1!$E$2:$E$5000)) -> 0 | O44: =SUMPRODUCT((Feuil1!$B$2:$B$5000=$B44)*(Feuil1!$D$2:$D$5000=O$3)*(Feuil1!$E$2:$E$5000)) -> 0 | P44: =SUMPRODUCT((Feuil1!$B$2:$B$5000=$B44)*(Feuil1!$D$2:$D$5000=P$3)*(Feuil1!$E$2:$E$5000)) -> 0 | Q44: =SUMPRODUCT((Feuil1!$B$2:$B$5000=$B44)*(Feuil1!$D$2:$D$5000=Q$3)*(Feuil1!$E$2:$E$5000)) -> 0 | R44: =SUMPRODUCT((Feuil1!$B$2:$B$5000=$B44)*(Feuil1!$D$2:$D$5000=R$3)*(Feuil1!$E$2:$E$5000)) -> 0
A45: =IF(B45="","",MAX($A$3:A44)+1) -> 42 | B45: =IF(ROWS(B$1:B42)>COUNTIF(Feuil1!$A$2:$A$5000,$A$1),"",INDEX(Feuil1!$B$2:$B$5000,SMALL(IF(Feuil1!$A$2:$A$5000<>"",IF(Feuil1!$A$2:$A$5000=$A$1,ROW($A$2:$A$5000)-ROW($A$2)+1)),ROWS(B$1:B42)))) -> 6266 | C45: =SUMPRODUCT((Feuil1!$B$2:$B$5000=$B45)*(Feuil1!$D$2:$D$5000=C$3)*(Feuil1!$E$2:$E$5000)) -> 181 | D45: =SUMPRODUCT((Feuil1!$B$2:$B$5000=$B45)*(Feuil1!$D$2:$D$5000=D$3)*(Feuil1!$E$2:$E$5000)) -> 181 | E45: =SUMPRODUCT((Feuil1!$B$2:$B$5000=$B45)*(Feuil1!$D$2:$D$5000=E$3)*(Feuil1!$E$2:$E$5000)) -> 181 | F45: =SUMPRODUCT((Feuil1!$B$2:$B$5000=$B45)*(Feuil1!$D$2:$D$5000=F$3)*(Feuil1!$E$2:$E$5000)) -> 181 | G45: =SUMPRODUCT((Feuil1!$B$2:$B$5000=$B45)*(Feuil1!$D$2:$D$5000=G$3)*(Feuil1!$E$2:$E$5000)) -> 181 | H45: =SUMPRODUCT((Feuil1!$B$2:$B$5000=$B45)*(Feuil1!$D$2:$D$5000=H$3)*(Feuil1!$E$2:$E$5000)) -> 181 | I45: =SUMPRODUCT((Feuil1!$B$2:$B$5000=$B45)*(Feuil1!$D$2:$D$5000=I$3)*(Feuil1!$E$2:$E$5000)) -> 181 | J45: =SUMPRODUCT((Feuil1!$B$2:$B$5000=$B45)*(Feuil1!$D$2:$D$5000=J$3)*(Feuil1!$E$2:$E$5000)) -> 0 | K45: =SUMPRODUCT((Feuil1!$B$2:$B$5000=$B45)*(Feuil1!$D$2:$D$5000=K$3)*(Feuil1!$E$2:$E$5000)) -> 0 | L45: =SUMPRODUCT((Feuil1!$B$2:$B$5000=$B45)*(Feuil1!$D$2:$D$5000=L$3)*(Feuil1!$E$2:$E$5000)) -> 0 | M45: =SUMPRODUCT((Feuil1!$B$2:$B$5000=$B45)*(Feuil1!$D$2:$D$5000=M$3)*(Feuil1!$E$2:$E$5000)) -> 0 | N45: =SUMPRODUCT((Feuil1!$B$2:$B$5000=$B45)*(Feuil1!$D$2:$D$5000=N$3)*(Feuil1!$E$2:$E$5000)) -> 0 | O45: =SUMPRODUCT((Feuil1!$B$2:$B$5000=$B45)*(Feuil1!$D$2:$D$5000=O$3)*(Feuil1!$E$2:$E$5000)) -> 0 | P45: =SUMPRODUCT((Feuil1!$B$2:$B$5000=$B45)*(Feuil1!$D$2:$D$5000=P$3)*(Feuil1!$E$2:$E$5000)) -> 0 | Q45: =SUMPRODUCT((Feuil1!$B$2:$B$5000=$B45)*(Feuil1!$D$2:$D$5000=Q$3)*(Feuil1!$E$2:$E$5000)) -> 0 | R45: =SUMPRODUCT((Feuil1!$B$2:$B$5000=$B45)*(Feuil1!$D$2:$D$5000=R$3)*(Feuil1!$E$2:$E$5000)) -> 0
A46: =IF(B46="","",MAX($A$3:A45)+1) -> 43 | B46: =IF(ROWS(B$1:B43)>COUNTIF(Feuil1!$A$2:$A$5000,$A$1),"",INDEX(Feuil1!$B$2:$B$5000,SMALL(IF(Feuil1!$A$2:$A$5000<>"",IF(Feuil1!$A$2:$A$5000=$A$1,ROW($A$2:$A$5000)-ROW($A$2)+1)),ROWS(B$1:B43)))) -> 6266 | C46: =SUMPRODUCT((Feuil1!$B$2:$B$5000=$B46)*(Feuil1!$D$2:$D$5000=C$3)*(Feuil1!$E$2:$E$5000)) -> 181 | D46: =SUMPRODUCT((Feuil1!$B$2:$B$5000=$B46)*(Feuil1!$D$2:$D$5000=D$3)*(Feuil1!$E$2:$E$5000)) -> 181 | E46: =SUMPRODUCT((Feuil1!$B$2:$B$5000=$B46)*(Feuil1!$D$2:$D$5000=E$3)*(Feuil1!$E$2:$E$5000)) -> 181 | F46: =SUMPRODUCT((Feuil1!$B$2:$B$5000=$B46)*(Feuil1!$D$2:$D$5000=F$3)*(Feuil1!$E$2:$E$5000)) -> 181 | G46: =SUMPRODUCT((Feuil1!$B$2:$B$5000=$B46)*(Feuil1!$D$2:$D$5000=G$3)*(Feuil1!$E$2:$E$5000)) -> 181 | H46: =SUMPRODUCT((Feuil1!$B$2:$B$5000=$B46)*(Feuil1!$D$2:$D$5000=H$3)*(Feuil1!$E$2:$E$5000)) -> 181 | I46: =SUMPRODUCT((Feuil1!$B$2:$B$5000=$B46)*(Feuil1!$D$2:$D$5000=I$3)*(Feuil1!$E$2:$E$5000)) -> 181 | J46: =SUMPRODUCT((Feuil1!$B$2:$B$5000=$B46)*(Feuil1!$D$2:$D$5000=J$3)*(Feuil1!$E$2:$E$5000)) -> 0 | K46: =SUMPRODUCT((Feuil1!$B$2:$B$5000=$B46)*(Feuil1!$D$2:$D$5000=K$3)*(Feuil1!$E$2:$E$5000)) -> 0 | L46: =SUMPRODUCT((Feuil1!$B$2:$B$5000=$B46)*(Feuil1!$D$2:$D$5000=L$3)*(Feuil1!$E$2:$E$5000)) -> 0 | M46: =SUMPRODUCT((Feuil1!$B$2:$B$5000=$B46)*(Feuil1!$D$2:$D$5000=M$3)*(Feuil1!$E$2:$E$5000)) -> 0 | N46: =SUMPRODUCT((Feuil1!$B$2:$B$5000=$B46)*(Feuil1!$D$2:$D$5000=N$3)*(Feuil1!$E$2:$E$5000)) -> 0 | O46: =SUMPRODUCT((Feuil1!$B$2:$B$5000=$B46)*(Feuil1!$D$2:$D$5000=O$3)*(Feuil1!$E$2:$E$5000)) -> 0 | P46: =SUMPRODUCT((Feuil1!$B$2:$B$5000=$B46)*(Feuil1!$D$2:$D$5000=P$3)*(Feuil1!$E$2:$E$5000)) -> 0 | Q46: =SUMPRODUCT((Feuil1!$B$2:$B$5000=$B46)*(Feuil1!$D$2:$D$5000=Q$3)*(Feuil1!$E$2:$E$5000)) -> 0 | R46: =SUMPRODUCT((Feuil1!$B$2:$B$5000=$B46)*(Feuil1!$D$2:$D$5000=R$3)*(Feuil1!$E$2:$E$5000)) -> 0
A47: =IF(B47="","",MAX($A$3:A46)+1) -> 44 | B47: =IF(ROWS(B$1:B44)>COUNTIF(Feuil1!$A$2:$A$5000,$A$1),"",INDEX(Feuil1!$B$2:$B$5000,SMALL(IF(Feuil1!$A$2:$A$5000<>"",IF(Feuil1!$A$2:$A$5000=$A$1,ROW($A$2:$A$5000)-ROW($A$2)+1)),ROWS(B$1:B44)))) -> 6266 | C47: =SUMPRODUCT((Feuil1!$B$2:$B$5000=$B47)*(Feuil1!$D$2:$D$5000=C$3)*(Feuil1!$E$2:$E$5000)) -> 181 | D47: =SUMPRODUCT((Feuil1!$B$2:$B$5000=$B47)*(Feuil1!$D$2:$D$5000=D$3)*(Feuil1!$E$2:$E$5000)) -> 181 | E47: =SUMPRODUCT((Feuil1!$B$2:$B$5000=$B47)*(Feuil1!$D$2:$D$5000=E$3)*(Feuil1!$E$2:$E$5000)) -> 181 | F47: =SUMPRODUCT((Feuil1!$B$2:$B$5000=$B47)*(Feuil1!$D$2:$D$5000=F$3)*(Feuil1!$E$2:$E$5000)) -> 181 | G47: =SUMPRODUCT((Feuil1!$B$2:$B$5000=$B47)*(Feuil1!$D$2:$D$5000=G$3)*(Feuil1!$E$2:$E$5000)) -> 181 | H47: =SUMPRODUCT((Feuil1!$B$2:$B$5000=$B47)*(Feuil1!$D$2:$D$5000=H$3)*(Feuil1!$E$2:$E$5000)) -> 181 | I47: =SUMPRODUCT((Feuil1!$B$2:$B$5000=$B47)*(Feuil1!$D$2:$D$5000=I$3)*(Feuil1!$E$2:$E$5000)) -> 181 | J47: =SUMPRODUCT((Feuil1!$B$2:$B$5000=$B47)*(Feuil1!$D$2:$D$5000=J$3)*(Feuil1!$E$2:$E$5000)) -> 0 | K47: =SUMPRODUCT((Feuil1!$B$2:$B$5000=$B47)*(Feuil1!$D$2:$D$5000=K$3)*(Feuil1!$E$2:$E$5000)) -> 0 | L47: =SUMPRODUCT((Feuil1!$B$2:$B$5000=$B47)*(Feuil1!$D$2:$D$5000=L$3)*(Feuil1!$E$2:$E$5000)) -> 0 | M47: =SUMPRODUCT((Feuil1!$B$2:$B$5000=$B47)*(Feuil1!$D$2:$D$5000=M$3)*(Feuil1!$E$2:$E$5000)) -> 0 | N47: =SUMPRODUCT((Feuil1!$B$2:$B$5000=$B47)*(Feuil1!$D$2:$D$5000=N$3)*(Feuil1!$E$2:$E$5000)) -> 0 | O47: =SUMPRODUCT((Feuil1!$B$2:$B$5000=$B47)*(Feuil1!$D$2:$D$5000=O$3)*(Feuil1!$E$2:$E$5000)) -> 0 | P47: =SUMPRODUCT((Feuil1!$B$2:$B$5000=$B47)*(Feuil1!$D$2:$D$5000=P$3)*(Feuil1!$E$2:$E$5000)) -> 0 | Q47: =SUMPRODUCT((Feuil1!$B$2:$B$5000=$B47)*(Feuil1!$D$2:$D$5000=Q$3)*(Feuil1!$E$2:$E$5000)) -> 0 | R47: =SUMPRODUCT((Feuil1!$B$2:$B$5000=$B47)*(Feuil1!$D$2:$D$5000=R$3)*(Feuil1!$E$2:$E$5000)) -> 0
A48: =IF(B48="","",MAX($A$3:A47)+1) -> 45 | B48: =IF(ROWS(B$1:B45)>COUNTIF(Feuil1!$A$2:$A$5000,$A$1),"",INDEX(Feuil1!$B$2:$B$5000,SMALL(IF(Feuil1!$A$2:$A$5000<>"",IF(Feuil1!$A$2:$A$5000=$A$1,ROW($A$2:$A$5000)-ROW($A$2)+1)),ROWS(B$1:B45)))) -> 6267 | C48: =SUMPRODUCT((Feuil1!$B$2:$B$5000=$B48)*(Feuil1!$D$2:$D$5000=C$3)*(Feuil1!$E$2:$E$5000)) -> 180 | D48: =SUMPRODUCT((Feuil1!$B$2:$B$5000=$B48)*(Feuil1!$D$2:$D$5000=D$3)*(Feuil1!$E$2:$E$5000)) -> 180 | E48: =SUMPRODUCT((Feuil1!$B$2:$B$5000=$B48)*(Feuil1!$D$2:$D$5000=E$3)*(Feuil1!$E$2:$E$5000)) -> 180 | F48: =SUMPRODUCT((Feuil1!$B$2:$B$5000=$B48)*(Feuil1!$D$2:$D$5000=F$3)*(Feuil1!$E$2:$E$5000)) -> 180 | G48: =SUMPRODUCT((Feuil1!$B$2:$B$5000=$B48)*(Feuil1!$D$2:$D$5000=G$3)*(Feuil1!$E$2:$E$5000)) -> 180 | H48: =SUMPRODUCT((Feuil1!$B$2:$B$5000=$B48)*(Feuil1!$D$2:$D$5000=H$3)*(Feuil1!$E$2:$E$5000)) -> 180 | I48: =SUMPRODUCT((Feuil1!$B$2:$B$5000=$B48)*(Feuil1!$D$2:$D$5000=I$3)*(Feuil1!$E$2:$E$5000)) -> 180 | J48: =SUMPRODUCT((Feuil1!$B$2:$B$5000=$B48)*(Feuil1!$D$2:$D$5000=J$3)*(Feuil1!$E$2:$E$5000)) -> 0 | K48: =SUMPRODUCT((Feuil1!$B$2:$B$5000=$B48)*(Feuil1!$D$2:$D$5000=K$3)*(Feuil1!$E$2:$E$5000)) -> 0 | L48: =SUMPRODUCT((Feuil1!$B$2:$B$5000=$B48)*(Feuil1!$D$2:$D$5000=L$3)*(Feuil1!$E$2:$E$5000)) -> 0 | M48: =SUMPRODUCT((Feuil1!$B$2:$B$5000=$B48)*(Feuil1!$D$2:$D$5000=M$3)*(Feuil1!$E$2:$E$5000)) -> 0 | N48: =SUMPRODUCT((Feuil1!$B$2:$B$5000=$B48)*(Feuil1!$D$2:$D$5000=N$3)*(Feuil1!$E$2:$E$5000)) -> 0 | O48: =SUMPRODUCT((Feuil1!$B$2:$B$5000=$B48)*(Feuil1!$D$2:$D$5000=O$3)*(Feuil1!$E$2:$E$5000)) -> 0 | P48: =SUMPRODUCT((Feuil1!$B$2:$B$5000=$B48)*(Feuil1!$D$2:$D$5000=P$3)*(Feuil1!$E$2:$E$5000)) -> 0 | Q48: =SUMPRODUCT((Feuil1!$B$2:$B$5000=$B48)*(Feuil1!$D$2:$D$5000=Q$3)*(Feuil1!$E$2:$E$5000)) -> 0 | R48: =SUMPRODUCT((Feuil1!$B$2:$B$5000=$B48)*(Feuil1!$D$2:$D$5000=R$3)*(Feuil1!$E$2:$E$5000)) -> 0
A49: =IF(B49="","",MAX($A$3:A48)+1) -> 46 | B49: =IF(ROWS(B$1:B46)>COUNTIF(Feuil1!$A$2:$A$5000,$A$1),"",INDEX(Feuil1!$B$2:$B$5000,SMALL(IF(Feuil1!$A$2:$A$5000<>"",IF(Feuil1!$A$2:$A$5000=$A$1,ROW($A$2:$A$5000)-ROW($A$2)+1)),ROWS(B$1:B46)))) -> 6267 | C49: =SUMPRODUCT((Feuil1!$B$2:$B$5000=$B49)*(Feuil1!$D$2:$D$5000=C$3)*(Feuil1!$E$2:$E$5000)) -> 180 | D49: =SUMPRODUCT((Feuil1!$B$2:$B$5000=$B49)*(Feuil1!$D$2:$D$5000=D$3)*(Feuil1!$E$2:$E$5000)) -> 180 | E49: =SUMPRODUCT((Feuil1!$B$2:$B$5000=$B49)*(Feuil1!$D$2:$D$5000=E$3)*(Feuil1!$E$2:$E$5000)) -> 180 | F49: =SUMPRODUCT((Feuil1!$B$2:$B$5000=$B49)*(Feuil1!$D$2:$D$5000=F$3)*(Feuil1!$E$2:$E$5000)) -> 180 | G49: =SUMPRODUCT((Feuil1!$B$2:$B$5000=$B49)*(Feuil1!$D$2:$D$5000=G$3)*(Feuil1!$E$2:$E$5000)) -> 180 | H49: =SUMPRODUCT((Feuil1!$B$2:$B$5000=$B49)*(Feuil1!$D$2:$D$5000=H$3)*(Feuil1!$E$2:$E$5000)) -> 180 | I49: =SUMPRODUCT((Feuil1!$B$2:$B$5000=$B49)*(Feuil1!$D$2:$D$5000=I$3)*(Feuil1!$E$2:$E$5000)) -> 180 | J49: =SUMPRODUCT((Feuil1!$B$2:$B$5000=$B49)*(Feuil1!$D$2:$D$5000=J$3)*(Feuil1!$E$2:$E$5000)) -> 0 | K49: =SUMPRODUCT((Feuil1!$B$2:$B$5000=$B49)*(Feuil1!$D$2:$D$5000=K$3)*(Feuil1!$E$2:$E$5000)) -> 0 | L49: =SUMPRODUCT((Feuil1!$B$2:$B$5000=$B49)*(Feuil1!$D$2:$D$5000=L$3)*(Feuil1!$E$2:$E$5000)) -> 0 | M49: =SUMPRODUCT((Feuil1!$B$2:$B$5000=$B49)*(Feuil1!$D$2:$D$5000=M$3)*(Feuil1!$E$2:$E$5000)) -> 0 | N49: =SUMPRODUCT((Feuil1!$B$2:$B$5000=$B49)*(Feuil1!$D$2:$D$5000=N$3)*(Feuil1!$E$2:$E$5000)) -> 0 | O49: =SUMPRODUCT((Feuil1!$B$2:$B$5000=$B49)*(Feuil1!$D$2:$D$5000=O$3)*(Feuil1!$E$2:$E$5000)) -> 0 | P49: =SUMPRODUCT((Feuil1!$B$2:$B$5000=$B49)*(Feuil1!$D$2:$D$5000=P$3)*(Feuil1!$E$2:$E$5000)) -> 0 | Q49: =SUMPRODUCT((Feuil1!$B$2:$B$5000=$B49)*(Feuil1!$D$2:$D$5000=Q$3)*(Feuil1!$E$2:$E$5000)) -> 0 | R49: =SUMPRODUCT((Feuil1!$B$2:$B$5000=$B49)*(Feuil1!$D$2:$D$5000=R$3)*(Feuil1!$E$2:$E$5000)) -> 0
A50: =IF(B50="","",MAX($A$3:A49)+1) -> 47 | B50: =IF(ROWS(B$1:B47)>COUNTIF(Feuil1!$A$2:$A$5000,$A$1),"",INDEX(Feuil1!$B$2:$B$5000,SMALL(IF(Feuil1!$A$2:$A$5000<>"",IF(Feuil1!$A$2:$A$5000=$A$1,ROW($A$2:$A$5000)-ROW($A$2)+1)),ROWS(B$1:B47)))) -> 6267 | C50: =SUMPRODUCT((Feuil1!$B$2:$B$5000=$B50)*(Feuil1!$D$2:$D$5000=C$3)*(Feuil1!$E$2:$E$5000)) -> 180 | D50: =SUMPRODUCT((Feuil1!$B$2:$B$5000=$B50)*(Feuil1!$D$2:$D$5000=D$3)*(Feuil1!$E$2:$E$5000)) -> 180 | E50: =SUMPRODUCT((Feuil1!$B$2:$B$5000=$B50)*(Feuil1!$D$2:$D$5000=E$3)*(Feuil1!$E$2:$E$5000)) -> 180 | F50: =SUMPRODUCT((Feuil1!$B$2:$B$5000=$B50)*(Feuil1!$D$2:$D$5000=F$3)*(Feuil1!$E$2:$E$5000)) -> 180 | G50: =SUMPRODUCT((Feuil1!$B$2:$B$5000=$B50)*(Feuil1!$D$2:$D$5000=G$3)*(Feuil1!$E$2:$E$5000)) -> 180 | H50: =SUMPRODUCT((Feuil1!$B$2:$B$5000=$B50)*(Feuil1!$D$2:$D$5000=H$3)*(Feuil1!$E$2:$E$5000)) -> 180 | I50: =SUMPRODUCT((Feuil1!$B$2:$B$5000=$B50)*(Feuil1!$D$2:$D$5000=I$3)*(Feuil1!$E$2:$E$5000)) -> 180 | J50: =SUMPRODUCT((Feuil1!$B$2:$B$5000=$B50)*(Feuil1!$D$2:$D$5000=J$3)*(Feuil1!$E$2:$E$5000)) -> 0 | K50: =SUMPRODUCT((Feuil1!$B$2:$B$5000=$B50)*(Feuil1!$D$2:$D$5000=K$3)*(Feuil1!$E$2:$E$5000)) -> 0 | L50: =SUMPRODUCT((Feuil1!$B$2:$B$5000=$B50)*(Feuil1!$D$2:$D$5000=L$3)*(Feuil1!$E$2:$E$5000)) -> 0 | M50: =SUMPRODUCT((Feuil1!$B$2:$B$5000=$B50)*(Feuil1!$D$2:$D$5000=M$3)*(Feuil1!$E$2:$E$5000)) -> 0 | N50: =SUMPRODUCT((Feuil1!$B$2:$B$5000=$B50)*(Feuil1!$D$2:$D$5000=N$3)*(Feuil1!$E$2:$E$5000)) -> 0 | O50: =SUMPRODUCT((Feuil1!$B$2:$B$5000=$B50)*(Feuil1!$D$2:$D$5000=O$3)*(Feuil1!$E$2:$E$5000)) -> 0 | P50: =SUMPRODUCT((Feuil1!$B$2:$B$5000=$B50)*(Feuil1!$D$2:$D$5000=P$3)*(Feuil1!$E$2:$E$5000)) -> 0 | Q50: =SUMPRODUCT((Feuil1!$B$2:$B$5000=$B50)*(Feuil1!$D$2:$D$5000=Q$3)*(Feuil1!$E$2:$E$5000)) -> 0 | R50: =SUMPRODUCT((Feuil1!$B$2:$B$5000=$B50)*(Feuil1!$D$2:$D$5000=R$3)*(Feuil1!$E$2:$E$5000)) -> 0
A51: =IF(B51="","",MAX($A$3:A50)+1) -> 48 | B51: =IF(ROWS(B$1:B48)>COUNTIF(Feuil1!$A$2:$A$5000,$A$1),"",INDEX(Feuil1!$B$2:$B$5000,SMALL(IF(Feuil1!$A$2:$A$5000<>"",IF(Feuil1!$A$2:$A$5000=$A$1,ROW($A$2:$A$5000)-ROW($A$2)+1)),ROWS(B$1:B48)))) -> 6267 | C51: =SUMPRODUCT((Feuil1!$B$2:$B$5000=$B51)*(Feuil1!$D$2:$D$5000=C$3)*(Feuil1!$E$2:$E$5000)) -> 180 | D51: =SUMPRODUCT((Feuil1!$B$2:$B$5000=$B51)*(Feuil1!$D$2:$D$5000=D$3)*(Feuil1!$E$2:$E$5000)) -> 180 | E51: =SUMPRODUCT((Feuil1!$B$2:$B$5000=$B51)*(Feuil1!$D$2:$D$5000=E$3)*(Feuil1!$E$2:$E$5000)) -> 180 | F51: =SUMPRODUCT((Feuil1!$B$2:$B$5000=$B51)*(Feuil1!$D$2:$D$5000=F$3)*(Feuil1!$E$2:$E$5000)) -> 180 | G51: =SUMPRODUCT((Feuil1!$B$2:$B$5000=$B51)*(Feuil1!$D$2:$D$5000=G$3)*(Feuil1!$E$2:$E$5000)) -> 180 | H51: =SUMPRODUCT((Feuil1!$B$2:$B$5000=$B51)*(Feuil1!$D$2:$D$5000=H$3)*(Feuil1!$E$2:$E$5000)) -> 180 | I51: =SUMPRODUCT((Feuil1!$B$2:$B$5000=$B51)*(Feuil1!$D$2:$D$5000=I$3)*(Feuil1!$E$2:$E$5000)) -> 180 | J51: =SUMPRODUCT((Feuil1!$B$2:$B$5000=$B51)*(Feuil1!$D$2:$D$5000=J$3)*(Feuil1!$E$2:$E$5000)) -> 0 | K51: =SUMPRODUCT((Feuil1!$B$2:$B$5000=$B51)*(Feuil1!$D$2:$D$5000=K$3)*(Feuil1!$E$2:$E$5000)) -> 0 | L51: =SUMPRODUCT((Feuil1!$B$2:$B$5000=$B51)*(Feuil1!$D$2:$D$5000=L$3)*(Feuil1!$E$2:$E$5000)) -> 0 | M51: =SUMPRODUCT((Feuil1!$B$2:$B$5000=$B51)*(Feuil1!$D$2:$D$5000=M$3)*(Feuil1!$E$2:$E$5000)) -> 0 | N51: =SUMPRODUCT((Feuil1!$B$2:$B$5000=$B51)*(Feuil1!$D$2:$D$5000=N$3)*(Feuil1!$E$2:$E$5000)) -> 0 | O51: =SUMPRODUCT((Feuil1!$B$2:$B$5000=$B51)*(Feuil1!$D$2:$D$5000=O$3)*(Feuil1!$E$2:$E$5000)) -> 0 | P51: =SUMPRODUCT((Feuil1!$B$2:$B$5000=$B51)*(Feuil1!$D$2:$D$5000=P$3)*(Feuil1!$E$2:$E$5000)) -> 0 | Q51: =SUMPRODUCT((Feuil1!$B$2:$B$5000=$B51)*(Feuil1!$D$2:$D$5000=Q$3)*(Feuil1!$E$2:$E$5000)) -> 0 | R51: =SUMPRODUCT((Feuil1!$B$2:$B$5000=$B51)*(Feuil1!$D$2:$D$5000=R$3)*(Feuil1!$E$2:$E$5000)) -> 0
A52: =IF(B52="","",MAX($A$3:A51)+1) -> 49 | B52: =IF(ROWS(B$1:B49)>COUNTIF(Feuil1!$A$2:$A$5000,$A$1),"",INDEX(Feuil1!$B$2:$B$5000,SMALL(IF(Feuil1!$A$2:$A$5000<>"",IF(Feuil1!$A$2:$A$5000=$A$1,ROW($A$2:$A$5000)-ROW($A$2)+1)),ROWS(B$1:B49)))) -> 6268 | C52: =SUMPRODUCT((Feuil1!$B$2:$B$5000=$B52)*(Feuil1!$D$2:$D$5000=C$3)*(Feuil1!$E$2:$E$5000)) -> 181 | D52: =SUMPRODUCT((Feuil1!$B$2:$B$5000=$B52)*(Feuil1!$D$2:$D$5000=D$3)*(Feuil1!$E$2:$E$5000)) -> 181 | E52: =SUMPRODUCT((Feuil1!$B$2:$B$5000=$B52)*(Feuil1!$D$2:$D$5000=E$3)*(Feuil1!$E$2:$E$5000)) -> 181 | F52: =SUMPRODUCT((Feuil1!$B$2:$B$5000=$B52)*(Feuil1!$D$2:$D$5000=F$3)*(Feuil1!$E$2:$E$5000)) -> 181 | G52: =SUMPRODUCT((Feuil1!$B$2:$B$5000=$B52)*(Feuil1!$D$2:$D$5000=G$3)*(Feuil1!$E$2:$E$5000)) -> 181 | H52: =SUMPRODUCT((Feuil1!$B$2:$B$5000=$B52)*(Feuil1!$D$2:$D$5000=H$3)*(Feuil1!$E$2:$E$5000)) -> 181 | I52: =SUMPRODUCT((Feuil1!$B$2:$B$5000=$B52)*(Feuil1!$D$2:$D$5000=I$3)*(Feuil1!$E$2:$E$5000)) -> 181 | J52: =SUMPRODUCT((Feuil1!$B$2:$B$5000=$B52)*(Feuil1!$D$2:$D$5000=J$3)*(Feuil1!$E$2:$E$5000)) -> 0 | K52: =SUMPRODUCT((Feuil1!$B$2:$B$5000=$B52)*(Feuil1!$D$2:$D$5000=K$3)*(Feuil1!$E$2:$E$5000)) -> 0 | L52: =SUMPRODUCT((Feuil1!$B$2:$B$5000=$B52)*(Feuil1!$D$2:$D$5000=L$3)*(Feuil1!$E$2:$E$5000)) -> 0 | M52: =SUMPRODUCT((Feuil1!$B$2:$B$5000=$B52)*(Feuil1!$D$2:$D$5000=M$3)*(Feuil1!$E$2:$E$5000)) -> 0 | N52: =SUMPRODUCT((Feuil1!$B$2:$B$5000=$B52)*(Feuil1!$D$2:$D$5000=N$3)*(Feuil1!$E$2:$E$5000)) -> 0 | O52: =SUMPRODUCT((Feuil1!$B$2:$B$5000=$B52)*(Feuil1!$D$2:$D$5000=O$3)*(Feuil1!$E$2:$E$5000)) -> 0 | P52: =SUMPRODUCT((Feuil1!$B$2:$B$5000=$B52)*(Feuil1!$D$2:$D$5000=P$3)*(Feuil1!$E$2:$E$5000)) -> 0 | Q52: =SUMPRODUCT((Feuil1!$B$2:$B$5000=$B52)*(Feuil1!$D$2:$D$5000=Q$3)*(Feuil1!$E$2:$E$5000)) -> 0 | R52: =SUMPRODUCT((Feuil1!$B$2:$B$5000=$B52)*(Feuil1!$D$2:$D$5000=R$3)*(Feuil1!$E$2:$E$5000)) -> 0
A53: =IF(B53="","",MAX($A$3:A52)+1) -> 50 | B53: =IF(ROWS(B$1:B50)>COUNTIF(Feuil1!$A$2:$A$5000,$A$1),"",INDEX(Feuil1!$B$2:$B$5000,SMALL(IF(Feuil1!$A$2:$A$5000<>"",IF(Feuil1!$A$2:$A$5000=$A$1,ROW($A$2:$A$5000)-ROW($A$2)+1)),ROWS(B$1:B50)))) -> 6268 | C53: =SUMPRODUCT((Feuil1!$B$2:$B$5000=$B53)*(Feuil1!$D$2:$D$5000=C$3)*(Feuil1!$E$2:$E$5000)) -> 181 | D53: =SUMPRODUCT((Feuil1!$B$2:$B$5000=$B53)*(Feuil1!$D$2:$D$5000=D$3)*(Feuil1!$E$2:$E$5000)) -> 181 | E53: =SUMPRODUCT((Feuil1!$B$2:$B$5000=$B53)*(Feuil1!$D$2:$D$5000=E$3)*(Feuil1!$E$2:$E$5000)) -> 181 | F53: =SUMPRODUCT((Feuil1!$B$2:$B$5000=$B53)*(Feuil1!$D$2:$D$5000=F$3)*(Feuil1!$E$2:$E$5000)) -> 181 | G53: =SUMPRODUCT((Feuil1!$B$2:$B$5000=$B53)*(Feuil1!$D$2:$D$5000=G$3)*(Feuil1!$E$2:$E$5000)) -> 181 | H53: =SUMPRODUCT((Feuil1!$B$2:$B$5000=$B53)*(Feuil1!$D$2:$D$5000=H$3)*(Feuil1!$E$2:$E$5000)) -> 181 | I53: =SUMPRODUCT((Feuil1!$B$2:$B$5000=$B53)*(Feuil1!$D$2:$D$5000=I$3)*(Feuil1!$E$2:$E$5000)) -> 181 | J53: =SUMPRODUCT((Feuil1!$B$2:$B$5000=$B53)*(Feuil1!$D$2:$D$5000=J$3)*(Feuil1!$E$2:$E$5000)) -> 0 | K53: =SUMPRODUCT((Feuil1!$B$2:$B$5000=$B53)*(Feuil1!$D$2:$D$5000=K$3)*(Feuil1!$E$2:$E$5000)) -> 0 | L53: =SUMPRODUCT((Feuil1!$B$2:$B$5000=$B53)*(Feuil1!$D$2:$D$5000=L$3)*(Feuil1!$E$2:$E$5000)) -> 0 | M53: =SUMPRODUCT((Feuil1!$B$2:$B$5000=$B53)*(Feuil1!$D$2:$D$5000=M$3)*(Feuil1!$E$2:$E$5000)) -> 0 | N53: =SUMPRODUCT((Feuil1!$B$2:$B$5000=$B53)*(Feuil1!$D$2:$D$5000=N$3)*(Feuil1!$E$2:$E$5000)) -> 0 | O53: =SUMPRODUCT((Feuil1!$B$2:$B$5000=$B53)*(Feuil1!$D$2:$D$5000=O$3)*(Feuil1!$E$2:$E$5000)) -> 0 | P53: =SUMPRODUCT((Feuil1!$B$2:$B$5000=$B53)*(Feuil1!$D$2:$D$5000=P$3)*(Feuil1!$E$2:$E$5000)) -> 0 | Q53: =SUMPRODUCT((Feuil1!$B$2:$B$5000=$B53)*(Feuil1!$D$2:$D$5000=Q$3)*(Feuil1!$E$2:$E$5000)) -> 0 | R53: =SUMPRODUCT((Feuil1!$B$2:$B$5000=$B53)*(Feuil1!$D$2:$D$5000=R$3)*(Feuil1!$E$2:$E$5000)) -> 0
A54: =IF(B54="","",MAX($A$3:A53)+1) -> 51 | B54: =IF(ROWS(B$1:B51)>COUNTIF(Feuil1!$A$2:$A$5000,$A$1),"",INDEX(Feuil1!$B$2:$B$5000,SMALL(IF(Feuil1!$A$2:$A$5000<>"",IF(Feuil1!$A$2:$A$5000=$A$1,ROW($A$2:$A$5000)-ROW($A$2)+1)),ROWS(B$1:B51)))) -> 6268 | C54: =SUMPRODUCT((Feuil1!$B$2:$B$5000=$B54)*(Feuil1!$D$2:$D$5000=C$3)*(Feuil1!$E$2:$E$5000)) -> 181 | D54: =SUMPRODUCT((Feuil1!$B$2:$B$5000=$B54)*(Feuil1!$D$2:$D$5000=D$3)*(Feuil1!$E$2:$E$5000)) -> 181 | E54: =SUMPRODUCT((Feuil1!$B$2:$B$5000=$B54)*(Feuil1!$D$2:$D$5000=E$3)*(Feuil1!$E$2:$E$5000)) -> 181 | F54: =SUMPRODUCT((Feuil1!$B$2:$B$5000=$B54)*(Feuil1!$D$2:$D$5000=F$3)*(Feuil1!$E$2:$E$5000)) -> 181 | G54: =SUMPRODUCT((Feuil1!$B$2:$B$5000=$B54)*(Feuil1!$D$2:$D$5000=G$3)*(Feuil1!$E$2:$E$5000)) -> 181 | H54: =SUMPRODUCT((Feuil1!$B$2:$B$5000=$B54)*(Feuil1!$D$2:$D$5000=H$3)*(Feuil1!$E$2:$E$5000)) -> 181 | I54: =SUMPRODUCT((Feuil1!$B$2:$B$5000=$B54)*(Feuil1!$D$2:$D$5000=I$3)*(Feuil1!$E$2:$E$5000)) -> 181 | J54: =SUMPRODUCT((Feuil1!$B$2:$B$5000=$B54)*(Feuil1!$D$2:$D$5000=J$3)*(Feuil1!$E$2:$E$5000)) -> 0 | K54: =SUMPRODUCT((Feuil1!$B$2:$B$5000=$B54)*(Feuil1!$D$2:$D$5000=K$3)*(Feuil1!$E$2:$E$5000)) -> 0 | L54: =SUMPRODUCT((Feuil1!$B$2:$B$5000=$B54)*(Feuil1!$D$2:$D$5000=L$3)*(Feuil1!$E$2:$E$5000)) -> 0 | M54: =SUMPRODUCT((Feuil1!$B$2:$B$5000=$B54)*(Feuil1!$D$2:$D$5000=M$3)*(Feuil1!$E$2:$E$5000)) -> 0 | N54: =SUMPRODUCT((Feuil1!$B$2:$B$5000=$B54)*(Feuil1!$D$2:$D$5000=N$3)*(Feuil1!$E$2:$E$5000)) -> 0 | O54: =SUMPRODUCT((Feuil1!$B$2:$B$5000=$B54)*(Feuil1!$D$2:$D$5000=O$3)*(Feuil1!$E$2:$E$5000)) -> 0 | P54: =SUMPRODUCT((Feuil1!$B$2:$B$5000=$B54)*(Feuil1!$D$2:$D$5000=P$3)*(Feuil1!$E$2:$E$5000)) -> 0 | Q54: =SUMPRODUCT((Feuil1!$B$2:$B$5000=$B54)*(Feuil1!$D$2:$D$5000=Q$3)*(Feuil1!$E$2:$E$5000)) -> 0 | R54: =SUMPRODUCT((Feuil1!$B$2:$B$5000=$B54)*(Feuil1!$D$2:$D$5000=R$3)*(Feuil1!$E$2:$E$5000)) -> 0
A55: =IF(B55="","",MAX($A$3:A54)+1) -> 52 | B55: =IF(ROWS(B$1:B52)>COUNTIF(Feuil1!$A$2:$A$5000,$A$1),"",INDEX(Feuil1!$B$2:$B$5000,SMALL(IF(Feuil1!$A$2:$A$5000<>"",IF(Feuil1!$A$2:$A$5000=$A$1,ROW($A$2:$A$5000)-ROW($A$2)+1)),ROWS(B$1:B52)))) -> 6268 | C55: =SUMPRODUCT((Feuil1!$B$2:$B$5000=$B55)*(Feuil1!$D$2:$D$5000=C$3)*(Feuil1!$E$2:$E$5000)) -> 181 | D55: =SUMPRODUCT((Feuil1!$B$2:$B$5000=$B55)*(Feuil1!$D$2:$D$5000=D$3)*(Feuil1!$E$2:$E$5000)) -> 181 | E55: =SUMPRODUCT((Feuil1!$B$2:$B$5000=$B55)*(Feuil1!$D$2:$D$5000=E$3)*(Feuil1!$E$2:$E$5000)) -> 181 | F55: =SUMPRODUCT((Feuil1!$B$2:$B$5000=$B55)*(Feuil1!$D$2:$D$5000=F$3)*(Feuil1!$E$2:$E$5000)) -> 181 | G55: =SUMPRODUCT((Feuil1!$B$2:$B$5000=$B55)*(Feuil1!$D$2:$D$5000=G$3)*(Feuil1!$E$2:$E$5000)) -> 181 | H55: =SUMPRODUCT((Feuil1!$B$2:$B$5000=$B55)*(Feuil1!$D$2:$D$5000=H$3)*(Feuil1!$E$2:$E$5000)) -> 181 | I55: =SUMPRODUCT((Feuil1!$B$2:$B$5000=$B55)*(Feuil1!$D$2:$D$5000=I$3)*(Feuil1!$E$2:$E$5000)) -> 181 | J55: =SUMPRODUCT((Feuil1!$B$2:$B$5000=$B55)*(Feuil1!$D$2:$D$5000=J$3)*(Feuil1!$E$2:$E$5000)) -> 0 | K55: =SUMPRODUCT((Feuil1!$B$2:$B$5000=$B55)*(Feuil1!$D$2:$D$5000=K$3)*(Feuil1!$E$2:$E$5000)) -> 0 | L55: =SUMPRODUCT((Feuil1!$B$2:$B$5000=$B55)*(Feuil1!$D$2:$D$5000=L$3)*(Feuil1!$E$2:$E$5000)) -> 0 | M55: =SUMPRODUCT((Feuil1!$B$2:$B$5000=$B55)*(Feuil1!$D$2:$D$5000=M$3)*(Feuil1!$E$2:$E$5000)) -> 0 | N55: =SUMPRODUCT((Feuil1!$B$2:$B$5000=$B55)*(Feuil1!$D$2:$D$5000=N$3)*(Feuil1!$E$2:$E$5000)) -> 0 | O55: =SUMPRODUCT((Feuil1!$B$2:$B$5000=$B55)*(Feuil1!$D$2:$D$5000=O$3)*(Feuil1!$E$2:$E$5000)) -> 0 | P55: =SUMPRODUCT((Feuil1!$B$2:$B$5000=$B55)*(Feuil1!$D$2:$D$5000=P$3)*(Feuil1!$E$2:$E$5000)) -> 0 | Q55: =SUMPRODUCT((Feuil1!$B$2:$B$5000=$B55)*(Feuil1!$D$2:$D$5000=Q$3)*(Feuil1!$E$2:$E$5000)) -> 0 | R55: =SUMPRODUCT((Feuil1!$B$2:$B$5000=$B55)*(Feuil1!$D$2:$D$5000=R$3)*(Feuil1!$E$2:$E$5000)) -> 0
A56: =IF(B56="","",MAX($A$3:A55)+1) -> 53 | B56: =IF(ROWS(B$1:B53)>COUNTIF(Feuil1!$A$2:$A$5000,$A$1),"",INDEX(Feuil1!$B$2:$B$5000,SMALL(IF(Feuil1!$A$2:$A$5000<>"",IF(Feuil1!$A$2:$A$5000=$A$1,ROW($A$2:$A$5000)-ROW($A$2)+1)),ROWS(B$1:B53)))) -> 6269 | C56: =SUMPRODUCT((Feuil1!$B$2:$B$5000=$B56)*(Feuil1!$D$2:$D$5000=C$3)*(Feuil1!$E$2:$E$5000)) -> 181 | D56: =SUMPRODUCT((Feuil1!$B$2:$B$5000=$B56)*(Feuil1!$D$2:$D$5000=D$3)*(Feuil1!$E$2:$E$5000)) -> 181 | E56: =SUMPRODUCT((Feuil1!$B$2:$B$5000=$B56)*(Feuil1!$D$2:$D$5000=E$3)*(Feuil1!$E$2:$E$5000)) -> 181 | F56: =SUMPRODUCT((Feuil1!$B$2:$B$5000=$B56)*(Feuil1!$D$2:$D$5000=F$3)*(Feuil1!$E$2:$E$5000)) -> 181 | G56: =SUMPRODUCT((Feuil1!$B$2:$B$5000=$B56)*(Feuil1!$D$2:$D$5000=G$3)*(Feuil1!$E$2:$E$5000)) -> 181 | H56: =SUMPRODUCT((Feuil1!$B$2:$B$5000=$B56)*(Feuil1!$D$2:$D$5000=H$3)*(Feuil1!$E$2:$E$5000)) -> 181 | I56: =SUMPRODUCT((Feuil1!$B$2:$B$5000=$B56)*(Feuil1!$D$2:$D$5000=I$3)*(Feuil1!$E$2:$E$5000)) -> 181 | J56: =SUMPRODUCT((Feuil1!$B$2:$B$5000=$B56)*(Feuil1!$D$2:$D$5000=J$3)*(Feuil1!$E$2:$E$5000)) -> 0 | K56: =SUMPRODUCT((Feuil1!$B$2:$B$5000=$B56)*(Feuil1!$D$2:$D$5000=K$3)*(Feuil1!$E$2:$E$5000)) -> 0 | L56: =SUMPRODUCT((Feuil1!$B$2:$B$5000=$B56)*(Feuil1!$D$2:$D$5000=L$3)*(Feuil1!$E$2:$E$5000)) -> 0 | M56: =SUMPRODUCT((Feuil1!$B$2:$B$5000=$B56)*(Feuil1!$D$2:$D$5000=M$3)*(Feuil1!$E$2:$E$5000)) -> 0 | N56: =SUMPRODUCT((Feuil1!$B$2:$B$5000=$B56)*(Feuil1!$D$2:$D$5000=N$3)*(Feuil1!$E$2:$E$5000)) -> 0 | O56: =SUMPRODUCT((Feuil1!$B$2:$B$5000=$B56)*(Feuil1!$D$2:$D$5000=O$3)*(Feuil1!$E$2:$E$5000)) -> 0 | P56: =SUMPRODUCT((Feuil1!$B$2:$B$5000=$B56)*(Feuil1!$D$2:$D$5000=P$3)*(Feuil1!$E$2:$E$5000)) -> 0 | Q56: =SUMPRODUCT((Feuil1!$B$2:$B$5000=$B56)*(Feuil1!$D$2:$D$5000=Q$3)*(Feuil1!$E$2:$E$5000)) -> 0 | R56: =SUMPRODUCT((Feuil1!$B$2:$B$5000=$B56)*(Feuil1!$D$2:$D$5000=R$3)*(Feuil1!$E$2:$E$5000)) -> 0
A57: =IF(B57="","",MAX($A$3:A56)+1) -> 54 | B57: =IF(ROWS(B$1:B54)>COUNTIF(Feuil1!$A$2:$A$5000,$A$1),"",INDEX(Feuil1!$B$2:$B$5000,SMALL(IF(Feuil1!$A$2:$A$5000<>"",IF(Feuil1!$A$2:$A$5000=$A$1,ROW($A$2:$A$5000)-ROW($A$2)+1)),ROWS(B$1:B54)))) -> 6269 | C57: =SUMPRODUCT((Feuil1!$B$2:$B$5000=$B57)*(Feuil1!$D$2:$D$5000=C$3)*(Feuil1!$E$2:$E$5000)) -> 181 | D57: =SUMPRODUCT((Feuil1!$B$2:$B$5000=$B57)*(Feuil1!$D$2:$D$5000=D$3)*(Feuil1!$E$2:$E$5000)) -> 181 | E57: =SUMPRODUCT((Feuil1!$B$2:$B$5000=$B57)*(Feuil1!$D$2:$D$5000=E$3)*(Feuil1!$E$2:$E$5000)) -> 181 | F57: =SUMPRODUCT((Feuil1!$B$2:$B$5000=$B57)*(Feuil1!$D$2:$D$5000=F$3)*(Feuil1!$E$2:$E$5000)) -> 181 | G57: =SUMPRODUCT((Feuil1!$B$2:$B$5000=$B57)*(Feuil1!$D$2:$D$5000=G$3)*(Feuil1!$E$2:$E$5000)) -> 181 | H57: =SUMPRODUCT((Feuil1!$B$2:$B$5000=$B57)*(Feuil1!$D$2:$D$5000=H$3)*(Feuil1!$E$2:$E$5000)) -> 181 | I57: =SUMPRODUCT((Feuil1!$B$2:$B$5000=$B57)*(Feuil1!$D$2:$D$5000=I$3)*(Feuil1!$E$2:$E$5000)) -> 181 | J57: =SUMPRODUCT((Feuil1!$B$2:$B$5000=$B57)*(Feuil1!$D$2:$D$5000=J$3)*(Feuil1!$E$2:$E$5000)) -> 0 | K57: =SUMPRODUCT((Feuil1!$B$2:$B$5000=$B57)*(Feuil1!$D$2:$D$5000=K$3)*(Feuil1!$E$2:$E$5000)) -> 0 | L57: =SUMPRODUCT((Feuil1!$B$2:$B$5000=$B57)*(Feuil1!$D$2:$D$5000=L$3)*(Feuil1!$E$2:$E$5000)) -> 0 | M57: =SUMPRODUCT((Feuil1!$B$2:$B$5000=$B57)*(Feuil1!$D$2:$D$5000=M$3)*(Feuil1!$E$2:$E$5000)) -> 0 | N57: =SUMPRODUCT((Feuil1!$B$2:$B$5000=$B57)*(Feuil1!$D$2:$D$5000=N$3)*(Feuil1!$E$2:$E$5000)) -> 0 | O57: =SUMPRODUCT((Feuil1!$B$2:$B$5000=$B57)*(Feuil1!$D$2:$D$5000=O$3)*(Feuil1!$E$2:$E$5000)) -> 0 | P57: =SUMPRODUCT((Feuil1!$B$2:$B$5000=$B57)*(Feuil1!$D$2:$D$5000=P$3)*(Feuil1!$E$2:$E$5000)) -> 0 | Q57: =SUMPRODUCT((Feuil1!$B$2:$B$5000=$B57)*(Feuil1!$D$2:$D$5000=Q$3)*(Feuil1!$E$2:$E$5000)) -> 0 | R57: =SUMPRODUCT((Feuil1!$B$2:$B$5000=$B57)*(Feuil1!$D$2:$D$5000=R$3)*(Feuil1!$E$2:$E$5000)) -> 0
A58: =IF(B58="","",MAX($A$3:A57)+1) -> 55 | B58: =IF(ROWS(B$1:B55)>COUNTIF(Feuil1!$A$2:$A$5000,$A$1),"",INDEX(Feuil1!$B$2:$B$5000,SMALL(IF(Feuil1!$A$2:$A$5000<>"",IF(Feuil1!$A$2:$A$5000=$A$1,ROW($A$2:$A$5000)-ROW($A$2)+1)),ROWS(B$1:B55)))) -> 6269 | C58: =SUMPRODUCT((Feuil1!$B$2:$B$5000=$B58)*(Feuil1!$D$2:$D$5000=C$3)*(Feuil1!$E$2:$E$5000)) -> 181 | D58: =SUMPRODUCT((Feuil1!$B$2:$B$5000=$B58)*(Feuil1!$D$2:$D$5000=D$3)*(Feuil1!$E$2:$E$5000)) -> 181 | E58: =SUMPRODUCT((Feuil1!$B$2:$B$5000=$B58)*(Feuil1!$D$2:$D$5000=E$3)*(Feuil1!$E$2:$E$5000)) -> 181 | F58: =SUMPRODUCT((Feuil1!$B$2:$B$5000=$B58)*(Feuil1!$D$2:$D$5000=F$3)*(Feuil1!$E$2:$E$5000)) -> 181 | G58: =SUMPRODUCT((Feuil1!$B$2:$B$5000=$B58)*(Feuil1!$D$2:$D$5000=G$3)*(Feuil1!$E$2:$E$5000)) -> 181 | H58: =SUMPRODUCT((Feuil1!$B$2:$B$5000=$B58)*(Feuil1!$D$2:$D$5000=H$3)*(Feuil1!$E$2:$E$5000)) -> 181 | I58: =SUMPRODUCT((Feuil1!$B$2:$B$5000=$B58)*(Feuil1!$D$2:$D$5000=I$3)*(Feuil1!$E$2:$E$5000)) -> 181 | J58: =SUMPRODUCT((Feuil1!$B$2:$B$5000=$B58)*(Feuil1!$D$2:$D$5000=J$3)*(Feuil1!$E$2:$E$5000)) -> 0 | K58: =SUMPRODUCT((Feuil1!$B$2:$B$5000=$B58)*(Feuil1!$D$2:$D$5000=K$3)*(Feuil1!$E$2:$E$5000)) -> 0 | L58: =SUMPRODUCT((Feuil1!$B$2:$B$5000=$B58)*(Feuil1!$D$2:$D$5000=L$3)*(Feuil1!$E$2:$E$5000)) -> 0 | M58: =SUMPRODUCT((Feuil1!$B$2:$B$5000=$B58)*(Feuil1!$D$2:$D$5000=M$3)*(Feuil1!$E$2:$E$5000)) -> 0 | N58: =SUMPRODUCT((Feuil1!$B$2:$B$5000=$B58)*(Feuil1!$D$2:$D$5000=N$3)*(Feuil1!$E$2:$E$5000)) -> 0 | O58: =SUMPRODUCT((Feuil1!$B$2:$B$5000=$B58)*(Feuil1!$D$2:$D$5000=O$3)*(Feuil1!$E$2:$E$5000)) -> 0 | P58: =SUMPRODUCT((Feuil1!$B$2:$B$5000=$B58)*(Feuil1!$D$2:$D$5000=P$3)*(Feuil1!$E$2:$E$5000)) -> 0 | Q58: =SUMPRODUCT((Feuil1!$B$2:$B$5000=$B58)*(Feuil1!$D$2:$D$5000=Q$3)*(Feuil1!$E$2:$E$5000)) -> 0 | R58: =SUMPRODUCT((Feuil1!$B$2:$B$5000=$B58)*(Feuil1!$D$2:$D$5000=R$3)*(Feuil1!$E$2:$E$5000)) -> 0
A59: =IF(B59="","",MAX($A$3:A58)+1) -> 56 | B59: =IF(ROWS(B$1:B56)>COUNTIF(Feuil1!$A$2:$A$5000,$A$1),"",INDEX(Feuil1!$B$2:$B$5000,SMALL(IF(Feuil1!$A$2:$A$5000<>"",IF(Feuil1!$A$2:$A$5000=$A$1,ROW($A$2:$A$5000)-ROW($A$2)+1)),ROWS(B$1:B56)))) -> 6269 | C59: =SUMPRODUCT((Feuil1!$B$2:$B$5000=$B59)*(Feuil1!$D$2:$D$5000=C$3)*(Feuil1!$E$2:$E$5000)) -> 181 | D59: =SUMPRODUCT((Feuil1!$B$2:$B$5000=$B59)*(Feuil1!$D$2:$D$5000=D$3)*(Feuil1!$E$2:$E$5000)) -> 181 | E59: =SUMPRODUCT((Feuil1!$B$2:$B$5000=$B59)*(Feuil1!$D$2:$D$5000=E$3)*(Feuil1!$E$2:$E$5000)) -> 181 | F59: =SUMPRODUCT((Feuil1!$B$2:$B$5000=$B59)*(Feuil1!$D$2:$D$5000=F$3)*(Feuil1!$E$2:$E$5000)) -> 181 | G59: =SUMPRODUCT((Feuil1!$B$2:$B$5000=$B59)*(Feuil1!$D$2:$D$5000=G$3)*(Feuil1!$E$2:$E$5000)) -> 181 | H59: =SUMPRODUCT((Feuil1!$B$2:$B$5000=$B59)*(Feuil1!$D$2:$D$5000=H$3)*(Feuil1!$E$2:$E$5000)) -> 181 | I59: =SUMPRODUCT((Feuil1!$B$2:$B$5000=$B59)*(Feuil1!$D$2:$D$5000=I$3)*(Feuil1!$E$2:$E$5000)) -> 181 | J59: =SUMPRODUCT((Feuil1!$B$2:$B$5000=$B59)*(Feuil1!$D$2:$D$5000=J$3)*(Feuil1!$E$2:$E$5000)) -> 0 | K59: =SUMPRODUCT((Feuil1!$B$2:$B$5000=$B59)*(Feuil1!$D$2:$D$5000=K$3)*(Feuil1!$E$2:$E$5000)) -> 0 | L59: =SUMPRODUCT((Feuil1!$B$2:$B$5000=$B59)*(Feuil1!$D$2:$D$5000=L$3)*(Feuil1!$E$2:$E$5000)) -> 0 | M59: =SUMPRODUCT((Feuil1!$B$2:$B$5000=$B59)*(Feuil1!$D$2:$D$5000=M$3)*(Feuil1!$E$2:$E$5000)) -> 0 | N59: =SUMPRODUCT((Feuil1!$B$2:$B$5000=$B59)*(Feuil1!$D$2:$D$5000=N$3)*(Feuil1!$E$2:$E$5000)) -> 0 | O59: =SUMPRODUCT((Feuil1!$B$2:$B$5000=$B59)*(Feuil1!$D$2:$D$5000=O$3)*(Feuil1!$E$2:$E$5000)) -> 0 | P59: =SUMPRODUCT((Feuil1!$B$2:$B$5000=$B59)*(Feuil1!$D$2:$D$5000=P$3)*(Feuil1!$E$2:$E$5000)) -> 0 | Q59: =SUMPRODUCT((Feuil1!$B$2:$B$5000=$B59)*(Feuil1!$D$2:$D$5000=Q$3)*(Feuil1!$E$2:$E$5000)) -> 0 | R59: =SUMPRODUCT((Feuil1!$B$2:$B$5000=$B59)*(Feuil1!$D$2:$D$5000=R$3)*(Feuil1!$E$2:$E$5000)) -> 0
A60: =IF(B60="","",MAX($A$3:A59)+1) -> 57 | B60: =IF(ROWS(B$1:B57)>COUNTIF(Feuil1!$A$2:$A$5000,$A$1),"",INDEX(Feuil1!$B$2:$B$5000,SMALL(IF(Feuil1!$A$2:$A$5000<>"",IF(Feuil1!$A$2:$A$5000=$A$1,ROW($A$2:$A$5000)-ROW($A$2)+1)),ROWS(B$1:B57)))) -> 6270 | C60: =SUMPRODUCT((Feuil1!$B$2:$B$5000=$B60)*(Feuil1!$D$2:$D$5000=C$3)*(Feuil1!$E$2:$E$5000)) -> 178 | D60: =SUMPRODUCT((Feuil1!$B$2:$B$5000=$B60)*(Feuil1!$D$2:$D$5000=D$3)*(Feuil1!$E$2:$E$5000)) -> 178 | E60: =SUMPRODUCT((Feuil1!$B$2:$B$5000=$B60)*(Feuil1!$D$2:$D$5000=E$3)*(Feuil1!$E$2:$E$5000)) -> 178 | F60: =SUMPRODUCT((Feuil1!$B$2:$B$5000=$B60)*(Feuil1!$D$2:$D$5000=F$3)*(Feuil1!$E$2:$E$5000)) -> 178 | G60: =SUMPRODUCT((Feuil1!$B$2:$B$5000=$B60)*(Feuil1!$D$2:$D$5000=G$3)*(Feuil1!$E$2:$E$5000)) -> 178 | H60: =SUMPRODUCT((Feuil1!$B$2:$B$5000=$B60)*(Feuil1!$D$2:$D$5000=H$3)*(Feuil1!$E$2:$E$5000)) -> 178 | I60: =SUMPRODUCT((Feuil1!$B$2:$B$5000=$B60)*(Feuil1!$D$2:$D$5000=I$3)*(Feuil1!$E$2:$E$5000)) -> 178 | J60: =SUMPRODUCT((Feuil1!$B$2:$B$5000=$B60)*(Feuil1!$D$2:$D$5000=J$3)*(Feuil1!$E$2:$E$5000)) -> 0 | K60: =SUMPRODUCT((Feuil1!$B$2:$B$5000=$B60)*(Feuil1!$D$2:$D$5000=K$3)*(Feuil1!$E$2:$E$5000)) -> 0 | L60: =SUMPRODUCT((Feuil1!$B$2:$B$5000=$B60)*(Feuil1!$D$2:$D$5000=L$3)*(Feuil1!$E$2:$E$5000)) -> 0 | M60: =SUMPRODUCT((Feuil1!$B$2:$B$5000=$B60)*(Feuil1!$D$2:$D$5000=M$3)*(Feuil1!$E$2:$E$5000)) -> 0 | N60: =SUMPRODUCT((Feuil1!$B$2:$B$5000=$B60)*(Feuil1!$D$2:$D$5000=N$3)*(Feuil1!$E$2:$E$5000)) -> 0 | O60: =SUMPRODUCT((Feuil1!$B$2:$B$5000=$B60)*(Feuil1!$D$2:$D$5000=O$3)*(Feuil1!$E$2:$E$5000)) -> 0 | P60: =SUMPRODUCT((Feuil1!$B$2:$B$5000=$B60)*(Feuil1!$D$2:$D$5000=P$3)*(Feuil1!$E$2:$E$5000)) -> 0 | Q60: =SUMPRODUCT((Feuil1!$B$2:$B$5000=$B60)*(Feuil1!$D$2:$D$5000=Q$3)*(Feuil1!$E$2:$E$5000)) -> 0 | R60: =SUMPRODUCT((Feuil1!$B$2:$B$5000=$B60)*(Feuil1!$D$2:$D$5000=R$3)*(Feuil1!$E$2:$E$5000)) -> 0
A61: =IF(B61="","",MAX($A$3:A60)+1) -> 58 | B61: =IF(ROWS(B$1:B58)>COUNTIF(Feuil1!$A$2:$A$5000,$A$1),"",INDEX(Feuil1!$B$2:$B$5000,SMALL(IF(Feuil1!$A$2:$A$5000<>"",IF(Feuil1!$A$2:$A$5000=$A$1,ROW($A$2:$A$5000)-ROW($A$2)+1)),ROWS(B$1:B58)))) -> 6270 | C61: =SUMPRODUCT((Feuil1!$B$2:$B$5000=$B61)*(Feuil1!$D$2:$D$5000=C$3)*(Feuil1!$E$2:$E$5000)) -> 178 | D61: =SUMPRODUCT((Feuil1!$B$2:$B$5000=$B61)*(Feuil1!$D$2:$D$5000=D$3)*(Feuil1!$E$2:$E$5000)) -> 178 | E61: =SUMPRODUCT((Feuil1!$B$2:$B$5000=$B61)*(Feuil1!$D$2:$D$5000=E$3)*(Feuil1!$E$2:$E$5000)) -> 178 | F61: =SUMPRODUCT((Feuil1!$B$2:$B$5000=$B61)*(Feuil1!$D$2:$D$5000=F$3)*(Feuil1!$E$2:$E$5000)) -> 178 | G61: =SUMPRODUCT((Feuil1!$B$2:$B$5000=$B61)*(Feuil1!$D$2:$D$5000=G$3)*(Feuil1!$E$2:$E$5000)) -> 178 | H61: =SUMPRODUCT((Feuil1!$B$2:$B$5000=$B61)*(Feuil1!$D$2:$D$5000=H$3)*(Feuil1!$E$2:$E$5000)) -> 178 | I61: =SUMPRODUCT((Feuil1!$B$2:$B$5000=$B61)*(Feuil1!$D$2:$D$5000=I$3)*(Feuil1!$E$2:$E$5000)) -> 178 | J61: =SUMPRODUCT((Feuil1!$B$2:$B$5000=$B61)*(Feuil1!$D$2:$D$5000=J$3)*(Feuil1!$E$2:$E$5000)) -> 0 | K61: =SUMPRODUCT((Feuil1!$B$2:$B$5000=$B61)*(Feuil1!$D$2:$D$5000=K$3)*(Feuil1!$E$2:$E$5000)) -> 0 | L61: =SUMPRODUCT((Feuil1!$B$2:$B$5000=$B61)*(Feuil1!$D$2:$D$5000=L$3)*(Feuil1!$E$2:$E$5000)) -> 0 | M61: =SUMPRODUCT((Feuil1!$B$2:$B$5000=$B61)*(Feuil1!$D$2:$D$5000=M$3)*(Feuil1!$E$2:$E$5000)) -> 0 | N61: =SUMPRODUCT((Feuil1!$B$2:$B$5000=$B61)*(Feuil1!$D$2:$D$5000=N$3)*(Feuil1!$E$2:$E$5000)) -> 0 | O61: =SUMPRODUCT((Feuil1!$B$2:$B$5000=$B61)*(Feuil1!$D$2:$D$5000=O$3)*(Feuil1!$E$2:$E$5000)) -> 0 | P61: =SUMPRODUCT((Feuil1!$B$2:$B$5000=$B61)*(Feuil1!$D$2:$D$5000=P$3)*(Feuil1!$E$2:$E$5000)) -> 0 | Q61: =SUMPRODUCT((Feuil1!$B$2:$B$5000=$B61)*(Feuil1!$D$2:$D$5000=Q$3)*(Feuil1!$E$2:$E$5000)) -> 0 | R61: =SUMPRODUCT((Feuil1!$B$2:$B$5000=$B61)*(Feuil1!$D$2:$D$5000=R$3)*(Feuil1!$E$2:$E$5000)) -> 0
A62: =IF(B62="","",MAX($A$3:A61)+1) -> 59 | B62: =IF(ROWS(B$1:B59)>COUNTIF(Feuil1!$A$2:$A$5000,$A$1),"",INDEX(Feuil1!$B$2:$B$5000,SMALL(IF(Feuil1!$A$2:$A$5000<>"",IF(Feuil1!$A$2:$A$5000=$A$1,ROW($A$2:$A$5000)-ROW($A$2)+1)),ROWS(B$1:B59)))) -> 6270 | C62: =SUMPRODUCT((Feuil1!$B$2:$B$5000=$B62)*(Feuil1!$D$2:$D$5000=C$3)*(Feuil1!$E$2:$E$5000)) -> 178 | D62: =SUMPRODUCT((Feuil1!$B$2:$B$5000=$B62)*(Feuil1!$D$2:$D$5000=D$3)*(Feuil1!$E$2:$E$5000)) -> 178 | E62: =SUMPRODUCT((Feuil1!$B$2:$B$5000=$B62)*(Feuil1!$D$2:$D$5000=E$3)*(Feuil1!$E$2:$E$5000)) -> 178 | F62: =SUMPRODUCT((Feuil1!$B$2:$B$5000=$B62)*(Feuil1!$D$2:$D$5000=F$3)*(Feuil1!$E$2:$E$5000)) -> 178 | G62: =SUMPRODUCT((Feuil1!$B$2:$B$5000=$B62)*(Feuil1!$D$2:$D$5000=G$3)*(Feuil1!$E$2:$E$5000)) -> 178 | H62: =SUMPRODUCT((Feuil1!$B$2:$B$5000=$B62)*(Feuil1!$D$2:$D$5000=H$3)*(Feuil1!$E$2:$E$5000)) -> 178 | I62: =SUMPRODUCT((Feuil1!$B$2:$B$5000=$B62)*(Feuil1!$D$2:$D$5000=I$3)*(Feuil1!$E$2:$E$5000)) -> 178 | J62: =SUMPRODUCT((Feuil1!$B$2:$B$5000=$B62)*(Feuil1!$D$2:$D$5000=J$3)*(Feuil1!$E$2:$E$5000)) -> 0 | K62: =SUMPRODUCT((Feuil1!$B$2:$B$5000=$B62)*(Feuil1!$D$2:$D$5000=K$3)*(Feuil1!$E$2:$E$5000)) -> 0 | L62: =SUMPRODUCT((Feuil1!$B$2:$B$5000=$B62)*(Feuil1!$D$2:$D$5000=L$3)*(Feuil1!$E$2:$E$5000)) -> 0 | M62: =SUMPRODUCT((Feuil1!$B$2:$B$5000=$B62)*(Feuil1!$D$2:$D$5000=M$3)*(Feuil1!$E$2:$E$5000)) -> 0 | N62: =SUMPRODUCT((Feuil1!$B$2:$B$5000=$B62)*(Feuil1!$D$2:$D$5000=N$3)*(Feuil1!$E$2:$E$5000)) -> 0 | O62: =SUMPRODUCT((Feuil1!$B$2:$B$5000=$B62)*(Feuil1!$D$2:$D$5000=O$3)*(Feuil1!$E$2:$E$5000)) -> 0 | P62: =SUMPRODUCT((Feuil1!$B$2:$B$5000=$B62)*(Feuil1!$D$2:$D$5000=P$3)*(Feuil1!$E$2:$E$5000)) -> 0 | Q62: =SUMPRODUCT((Feuil1!$B$2:$B$5000=$B62)*(Feuil1!$D$2:$D$5000=Q$3)*(Feuil1!$E$2:$E$5000)) -> 0 | R62: =SUMPRODUCT((Feuil1!$B$2:$B$5000=$B62)*(Feuil1!$D$2:$D$5000=R$3)*(Feuil1!$E$2:$E$5000)) -> 0
A63: =IF(B63="","",MAX($A$3:A62)+1) -> 60 | B63: =IF(ROWS(B$1:B60)>COUNTIF(Feuil1!$A$2:$A$5000,$A$1),"",INDEX(Feuil1!$B$2:$B$5000,SMALL(IF(Feuil1!$A$2:$A$5000<>"",IF(Feuil1!$A$2:$A$5000=$A$1,ROW($A$2:$A$5000)-ROW($A$2)+1)),ROWS(B$1:B60)))) -> 6270 | C63: =SUMPRODUCT((Feuil1!$B$2:$B$5000=$B63)*(Feuil1!$D$2:$D$5000=C$3)*(Feuil1!$E$2:$E$5000)) -> 178 | D63: =SUMPRODUCT((Feuil1!$B$2:$B$5000=$B63)*(Feuil1!$D$2:$D$5000=D$3)*(Feuil1!$E$2:$E$5000)) -> 178 | E63: =SUMPRODUCT((Feuil1!$B$2:$B$5000=$B63)*(Feuil1!$D$2:$D$5000=E$3)*(Feuil1!$E$2:$E$5000)) -> 178 | F63: =SUMPRODUCT((Feuil1!$B$2:$B$5000=$B63)*(Feuil1!$D$2:$D$5000=F$3)*(Feuil1!$E$2:$E$5000)) -> 178 | G63: =SUMPRODUCT((Feuil1!$B$2:$B$5000=$B63)*(Feuil1!$D$2:$D$5000=G$3)*(Feuil1!$E$2:$E$5000)) -> 178 | H63: =SUMPRODUCT((Feuil1!$B$2:$B$5000=$B63)*(Feuil1!$D$2:$D$5000=H$3)*(Feuil1!$E$2:$E$5000)) -> 178 | I63: =SUMPRODUCT((Feuil1!$B$2:$B$5000=$B63)*(Feuil1!$D$2:$D$5000=I$3)*(Feuil1!$E$2:$E$5000)) -> 178 | J63: =SUMPRODUCT((Feuil1!$B$2:$B$5000=$B63)*(Feuil1!$D$2:$D$5000=J$3)*(Feuil1!$E$2:$E$5000)) -> 0 | K63: =SUMPRODUCT((Feuil1!$B$2:$B$5000=$B63)*(Feuil1!$D$2:$D$5000=K$3)*(Feuil1!$E$2:$E$5000)) -> 0 | L63: =SUMPRODUCT((Feuil1!$B$2:$B$5000=$B63)*(Feuil1!$D$2:$D$5000=L$3)*(Feuil1!$E$2:$E$5000)) -> 0 | M63: =SUMPRODUCT((Feuil1!$B$2:$B$5000=$B63)*(Feuil1!$D$2:$D$5000=M$3)*(Feuil1!$E$2:$E$5000)) -> 0 | N63: =SUMPRODUCT((Feuil1!$B$2:$B$5000=$B63)*(Feuil1!$D$2:$D$5000=N$3)*(Feuil1!$E$2:$E$5000)) -> 0 | O63: =SUMPRODUCT((Feuil1!$B$2:$B$5000=$B63)*(Feuil1!$D$2:$D$5000=O$3)*(Feuil1!$E$2:$E$5000)) -> 0 | P63: =SUMPRODUCT((Feuil1!$B$2:$B$5000=$B63)*(Feuil1!$D$2:$D$5000=P$3)*(Feuil1!$E$2:$E$5000)) -> 0 | Q63: =SUMPRODUCT((Feuil1!$B$2:$B$5000=$B63)*(Feuil1!$D$2:$D$5000=Q$3)*(Feuil1!$E$2:$E$5000)) -> 0 | R63: =SUMPRODUCT((Feuil1!$B$2:$B$5000=$B63)*(Feuil1!$D$2:$D$5000=R$3)*(Feuil1!$E$2:$E$5000)) -> 0
A64: =IF(B64="","",MAX($A$3:A63)+1) -> 61 | B64: =IF(ROWS(B$1:B61)>COUNTIF(Feuil1!$A$2:$A$5000,$A$1),"",INDEX(Feuil1!$B$2:$B$5000,SMALL(IF(Feuil1!$A$2:$A$5000<>"",IF(Feuil1!$A$2:$A$5000=$A$1,ROW($A$2:$A$5000)-ROW($A$2)+1)),ROWS(B$1:B61)))) -> 6271 | C64: =SUMPRODUCT((Feuil1!$B$2:$B$5000=$B64)*(Feuil1!$D$2:$D$5000=C$3)*(Feuil1!$E$2:$E$5000)) -> 182 | D64: =SUMPRODUCT((Feuil1!$B$2:$B$5000=$B64)*(Feuil1!$D$2:$D$5000=D$3)*(Feuil1!$E$2:$E$5000)) -> 182 | E64: =SUMPRODUCT((Feuil1!$B$2:$B$5000=$B64)*(Feuil1!$D$2:$D$5000=E$3)*(Feuil1!$E$2:$E$5000)) -> 182 | F64: =SUMPRODUCT((Feuil1!$B$2:$B$5000=$B64)*(Feuil1!$D$2:$D$5000=F$3)*(Feuil1!$E$2:$E$5000)) -> 182 | G64: =SUMPRODUCT((Feuil1!$B$2:$B$5000=$B64)*(Feuil1!$D$2:$D$5000=G$3)*(Feuil1!$E$2:$E$5000)) -> 182 | H64: =SUMPRODUCT((Feuil1!$B$2:$B$5000=$B64)*(Feuil1!$D$2:$D$5000=H$3)*(Feuil1!$E$2:$E$5000)) -> 182 | I64: =SUMPRODUCT((Feuil1!$B$2:$B$5000=$B64)*(Feuil1!$D$2:$D$5000=I$3)*(Feuil1!$E$2:$E$5000)) -> 182 | J64: =SUMPRODUCT((Feuil1!$B$2:$B$5000=$B64)*(Feuil1!$D$2:$D$5000=J$3)*(Feuil1!$E$2:$E$5000)) -> 0 | K64: =SUMPRODUCT((Feuil1!$B$2:$B$5000=$B64)*(Feuil1!$D$2:$D$5000=K$3)*(Feuil1!$E$2:$E$5000)) -> 0 | L64: =SUMPRODUCT((Feuil1!$B$2:$B$5000=$B64)*(Feuil1!$D$2:$D$5000=L$3)*(Feuil1!$E$2:$E$5000)) -> 0 | M64: =SUMPRODUCT((Feuil1!$B$2:$B$5000=$B64)*(Feuil1!$D$2:$D$5000=M$3)*(Feuil1!$E$2:$E$5000)) -> 0 | N64: =SUMPRODUCT((Feuil1!$B$2:$B$5000=$B64)*(Feuil1!$D$2:$D$5000=N$3)*(Feuil1!$E$2:$E$5000)) -> 0 | O64: =SUMPRODUCT((Feuil1!$B$2:$B$5000=$B64)*(Feuil1!$D$2:$D$5000=O$3)*(Feuil1!$E$2:$E$5000)) -> 0 | P64: =SUMPRODUCT((Feuil1!$B$2:$B$5000=$B64)*(Feuil1!$D$2:$D$5000=P$3)*(Feuil1!$E$2:$E$5000)) -> 0 | Q64: =SUMPRODUCT((Feuil1!$B$2:$B$5000=$B64)*(Feuil1!$D$2:$D$5000=Q$3)*(Feuil1!$E$2:$E$5000)) -> 0 | R64: =SUMPRODUCT((Feuil1!$B$2:$B$5000=$B64)*(Feuil1!$D$2:$D$5000=R$3)*(Feuil1!$E$2:$E$5000)) -> 0
A65: =IF(B65="","",MAX($A$3:A64)+1) -> 62 | B65: =IF(ROWS(B$1:B62)>COUNTIF(Feuil1!$A$2:$A$5000,$A$1),"",INDEX(Feuil1!$B$2:$B$5000,SMALL(IF(Feuil1!$A$2:$A$5000<>"",IF(Feuil1!$A$2:$A$5000=$A$1,ROW($A$2:$A$5000)-ROW($A$2)+1)),ROWS(B$1:B62)))) -> 6271 | C65: =SUMPRODUCT((Feuil1!$B$2:$B$5000=$B65)*(Feuil1!$D$2:$D$5000=C$3)*(Feuil1!$E$2:$E$5000)) -> 182 | D65: =SUMPRODUCT((Feuil1!$B$2:$B$5000=$B65)*(Feuil1!$D$2:$D$5000=D$3)*(Feuil1!$E$2:$E$5000)) -> 182 | E65: =SUMPRODUCT((Feuil1!$B$2:$B$5000=$B65)*(Feuil1!$D$2:$D$5000=E$3)*(Feuil1!$E$2:$E$5000)) -> 182 | F65: =SUMPRODUCT((Feuil1!$B$2:$B$5000=$B65)*(Feuil1!$D$2:$D$5000=F$3)*(Feuil1!$E$2:$E$5000)) -> 182 | G65: =SUMPRODUCT((Feuil1!$B$2:$B$5000=$B65)*(Feuil1!$D$2:$D$5000=G$3)*(Feuil1!$E$2:$E$5000)) -> 182 | H65: =SUMPRODUCT((Feuil1!$B$2:$B$5000=$B65)*(Feuil1!$D$2:$D$5000=H$3)*(Feuil1!$E$2:$E$5000)) -> 182 | I65: =SUMPRODUCT((Feuil1!$B$2:$B$5000=$B65)*(Feuil1!$D$2:$D$5000=I$3)*(Feuil1!$E$2:$E$5000)) -> 182 | J65: =SUMPRODUCT((Feuil1!$B$2:$B$5000=$B65)*(Feuil1!$D$2:$D$5000=J$3)*(Feuil1!$E$2:$E$5000)) -> 0 | K65: =SUMPRODUCT((Feuil1!$B$2:$B$5000=$B65)*(Feuil1!$D$2:$D$5000=K$3)*(Feuil1!$E$2:$E$5000)) -> 0 | L65: =SUMPRODUCT((Feuil1!$B$2:$B$5000=$B65)*(Feuil1!$D$2:$D$5000=L$3)*(Feuil1!$E$2:$E$5000)) -> 0 | M65: =SUMPRODUCT((Feuil1!$B$2:$B$5000=$B65)*(Feuil1!$D$2:$D$5000=M$3)*(Feuil1!$E$2:$E$5000)) -> 0 | N65: =SUMPRODUCT((Feuil1!$B$2:$B$5000=$B65)*(Feuil1!$D$2:$D$5000=N$3)*(Feuil1!$E$2:$E$5000)) -> 0 | O65: =SUMPRODUCT((Feuil1!$B$2:$B$5000=$B65)*(Feuil1!$D$2:$D$5000=O$3)*(Feuil1!$E$2:$E$5000)) -> 0 | P65: =SUMPRODUCT((Feuil1!$B$2:$B$5000=$B65)*(Feuil1!$D$2:$D$5000=P$3)*(Feuil1!$E$2:$E$5000)) -> 0 | Q65: =SUMPRODUCT((Feuil1!$B$2:$B$5000=$B65)*(Feuil1!$D$2:$D$5000=Q$3)*(Feuil1!$E$2:$E$5000)) -> 0 | R65: =SUMPRODUCT((Feuil1!$B$2:$B$5000=$B65)*(Feuil1!$D$2:$D$5000=R$3)*(Feuil1!$E$2:$E$5000)) -> 0
A66: =IF(B66="","",MAX($A$3:A65)+1) -> 63 | B66: =IF(ROWS(B$1:B63)>COUNTIF(Feuil1!$A$2:$A$5000,$A$1),"",INDEX(Feuil1!$B$2:$B$5000,SMALL(IF(Feuil1!$A$2:$A$5000<>"",IF(Feuil1!$A$2:$A$5000=$A$1,ROW($A$2:$A$5000)-ROW($A$2)+1)),ROWS(B$1:B63)))) -> 6271 | C66: =SUMPRODUCT((Feuil1!$B$2:$B$5000=$B66)*(Feuil1!$D$2:$D$5000=C$3)*(Feuil1!$E$2:$E$5000)) -> 182 | D66: =SUMPRODUCT((Feuil1!$B$2:$B$5000=$B66)*(Feuil1!$D$2:$D$5000=D$3)*(Feuil1!$E$2:$E$5000)) -> 182 | E66: =SUMPRODUCT((Feuil1!$B$2:$B$5000=$B66)*(Feuil1!$D$2:$D$5000=E$3)*(Feuil1!$E$2:$E$5000)) -> 182 | F66: =SUMPRODUCT((Feuil1!$B$2:$B$5000=$B66)*(Feuil1!$D$2:$D$5000=F$3)*(Feuil1!$E$2:$E$5000)) -> 182 | G66: =SUMPRODUCT((Feuil1!$B$2:$B$5000=$B66)*(Feuil1!$D$2:$D$5000=G$3)*(Feuil1!$E$2:$E$5000)) -> 182 | H66: =SUMPRODUCT((Feuil1!$B$2:$B$5000=$B66)*(Feuil1!$D$2:$D$5000=H$3)*(Feuil1!$E$2:$E$5000)) -> 182 | I66: =SUMPRODUCT((Feuil1!$B$2:$B$5000=$B66)*(Feuil1!$D$2:$D$5000=I$3)*(Feuil1!$E$2:$E$5000)) -> 182 | J66: =SUMPRODUCT((Feuil1!$B$2:$B$5000=$B66)*(Feuil1!$D$2:$D$5000=J$3)*(Feuil1!$E$2:$E$5000)) -> 0 | K66: =SUMPRODUCT((Feuil1!$B$2:$B$5000=$B66)*(Feuil1!$D$2:$D$5000=K$3)*(Feuil1!$E$2:$E$5000)) -> 0 | L66: =SUMPRODUCT((Feuil1!$B$2:$B$5000=$B66)*(Feuil1!$D$2:$D$5000=L$3)*(Feuil1!$E$2:$E$5000)) -> 0 | M66: =SUMPRODUCT((Feuil1!$B$2:$B$5000=$B66)*(Feuil1!$D$2:$D$5000=M$3)*(Feuil1!$E$2:$E$5000)) -> 0 | N66: =SUMPRODUCT((Feuil1!$B$2:$B$5000=$B66)*(Feuil1!$D$2:$D$5000=N$3)*(Feuil1!$E$2:$E$5000)) -> 0 | O66: =SUMPRODUCT((Feuil1!$B$2:$B$5000=$B66)*(Feuil1!$D$2:$D$5000=O$3)*(Feuil1!$E$2:$E$5000)) -> 0 | P66: =SUMPRODUCT((Feuil1!$B$2:$B$5000=$B66)*(Feuil1!$D$2:$D$5000=P$3)*(Feuil1!$E$2:$E$5000)) -> 0 | Q66: =SUMPRODUCT((Feuil1!$B$2:$B$5000=$B66)*(Feuil1!$D$2:$D$5000=Q$3)*(Feuil1!$E$2:$E$5000)) -> 0 | R66: =SUMPRODUCT((Feuil1!$B$2:$B$5000=$B66)*(Feuil1!$D$2:$D$5000=R$3)*(Feuil1!$E$2:$E$5000)) -> 0
A67: =IF(B67="","",MAX($A$3:A66)+1) -> 64 | B67: =IF(ROWS(B$1:B64)>COUNTIF(Feuil1!$A$2:$A$5000,$A$1),"",INDEX(Feuil1!$B$2:$B$5000,SMALL(IF(Feuil1!$A$2:$A$5000<>"",IF(Feuil1!$A$2:$A$5000=$A$1,ROW($A$2:$A$5000)-ROW($A$2)+1)),ROWS(B$1:B64)))) -> 6271 | C67: =SUMPRODUCT((Feuil1!$B$2:$B$5000=$B67)*(Feuil1!$D$2:$D$5000=C$3)*(Feuil1!$E$2:$E$5000)) -> 182 | D67: =SUMPRODUCT((Feuil1!$B$2:$B$5000=$B67)*(Feuil1!$D$2:$D$5000=D$3)*(Feuil1!$E$2:$E$5000)) -> 182 | E67: =SUMPRODUCT((Feuil1!$B$2:$B$5000=$B67)*(Feuil1!$D$2:$D$5000=E$3)*(Feuil1!$E$2:$E$5000)) -> 182 | F67: =SUMPRODUCT((Feuil1!$B$2:$B$5000=$B67)*(Feuil1!$D$2:$D$5000=F$3)*(Feuil1!$E$2:$E$5000)) -> 182 | G67: =SUMPRODUCT((Feuil1!$B$2:$B$5000=$B67)*(Feuil1!$D$2:$D$5000=G$3)*(Feuil1!$E$2:$E$5000)) -> 182 | H67: =SUMPRODUCT((Feuil1!$B$2:$B$5000=$B67)*(Feuil1!$D$2:$D$5000=H$3)*(Feuil1!$E$2:$E$5000)) -> 182 | I67: =SUMPRODUCT((Feuil1!$B$2:$B$5000=$B67)*(Feuil1!$D$2:$D$5000=I$3)*(Feuil1!$E$2:$E$5000)) -> 182 | J67: =SUMPRODUCT((Feuil1!$B$2:$B$5000=$B67)*(Feuil1!$D$2:$D$5000=J$3)*(Feuil1!$E$2:$E$5000)) -> 0 | K67: =SUMPRODUCT((Feuil1!$B$2:$B$5000=$B67)*(Feuil1!$D$2:$D$5000=K$3)*(Feuil1!$E$2:$E$5000)) -> 0 | L67: =SUMPRODUCT((Feuil1!$B$2:$B$5000=$B67)*(Feuil1!$D$2:$D$5000=L$3)*(Feuil1!$E$2:$E$5000)) -> 0 | M67: =SUMPRODUCT((Feuil1!$B$2:$B$5000=$B67)*(Feuil1!$D$2:$D$5000=M$3)*(Feuil1!$E$2:$E$5000)) -> 0 | N67: =SUMPRODUCT((Feuil1!$B$2:$B$5000=$B67)*(Feuil1!$D$2:$D$5000=N$3)*(Feuil1!$E$2:$E$5000)) -> 0 | O67: =SUMPRODUCT((Feuil1!$B$2:$B$5000=$B67)*(Feuil1!$D$2:$D$5000=O$3)*(Feuil1!$E$2:$E$5000)) -> 0 | P67: =SUMPRODUCT((Feuil1!$B$2:$B$5000=$B67)*(Feuil1!$D$2:$D$5000=P$3)*(Feuil1!$E$2:$E$5000)) -> 0 | Q67: =SUMPRODUCT((Feuil1!$B$2:$B$5000=$B67)*(Feuil1!$D$2:$D$5000=Q$3)*(Feuil1!$E$2:$E$5000)) -> 0 | R67: =SUMPRODUCT((Feuil1!$B$2:$B$5000=$B67)*(Feuil1!$D$2:$D$5000=R$3)*(Feuil1!$E$2:$E$5000)) -> 0
A68: =IF(B68="","",MAX($A$3:A67)+1) -> 65 | B68: =IF(ROWS(B$1:B65)>COUNTIF(Feuil1!$A$2:$A$5000,$A$1),"",INDEX(Feuil1!$B$2:$B$5000,SMALL(IF(Feuil1!$A$2:$A$5000<>"",IF(Feuil1!$A$2:$A$5000=$A$1,ROW($A$2:$A$5000)-ROW($A$2)+1)),ROWS(B$1:B65)))) -> 6272 | C68: =SUMPRODUCT((Feuil1!$B$2:$B$5000=$B68)*(Feuil1!$D$2:$D$5000=C$3)*(Feuil1!$E$2:$E$5000)) -> 179 | D68: =SUMPRODUCT((Feuil1!$B$2:$B$5000=$B68)*(Feuil1!$D$2:$D$5000=D$3)*(Feuil1!$E$2:$E$5000)) -> 179 | E68: =SUMPRODUCT((Feuil1!$B$2:$B$5000=$B68)*(Feuil1!$D$2:$D$5000=E$3)*(Feuil1!$E$2:$E$5000)) -> 179 | F68: =SUMPRODUCT((Feuil1!$B$2:$B$5000=$B68)*(Feuil1!$D$2:$D$5000=F$3)*(Feuil1!$E$2:$E$5000)) -> 179 | G68: =SUMPRODUCT((Feuil1!$B$2:$B$5000=$B68)*(Feuil1!$D$2:$D$5000=G$3)*(Feuil1!$E$2:$E$5000)) -> 179 | H68: =SUMPRODUCT((Feuil1!$B$2:$B$5000=$B68)*(Feuil1!$D$2:$D$5000=H$3)*(Feuil1!$E$2:$E$5000)) -> 179 | I68: =SUMPRODUCT((Feuil1!$B$2:$B$5000=$B68)*(Feuil1!$D$2:$D$5000=I$3)*(Feuil1!$E$2:$E$5000)) -> 179 | J68: =SUMPRODUCT((Feuil1!$B$2:$B$5000=$B68)*(Feuil1!$D$2:$D$5000=J$3)*(Feuil1!$E$2:$E$5000)) -> 0 | K68: =SUMPRODUCT((Feuil1!$B$2:$B$5000=$B68)*(Feuil1!$D$2:$D$5000=K$3)*(Feuil1!$E$2:$E$5000)) -> 0 | L68: =SUMPRODUCT((Feuil1!$B$2:$B$5000=$B68)*(Feuil1!$D$2:$D$5000=L$3)*(Feuil1!$E$2:$E$5000)) -> 0 | M68: =SUMPRODUCT((Feuil1!$B$2:$B$5000=$B68)*(Feuil1!$D$2:$D$5000=M$3)*(Feuil1!$E$2:$E$5000)) -> 0 | N68: =SUMPRODUCT((Feuil1!$B$2:$B$5000=$B68)*(Feuil1!$D$2:$D$5000=N$3)*(Feuil1!$E$2:$E$5000)) -> 0 | O68: =SUMPRODUCT((Feuil1!$B$2:$B$5000=$B68)*(Feuil1!$D$2:$D$5000=O$3)*(Feuil1!$E$2:$E$5000)) -> 0 | P68: =SUMPRODUCT((Feuil1!$B$2:$B$5000=$B68)*(Feuil1!$D$2:$D$5000=P$3)*(Feuil1!$E$2:$E$5000)) -> 0 | Q68: =SUMPRODUCT((Feuil1!$B$2:$B$5000=$B68)*(Feuil1!$D$2:$D$5000=Q$3)*(Feuil1!$E$2:$E$5000)) -> 0 | R68: =SUMPRODUCT((Feuil1!$B$2:$B$5000=$B68)*(Feuil1!$D$2:$D$5000=R$3)*(Feuil1!$E$2:$E$5000)) -> 0
A69: =IF(B69="","",MAX($A$3:A68)+1) -> 66 | B69: =IF(ROWS(B$1:B66)>COUNTIF(Feuil1!$A$2:$A$5000,$A$1),"",INDEX(Feuil1!$B$2:$B$5000,SMALL(IF(Feuil1!$A$2:$A$5000<>"",IF(Feuil1!$A$2:$A$5000=$A$1,ROW($A$2:$A$5000)-ROW($A$2)+1)),ROWS(B$1:B66)))) -> 6272 | C69: =SUMPRODUCT((Feuil1!$B$2:$B$5000=$B69)*(Feuil1!$D$2:$D$5000=C$3)*(Feuil1!$E$2:$E$5000)) -> 179 | D69: =SUMPRODUCT((Feuil1!$B$2:$B$5000=$B69)*(Feuil1!$D$2:$D$5000=D$3)*(Feuil1!$E$2:$E$5000)) -> 179 | E69: =SUMPRODUCT((Feuil1!$B$2:$B$5000=$B69)*(Feuil1!$D$2:$D$5000=E$3)*(Feuil1!$E$2:$E$5000)) -> 179 | F69: =SUMPRODUCT((Feuil1!$B$2:$B$5000=$B69)*(Feuil1!$D$2:$D$5000=F$3)*(Feuil1!$E$2:$E$5000)) -> 179 | G69: =SUMPRODUCT((Feuil1!$B$2:$B$5000=$B69)*(Feuil1!$D$2:$D$5000=G$3)*(Feuil1!$E$2:$E$5000)) -> 179 | H69: =SUMPRODUCT((Feuil1!$B$2:$B$5000=$B69)*(Feuil1!$D$2:$D$5000=H$3)*(Feuil1!$E$2:$E$5000)) -> 179 | I69: =SUMPRODUCT((Feuil1!$B$2:$B$5000=$B69)*(Feuil1!$D$2:$D$5000=I$3)*(Feuil1!$E$2:$E$5000)) -> 179 | J69: =SUMPRODUCT((Feuil1!$B$2:$B$5000=$B69)*(Feuil1!$D$2:$D$5000=J$3)*(Feuil1!$E$2:$E$5000)) -> 0 | K69: =SUMPRODUCT((Feuil1!$B$2:$B$5000=$B69)*(Feuil1!$D$2:$D$5000=K$3)*(Feuil1!$E$2:$E$5000)) -> 0 | L69: =SUMPRODUCT((Feuil1!$B$2:$B$5000=$B69)*(Feuil1!$D$2:$D$5000=L$3)*(Feuil1!$E$2:$E$5000)) -> 0 | M69: =SUMPRODUCT((Feuil1!$B$2:$B$5000=$B69)*(Feuil1!$D$2:$D$5000=M$3)*(Feuil1!$E$2:$E$5000)) -> 0 | N69: =SUMPRODUCT((Feuil1!$B$2:$B$5000=$B69)*(Feuil1!$D$2:$D$5000=N$3)*(Feuil1!$E$2:$E$5000)) -> 0 | O69: =SUMPRODUCT((Feuil1!$B$2:$B$5000=$B69)*(Feuil1!$D$2:$D$5000=O$3)*(Feuil1!$E$2:$E$5000)) -> 0 | P69: =SUMPRODUCT((Feuil1!$B$2:$B$5000=$B69)*(Feuil1!$D$2:$D$5000=P$3)*(Feuil1!$E$2:$E$5000)) -> 0 | Q69: =SUMPRODUCT((Feuil1!$B$2:$B$5000=$B69)*(Feuil1!$D$2:$D$5000=Q$3)*(Feuil1!$E$2:$E$5000)) -> 0 | R69: =SUMPRODUCT((Feuil1!$B$2:$B$5000=$B69)*(Feuil1!$D$2:$D$5000=R$3)*(Feuil1!$E$2:$E$5000)) -> 0
A70: =IF(B70="","",MAX($A$3:A69)+1) -> 67 | B70: =IF(ROWS(B$1:B67)>COUNTIF(Feuil1!$A$2:$A$5000,$A$1),"",INDEX(Feuil1!$B$2:$B$5000,SMALL(IF(Feuil1!$A$2:$A$5000<>"",IF(Feuil1!$A$2:$A$5000=$A$1,ROW($A$2:$A$5000)-ROW($A$2)+1)),ROWS(B$1:B67)))) -> 6272 | C70: =SUMPRODUCT((Feuil1!$B$2:$B$5000=$B70)*(Feuil1!$D$2:$D$5000=C$3)*(Feuil1!$E$2:$E$5000)) -> 179 | D70: =SUMPRODUCT((Feuil1!$B$2:$B$5000=$B70)*(Feuil1!$D$2:$D$5000=D$3)*(Feuil1!$E$2:$E$5000)) -> 179 | E70: =SUMPRODUCT((Feuil1!$B$2:$B$5000=$B70)*(Feuil1!$D$2:$D$5000=E$3)*(Feuil1!$E$2:$E$5000)) -> 179 | F70: =SUMPRODUCT((Feuil1!$B$2:$B$5000=$B70)*(Feuil1!$D$2:$D$5000=F$3)*(Feuil1!$E$2:$E$5000)) -> 179 | G70: =SUMPRODUCT((Feuil1!$B$2:$B$5000=$B70)*(Feuil1!$D$2:$D$5000=G$3)*(Feuil1!$E$2:$E$5000)) -> 179 | H70: =SUMPRODUCT((Feuil1!$B$2:$B$5000=$B70)*(Feuil1!$D$2:$D$5000=H$3)*(Feuil1!$E$2:$E$5000)) -> 179 | I70: =SUMPRODUCT((Feuil1!$B$2:$B$5000=$B70)*(Feuil1!$D$2:$D$5000=I$3)*(Feuil1!$E$2:$E$5000)) -> 179 | J70: =SUMPRODUCT((Feuil1!$B$2:$B$5000=$B70)*(Feuil1!$D$2:$D$5000=J$3)*(Feuil1!$E$2:$E$5000)) -> 0 | K70: =SUMPRODUCT((Feuil1!$B$2:$B$5000=$B70)*(Feuil1!$D$2:$D$5000=K$3)*(Feuil1!$E$2:$E$5000)) -> 0 | L70: =SUMPRODUCT((Feuil1!$B$2:$B$5000=$B70)*(Feuil1!$D$2:$D$5000=L$3)*(Feuil1!$E$2:$E$5000)) -> 0 | M70: =SUMPRODUCT((Feuil1!$B$2:$B$5000=$B70)*(Feuil1!$D$2:$D$5000=M$3)*(Feuil1!$E$2:$E$5000)) -> 0 | N70: =SUMPRODUCT((Feuil1!$B$2:$B$5000=$B70)*(Feuil1!$D$2:$D$5000=N$3)*(Feuil1!$E$2:$E$5000)) -> 0 | O70: =SUMPRODUCT((Feuil1!$B$2:$B$5000=$B70)*(Feuil1!$D$2:$D$5000=O$3)*(Feuil1!$E$2:$E$5000)) -> 0 | P70: =SUMPRODUCT((Feuil1!$B$2:$B$5000=$B70)*(Feuil1!$D$2:$D$5000=P$3)*(Feuil1!$E$2:$E$5000)) -> 0 | Q70: =SUMPRODUCT((Feuil1!$B$2:$B$5000=$B70)*(Feuil1!$D$2:$D$5000=Q$3)*(Feuil1!$E$2:$E$5000)) -> 0 | R70: =SUMPRODUCT((Feuil1!$B$2:$B$5000=$B70)*(Feuil1!$D$2:$D$5000=R$3)*(Feuil1!$E$2:$E$5000)) -> 0
A71: =IF(B71="","",MAX($A$3:A70)+1) -> 68 | B71: =IF(ROWS(B$1:B68)>COUNTIF(Feuil1!$A$2:$A$5000,$A$1),"",INDEX(Feuil1!$B$2:$B$5000,SMALL(IF(Feuil1!$A$2:$A$5000<>"",IF(Feuil1!$A$2:$A$5000=$A$1,ROW($A$2:$A$5000)-ROW($A$2)+1)),ROWS(B$1:B68)))) -> 6272 | C71: =SUMPRODUCT((Feuil1!$B$2:$B$5000=$B71)*(Feuil1!$D$2:$D$5000=C$3)*(Feuil1!$E$2:$E$5000)) -> 179 | D71: =SUMPRODUCT((Feuil1!$B$2:$B$5000=$B71)*(Feuil1!$D$2:$D$5000=D$3)*(Feuil1!$E$2:$E$5000)) -> 179 | E71: =SUMPRODUCT((Feuil1!$B$2:$B$5000=$B71)*(Feuil1!$D$2:$D$5000=E$3)*(Feuil1!$E$2:$E$5000)) -> 179 | F71: =SUMPRODUCT((Feuil1!$B$2:$B$5000=$B71)*(Feuil1!$D$2:$D$5000=F$3)*(Feuil1!$E$2:$E$5000)) -> 179 | G71: =SUMPRODUCT((Feuil1!$B$2:$B$5000=$B71)*(Feuil1!$D$2:$D$5000=G$3)*(Feuil1!$E$2:$E$5000)) -> 179 | H71: =SUMPRODUCT((Feuil1!$B$2:$B$5000=$B71)*(Feuil1!$D$2:$D$5000=H$3)*(Feuil1!$E$2:$E$5000)) -> 179 | I71: =SUMPRODUCT((Feuil1!$B$2:$B$5000=$B71)*(Feuil1!$D$2:$D$5000=I$3)*(Feuil1!$E$2:$E$5000)) -> 179 | J71: =SUMPRODUCT((Feuil1!$B$2:$B$5000=$B71)*(Feuil1!$D$2:$D$5000=J$3)*(Feuil1!$E$2:$E$5000)) -> 0 | K71: =SUMPRODUCT((Feuil1!$B$2:$B$5000=$B71)*(Feuil1!$D$2:$D$5000=K$3)*(Feuil1!$E$2:$E$5000)) -> 0 | L71: =SUMPRODUCT((Feuil1!$B$2:$B$5000=$B71)*(Feuil1!$D$2:$D$5000=L$3)*(Feuil1!$E$2:$E$5000)) -> 0 | M71: =SUMPRODUCT((Feuil1!$B$2:$B$5000=$B71)*(Feuil1!$D$2:$D$5000=M$3)*(Feuil1!$E$2:$E$5000)) -> 0 | N71: =SUMPRODUCT((Feuil1!$B$2:$B$5000=$B71)*(Feuil1!$D$2:$D$5000=N$3)*(Feuil1!$E$2:$E$5000)) -> 0 | O71: =SUMPRODUCT((Feuil1!$B$2:$B$5000=$B71)*(Feuil1!$D$2:$D$5000=O$3)*(Feuil1!$E$2:$E$5000)) -> 0 | P71: =SUMPRODUCT((Feuil1!$B$2:$B$5000=$B71)*(Feuil1!$D$2:$D$5000=P$3)*(Feuil1!$E$2:$E$5000)) -> 0 | Q71: =SUMPRODUCT((Feuil1!$B$2:$B$5000=$B71)*(Feuil1!$D$2:$D$5000=Q$3)*(Feuil1!$E$2:$E$5000)) -> 0 | R71: =SUMPRODUCT((Feuil1!$B$2:$B$5000=$B71)*(Feuil1!$D$2:$D$5000=R$3)*(Feuil1!$E$2:$E$5000)) -> 0
A72: =IF(B72="","",MAX($A$3:A71)+1) -> 69 | B72: =IF(ROWS(B$1:B69)>COUNTIF(Feuil1!$A$2:$A$5000,$A$1),"",INDEX(Feuil1!$B$2:$B$5000,SMALL(IF(Feuil1!$A$2:$A$5000<>"",IF(Feuil1!$A$2:$A$5000=$A$1,ROW($A$2:$A$5000)-ROW($A$2)+1)),ROWS(B$1:B69)))) -> 6273 | C72: =SUMPRODUCT((Feuil1!$B$2:$B$5000=$B72)*(Feuil1!$D$2:$D$5000=C$3)*(Feuil1!$E$2:$E$5000)) -> 182 | D72: =SUMPRODUCT((Feuil1!$B$2:$B$5000=$B72)*(Feuil1!$D$2:$D$5000=D$3)*(Feuil1!$E$2:$E$5000)) -> 182 | E72: =SUMPRODUCT((Feuil1!$B$2:$B$5000=$B72)*(Feuil1!$D$2:$D$5000=E$3)*(Feuil1!$E$2:$E$5000)) -> 182 | F72: =SUMPRODUCT((Feuil1!$B$2:$B$5000=$B72)*(Feuil1!$D$2:$D$5000=F$3)*(Feuil1!$E$2:$E$5000)) -> 182 | G72: =SUMPRODUCT((Feuil1!$B$2:$B$5000=$B72)*(Feuil1!$D$2:$D$5000=G$3)*(Feuil1!$E$2:$E$5000)) -> 182 | H72: =SUMPRODUCT((Feuil1!$B$2:$B$5000=$B72)*(Feuil1!$D$2:$D$5000=H$3)*(Feuil1!$E$2:$E$5000)) -> 182 | I72: =SUMPRODUCT((Feuil1!$B$2:$B$5000=$B72)*(Feuil1!$D$2:$D$5000=I$3)*(Feuil1!$E$2:$E$5000)) -> 182 | J72: =SUMPRODUCT((Feuil1!$B$2:$B$5000=$B72)*(Feuil1!$D$2:$D$5000=J$3)*(Feuil1!$E$2:$E$5000)) -> 0 | K72: =SUMPRODUCT((Feuil1!$B$2:$B$5000=$B72)*(Feuil1!$D$2:$D$5000=K$3)*(Feuil1!$E$2:$E$5000)) -> 0 | L72: =SUMPRODUCT((Feuil1!$B$2:$B$5000=$B72)*(Feuil1!$D$2:$D$5000=L$3)*(Feuil1!$E$2:$E$5000)) -> 0 | M72: =SUMPRODUCT((Feuil1!$B$2:$B$5000=$B72)*(Feuil1!$D$2:$D$5000=M$3)*(Feuil1!$E$2:$E$5000)) -> 0 | N72: =SUMPRODUCT((Feuil1!$B$2:$B$5000=$B72)*(Feuil1!$D$2:$D$5000=N$3)*(Feuil1!$E$2:$E$5000)) -> 0 | O72: =SUMPRODUCT((Feuil1!$B$2:$B$5000=$B72)*(Feuil1!$D$2:$D$5000=O$3)*(Feuil1!$E$2:$E$5000)) -> 0 | P72: =SUMPRODUCT((Feuil1!$B$2:$B$5000=$B72)*(Feuil1!$D$2:$D$5000=P$3)*(Feuil1!$E$2:$E$5000)) -> 0 | Q72: =SUMPRODUCT((Feuil1!$B$2:$B$5000=$B72)*(Feuil1!$D$2:$D$5000=Q$3)*(Feuil1!$E$2:$E$5000)) -> 0 | R72: =SUMPRODUCT((Feuil1!$B$2:$B$5000=$B72)*(Feuil1!$D$2:$D$5000=R$3)*(Feuil1!$E$2:$E$5000)) -> 0
A73: =IF(B73="","",MAX($A$3:A72)+1) -> 70 | B73: =IF(ROWS(B$1:B70)>COUNTIF(Feuil1!$A$2:$A$5000,$A$1),"",INDEX(Feuil1!$B$2:$B$5000,SMALL(IF(Feuil1!$A$2:$A$5000<>"",IF(Feuil1!$A$2:$A$5000=$A$1,ROW($A$2:$A$5000)-ROW($A$2)+1)),ROWS(B$1:B70)))) -> 6273 | C73: =SUMPRODUCT((Feuil1!$B$2:$B$5000=$B73)*(Feuil1!$D$2:$D$5000=C$3)*(Feuil1!$E$2:$E$5000)) -> 182 | D73: =SUMPRODUCT((Feuil1!$B$2:$B$5000=$B73)*(Feuil1!$D$2:$D$5000=D$3)*(Feuil1!$E$2:$E$5000)) -> 182 | E73: =SUMPRODUCT((Feuil1!$B$2:$B$5000=$B73)*(Feuil1!$D$2:$D$5000=E$3)*(Feuil1!$E$2:$E$5000)) -> 182 | F73: =SUMPRODUCT((Feuil1!$B$2:$B$5000=$B73)*(Feuil1!$D$2:$D$5000=F$3)*(Feuil1!$E$2:$E$5000)) -> 182 | G73: =SUMPRODUCT((Feuil1!$B$2:$B$5000=$B73)*(Feuil1!$D$2:$D$5000=G$3)*(Feuil1!$E$2:$E$5000)) -> 182 | H73: =SUMPRODUCT((Feuil1!$B$2:$B$5000=$B73)*(Feuil1!$D$2:$D$5000=H$3)*(Feuil1!$E$2:$E$5000)) -> 182 | I73: =SUMPRODUCT((Feuil1!$B$2:$B$5000=$B73)*(Feuil1!$D$2:$D$5000=I$3)*(Feuil1!$E$2:$E$5000)) -> 182 | J73: =SUMPRODUCT((Feuil1!$B$2:$B$5000=$B73)*(Feuil1!$D$2:$D$5000=J$3)*(Feuil1!$E$2:$E$5000)) -> 0 | K73: =SUMPRODUCT((Feuil1!$B$2:$B$5000=$B73)*(Feuil1!$D$2:$D$5000=K$3)*(Feuil1!$E$2:$E$5000)) -> 0 | L73: =SUMPRODUCT((Feuil1!$B$2:$B$5000=$B73)*(Feuil1!$D$2:$D$5000=L$3)*(Feuil1!$E$2:$E$5000)) -> 0 | M73: =SUMPRODUCT((Feuil1!$B$2:$B$5000=$B73)*(Feuil1!$D$2:$D$5000=M$3)*(Feuil1!$E$2:$E$5000)) -> 0 | N73: =SUMPRODUCT((Feuil1!$B$2:$B$5000=$B73)*(Feuil1!$D$2:$D$5000=N$3)*(Feuil1!$E$2:$E$5000)) -> 0 | O73: =SUMPRODUCT((Feuil1!$B$2:$B$5000=$B73)*(Feuil1!$D$2:$D$5000=O$3)*(Feuil1!$E$2:$E$5000)) -> 0 | P73: =SUMPRODUCT((Feuil1!$B$2:$B$5000=$B73)*(Feuil1!$D$2:$D$5000=P$3)*(Feuil1!$E$2:$E$5000)) -> 0 | Q73: =SUMPRODUCT((Feuil1!$B$2:$B$5000=$B73)*(Feuil1!$D$2:$D$5000=Q$3)*(Feuil1!$E$2:$E$5000)) -> 0 | R73: =SUMPRODUCT((Feuil1!$B$2:$B$5000=$B73)*(Feuil1!$D$2:$D$5000=R$3)*(Feuil1!$E$2:$E$5000)) -> 0
A74: =IF(B74="","",MAX($A$3:A73)+1) -> 71 | B74: =IF(ROWS(B$1:B71)>COUNTIF(Feuil1!$A$2:$A$5000,$A$1),"",INDEX(Feuil1!$B$2:$B$5000,SMALL(IF(Feuil1!$A$2:$A$5000<>"",IF(Feuil1!$A$2:$A$5000=$A$1,ROW($A$2:$A$5000)-ROW($A$2)+1)),ROWS(B$1:B71)))) -> 6273 | C74: =SUMPRODUCT((Feuil1!$B$2:$B$5000=$B74)*(Feuil1!$D$2:$D$5000=C$3)*(Feuil1!$E$2:$E$5000)) -> 182 | D74: =SUMPRODUCT((Feuil1!$B$2:$B$5000=$B74)*(Feuil1!$D$2:$D$5000=D$3)*(Feuil1!$E$2:$E$5000)) -> 182 | E74: =SUMPRODUCT((Feuil1!$B$2:$B$5000=$B74)*(Feuil1!$D$2:$D$5000=E$3)*(Feuil1!$E$2:$E$5000)) -> 182 | F74: =SUMPRODUCT((Feuil1!$B$2:$B$5000=$B74)*(Feuil1!$D$2:$D$5000=F$3)*(Feuil1!$E$2:$E$5000)) -> 182 | G74: =SUMPRODUCT((Feuil1!$B$2:$B$5000=$B74)*(Feuil1!$D$2:$D$5000=G$3)*(Feuil1!$E$2:$E$5000)) -> 182 | H74: =SUMPRODUCT((Feuil1!$B$2:$B$5000=$B74)*(Feuil1!$D$2:$D$5000=H$3)*(Feuil1!$E$2:$E$5000)) -> 182 | I74: =SUMPRODUCT((Feuil1!$B$2:$B$5000=$B74)*(Feuil1!$D$2:$D$5000=I$3)*(Feuil1!$E$2:$E$5000)) -> 182 | J74: =SUMPRODUCT((Feuil1!$B$2:$B$5000=$B74)*(Feuil1!$D$2:$D$5000=J$3)*(Feuil1!$E$2:$E$5000)) -> 0 | K74: =SUMPRODUCT((Feuil1!$B$2:$B$5000=$B74)*(Feuil1!$D$2:$D$5000=K$3)*(Feuil1!$E$2:$E$5000)) -> 0 | L74: =SUMPRODUCT((Feuil1!$B$2:$B$5000=$B74)*(Feuil1!$D$2:$D$5000=L$3)*(Feuil1!$E$2:$E$5000)) -> 0 | M74: =SUMPRODUCT((Feuil1!$B$2:$B$5000=$B74)*(Feuil1!$D$2:$D$5000=M$3)*(Feuil1!$E$2:$E$5000)) -> 0 | N74: =SUMPRODUCT((Feuil1!$B$2:$B$5000=$B74)*(Feuil1!$D$2:$D$5000=N$3)*(Feuil1!$E$2:$E$5000)) -> 0 | O74: =SUMPRODUCT((Feuil1!$B$2:$B$5000=$B74)*(Feuil1!$D$2:$D$5000=O$3)*(Feuil1!$E$2:$E$5000)) -> 0 | P74: =SUMPRODUCT((Feuil1!$B$2:$B$5000=$B74)*(Feuil1!$D$2:$D$5000=P$3)*(Feuil1!$E$2:$E$5000)) -> 0 | Q74: =SUMPRODUCT((Feuil1!$B$2:$B$5000=$B74)*(Feuil1!$D$2:$D$5000=Q$3)*(Feuil1!$E$2:$E$5000)) -> 0 | R74: =SUMPRODUCT((Feuil1!$B$2:$B$5000=$B74)*(Feuil1!$D$2:$D$5000=R$3)*(Feuil1!$E$2:$E$5000)) -> 0
A75: =IF(B75="","",MAX($A$3:A74)+1) -> 72 | B75: =IF(ROWS(B$1:B72)>COUNTIF(Feuil1!$A$2:$A$5000,$A$1),"",INDEX(Feuil1!$B$2:$B$5000,SMALL(IF(Feuil1!$A$2:$A$5000<>"",IF(Feuil1!$A$2:$A$5000=$A$1,ROW($A$2:$A$5000)-ROW($A$2)+1)),ROWS(B$1:B72)))) -> 6273 | C75: =SUMPRODUCT((Feuil1!$B$2:$B$5000=$B75)*(Feuil1!$D$2:$D$5000=C$3)*(Feuil1!$E$2:$E$5000)) -> 182 | D75: =SUMPRODUCT((Feuil1!$B$2:$B$5000=$B75)*(Feuil1!$D$2:$D$5000=D$3)*(Feuil1!$E$2:$E$5000)) -> 182 | E75: =SUMPRODUCT((Feuil1!$B$2:$B$5000=$B75)*(Feuil1!$D$2:$D$5000=E$3)*(Feuil1!$E$2:$E$5000)) -> 182 | F75: =SUMPRODUCT((Feuil1!$B$2:$B$5000=$B75)*(Feuil1!$D$2:$D$5000=F$3)*(Feuil1!$E$2:$E$5000)) -> 182 | G75: =SUMPRODUCT((Feuil1!$B$2:$B$5000=$B75)*(Feuil1!$D$2:$D$5000=G$3)*(Feuil1!$E$2:$E$5000)) -> 182 | H75: =SUMPRODUCT((Feuil1!$B$2:$B$5000=$B75)*(Feuil1!$D$2:$D$5000=H$3)*(Feuil1!$E$2:$E$5000)) -> 182 | I75: =SUMPRODUCT((Feuil1!$B$2:$B$5000=$B75)*(Feuil1!$D$2:$D$5000=I$3)*(Feuil1!$E$2:$E$5000)) -> 182 | J75: =SUMPRODUCT((Feuil1!$B$2:$B$5000=$B75)*(Feuil1!$D$2:$D$5000=J$3)*(Feuil1!$E$2:$E$5000)) -> 0 | K75: =SUMPRODUCT((Feuil1!$B$2:$B$5000=$B75)*(Feuil1!$D$2:$D$5000=K$3)*(Feuil1!$E$2:$E$5000)) -> 0 | L75: =SUMPRODUCT((Feuil1!$B$2:$B$5000=$B75)*(Feuil1!$D$2:$D$5000=L$3)*(Feuil1!$E$2:$E$5000)) -> 0 | M75: =SUMPRODUCT((Feuil1!$B$2:$B$5000=$B75)*(Feuil1!$D$2:$D$5000=M$3)*(Feuil1!$E$2:$E$5000)) -> 0 | N75: =SUMPRODUCT((Feuil1!$B$2:$B$5000=$B75)*(Feuil1!$D$2:$D$5000=N$3)*(Feuil1!$E$2:$E$5000)) -> 0 | O75: =SUMPRODUCT((Feuil1!$B$2:$B$5000=$B75)*(Feuil1!$D$2:$D$5000=O$3)*(Feuil1!$E$2:$E$5000)) -> 0 | P75: =SUMPRODUCT((Feuil1!$B$2:$B$5000=$B75)*(Feuil1!$D$2:$D$5000=P$3)*(Feuil1!$E$2:$E$5000)) -> 0 | Q75: =SUMPRODUCT((Feuil1!$B$2:$B$5000=$B75)*(Feuil1!$D$2:$D$5000=Q$3)*(Feuil1!$E$2:$E$5000)) -> 0 | R75: =SUMPRODUCT((Feuil1!$B$2:$B$5000=$B75)*(Feuil1!$D$2:$D$5000=R$3)*(Feuil1!$E$2:$E$5000)) -> 0
A76: =IF(B76="","",MAX($A$3:A75)+1) -> 73 | B76: =IF(ROWS(B$1:B73)>COUNTIF(Feuil1!$A$2:$A$5000,$A$1),"",INDEX(Feuil1!$B$2:$B$5000,SMALL(IF(Feuil1!$A$2:$A$5000<>"",IF(Feuil1!$A$2:$A$5000=$A$1,ROW($A$2:$A$5000)-ROW($A$2)+1)),ROWS(B$1:B73)))) -> 6274 | C76: =SUMPRODUCT((Feuil1!$B$2:$B$5000=$B76)*(Feuil1!$D$2:$D$5000=C$3)*(Feuil1!$E$2:$E$5000)) -> 180 | D76: =SUMPRODUCT((Feuil1!$B$2:$B$5000=$B76)*(Feuil1!$D$2:$D$5000=D$3)*(Feuil1!$E$2:$E$5000)) -> 180 | E76: =SUMPRODUCT((Feuil1!$B$2:$B$5000=$B76)*(Feuil1!$D$2:$D$5000=E$3)*(Feuil1!$E$2:$E$5000)) -> 180 | F76: =SUMPRODUCT((Feuil1!$B$2:$B$5000=$B76)*(Feuil1!$D$2:$D$5000=F$3)*(Feuil1!$E$2:$E$5000)) -> 180 | G76: =SUMPRODUCT((Feuil1!$B$2:$B$5000=$B76)*(Feuil1!$D$2:$D$5000=G$3)*(Feuil1!$E$2:$E$5000)) -> 180 | H76: =SUMPRODUCT((Feuil1!$B$2:$B$5000=$B76)*(Feuil1!$D$2:$D$5000=H$3)*(Feuil1!$E$2:$E$5000)) -> 180 | I76: =SUMPRODUCT((Feuil1!$B$2:$B$5000=$B76)*(Feuil1!$D$2:$D$5000=I$3)*(Feuil1!$E$2:$E$5000)) -> 180 | J76: =SUMPRODUCT((Feuil1!$B$2:$B$5000=$B76)*(Feuil1!$D$2:$D$5000=J$3)*(Feuil1!$E$2:$E$5000)) -> 0 | K76: =SUMPRODUCT((Feuil1!$B$2:$B$5000=$B76)*(Feuil1!$D$2:$D$5000=K$3)*(Feuil1!$E$2:$E$5000)) -> 0 | L76: =SUMPRODUCT((Feuil1!$B$2:$B$5000=$B76)*(Feuil1!$D$2:$D$5000=L$3)*(Feuil1!$E$2:$E$5000)) -> 0 | M76: =SUMPRODUCT((Feuil1!$B$2:$B$5000=$B76)*(Feuil1!$D$2:$D$5000=M$3)*(Feuil1!$E$2:$E$5000)) -> 0 | N76: =SUMPRODUCT((Feuil1!$B$2:$B$5000=$B76)*(Feuil1!$D$2:$D$5000=N$3)*(Feuil1!$E$2:$E$5000)) -> 0 | O76: =SUMPRODUCT((Feuil1!$B$2:$B$5000=$B76)*(Feuil1!$D$2:$D$5000=O$3)*(Feuil1!$E$2:$E$5000)) -> 0 | P76: =SUMPRODUCT((Feuil1!$B$2:$B$5000=$B76)*(Feuil1!$D$2:$D$5000=P$3)*(Feuil1!$E$2:$E$5000)) -> 0 | Q76: =SUMPRODUCT((Feuil1!$B$2:$B$5000=$B76)*(Feuil1!$D$2:$D$5000=Q$3)*(Feuil1!$E$2:$E$5000)) -> 0 | R76: =SUMPRODUCT((Feuil1!$B$2:$B$5000=$B76)*(Feuil1!$D$2:$D$5000=R$3)*(Feuil1!$E$2:$E$5000)) -> 0
A77: =IF(B77="","",MAX($A$3:A76)+1) -> 74 | B77: =IF(ROWS(B$1:B74)>COUNTIF(Feuil1!$A$2:$A$5000,$A$1),"",INDEX(Feuil1!$B$2:$B$5000,SMALL(IF(Feuil1!$A$2:$A$5000<>"",IF(Feuil1!$A$2:$A$5000=$A$1,ROW($A$2:$A$5000)-ROW($A$2)+1)),ROWS(B$1:B74)))) -> 6274 | C77: =SUMPRODUCT((Feuil1!$B$2:$B$5000=$B77)*(Feuil1!$D$2:$D$5000=C$3)*(Feuil1!$E$2:$E$5000)) -> 180 | D77: =SUMPRODUCT((Feuil1!$B$2:$B$5000=$B77)*(Feuil1!$D$2:$D$5000=D$3)*(Feuil1!$E$2:$E$5000)) -> 180 | E77: =SUMPRODUCT((Feuil1!$B$2:$B$5000=$B77)*(Feuil1!$D$2:$D$5000=E$3)*(Feuil1!$E$2:$E$5000)) -> 180 | F77: =SUMPRODUCT((Feuil1!$B$2:$B$5000=$B77)*(Feuil1!$D$2:$D$5000=F$3)*(Feuil1!$E$2:$E$5000)) -> 180 | G77: =SUMPRODUCT((Feuil1!$B$2:$B$5000=$B77)*(Feuil1!$D$2:$D$5000=G$3)*(Feuil1!$E$2:$E$5000)) -> 180 | H77: =SUMPRODUCT((Feuil1!$B$2:$B$5000=$B77)*(Feuil1!$D$2:$D$5000=H$3)*(Feuil1!$E$2:$E$5000)) -> 180 | I77: =SUMPRODUCT((Feuil1!$B$2:$B$5000=$B77)*(Feuil1!$D$2:$D$5000=I$3)*(Feuil1!$E$2:$E$5000)) -> 180 | J77: =SUMPRODUCT((Feuil1!$B$2:$B$5000=$B77)*(Feuil1!$D$2:$D$5000=J$3)*(Feuil1!$E$2:$E$5000)) -> 0 | K77: =SUMPRODUCT((Feuil1!$B$2:$B$5000=$B77)*(Feuil1!$D$2:$D$5000=K$3)*(Feuil1!$E$2:$E$5000)) -> 0 | L77: =SUMPRODUCT((Feuil1!$B$2:$B$5000=$B77)*(Feuil1!$D$2:$D$5000=L$3)*(Feuil1!$E$2:$E$5000)) -> 0 | M77: =SUMPRODUCT((Feuil1!$B$2:$B$5000=$B77)*(Feuil1!$D$2:$D$5000=M$3)*(Feuil1!$E$2:$E$5000)) -> 0 | N77: =SUMPRODUCT((Feuil1!$B$2:$B$5000=$B77)*(Feuil1!$D$2:$D$5000=N$3)*(Feuil1!$E$2:$E$5000)) -> 0 | O77: =SUMPRODUCT((Feuil1!$B$2:$B$5000=$B77)*(Feuil1!$D$2:$D$5000=O$3)*(Feuil1!$E$2:$E$5000)) -> 0 | P77: =SUMPRODUCT((Feuil1!$B$2:$B$5000=$B77)*(Feuil1!$D$2:$D$5000=P$3)*(Feuil1!$E$2:$E$5000)) -> 0 | Q77: =SUMPRODUCT((Feuil1!$B$2:$B$5000=$B77)*(Feuil1!$D$2:$D$5000=Q$3)*(Feuil1!$E$2:$E$5000)) -> 0 | R77: =SUMPRODUCT((Feuil1!$B$2:$B$5000=$B77)*(Feuil1!$D$2:$D$5000=R$3)*(Feuil1!$E$2:$E$5000)) -> 0
A78: =IF(B78="","",MAX($A$3:A77)+1) -> 75 | B78: =IF(ROWS(B$1:B75)>COUNTIF(Feuil1!$A$2:$A$5000,$A$1),"",INDEX(Feuil1!$B$2:$B$5000,SMALL(IF(Feuil1!$A$2:$A$5000<>"",IF(Feuil1!$A$2:$A$5000=$A$1,ROW($A$2:$A$5000)-ROW($A$2)+1)),ROWS(B$1:B75)))) -> 6274 | C78: =SUMPRODUCT((Feuil1!$B$2:$B$5000=$B78)*(Feuil1!$D$2:$D$5000=C$3)*(Feuil1!$E$2:$E$5000)) -> 180 | D78: =SUMPRODUCT((Feuil1!$B$2:$B$5000=$B78)*(Feuil1!$D$2:$D$5000=D$3)*(Feuil1!$E$2:$E$5000)) -> 180 | E78: =SUMPRODUCT((Feuil1!$B$2:$B$5000=$B78)*(Feuil1!$D$2:$D$5000=E$3)*(Feuil1!$E$2:$E$5000)) -> 180 | F78: =SUMPRODUCT((Feuil1!$B$2:$B$5000=$B78)*(Feuil1!$D$2:$D$5000=F$3)*(Feuil1!$E$2:$E$5000)) -> 180 | G78: =SUMPRODUCT((Feuil1!$B$2:$B$5000=$B78)*(Feuil1!$D$2:$D$5000=G$3)*(Feuil1!$E$2:$E$5000)) -> 180 | H78: =SUMPRODUCT((Feuil1!$B$2:$B$5000=$B78)*(Feuil1!$D$2:$D$5000=H$3)*(Feuil1!$E$2:$E$5000)) -> 180 | I78: =SUMPRODUCT((Feuil1!$B$2:$B$5000=$B78)*(Feuil1!$D$2:$D$5000=I$3)*(Feuil1!$E$2:$E$5000)) -> 180 | J78: =SUMPRODUCT((Feuil1!$B$2:$B$5000=$B78)*(Feuil1!$D$2:$D$5000=J$3)*(Feuil1!$E$2:$E$5000)) -> 0 | K78: =SUMPRODUCT((Feuil1!$B$2:$B$5000=$B78)*(Feuil1!$D$2:$D$5000=K$3)*(Feuil1!$E$2:$E$5000)) -> 0 | L78: =SUMPRODUCT((Feuil1!$B$2:$B$5000=$B78)*(Feuil1!$D$2:$D$5000=L$3)*(Feuil1!$E$2:$E$5000)) -> 0 | M78: =SUMPRODUCT((Feuil1!$B$2:$B$5000=$B78)*(Feuil1!$D$2:$D$5000=M$3)*(Feuil1!$E$2:$E$5000)) -> 0 | N78: =SUMPRODUCT((Feuil1!$B$2:$B$5000=$B78)*(Feuil1!$D$2:$D$5000=N$3)*(Feuil1!$E$2:$E$5000)) -> 0 | O78: =SUMPRODUCT((Feuil1!$B$2:$B$5000=$B78)*(Feuil1!$D$2:$D$5000=O$3)*(Feuil1!$E$2:$E$5000)) -> 0 | P78: =SUMPRODUCT((Feuil1!$B$2:$B$5000=$B78)*(Feuil1!$D$2:$D$5000=P$3)*(Feuil1!$E$2:$E$5000)) -> 0 | Q78: =SUMPRODUCT((Feuil1!$B$2:$B$5000=$B78)*(Feuil1!$D$2:$D$5000=Q$3)*(Feuil1!$E$2:$E$5000)) -> 0 | R78: =SUMPRODUCT((Feuil1!$B$2:$B$5000=$B78)*(Feuil1!$D$2:$D$5000=R$3)*(Feuil1!$E$2:$E$5000)) -> 0
A79: =IF(B79="","",MAX($A$3:A78)+1) -> 76 | B79: =IF(ROWS(B$1:B76)>COUNTIF(Feuil1!$A$2:$A$5000,$A$1),"",INDEX(Feuil1!$B$2:$B$5000,SMALL(IF(Feuil1!$A$2:$A$5000<>"",IF(Feuil1!$A$2:$A$5000=$A$1,ROW($A$2:$A$5000)-ROW($A$2)+1)),ROWS(B$1:B76)))) -> 6274 | C79: =SUMPRODUCT((Feuil1!$B$2:$B$5000=$B79)*(Feuil1!$D$2:$D$5000=C$3)*(Feuil1!$E$2:$E$5000)) -> 180 | D79: =SUMPRODUCT((Feuil1!$B$2:$B$5000=$B79)*(Feuil1!$D$2:$D$5000=D$3)*(Feuil1!$E$2:$E$5000)) -> 180 | E79: =SUMPRODUCT((Feuil1!$B$2:$B$5000=$B79)*(Feuil1!$D$2:$D$5000=E$3)*(Feuil1!$E$2:$E$5000)) -> 180 | F79: =SUMPRODUCT((Feuil1!$B$2:$B$5000=$B79)*(Feuil1!$D$2:$D$5000=F$3)*(Feuil1!$E$2:$E$5000)) -> 180 | G79: =SUMPRODUCT((Feuil1!$B$2:$B$5000=$B79)*(Feuil1!$D$2:$D$5000=G$3)*(Feuil1!$E$2:$E$5000)) -> 180 | H79: =SUMPRODUCT((Feuil1!$B$2:$B$5000=$B79)*(Feuil1!$D$2:$D$5000=H$3)*(Feuil1!$E$2:$E$5000)) -> 180 | I79: =SUMPRODUCT((Feuil1!$B$2:$B$5000=$B79)*(Feuil1!$D$2:$D$5000=I$3)*(Feuil1!$E$2:$E$5000)) -> 180 | J79: =SUMPRODUCT((Feuil1!$B$2:$B$5000=$B79)*(Feuil1!$D$2:$D$5000=J$3)*(Feuil1!$E$2:$E$5000)) -> 0 | K79: =SUMPRODUCT((Feuil1!$B$2:$B$5000=$B79)*(Feuil1!$D$2:$D$5000=K$3)*(Feuil1!$E$2:$E$5000)) -> 0 | L79: =SUMPRODUCT((Feuil1!$B$2:$B$5000=$B79)*(Feuil1!$D$2:$D$5000=L$3)*(Feuil1!$E$2:$E$5000)) -> 0 | M79: =SUMPRODUCT((Feuil1!$B$2:$B$5000=$B79)*(Feuil1!$D$2:$D$5000=M$3)*(Feuil1!$E$2:$E$5000)) -> 0 | N79: =SUMPRODUCT((Feuil1!$B$2:$B$5000=$B79)*(Feuil1!$D$2:$D$5000=N$3)*(Feuil1!$E$2:$E$5000)) -> 0 | O79: =SUMPRODUCT((Feuil1!$B$2:$B$5000=$B79)*(Feuil1!$D$2:$D$5000=O$3)*(Feuil1!$E$2:$E$5000)) -> 0 | P79: =SUMPRODUCT((Feuil1!$B$2:$B$5000=$B79)*(Feuil1!$D$2:$D$5000=P$3)*(Feuil1!$E$2:$E$5000)) -> 0 | Q79: =SUMPRODUCT((Feuil1!$B$2:$B$5000=$B79)*(Feuil1!$D$2:$D$5000=Q$3)*(Feuil1!$E$2:$E$5000)) -> 0 | R79: =SUMPRODUCT((Feuil1!$B$2:$B$5000=$B79)*(Feuil1!$D$2:$D$5000=R$3)*(Feuil1!$E$2:$E$5000)) -> 0
A80: =IF(B80="","",MAX($A$3:A79)+1) -> 77 | B80: =IF(ROWS(B$1:B77)>COUNTIF(Feuil1!$A$2:$A$5000,$A$1),"",INDEX(Feuil1!$B$2:$B$5000,SMALL(IF(Feuil1!$A$2:$A$5000<>"",IF(Feuil1!$A$2:$A$5000=$A$1,ROW($A$2:$A$5000)-ROW($A$2)+1)),ROWS(B$1:B77)))) -> 6275 | C80: =SUMPRODUCT((Feuil1!$B$2:$B$5000=$B80)*(Feuil1!$D$2:$D$5000=C$3)*(Feuil1!$E$2:$E$5000)) -> 179 | D80: =SUMPRODUCT((Feuil1!$B$2:$B$5000=$B80)*(Feuil1!$D$2:$D$5000=D$3)*(Feuil1!$E$2:$E$5000)) -> 179 | E80: =SUMPRODUCT((Feuil1!$B$2:$B$5000=$B80)*(Feuil1!$D$2:$D$5000=E$3)*(Feuil1!$E$2:$E$5000)) -> 179 | F80: =SUMPRODUCT((Feuil1!$B$2:$B$5000=$B80)*(Feuil1!$D$2:$D$5000=F$3)*(Feuil1!$E$2:$E$5000)) -> 179 | G80: =SUMPRODUCT((Feuil1!$B$2:$B$5000=$B80)*(Feuil1!$D$2:$D$5000=G$3)*(Feuil1!$E$2:$E$5000)) -> 179 | H80: =SUMPRODUCT((Feuil1!$B$2:$B$5000=$B80)*(Feuil1!$D$2:$D$5000=H$3)*(Feuil1!$E$2:$E$5000)) -> 179 | I80: =SUMPRODUCT((Feuil1!$B$2:$B$5000=$B80)*(Feuil1!$D$2:$D$5000=I$3)*(Feuil1!$E$2:$E$5000)) -> 179 | J80: =SUMPRODUCT((Feuil1!$B$2:$B$5000=$B80)*(Feuil1!$D$2:$D$5000=J$3)*(Feuil1!$E$2:$E$5000)) -> 0 | K80: =SUMPRODUCT((Feuil1!$B$2:$B$5000=$B80)*(Feuil1!$D$2:$D$5000=K$3)*(Feuil1!$E$2:$E$5000)) -> 0 | L80: =SUMPRODUCT((Feuil1!$B$2:$B$5000=$B80)*(Feuil1!$D$2:$D$5000=L$3)*(Feuil1!$E$2:$E$5000)) -> 0 | M80: =SUMPRODUCT((Feuil1!$B$2:$B$5000=$B80)*(Feuil1!$D$2:$D$5000=M$3)*(Feuil1!$E$2:$E$5000)) -> 0 | N80: =SUMPRODUCT((Feuil1!$B$2:$B$5000=$B80)*(Feuil1!$D$2:$D$5000=N$3)*(Feuil1!$E$2:$E$5000)) -> 0 | O80: =SUMPRODUCT((Feuil1!$B$2:$B$5000=$B80)*(Feuil1!$D$2:$D$5000=O$3)*(Feuil1!$E$2:$E$5000)) -> 0 | P80: =SUMPRODUCT((Feuil1!$B$2:$B$5000=$B80)*(Feuil1!$D$2:$D$5000=P$3)*(Feuil1!$E$2:$E$5000)) -> 0 | Q80: =SUMPRODUCT((Feuil1!$B$2:$B$5000=$B80)*(Feuil1!$D$2:$D$5000=Q$3)*(Feuil1!$E$2:$E$5000)) -> 0 | R80: =SUMPRODUCT((Feuil1!$B$2:$B$5000=$B80)*(Feuil1!$D$2:$D$5000=R$3)*(Feuil1!$E$2:$E$5000)) -> 0
A81: =IF(B81="","",MAX($A$3:A80)+1) -> 78 | B81: =IF(ROWS(B$1:B78)>COUNTIF(Feuil1!$A$2:$A$5000,$A$1),"",INDEX(Feuil1!$B$2:$B$5000,SMALL(IF(Feuil1!$A$2:$A$5000<>"",IF(Feuil1!$A$2:$A$5000=$A$1,ROW($A$2:$A$5000)-ROW($A$2)+1)),ROWS(B$1:B78)))) -> 6275 | C81: =SUMPRODUCT((Feuil1!$B$2:$B$5000=$B81)*(Feuil1!$D$2:$D$5000=C$3)*(Feuil1!$E$2:$E$5000)) -> 179 | D81: =SUMPRODUCT((Feuil1!$B$2:$B$5000=$B81)*(Feuil1!$D$2:$D$5000=D$3)*(Feuil1!$E$2:$E$5000)) -> 179 | E81: =SUMPRODUCT((Feuil1!$B$2:$B$5000=$B81)*(Feuil1!$D$2:$D$5000=E$3)*(Feuil1!$E$2:$E$5000)) -> 179 | F81: =SUMPRODUCT((Feuil1!$B$2:$B$5000=$B81)*(Feuil1!$D$2:$D$5000=F$3)*(Feuil1!$E$2:$E$5000)) -> 179 | G81: =SUMPRODUCT((Feuil1!$B$2:$B$5000=$B81)*(Feuil1!$D$2:$D$5000=G$3)*(Feuil1!$E$2:$E$5000)) -> 179 | H81: =SUMPRODUCT((Feuil1!$B$2:$B$5000=$B81)*(Feuil1!$D$2:$D$5000=H$3)*(Feuil1!$E$2:$E$5000)) -> 179 | I81: =SUMPRODUCT((Feuil1!$B$2:$B$5000=$B81)*(Feuil1!$D$2:$D$5000=I$3)*(Feuil1!$E$2:$E$5000)) -> 179 | J81: =SUMPRODUCT((Feuil1!$B$2:$B$5000=$B81)*(Feuil1!$D$2:$D$5000=J$3)*(Feuil1!$E$2:$E$5000)) -> 0 | K81: =SUMPRODUCT((Feuil1!$B$2:$B$5000=$B81)*(Feuil1!$D$2:$D$5000=K$3)*(Feuil1!$E$2:$E$5000)) -> 0 | L81: =SUMPRODUCT((Feuil1!$B$2:$B$5000=$B81)*(Feuil1!$D$2:$D$5000=L$3)*(Feuil1!$E$2:$E$5000)) -> 0 | M81: =SUMPRODUCT((Feuil1!$B$2:$B$5000=$B81)*(Feuil1!$D$2:$D$5000=M$3)*(Feuil1!$E$2:$E$5000)) -> 0 | N81: =SUMPRODUCT((Feuil1!$B$2:$B$5000=$B81)*(Feuil1!$D$2:$D$5000=N$3)*(Feuil1!$E$2:$E$5000)) -> 0 | O81: =SUMPRODUCT((Feuil1!$B$2:$B$5000=$B81)*(Feuil1!$D$2:$D$5000=O$3)*(Feuil1!$E$2:$E$5000)) -> 0 | P81: =SUMPRODUCT((Feuil1!$B$2:$B$5000=$B81)*(Feuil1!$D$2:$D$5000=P$3)*(Feuil1!$E$2:$E$5000)) -> 0 | Q81: =SUMPRODUCT((Feuil1!$B$2:$B$5000=$B81)*(Feuil1!$D$2:$D$5000=Q$3)*(Feuil1!$E$2:$E$5000)) -> 0 | R81: =SUMPRODUCT((Feuil1!$B$2:$B$5000=$B81)*(Feuil1!$D$2:$D$5000=R$3)*(Feuil1!$E$2:$E$5000)) -> 0
A82: =IF(B82="","",MAX($A$3:A81)+1) -> 79 | B82: =IF(ROWS(B$1:B79)>COUNTIF(Feuil1!$A$2:$A$5000,$A$1),"",INDEX(Feuil1!$B$2:$B$5000,SMALL(IF(Feuil1!$A$2:$A$5000<>"",IF(Feuil1!$A$2:$A$5000=$A$1,ROW($A$2:$A$5000)-ROW($A$2)+1)),ROWS(B$1:B79)))) -> 6275 | C82: =SUMPRODUCT((Feuil1!$B$2:$B$5000=$B82)*(Feuil1!$D$2:$D$5000=C$3)*(Feuil1!$E$2:$E$5000)) -> 179 | D82: =SUMPRODUCT((Feuil1!$B$2:$B$5000=$B82)*(Feuil1!$D$2:$D$5000=D$3)*(Feuil1!$E$2:$E$5000)) -> 179 | E82: =SUMPRODUCT((Feuil1!$B$2:$B$5000=$B82)*(Feuil1!$D$2:$D$5000=E$3)*(Feuil1!$E$2:$E$5000)) -> 179 | F82: =SUMPRODUCT((Feuil1!$B$2:$B$5000=$B82)*(Feuil1!$D$2:$D$5000=F$3)*(Feuil1!$E$2:$E$5000)) -> 179 | G82: =SUMPRODUCT((Feuil1!$B$2:$B$5000=$B82)*(Feuil1!$D$2:$D$5000=G$3)*(Feuil1!$E$2:$E$5000)) -> 179 | H82: =SUMPRODUCT((Feuil1!$B$2:$B$5000=$B82)*(Feuil1!$D$2:$D$5000=H$3)*(Feuil1!$E$2:$E$5000)) -> 179 | I82: =SUMPRODUCT((Feuil1!$B$2:$B$5000=$B82)*(Feuil1!$D$2:$D$5000=I$3)*(Feuil1!$E$2:$E$5000)) -> 179 | J82: =SUMPRODUCT((Feuil1!$B$2:$B$5000=$B82)*(Feuil1!$D$2:$D$5000=J$3)*(Feuil1!$E$2:$E$5000)) -> 0 | K82: =SUMPRODUCT((Feuil1!$B$2:$B$5000=$B82)*(Feuil1!$D$2:$D$5000=K$3)*(Feuil1!$E$2:$E$5000)) -> 0 | L82: =SUMPRODUCT((Feuil1!$B$2:$B$5000=$B82)*(Feuil1!$D$2:$D$5000=L$3)*(Feuil1!$E$2:$E$5000)) -> 0 | M82: =SUMPRODUCT((Feuil1!$B$2:$B$5000=$B82)*(Feuil1!$D$2:$D$5000=M$3)*(Feuil1!$E$2:$E$5000)) -> 0 | N82: =SUMPRODUCT((Feuil1!$B$2:$B$5000=$B82)*(Feuil1!$D$2:$D$5000=N$3)*(Feuil1!$E$2:$E$5000)) -> 0 | O82: =SUMPRODUCT((Feuil1!$B$2:$B$5000=$B82)*(Feuil1!$D$2:$D$5000=O$3)*(Feuil1!$E$2:$E$5000)) -> 0 | P82: =SUMPRODUCT((Feuil1!$B$2:$B$5000=$B82)*(Feuil1!$D$2:$D$5000=P$3)*(Feuil1!$E$2:$E$5000)) -> 0 | Q82: =SUMPRODUCT((Feuil1!$B$2:$B$5000=$B82)*(Feuil1!$D$2:$D$5000=Q$3)*(Feuil1!$E$2:$E$5000)) -> 0 | R82: =SUMPRODUCT((Feuil1!$B$2:$B$5000=$B82)*(Feuil1!$D$2:$D$5000=R$3)*(Feuil1!$E$2:$E$5000)) -> 0
A83: =IF(B83="","",MAX($A$3:A82)+1) -> 80 | B83: =IF(ROWS(B$1:B80)>COUNTIF(Feuil1!$A$2:$A$5000,$A$1),"",INDEX(Feuil1!$B$2:$B$5000,SMALL(IF(Feuil1!$A$2:$A$5000<>"",IF(Feuil1!$A$2:$A$5000=$A$1,ROW($A$2:$A$5000)-ROW($A$2)+1)),ROWS(B$1:B80)))) -> 6275 | C83: =SUMPRODUCT((Feuil1!$B$2:$B$5000=$B83)*(Feuil1!$D$2:$D$5000=C$3)*(Feuil1!$E$2:$E$5000)) -> 179 | D83: =SUMPRODUCT((Feuil1!$B$2:$B$5000=$B83)*(Feuil1!$D$2:$D$5000=D$3)*(Feuil1!$E$2:$E$5000)) -> 179 | E83: =SUMPRODUCT((Feuil1!$B$2:$B$5000=$B83)*(Feuil1!$D$2:$D$5000=E$3)*(Feuil1!$E$2:$E$5000)) -> 179 | F83: =SUMPRODUCT((Feuil1!$B$2:$B$5000=$B83)*(Feuil1!$D$2:$D$5000=F$3)*(Feuil1!$E$2:$E$5000)) -> 179 | G83: =SUMPRODUCT((Feuil1!$B$2:$B$5000=$B83)*(Feuil1!$D$2:$D$5000=G$3)*(Feuil1!$E$2:$E$5000)) -> 179 | H83: =SUMPRODUCT((Feuil1!$B$2:$B$5000=$B83)*(Feuil1!$D$2:$D$5000=H$3)*(Feuil1!$E$2:$E$5000)) -> 179 | I83: =SUMPRODUCT((Feuil1!$B$2:$B$5000=$B83)*(Feuil1!$D$2:$D$5000=I$3)*(Feuil1!$E$2:$E$5000)) -> 179 | J83: =SUMPRODUCT((Feuil1!$B$2:$B$5000=$B83)*(Feuil1!$D$2:$D$5000=J$3)*(Feuil1!$E$2:$E$5000)) -> 0 | K83: =SUMPRODUCT((Feuil1!$B$2:$B$5000=$B83)*(Feuil1!$D$2:$D$5000=K$3)*(Feuil1!$E$2:$E$5000)) -> 0 | L83: =SUMPRODUCT((Feuil1!$B$2:$B$5000=$B83)*(Feuil1!$D$2:$D$5000=L$3)*(Feuil1!$E$2:$E$5000)) -> 0 | M83: =SUMPRODUCT((Feuil1!$B$2:$B$5000=$B83)*(Feuil1!$D$2:$D$5000=M$3)*(Feuil1!$E$2:$E$5000)) -> 0 | N83: =SUMPRODUCT((Feuil1!$B$2:$B$5000=$B83)*(Feuil1!$D$2:$D$5000=N$3)*(Feuil1!$E$2:$E$5000)) -> 0 | O83: =SUMPRODUCT((Feuil1!$B$2:$B$5000=$B83)*(Feuil1!$D$2:$D$5000=O$3)*(Feuil1!$E$2:$E$5000)) -> 0 | P83: =SUMPRODUCT((Feuil1!$B$2:$B$5000=$B83)*(Feuil1!$D$2:$D$5000=P$3)*(Feuil1!$E$2:$E$5000)) -> 0 | Q83: =SUMPRODUCT((Feuil1!$B$2:$B$5000=$B83)*(Feuil1!$D$2:$D$5000=Q$3)*(Feuil1!$E$2:$E$5000)) -> 0 | R83: =SUMPRODUCT((Feuil1!$B$2:$B$5000=$B83)*(Feuil1!$D$2:$D$5000=R$3)*(Feuil1!$E$2:$E$5000)) -> 0
A84: =IF(B84="","",MAX($A$3:A83)+1) -> 81 | B84: =IF(ROWS(B$1:B81)>COUNTIF(Feuil1!$A$2:$A$5000,$A$1),"",INDEX(Feuil1!$B$2:$B$5000,SMALL(IF(Feuil1!$A$2:$A$5000<>"",IF(Feuil1!$A$2:$A$5000=$A$1,ROW($A$2:$A$5000)-ROW($A$2)+1)),ROWS(B$1:B81)))) -> 6276 | C84: =SUMPRODUCT((Feuil1!$B$2:$B$5000=$B84)*(Feuil1!$D$2:$D$5000=C$3)*(Feuil1!$E$2:$E$5000)) -> 180 | D84: =SUMPRODUCT((Feuil1!$B$2:$B$5000=$B84)*(Feuil1!$D$2:$D$5000=D$3)*(Feuil1!$E$2:$E$5000)) -> 180 | E84: =SUMPRODUCT((Feuil1!$B$2:$B$5000=$B84)*(Feuil1!$D$2:$D$5000=E$3)*(Feuil1!$E$2:$E$5000)) -> 180 | F84: =SUMPRODUCT((Feuil1!$B$2:$B$5000=$B84)*(Feuil1!$D$2:$D$5000=F$3)*(Feuil1!$E$2:$E$5000)) -> 180 | G84: =SUMPRODUCT((Feuil1!$B$2:$B$5000=$B84)*(Feuil1!$D$2:$D$5000=G$3)*(Feuil1!$E$2:$E$5000)) -> 180 | H84: =SUMPRODUCT((Feuil1!$B$2:$B$5000=$B84)*(Feuil1!$D$2:$D$5000=H$3)*(Feuil1!$E$2:$E$5000)) -> 180 | I84: =SUMPRODUCT((Feuil1!$B$2:$B$5000=$B84)*(Feuil1!$D$2:$D$5000=I$3)*(Feuil1!$E$2:$E$5000)) -> 180 | J84: =SUMPRODUCT((Feuil1!$B$2:$B$5000=$B84)*(Feuil1!$D$2:$D$5000=J$3)*(Feuil1!$E$2:$E$5000)) -> 0 | K84: =SUMPRODUCT((Feuil1!$B$2:$B$5000=$B84)*(Feuil1!$D$2:$D$5000=K$3)*(Feuil1!$E$2:$E$5000)) -> 0 | L84: =SUMPRODUCT((Feuil1!$B$2:$B$5000=$B84)*(Feuil1!$D$2:$D$5000=L$3)*(Feuil1!$E$2:$E$5000)) -> 0 | M84: =SUMPRODUCT((Feuil1!$B$2:$B$5000=$B84)*(Feuil1!$D$2:$D$5000=M$3)*(Feuil1!$E$2:$E$5000)) -> 0 | N84: =SUMPRODUCT((Feuil1!$B$2:$B$5000=$B84)*(Feuil1!$D$2:$D$5000=N$3)*(Feuil1!$E$2:$E$5000)) -> 0 | O84: =SUMPRODUCT((Feuil1!$B$2:$B$5000=$B84)*(Feuil1!$D$2:$D$5000=O$3)*(Feuil1!$E$2:$E$5000)) -> 0 | P84: =SUMPRODUCT((Feuil1!$B$2:$B$5000=$B84)*(Feuil1!$D$2:$D$5000=P$3)*(Feuil1!$E$2:$E$5000)) -> 0 | Q84: =SUMPRODUCT((Feuil1!$B$2:$B$5000=$B84)*(Feuil1!$D$2:$D$5000=Q$3)*(Feuil1!$E$2:$E$5000)) -> 0 | R84: =SUMPRODUCT((Feuil1!$B$2:$B$5000=$B84)*(Feuil1!$D$2:$D$5000=R$3)*(Feuil1!$E$2:$E$5000)) -> 0
A85: =IF(B85="","",MAX($A$3:A84)+1) -> 82 | B85: =IF(ROWS(B$1:B82)>COUNTIF(Feuil1!$A$2:$A$5000,$A$1),"",INDEX(Feuil1!$B$2:$B$5000,SMALL(IF(Feuil1!$A$2:$A$5000<>"",IF(Feuil1!$A$2:$A$5000=$A$1,ROW($A$2:$A$5000)-ROW($A$2)+1)),ROWS(B$1:B82)))) -> 6276 | C85: =SUMPRODUCT((Feuil1!$B$2:$B$5000=$B85)*(Feuil1!$D$2:$D$5000=C$3)*(Feuil1!$E$2:$E$5000)) -> 180 | D85: =SUMPRODUCT((Feuil1!$B$2:$B$5000=$B85)*(Feuil1!$D$2:$D$5000=D$3)*(Feuil1!$E$2:$E$5000)) -> 180 | E85: =SUMPRODUCT((Feuil1!$B$2:$B$5000=$B85)*(Feuil1!$D$2:$D$5000=E$3)*(Feuil1!$E$2:$E$5000)) -> 180 | F85: =SUMPRODUCT((Feuil1!$B$2:$B$5000=$B85)*(Feuil1!$D$2:$D$5000=F$3)*(Feuil1!$E$2:$E$5000)) -> 180 | G85: =SUMPRODUCT((Feuil1!$B$2:$B$5000=$B85)*(Feuil1!$D$2:$D$5000=G$3)*(Feuil1!$E$2:$E$5000)) -> 180 | H85: =SUMPRODUCT((Feuil1!$B$2:$B$5000=$B85)*(Feuil1!$D$2:$D$5000=H$3)*(Feuil1!$E$2:$E$5000)) -> 180 | I85: =SUMPRODUCT((Feuil1!$B$2:$B$5000=$B85)*(Feuil1!$D$2:$D$5000=I$3)*(Feuil1!$E$2:$E$5000)) -> 180 | J85: =SUMPRODUCT((Feuil1!$B$2:$B$5000=$B85)*(Feuil1!$D$2:$D$5000=J$3)*(Feuil1!$E$2:$E$5000)) -> 0 | K85: =SUMPRODUCT((Feuil1!$B$2:$B$5000=$B85)*(Feuil1!$D$2:$D$5000=K$3)*(Feuil1!$E$2:$E$5000)) -> 0 | L85: =SUMPRODUCT((Feuil1!$B$2:$B$5000=$B85)*(Feuil1!$D$2:$D$5000=L$3)*(Feuil1!$E$2:$E$5000)) -> 0 | M85: =SUMPRODUCT((Feuil1!$B$2:$B$5000=$B85)*(Feuil1!$D$2:$D$5000=M$3)*(Feuil1!$E$2:$E$5000)) -> 0 | N85: =SUMPRODUCT((Feuil1!$B$2:$B$5000=$B85)*(Feuil1!$D$2:$D$5000=N$3)*(Feuil1!$E$2:$E$5000)) -> 0 | O85: =SUMPRODUCT((Feuil1!$B$2:$B$5000=$B85)*(Feuil1!$D$2:$D$5000=O$3)*(Feuil1!$E$2:$E$5000)) -> 0 | P85: =SUMPRODUCT((Feuil1!$B$2:$B$5000=$B85)*(Feuil1!$D$2:$D$5000=P$3)*(Feuil1!$E$2:$E$5000)) -> 0 | Q85: =SUMPRODUCT((Feuil1!$B$2:$B$5000=$B85)*(Feuil1!$D$2:$D$5000=Q$3)*(Feuil1!$E$2:$E$5000)) -> 0 | R85: =SUMPRODUCT((Feuil1!$B$2:$B$5000=$B85)*(Feuil1!$D$2:$D$5000=R$3)*(Feuil1!$E$2:$E$5000)) -> 0
A86: =IF(B86="","",MAX($A$3:A85)+1) -> 83 | B86: =IF(ROWS(B$1:B83)>COUNTIF(Feuil1!$A$2:$A$5000,$A$1),"",INDEX(Feuil1!$B$2:$B$5000,SMALL(IF(Feuil1!$A$2:$A$5000<>"",IF(Feuil1!$A$2:$A$5000=$A$1,ROW($A$2:$A$5000)-ROW($A$2)+1)),ROWS(B$1:B83)))) -> 6276 | C86: =SUMPRODUCT((Feuil1!$B$2:$B$5000=$B86)*(Feuil1!$D$2:$D$5000=C$3)*(Feuil1!$E$2:$E$5000)) -> 180 | D86: =SUMPRODUCT((Feuil1!$B$2:$B$5000=$B86)*(Feuil1!$D$2:$D$5000=D$3)*(Feuil1!$E$2:$E$5000)) -> 180 | E86: =SUMPRODUCT((Feuil1!$B$2:$B$5000=$B86)*(Feuil1!$D$2:$D$5000=E$3)*(Feuil1!$E$2:$E$5000)) -> 180 | F86: =SUMPRODUCT((Feuil1!$B$2:$B$5000=$B86)*(Feuil1!$D$2:$D$5000=F$3)*(Feuil1!$E$2:$E$5000)) -> 180 | G86: =SUMPRODUCT((Feuil1!$B$2:$B$5000=$B86)*(Feuil1!$D$2:$D$5000=G$3)*(Feuil1!$E$2:$E$5000)) -> 180 | H86: =SUMPRODUCT((Feuil1!$B$2:$B$5000=$B86)*(Feuil1!$D$2:$D$5000=H$3)*(Feuil1!$E$2:$E$5000)) -> 180 | I86: =SUMPRODUCT((Feuil1!$B$2:$B$5000=$B86)*(Feuil1!$D$2:$D$5000=I$3)*(Feuil1!$E$2:$E$5000)) -> 180 | J86: =SUMPRODUCT((Feuil1!$B$2:$B$5000=$B86)*(Feuil1!$D$2:$D$5000=J$3)*(Feuil1!$E$2:$E$5000)) -> 0 | K86: =SUMPRODUCT((Feuil1!$B$2:$B$5000=$B86)*(Feuil1!$D$2:$D$5000=K$3)*(Feuil1!$E$2:$E$5000)) -> 0 | L86: =SUMPRODUCT((Feuil1!$B$2:$B$5000=$B86)*(Feuil1!$D$2:$D$5000=L$3)*(Feuil1!$E$2:$E$5000)) -> 0 | M86: =SUMPRODUCT((Feuil1!$B$2:$B$5000=$B86)*(Feuil1!$D$2:$D$5000=M$3)*(Feuil1!$E$2:$E$5000)) -> 0 | N86: =SUMPRODUCT((Feuil1!$B$2:$B$5000=$B86)*(Feuil1!$D$2:$D$5000=N$3)*(Feuil1!$E$2:$E$5000)) -> 0 | O86: =SUMPRODUCT((Feuil1!$B$2:$B$5000=$B86)*(Feuil1!$D$2:$D$5000=O$3)*(Feuil1!$E$2:$E$5000)) -> 0 | P86: =SUMPRODUCT((Feuil1!$B$2:$B$5000=$B86)*(Feuil1!$D$2:$D$5000=P$3)*(Feuil1!$E$2:$E$5000)) -> 0 | Q86: =SUMPRODUCT((Feuil1!$B$2:$B$5000=$B86)*(Feuil1!$D$2:$D$5000=Q$3)*(Feuil1!$E$2:$E$5000)) -> 0 | R86: =SUMPRODUCT((Feuil1!$B$2:$B$5000=$B86)*(Feuil1!$D$2:$D$5000=R$3)*(Feuil1!$E$2:$E$5000)) -> 0
A87: =IF(B87="","",MAX($A$3:A86)+1) -> 84 | B87: =IF(ROWS(B$1:B84)>COUNTIF(Feuil1!$A$2:$A$5000,$A$1),"",INDEX(Feuil1!$B$2:$B$5000,SMALL(IF(Feuil1!$A$2:$A$5000<>"",IF(Feuil1!$A$2:$A$5000=$A$1,ROW($A$2:$A$5000)-ROW($A$2)+1)),ROWS(B$1:B84)))) -> 6276 | C87: =SUMPRODUCT((Feuil1!$B$2:$B$5000=$B87)*(Feuil1!$D$2:$D$5000=C$3)*(Feuil1!$E$2:$E$5000)) -> 180 | D87: =SUMPRODUCT((Feuil1!$B$2:$B$5000=$B87)*(Feuil1!$D$2:$D$5000=D$3)*(Feuil1!$E$2:$E$5000)) -> 180 | E87: =SUMPRODUCT((Feuil1!$B$2:$B$5000=$B87)*(Feuil1!$D$2:$D$5000=E$3)*(Feuil1!$E$2:$E$5000)) -> 180 | F87: =SUMPRODUCT((Feuil1!$B$2:$B$5000=$B87)*(Feuil1!$D$2:$D$5000=F$3)*(Feuil1!$E$2:$E$5000)) -> 180 | G87: =SUMPRODUCT((Feuil1!$B$2:$B$5000=$B87)*(Feuil1!$D$2:$D$5000=G$3)*(Feuil1!$E$2:$E$5000)) -> 180 | H87: =SUMPRODUCT((Feuil1!$B$2:$B$5000=$B87)*(Feuil1!$D$2:$D$5000=H$3)*(Feuil1!$E$2:$E$5000)) -> 180 | I87: =SUMPRODUCT((Feuil1!$B$2:$B$5000=$B87)*(Feuil1!$D$2:$D$5000=I$3)*(Feuil1!$E$2:$E$5000)) -> 180 | J87: =SUMPRODUCT((Feuil1!$B$2:$B$5000=$B87)*(Feuil1!$D$2:$D$5000=J$3)*(Feuil1!$E$2:$E$5000)) -> 0 | K87: =SUMPRODUCT((Feuil1!$B$2:$B$5000=$B87)*(Feuil1!$D$2:$D$5000=K$3)*(Feuil1!$E$2:$E$5000)) -> 0 | L87: =SUMPRODUCT((Feuil1!$B$2:$B$5000=$B87)*(Feuil1!$D$2:$D$5000=L$3)*(Feuil1!$E$2:$E$5000)) -> 0 | M87: =SUMPRODUCT((Feuil1!$B$2:$B$5000=$B87)*(Feuil1!$D$2:$D$5000=M$3)*(Feuil1!$E$2:$E$5000)) -> 0 | N87: =SUMPRODUCT((Feuil1!$B$2:$B$5000=$B87)*(Feuil1!$D$2:$D$5000=N$3)*(Feuil1!$E$2:$E$5000)) -> 0 | O87: =SUMPRODUCT((Feuil1!$B$2:$B$5000=$B87)*(Feuil1!$D$2:$D$5000=O$3)*(Feuil1!$E$2:$E$5000)) -> 0 | P87: =SUMPRODUCT((Feuil1!$B$2:$B$5000=$B87)*(Feuil1!$D$2:$D$5000=P$3)*(Feuil1!$E$2:$E$5000)) -> 0 | Q87: =SUMPRODUCT((Feuil1!$B$2:$B$5000=$B87)*(Feuil1!$D$2:$D$5000=Q$3)*(Feuil1!$E$2:$E$5000)) -> 0 | R87: =SUMPRODUCT((Feuil1!$B$2:$B$5000=$B87)*(Feuil1!$D$2:$D$5000=R$3)*(Feuil1!$E$2:$E$5000)) -> 0
A88: =IF(B88="","",MAX($A$3:A87)+1) -> 85 | B88: =IF(ROWS(B$1:B85)>COUNTIF(Feuil1!$A$2:$A$5000,$A$1),"",INDEX(Feuil1!$B$2:$B$5000,SMALL(IF(Feuil1!$A$2:$A$5000<>"",IF(Feuil1!$A$2:$A$5000=$A$1,ROW($A$2:$A$5000)-ROW($A$2)+1)),ROWS(B$1:B85)))) -> 6277 | C88: =SUMPRODUCT((Feuil1!$B$2:$B$5000=$B88)*(Feuil1!$D$2:$D$5000=C$3)*(Feuil1!$E$2:$E$5000)) -> 180 | D88: =SUMPRODUCT((Feuil1!$B$2:$B$5000=$B88)*(Feuil1!$D$2:$D$5000=D$3)*(Feuil1!$E$2:$E$5000)) -> 180 | E88: =SUMPRODUCT((Feuil1!$B$2:$B$5000=$B88)*(Feuil1!$D$2:$D$5000=E$3)*(Feuil1!$E$2:$E$5000)) -> 180 | F88: =SUMPRODUCT((Feuil1!$B$2:$B$5000=$B88)*(Feuil1!$D$2:$D$5000=F$3)*(Feuil1!$E$2:$E$5000)) -> 180 | G88: =SUMPRODUCT((Feuil1!$B$2:$B$5000=$B88)*(Feuil1!$D$2:$D$5000=G$3)*(Feuil1!$E$2:$E$5000)) -> 180 | H88: =SUMPRODUCT((Feuil1!$B$2:$B$5000=$B88)*(Feuil1!$D$2:$D$5000=H$3)*(Feuil1!$E$2:$E$5000)) -> 180 | I88: =SUMPRODUCT((Feuil1!$B$2:$B$5000=$B88)*(Feuil1!$D$2:$D$5000=I$3)*(Feuil1!$E$2:$E$5000)) -> 180 | J88: =SUMPRODUCT((Feuil1!$B$2:$B$5000=$B88)*(Feuil1!$D$2:$D$5000=J$3)*(Feuil1!$E$2:$E$5000)) -> 180 | K88: =SUMPRODUCT((Feuil1!$B$2:$B$5000=$B88)*(Feuil1!$D$2:$D$5000=K$3)*(Feuil1!$E$2:$E$5000)) -> 180 | L88: =SUMPRODUCT((Feuil1!$B$2:$B$5000=$B88)*(Feuil1!$D$2:$D$5000=L$3)*(Feuil1!$E$2:$E$5000)) -> 180 | M88: =SUMPRODUCT((Feuil1!$B$2:$B$5000=$B88)*(Feuil1!$D$2:$D$5000=M$3)*(Feuil1!$E$2:$E$5000)) -> 0 | N88: =SUMPRODUCT((Feuil1!$B$2:$B$5000=$B88)*(Feuil1!$D$2:$D$5000=N$3)*(Feuil1!$E$2:$E$5000)) -> 0 | O88: =SUMPRODUCT((Feuil1!$B$2:$B$5000=$B88)*(Feuil1!$D$2:$D$5000=O$3)*(Feuil1!$E$2:$E$5000)) -> 0 | P88: =SUMPRODUCT((Feuil1!$B$2:$B$5000=$B88)*(Feuil1!$D$2:$D$5000=P$3)*(Feuil1!$E$2:$E$5000)) -> 0 | Q88: =SUMPRODUCT((Feuil1!$B$2:$B$5000=$B88)*(Feuil1!$D$2:$D$5000=Q$3)*(Feuil1!$E$2:$E$5000)) -> 0 | R88: =SUMPRODUCT((Feuil1!$B$2:$B$5000=$B88)*(Feuil1!$D$2:$D$5000=R$3)*(Feuil1!$E$2:$E$5000)) -> 0
A89: =IF(B89="","",MAX($A$3:A88)+1) -> 86 | B89: =IF(ROWS(B$1:B86)>COUNTIF(Feuil1!$A$2:$A$5000,$A$1),"",INDEX(Feuil1!$B$2:$B$5000,SMALL(IF(Feuil1!$A$2:$A$5000<>"",IF(Feuil1!$A$2:$A$5000=$A$1,ROW($A$2:$A$5000)-ROW($A$2)+1)),ROWS(B$1:B86)))) -> 6277 | C89: =SUMPRODUCT((Feuil1!$B$2:$B$5000=$B89)*(Feuil1!$D$2:$D$5000=C$3)*(Feuil1!$E$2:$E$5000)) -> 180 | D89: =SUMPRODUCT((Feuil1!$B$2:$B$5000=$B89)*(Feuil1!$D$2:$D$5000=D$3)*(Feuil1!$E$2:$E$5000)) -> 180 | E89: =SUMPRODUCT((Feuil1!$B$2:$B$5000=$B89)*(Feuil1!$D$2:$D$5000=E$3)*(Feuil1!$E$2:$E$5000)) -> 180 | F89: =SUMPRODUCT((Feuil1!$B$2:$B$5000=$B89)*(Feuil1!$D$2:$D$5000=F$3)*(Feuil1!$E$2:$E$5000)) -> 180 | G89: =SUMPRODUCT((Feuil1!$B$2:$B$5000=$B89)*(Feuil1!$D$2:$D$5000=G$3)*(Feuil1!$E$2:$E$5000)) -> 180 | H89: =SUMPRODUCT((Feuil1!$B$2:$B$5000=$B89)*(Feuil1!$D$2:$D$5000=H$3)*(Feuil1!$E$2:$E$5000)) -> 180 | I89: =SUMPRODUCT((Feuil1!$B$2:$B$5000=$B89)*(Feuil1!$D$2:$D$5000=I$3)*(Feuil1!$E$2:$E$5000)) -> 180 | J89: =SUMPRODUCT((Feuil1!$B$2:$B$5000=$B89)*(Feuil1!$D$2:$D$5000=J$3)*(Feuil1!$E$2:$E$5000)) -> 180 | K89: =SUMPRODUCT((Feuil1!$B$2:$B$5000=$B89)*(Feuil1!$D$2:$D$5000=K$3)*(Feuil1!$E$2:$E$5000)) -> 180 | L89: =SUMPRODUCT((Feuil1!$B$2:$B$5000=$B89)*(Feuil1!$D$2:$D$5000=L$3)*(Feuil1!$E$2:$E$5000)) -> 180 | M89: =SUMPRODUCT((Feuil1!$B$2:$B$5000=$B89)*(Feuil1!$D$2:$D$5000=M$3)*(Feuil1!$E$2:$E$5000)) -> 0 | N89: =SUMPRODUCT((Feuil1!$B$2:$B$5000=$B89)*(Feuil1!$D$2:$D$5000=N$3)*(Feuil1!$E$2:$E$5000)) -> 0 | O89: =SUMPRODUCT((Feuil1!$B$2:$B$5000=$B89)*(Feuil1!$D$2:$D$5000=O$3)*(Feuil1!$E$2:$E$5000)) -> 0 | P89: =SUMPRODUCT((Feuil1!$B$2:$B$5000=$B89)*(Feuil1!$D$2:$D$5000=P$3)*(Feuil1!$E$2:$E$5000)) -> 0 | Q89: =SUMPRODUCT((Feuil1!$B$2:$B$5000=$B89)*(Feuil1!$D$2:$D$5000=Q$3)*(Feuil1!$E$2:$E$5000)) -> 0 | R89: =SUMPRODUCT((Feuil1!$B$2:$B$5000=$B89)*(Feuil1!$D$2:$D$5000=R$3)*(Feuil1!$E$2:$E$5000)) -> 0
A90: =IF(B90="","",MAX($A$3:A89)+1) -> 87 | B90: =IF(ROWS(B$1:B87)>COUNTIF(Feuil1!$A$2:$A$5000,$A$1),"",INDEX(Feuil1!$B$2:$B$5000,SMALL(IF(Feuil1!$A$2:$A$5000<>"",IF(Feuil1!$A$2:$A$5000=$A$1,ROW($A$2:$A$5000)-ROW($A$2)+1)),ROWS(B$1:B87)))) -> 6277 | C90: =SUMPRODUCT((Feuil1!$B$2:$B$5000=$B90)*(Feuil1!$D$2:$D$5000=C$3)*(Feuil1!$E$2:$E$5000)) -> 180 | D90: =SUMPRODUCT((Feuil1!$B$2:$B$5000=$B90)*(Feuil1!$D$2:$D$5000=D$3)*(Feuil1!$E$2:$E$5000)) -> 180 | E90: =SUMPRODUCT((Feuil1!$B$2:$B$5000=$B90)*(Feuil1!$D$2:$D$5000=E$3)*(Feuil1!$E$2:$E$5000)) -> 180 | F90: =SUMPRODUCT((Feuil1!$B$2:$B$5000=$B90)*(Feuil1!$D$2:$D$5000=F$3)*(Feuil1!$E$2:$E$5000)) -> 180 | G90: =SUMPRODUCT((Feuil1!$B$2:$B$5000=$B90)*(Feuil1!$D$2:$D$5000=G$3)*(Feuil1!$E$2:$E$5000)) -> 180 | H90: =SUMPRODUCT((Feuil1!$B$2:$B$5000=$B90)*(Feuil1!$D$2:$D$5000=H$3)*(Feuil1!$E$2:$E$5000)) -> 180 | I90: =SUMPRODUCT((Feuil1!$B$2:$B$5000=$B90)*(Feuil1!$D$2:$D$5000=I$3)*(Feuil1!$E$2:$E$5000)) -> 180 | J90: =SUMPRODUCT((Feuil1!$B$2:$B$5000=$B90)*(Feuil1!$D$2:$D$5000=J$3)*(Feuil1!$E$2:$E$5000)) -> 180 | K90: =SUMPRODUCT((Feuil1!$B$2:$B$5000=$B90)*(Feuil1!$D$2:$D$5000=K$3)*(Feuil1!$E$2:$E$5000)) -> 180 | L90: =SUMPRODUCT((Feuil1!$B$2:$B$5000=$B90)*(Feuil1!$D$2:$D$5000=L$3)*(Feuil1!$E$2:$E$5000)) -> 180 | M90: =SUMPRODUCT((Feuil1!$B$2:$B$5000=$B90)*(Feuil1!$D$2:$D$5000=M$3)*(Feuil1!$E$2:$E$5000)) -> 0 | N90: =SUMPRODUCT((Feuil1!$B$2:$B$5000=$B90)*(Feuil1!$D$2:$D$5000=N$3)*(Feuil1!$E$2:$E$5000)) -> 0 | O90: =SUMPRODUCT((Feuil1!$B$2:$B$5000=$B90)*(Feuil1!$D$2:$D$5000=O$3)*(Feuil1!$E$2:$E$5000)) -> 0 | P90: =SUMPRODUCT((Feuil1!$B$2:$B$5000=$B90)*(Feuil1!$D$2:$D$5000=P$3)*(Feuil1!$E$2:$E$5000)) -> 0 | Q90: =SUMPRODUCT((Feuil1!$B$2:$B$5000=$B90)*(Feuil1!$D$2:$D$5000=Q$3)*(Feuil1!$E$2:$E$5000)) -> 0 | R90: =SUMPRODUCT((Feuil1!$B$2:$B$5000=$B90)*(Feuil1!$D$2:$D$5000=R$3)*(Feuil1!$E$2:$E$5000)) -> 0
A91: =IF(B91="","",MAX($A$3:A90)+1) -> 88 | B91: =IF(ROWS(B$1:B88)>COUNTIF(Feuil1!$A$2:$A$5000,$A$1),"",INDEX(Feuil1!$B$2:$B$5000,SMALL(IF(Feuil1!$A$2:$A$5000<>"",IF(Feuil1!$A$2:$A$5000=$A$1,ROW($A$2:$A$5000)-ROW($A$2)+1)),ROWS(B$1:B88)))) -> 6277 | C91: =SUMPRODUCT((Feuil1!$B$2:$B$5000=$B91)*(Feuil1!$D$2:$D$5000=C$3)*(Feuil1!$E$2:$E$5000)) -> 180 | D91: =SUMPRODUCT((Feuil1!$B$2:$B$5000=$B91)*(Feuil1!$D$2:$D$5000=D$3)*(Feuil1!$E$2:$E$5000)) -> 180 | E91: =SUMPRODUCT((Feuil1!$B$2:$B$5000=$B91)*(Feuil1!$D$2:$D$5000=E$3)*(Feuil1!$E$2:$E$5000)) -> 180 | F91: =SUMPRODUCT((Feuil1!$B$2:$B$5000=$B91)*(Feuil1!$D$2:$D$5000=F$3)*(Feuil1!$E$2:$E$5000)) -> 180 | G91: =SUMPRODUCT((Feuil1!$B$2:$B$5000=$B91)*(Feuil1!$D$2:$D$5000=G$3)*(Feuil1!$E$2:$E$5000)) -> 180 | H91: =SUMPRODUCT((Feuil1!$B$2:$B$5000=$B91)*(Feuil1!$D$2:$D$5000=H$3)*(Feuil1!$E$2:$E$5000)) -> 180 | I91: =SUMPRODUCT((Feuil1!$B$2:$B$5000=$B91)*(Feuil1!$D$2:$D$5000=I$3)*(Feuil1!$E$2:$E$5000)) -> 180 | J91: =SUMPRODUCT((Feuil1!$B$2:$B$5000=$B91)*(Feuil1!$D$2:$D$5000=J$3)*(Feuil1!$E$2:$E$5000)) -> 180 | K91: =SUMPRODUCT((Feuil1!$B$2:$B$5000=$B91)*(Feuil1!$D$2:$D$5000=K$3)*(Feuil1!$E$2:$E$5000)) -> 180 | L91: =SUMPRODUCT((Feuil1!$B$2:$B$5000=$B91)*(Feuil1!$D$2:$D$5000=L$3)*(Feuil1!$E$2:$E$5000)) -> 180 | M91: =SUMPRODUCT((Feuil1!$B$2:$B$5000=$B91)*(Feuil1!$D$2:$D$5000=M$3)*(Feuil1!$E$2:$E$5000)) -> 0 | N91: =SUMPRODUCT((Feuil1!$B$2:$B$5000=$B91)*(Feuil1!$D$2:$D$5000=N$3)*(Feuil1!$E$2:$E$5000)) -> 0 | O91: =SUMPRODUCT((Feuil1!$B$2:$B$5000=$B91)*(Feuil1!$D$2:$D$5000=O$3)*(Feuil1!$E$2:$E$5000)) -> 0 | P91: =SUMPRODUCT((Feuil1!$B$2:$B$5000=$B91)*(Feuil1!$D$2:$D$5000=P$3)*(Feuil1!$E$2:$E$5000)) -> 0 | Q91: =SUMPRODUCT((Feuil1!$B$2:$B$5000=$B91)*(Feuil1!$D$2:$D$5000=Q$3)*(Feuil1!$E$2:$E$5000)) -> 0 | R91: =SUMPRODUCT((Feuil1!$B$2:$B$5000=$B91)*(Feuil1!$D$2:$D$5000=R$3)*(Feuil1!$E$2:$E$5000)) -> 0
A92: =IF(B92="","",MAX($A$3:A91)+1) -> 89 | B92: =IF(ROWS(B$1:B89)>COUNTIF(Feuil1!$A$2:$A$5000,$A$1),"",INDEX(Feuil1!$B$2:$B$5000,SMALL(IF(Feuil1!$A$2:$A$5000<>"",IF(Feuil1!$A$2:$A$5000=$A$1,ROW($A$2:$A$5000)-ROW($A$2)+1)),ROWS(B$1:B89)))) -> 6277 | C92: =SUMPRODUCT((Feuil1!$B$2:$B$5000=$B92)*(Feuil1!$D$2:$D$5000=C$3)*(Feuil1!$E$2:$E$5000)) -> 180 | D92: =SUMPRODUCT((Feuil1!$B$2:$B$5000=$B92)*(Feuil1!$D$2:$D$5000=D$3)*(Feuil1!$E$2:$E$5000)) -> 180 | E92: =SUMPRODUCT((Feuil1!$B$2:$B$5000=$B92)*(Feuil1!$D$2:$D$5000=E$3)*(Feuil1!$E$2:$E$5000)) -> 180 | F92: =SUMPRODUCT((Feuil1!$B$2:$B$5000=$B92)*(Feuil1!$D$2:$D$5000=F$3)*(Feuil1!$E$2:$E$5000)) -> 180 | G92: =SUMPRODUCT((Feuil1!$B$2:$B$5000=$B92)*(Feuil1!$D$2:$D$5000=G$3)*(Feuil1!$E$2:$E$5000)) -> 180 | H92: =SUMPRODUCT((Feuil1!$B$2:$B$5000=$B92)*(Feuil1!$D$2:$D$5000=H$3)*(Feuil1!$E$2:$E$5000)) -> 180 | I92: =SUMPRODUCT((Feuil1!$B$2:$B$5000=$B92)*(Feuil1!$D$2:$D$5000=I$3)*(Feuil1!$E$2:$E$5000)) -> 180 | J92: =SUMPRODUCT((Feuil1!$B$2:$B$5000=$B92)*(Feuil1!$D$2:$D$5000=J$3)*(Feuil1!$E$2:$E$5000)) -> 180 | K92: =SUMPRODUCT((Feuil1!$B$2:$B$5000=$B92)*(Feuil1!$D$2:$D$5000=K$3)*(Feuil1!$E$2:$E$5000)) -> 180 | L92: =SUMPRODUCT((Feuil1!$B$2:$B$5000=$B92)*(Feuil1!$D$2:$D$5000=L$3)*(Feuil1!$E$2:$E$5000)) -> 180 | M92: =SUMPRODUCT((Feuil1!$B$2:$B$5000=$B92)*(Feuil1!$D$2:$D$5000=M$3)*(Feuil1!$E$2:$E$5000)) -> 0 | N92: =SUMPRODUCT((Feuil1!$B$2:$B$5000=$B92)*(Feuil1!$D$2:$D$5000=N$3)*(Feuil1!$E$2:$E$5000)) -> 0 | O92: =SUMPRODUCT((Feuil1!$B$2:$B$5000=$B92)*(Feuil1!$D$2:$D$5000=O$3)*(Feuil1!$E$2:$E$5000)) -> 0 | P92: =SUMPRODUCT((Feuil1!$B$2:$B$5000=$B92)*(Feuil1!$D$2:$D$5000=P$3)*(Feuil1!$E$2:$E$5000)) -> 0 | Q92: =SUMPRODUCT((Feuil1!$B$2:$B$5000=$B92)*(Feuil1!$D$2:$D$5000=Q$3)*(Feuil1!$E$2:$E$5000)) -> 0 | R92: =SUMPRODUCT((Feuil1!$B$2:$B$5000=$B92)*(Feuil1!$D$2:$D$5000=R$3)*(Feuil1!$E$2:$E$5000)) -> 0
A93: =IF(B93="","",MAX($A$3:A92)+1) -> 90 | B93: =IF(ROWS(B$1:B90)>COUNTIF(Feuil1!$A$2:$A$5000,$A$1),"",INDEX(Feuil1!$B$2:$B$5000,SMALL(IF(Feuil1!$A$2:$A$5000<>"",IF(Feuil1!$A$2:$A$5000=$A$1,ROW($A$2:$A$5000)-ROW($A$2)+1)),ROWS(B$1:B90)))) -> 6278 | C93: =SUMPRODUCT((Feuil1!$B$2:$B$5000=$B93)*(Feuil1!$D$2:$D$5000=C$3)*(Feuil1!$E$2:$E$5000)) -> 180 | D93: =SUMPRODUCT((Feuil1!$B$2:$B$5000=$B93)*(Feuil1!$D$2:$D$5000=D$3)*(Feuil1!$E$2:$E$5000)) -> 180 | E93: =SUMPRODUCT((Feuil1!$B$2:$B$5000=$B93)*(Feuil1!$D$2:$D$5000=E$3)*(Feuil1!$E$2:$E$5000)) -> 180 | F93: =SUMPRODUCT((Feuil1!$B$2:$B$5000=$B93)*(Feuil1!$D$2:$D$5000=F$3)*(Feuil1!$E$2:$E$5000)) -> 180 | G93: =SUMPRODUCT((Feuil1!$B$2:$B$5000=$B93)*(Feuil1!$D$2:$D$5000=G$3)*(Feuil1!$E$2:$E$5000)) -> 180 | H93: =SUMPRODUCT((Feuil1!$B$2:$B$5000=$B93)*(Feuil1!$D$2:$D$5000=H$3)*(Feuil1!$E$2:$E$5000)) -> 180 | I93: =SUMPRODUCT((Feuil1!$B$2:$B$5000=$B93)*(Feuil1!$D$2:$D$5000=I$3)*(Feuil1!$E$2:$E$5000)) -> 180 | J93: =SUMPRODUCT((Feuil1!$B$2:$B$5000=$B93)*(Feuil1!$D$2:$D$5000=J$3)*(Feuil1!$E$2:$E$5000)) -> 180 | K93: =SUMPRODUCT((Feuil1!$B$2:$B$5000=$B93)*(Feuil1!$D$2:$D$5000=K$3)*(Feuil1!$E$2:$E$5000)) -> 180 | L93: =SUMPRODUCT((Feuil1!$B$2:$B$5000=$B93)*(Feuil1!$D$2:$D$5000=L$3)*(Feuil1!$E$2:$E$5000)) -> 180 | M93: =SUMPRODUCT((Feuil1!$B$2:$B$5000=$B93)*(Feuil1!$D$2:$D$5000=M$3)*(Feuil1!$E$2:$E$5000)) -> 0 | N93: =SUMPRODUCT((Feuil1!$B$2:$B$5000=$B93)*(Feuil1!$D$2:$D$5000=N$3)*(Feuil1!$E$2:$E$5000)) -> 0 | O93: =SUMPRODUCT((Feuil1!$B$2:$B$5000=$B93)*(Feuil1!$D$2:$D$5000=O$3)*(Feuil1!$E$2:$E$5000)) -> 0 | P93: =SUMPRODUCT((Feuil1!$B$2:$B$5000=$B93)*(Feuil1!$D$2:$D$5000=P$3)*(Feuil1!$E$2:$E$5000)) -> 0 | Q93: =SUMPRODUCT((Feuil1!$B$2:$B$5000=$B93)*(Feuil1!$D$2:$D$5000=Q$3)*(Feuil1!$E$2:$E$5000)) -> 0 | R93: =SUMPRODUCT((Feuil1!$B$2:$B$5000=$B93)*(Feuil1!$D$2:$D$5000=R$3)*(Feuil1!$E$2:$E$5000)) -> 0
A94: =IF(B94="","",MAX($A$3:A93)+1) -> 91 | B94: =IF(ROWS(B$1:B91)>COUNTIF(Feuil1!$A$2:$A$5000,$A$1),"",INDEX(Feuil1!$B$2:$B$5000,SMALL(IF(Feuil1!$A$2:$A$5000<>"",IF(Feuil1!$A$2:$A$5000=$A$1,ROW($A$2:$A$5000)-ROW($A$2)+1)),ROWS(B$1:B91)))) -> 6278 | C94: =SUMPRODUCT((Feuil1!$B$2:$B$5000=$B94)*(Feuil1!$D$2:$D$5000=C$3)*(Feuil1!$E$2:$E$5000)) -> 180 | D94: =SUMPRODUCT((Feuil1!$B$2:$B$5000=$B94)*(Feuil1!$D$2:$D$5000=D$3)*(Feuil1!$E$2:$E$5000)) -> 180 | E94: =SUMPRODUCT((Feuil1!$B$2:$B$5000=$B94)*(Feuil1!$D$2:$D$5000=E$3)*(Feuil1!$E$2:$E$5000)) -> 180 | F94: =SUMPRODUCT((Feuil1!$B$2:$B$5000=$B94)*(Feuil1!$D$2:$D$5000=F$3)*(Feuil1!$E$2:$E$5000)) -> 180 | G94: =SUMPRODUCT((Feuil1!$B$2:$B$5000=$B94)*(Feuil1!$D$2:$D$5000=G$3)*(Feuil1!$E$2:$E$5000)) -> 180 | H94: =SUMPRODUCT((Feuil1!$B$2:$B$5000=$B94)*(Feuil1!$D$2:$D$5000=H$3)*(Feuil1!$E$2:$E$5000)) -> 180 | I94: =SUMPRODUCT((Feuil1!$B$2:$B$5000=$B94)*(Feuil1!$D$2:$D$5000=I$3)*(Feuil1!$E$2:$E$5000)) -> 180 | J94: =SUMPRODUCT((Feuil1!$B$2:$B$5000=$B94)*(Feuil1!$D$2:$D$5000=J$3)*(Feuil1!$E$2:$E$5000)) -> 180 | K94: =SUMPRODUCT((Feuil1!$B$2:$B$5000=$B94)*(Feuil1!$D$2:$D$5000=K$3)*(Feuil1!$E$2:$E$5000)) -> 180 | L94: =SUMPRODUCT((Feuil1!$B$2:$B$5000=$B94)*(Feuil1!$D$2:$D$5000=L$3)*(Feuil1!$E$2:$E$5000)) -> 180 | M94: =SUMPRODUCT((Feuil1!$B$2:$B$5000=$B94)*(Feuil1!$D$2:$D$5000=M$3)*(Feuil1!$E$2:$E$5000)) -> 0 | N94: =SUMPRODUCT((Feuil1!$B$2:$B$5000=$B94)*(Feuil1!$D$2:$D$5000=N$3)*(Feuil1!$E$2:$E$5000)) -> 0 | O94: =SUMPRODUCT((Feuil1!$B$2:$B$5000=$B94)*(Feuil1!$D$2:$D$5000=O$3)*(Feuil1!$E$2:$E$5000)) -> 0 | P94: =SUMPRODUCT((Feuil1!$B$2:$B$5000=$B94)*(Feuil1!$D$2:$D$5000=P$3)*(Feuil1!$E$2:$E$5000)) -> 0 | Q94: =SUMPRODUCT((Feuil1!$B$2:$B$5000=$B94)*(Feuil1!$D$2:$D$5000=Q$3)*(Feuil1!$E$2:$E$5000)) -> 0 | R94: =SUMPRODUCT((Feuil1!$B$2:$B$5000=$B94)*(Feuil1!$D$2:$D$5000=R$3)*(Feuil1!$E$2:$E$5000)) -> 0
A95: =IF(B95="","",MAX($A$3:A94)+1) -> 92 | B95: =IF(ROWS(B$1:B92)>COUNTIF(Feuil1!$A$2:$A$5000,$A$1),"",INDEX(Feuil1!$B$2:$B$5000,SMALL(IF(Feuil1!$A$2:$A$5000<>"",IF(Feuil1!$A$2:$A$5000=$A$1,ROW($A$2:$A$5000)-ROW($A$2)+1)),ROWS(B$1:B92)))) -> 6278 | C95: =SUMPRODUCT((Feuil1!$B$2:$B$5000=$B95)*(Feuil1!$D$2:$D$5000=C$3)*(Feuil1!$E$2:$E$5000)) -> 180 | D95: =SUMPRODUCT((Feuil1!$B$2:$B$5000=$B95)*(Feuil1!$D$2:$D$5000=D$3)*(Feuil1!$E$2:$E$5000)) -> 180 | E95: =SUMPRODUCT((Feuil1!$B$2:$B$5000=$B95)*(Feuil1!$D$2:$D$5000=E$3)*(Feuil1!$E$2:$E$5000)) -> 180 | F95: =SUMPRODUCT((Feuil1!$B$2:$B$5000=$B95)*(Feuil1!$D$2:$D$5000=F$3)*(Feuil1!$E$2:$E$5000)) -> 180 | G95: =SUMPRODUCT((Feuil1!$B$2:$B$5000=$B95)*(Feuil1!$D$2:$D$5000=G$3)*(Feuil1!$E$2:$E$5000)) -> 180 | H95: =SUMPRODUCT((Feuil1!$B$2:$B$5000=$B95)*(Feuil1!$D$2:$D$5000=H$3)*(Feuil1!$E$2:$E$5000)) -> 180 | I95: =SUMPRODUCT((Feuil1!$B$2:$B$5000=$B95)*(Feuil1!$D$2:$D$5000=I$3)*(Feuil1!$E$2:$E$5000)) -> 180 | J95: =SUMPRODUCT((Feuil1!$B$2:$B$5000=$B95)*(Feuil1!$D$2:$D$5000=J$3)*(Feuil1!$E$2:$E$5000)) -> 180 | K95: =SUMPRODUCT((Feuil1!$B$2:$B$5000=$B95)*(Feuil1!$D$2:$D$5000=K$3)*(Feuil1!$E$2:$E$5000)) -> 180 | L95: =SUMPRODUCT((Feuil1!$B$2:$B$5000=$B95)*(Feuil1!$D$2:$D$5000=L$3)*(Feuil1!$E$2:$E$5000)) -> 180 | M95: =SUMPRODUCT((Feuil1!$B$2:$B$5000=$B95)*(Feuil1!$D$2:$D$5000=M$3)*(Feuil1!$E$2:$E$5000)) -> 0 | N95: =SUMPRODUCT((Feuil1!$B$2:$B$5000=$B95)*(Feuil1!$D$2:$D$5000=N$3)*(Feuil1!$E$2:$E$5000)) -> 0 | O95: =SUMPRODUCT((Feuil1!$B$2:$B$5000=$B95)*(Feuil1!$D$2:$D$5000=O$3)*(Feuil1!$E$2:$E$5000)) -> 0 | P95: =SUMPRODUCT((Feuil1!$B$2:$B$5000=$B95)*(Feuil1!$D$2:$D$5000=P$3)*(Feuil1!$E$2:$E$5000)) -> 0 | Q95: =SUMPRODUCT((Feuil1!$B$2:$B$5000=$B95)*(Feuil1!$D$2:$D$5000=Q$3)*(Feuil1!$E$2:$E$5000)) -> 0 | R95: =SUMPRODUCT((Feuil1!$B$2:$B$5000=$B95)*(Feuil1!$D$2:$D$5000=R$3)*(Feuil1!$E$2:$E$5000)) -> 0
A96: =IF(B96="","",MAX($A$3:A95)+1) -> 93 | B96: =IF(ROWS(B$1:B93)>COUNTIF(Feuil1!$A$2:$A$5000,$A$1),"",INDEX(Feuil1!$B$2:$B$5000,SMALL(IF(Feuil1!$A$2:$A$5000<>"",IF(Feuil1!$A$2:$A$5000=$A$1,ROW($A$2:$A$5000)-ROW($A$2)+1)),ROWS(B$1:B93)))) -> 6278 | C96: =SUMPRODUCT((Feuil1!$B$2:$B$5000=$B96)*(Feuil1!$D$2:$D$5000=C$3)*(Feuil1!$E$2:$E$5000)) -> 180 | D96: =SUMPRODUCT((Feuil1!$B$2:$B$5000=$B96)*(Feuil1!$D$2:$D$5000=D$3)*(Feuil1!$E$2:$E$5000)) -> 180 | E96: =SUMPRODUCT((Feuil1!$B$2:$B$5000=$B96)*(Feuil1!$D$2:$D$5000=E$3)*(Feuil1!$E$2:$E$5000)) -> 180 | F96: =SUMPRODUCT((Feuil1!$B$2:$B$5000=$B96)*(Feuil1!$D$2:$D$5000=F$3)*(Feuil1!$E$2:$E$5000)) -> 180 | G96: =SUMPRODUCT((Feuil1!$B$2:$B$5000=$B96)*(Feuil1!$D$2:$D$5000=G$3)*(Feuil1!$E$2:$E$5000)) -> 180 | H96: =SUMPRODUCT((Feuil1!$B$2:$B$5000=$B96)*(Feuil1!$D$2:$D$5000=H$3)*(Feuil1!$E$2:$E$5000)) -> 180 | I96: =SUMPRODUCT((Feuil1!$B$2:$B$5000=$B96)*(Feuil1!$D$2:$D$5000=I$3)*(Feuil1!$E$2:$E$5000)) -> 180 | J96: =SUMPRODUCT((Feuil1!$B$2:$B$5000=$B96)*(Feuil1!$D$2:$D$5000=J$3)*(Feuil1!$E$2:$E$5000)) -> 180 | K96: =SUMPRODUCT((Feuil1!$B$2:$B$5000=$B96)*(Feuil1!$D$2:$D$5000=K$3)*(Feuil1!$E$2:$E$5000)) -> 180 | L96: =SUMPRODUCT((Feuil1!$B$2:$B$5000=$B96)*(Feuil1!$D$2:$D$5000=L$3)*(Feuil1!$E$2:$E$5000)) -> 180 | M96: =SUMPRODUCT((Feuil1!$B$2:$B$5000=$B96)*(Feuil1!$D$2:$D$5000=M$3)*(Feuil1!$E$2:$E$5000)) -> 0 | N96: =SUMPRODUCT((Feuil1!$B$2:$B$5000=$B96)*(Feuil1!$D$2:$D$5000=N$3)*(Feuil1!$E$2:$E$5000)) -> 0 | O96: =SUMPRODUCT((Feuil1!$B$2:$B$5000=$B96)*(Feuil1!$D$2:$D$5000=O$3)*(Feuil1!$E$2:$E$5000)) -> 0 | P96: =SUMPRODUCT((Feuil1!$B$2:$B$5000=$B96)*(Feuil1!$D$2:$D$5000=P$3)*(Feuil1!$E$2:$E$5000)) -> 0 | Q96: =SUMPRODUCT((Feuil1!$B$2:$B$5000=$B96)*(Feuil1!$D$2:$D$5000=Q$3)*(Feuil1!$E$2:$E$5000)) -> 0 | R96: =SUMPRODUCT((Feuil1!$B$2:$B$5000=$B96)*(Feuil1!$D$2:$D$5000=R$3)*(Feuil1!$E$2:$E$5000)) -> 0
A97: =IF(B97="","",MAX($A$3:A96)+1) -> 94 | B97: =IF(ROWS(B$1:B94)>COUNTIF(Feuil1!$A$2:$A$5000,$A$1),"",INDEX(Feuil1!$B$2:$B$5000,SMALL(IF(Feuil1!$A$2:$A$5000<>"",IF(Feuil1!$A$2:$A$5000=$A$1,ROW($A$2:$A$5000)-ROW($A$2)+1)),ROWS(B$1:B94)))) -> 6278 | C97: =SUMPRODUCT((Feuil1!$B$2:$B$5000=$B97)*(Feuil1!$D$2:$D$5000=C$3)*(Feuil1!$E$2:$E$5000)) -> 180 | D97: =SUMPRODUCT((Feuil1!$B$2:$B$5000=$B97)*(Feuil1!$D$2:$D$5000=D$3)*(Feuil1!$E$2:$E$5000)) -> 180 | E97: =SUMPRODUCT((Feuil1!$B$2:$B$5000=$B97)*(Feuil1!$D$2:$D$5000=E$3)*(Feuil1!$E$2:$E$5000)) -> 180 | F97: =SUMPRODUCT((Feuil1!$B$2:$B$5000=$B97)*(Feuil1!$D$2:$D$5000=F$3)*(Feuil1!$E$2:$E$5000)) -> 180 | G97: =SUMPRODUCT((Feuil1!$B$2:$B$5000=$B97)*(Feuil1!$D$2:$D$5000=G$3)*(Feuil1!$E$2:$E$5000)) -> 180 | H97: =SUMPRODUCT((Feuil1!$B$2:$B$5000=$B97)*(Feuil1!$D$2:$D$5000=H$3)*(Feuil1!$E$2:$E$5000)) -> 180 | I97: =SUMPRODUCT((Feuil1!$B$2:$B$5000=$B97)*(Feuil1!$D$2:$D$5000=I$3)*(Feuil1!$E$2:$E$5000)) -> 180 | J97: =SUMPRODUCT((Feuil1!$B$2:$B$5000=$B97)*(Feuil1!$D$2:$D$5000=J$3)*(Feuil1!$E$2:$E$5000)) -> 180 | K97: =SUMPRODUCT((Feuil1!$B$2:$B$5000=$B97)*(Feuil1!$D$2:$D$5000=K$3)*(Feuil1!$E$2:$E$5000)) -> 180 | L97: =SUMPRODUCT((Feuil1!$B$2:$B$5000=$B97)*(Feuil1!$D$2:$D$5000=L$3)*(Feuil1!$E$2:$E$5000)) -> 180 | M97: =SUMPRODUCT((Feuil1!$B$2:$B$5000=$B97)*(Feuil1!$D$2:$D$5000=M$3)*(Feuil1!$E$2:$E$5000)) -> 0 | N97: =SUMPRODUCT((Feuil1!$B$2:$B$5000=$B97)*(Feuil1!$D$2:$D$5000=N$3)*(Feuil1!$E$2:$E$5000)) -> 0 | O97: =SUMPRODUCT((Feuil1!$B$2:$B$5000=$B97)*(Feuil1!$D$2:$D$5000=O$3)*(Feuil1!$E$2:$E$5000)) -> 0 | P97: =SUMPRODUCT((Feuil1!$B$2:$B$5000=$B97)*(Feuil1!$D$2:$D$5000=P$3)*(Feuil1!$E$2:$E$5000)) -> 0 | Q97: =SUMPRODUCT((Feuil1!$B$2:$B$5000=$B97)*(Feuil1!$D$2:$D$5000=Q$3)*(Feuil1!$E$2:$E$5000)) -> 0 | R97: =SUMPRODUCT((Feuil1!$B$2:$B$5000=$B97)*(Feuil1!$D$2:$D$5000=R$3)*(Feuil1!$E$2:$E$5000)) -> 0
A98: =IF(B98="","",MAX($A$3:A97)+1) -> 95 | B98: =IF(ROWS(B$1:B95)>COUNTIF(Feuil1!$A$2:$A$5000,$A$1),"",INDEX(Feuil1!$B$2:$B$5000,SMALL(IF(Feuil1!$A$2:$A$5000<>"",IF(Feuil1!$A$2:$A$5000=$A$1,ROW($A$2:$A$5000)-ROW($A$2)+1)),ROWS(B$1:B95)))) -> 6279 | C98: =SUMPRODUCT((Feuil1!$B$2:$B$5000=$B98)*(Feuil1!$D$2:$D$5000=C$3)*(Feuil1!$E$2:$E$5000)) -> 180 | D98: =SUMPRODUCT((Feuil1!$B$2:$B$5000=$B98)*(Feuil1!$D$2:$D$5000=D$3)*(Feuil1!$E$2:$E$5000)) -> 180 | E98: =SUMPRODUCT((Feuil1!$B$2:$B$5000=$B98)*(Feuil1!$D$2:$D$5000=E$3)*(Feuil1!$E$2:$E$5000)) -> 180 | F98: =SUMPRODUCT((Feuil1!$B$2:$B$5000=$B98)*(Feuil1!$D$2:$D$5000=F$3)*(Feuil1!$E$2:$E$5000)) -> 180 | G98: =SUMPRODUCT((Feuil1!$B$2:$B$5000=$B98)*(Feuil1!$D$2:$D$5000=G$3)*(Feuil1!$E$2:$E$5000)) -> 180 | H98: =SUMPRODUCT((Feuil1!$B$2:$B$5000=$B98)*(Feuil1!$D$2:$D$5000=H$3)*(Feuil1!$E$2:$E$5000)) -> 180 | I98: =SUMPRODUCT((Feuil1!$B$2:$B$5000=$B98)*(Feuil1!$D$2:$D$5000=I$3)*(Feuil1!$E$2:$E$5000)) -> 180 | J98: =SUMPRODUCT((Feuil1!$B$2:$B$5000=$B98)*(Feuil1!$D$2:$D$5000=J$3)*(Feuil1!$E$2:$E$5000)) -> 180 | K98: =SUMPRODUCT((Feuil1!$B$2:$B$5000=$B98)*(Feuil1!$D$2:$D$5000=K$3)*(Feuil1!$E$2:$E$5000)) -> 180 | L98: =SUMPRODUCT((Feuil1!$B$2:$B$5000=$B98)*(Feuil1!$D$2:$D$5000=L$3)*(Feuil1!$E$2:$E$5000)) -> 180 | M98: =SUMPRODUCT((Feuil1!$B$2:$B$5000=$B98)*(Feuil1!$D$2:$D$5000=M$3)*(Feuil1!$E$2:$E$5000)) -> 0 | N98: =SUMPRODUCT((Feuil1!$B$2:$B$5000=$B98)*(Feuil1!$D$2:$D$5000=N$3)*(Feuil1!$E$2:$E$5000)) -> 0 | O98: =SUMPRODUCT((Feuil1!$B$2:$B$5000=$B98)*(Feuil1!$D$2:$D$5000=O$3)*(Feuil1!$E$2:$E$5000)) -> 0 | P98: =SUMPRODUCT((Feuil1!$B$2:$B$5000=$B98)*(Feuil1!$D$2:$D$5000=P$3)*(Feuil1!$E$2:$E$5000)) -> 0 | Q98: =SUMPRODUCT((Feuil1!$B$2:$B$5000=$B98)*(Feuil1!$D$2:$D$5000=Q$3)*(Feuil1!$E$2:$E$5000)) -> 0 | R98: =SUMPRODUCT((Feuil1!$B$2:$B$5000=$B98)*(Feuil1!$D$2:$D$5000=R$3)*(Feuil1!$E$2:$E$5000)) -> 0
A99: =IF(B99="","",MAX($A$3:A98)+1) -> 96 | B99: =IF(ROWS(B$1:B96)>COUNTIF(Feuil1!$A$2:$A$5000,$A$1),"",INDEX(Feuil1!$B$2:$B$5000,SMALL(IF(Feuil1!$A$2:$A$5000<>"",IF(Feuil1!$A$2:$A$5000=$A$1,ROW($A$2:$A$5000)-ROW($A$2)+1)),ROWS(B$1:B96)))) -> 6279 | C99: =SUMPRODUCT((Feuil1!$B$2:$B$5000=$B99)*(Feuil1!$D$2:$D$5000=C$3)*(Feuil1!$E$2:$E$5000)) -> 180 | D99: =SUMPRODUCT((Feuil1!$B$2:$B$5000=$B99)*(Feuil1!$D$2:$D$5000=D$3)*(Feuil1!$E$2:$E$5000)) -> 180 | E99: =SUMPRODUCT((Feuil1!$B$2:$B$5000=$B99)*(Feuil1!$D$2:$D$5000=E$3)*(Feuil1!$E$2:$E$5000)) -> 180 | F99: =SUMPRODUCT((Feuil1!$B$2:$B$5000=$B99)*(Feuil1!$D$2:$D$5000=F$3)*(Feuil1!$E$2:$E$5000)) -> 180 | G99: =SUMPRODUCT((Feuil1!$B$2:$B$5000=$B99)*(Feuil1!$D$2:$D$5000=G$3)*(Feuil1!$E$2:$E$5000)) -> 180 | H99: =SUMPRODUCT((Feuil1!$B$2:$B$5000=$B99)*(Feuil1!$D$2:$D$5000=H$3)*(Feuil1!$E$2:$E$5000)) -> 180 | I99: =SUMPRODUCT((Feuil1!$B$2:$B$5000=$B99)*(Feuil1!$D$2:$D$5000=I$3)*(Feuil1!$E$2:$E$5000)) -> 180 | J99: =SUMPRODUCT((Feuil1!$B$2:$B$5000=$B99)*(Feuil1!$D$2:$D$5000=J$3)*(Feuil1!$E$2:$E$5000)) -> 180 | K99: =SUMPRODUCT((Feuil1!$B$2:$B$5000=$B99)*(Feuil1!$D$2:$D$5000=K$3)*(Feuil1!$E$2:$E$5000)) -> 180 | L99: =SUMPRODUCT((Feuil1!$B$2:$B$5000=$B99)*(Feuil1!$D$2:$D$5000=L$3)*(Feuil1!$E$2:$E$5000)) -> 180 | M99: =SUMPRODUCT((Feuil1!$B$2:$B$5000=$B99)*(Feuil1!$D$2:$D$5000=M$3)*(Feuil1!$E$2:$E$5000)) -> 0 | N99: =SUMPRODUCT((Feuil1!$B$2:$B$5000=$B99)*(Feuil1!$D$2:$D$5000=N$3)*(Feuil1!$E$2:$E$5000)) -> 0 | O99: =SUMPRODUCT((Feuil1!$B$2:$B$5000=$B99)*(Feuil1!$D$2:$D$5000=O$3)*(Feuil1!$E$2:$E$5000)) -> 0 | P99: =SUMPRODUCT((Feuil1!$B$2:$B$5000=$B99)*(Feuil1!$D$2:$D$5000=P$3)*(Feuil1!$E$2:$E$5000)) -> 0 | Q99: =SUMPRODUCT((Feuil1!$B$2:$B$5000=$B99)*(Feuil1!$D$2:$D$5000=Q$3)*(Feuil1!$E$2:$E$5000)) -> 0 | R99: =SUMPRODUCT((Feuil1!$B$2:$B$5000=$B99)*(Feuil1!$D$2:$D$5000=R$3)*(Feuil1!$E$2:$E$5000)) -> 0
A100: =IF(B100="","",MAX($A$3:A99)+1) -> 97 | B100: =IF(ROWS(B$1:B97)>COUNTIF(Feuil1!$A$2:$A$5000,$A$1),"",INDEX(Feuil1!$B$2:$B$5000,SMALL(IF(Feuil1!$A$2:$A$5000<>"",IF(Feuil1!$A$2:$A$5000=$A$1,ROW($A$2:$A$5000)-ROW($A$2)+1)),ROWS(B$1:B97)))) -> 6279 | C100: =SUMPRODUCT((Feuil1!$B$2:$B$5000=$B100)*(Feuil1!$D$2:$D$5000=C$3)*(Feuil1!$E$2:$E$5000)) -> 180 | D100: =SUMPRODUCT((Feuil1!$B$2:$B$5000=$B100)*(Feuil1!$D$2:$D$5000=D$3)*(Feuil1!$E$2:$E$5000)) -> 180 | E100: =SUMPRODUCT((Feuil1!$B$2:$B$5000=$B100)*(Feuil1!$D$2:$D$5000=E$3)*(Feuil1!$E$2:$E$5000)) -> 180 | F100: =SUMPRODUCT((Feuil1!$B$2:$B$5000=$B100)*(Feuil1!$D$2:$D$5000=F$3)*(Feuil1!$E$2:$E$5000)) -> 180 | G100: =SUMPRODUCT((Feuil1!$B$2:$B$5000=$B100)*(Feuil1!$D$2:$D$5000=G$3)*(Feuil1!$E$2:$E$5000)) -> 180 | H100: =SUMPRODUCT((Feuil1!$B$2:$B$5000=$B100)*(Feuil1!$D$2:$D$5000=H$3)*(Feuil1!$E$2:$E$5000)) -> 180 | I100: =SUMPRODUCT((Feuil1!$B$2:$B$5000=$B100)*(Feuil1!$D$2:$D$5000=I$3)*(Feuil1!$E$2:$E$5000)) -> 180 | J100: =SUMPRODUCT((Feuil1!$B$2:$B$5000=$B100)*(Feuil1!$D$2:$D$5000=J$3)*(Feuil1!$E$2:$E$5000)) -> 180 | K100: =SUMPRODUCT((Feuil1!$B$2:$B$5000=$B100)*(Feuil1!$D$2:$D$5000=K$3)*(Feuil1!$E$2:$E$5000)) -> 180 | L100: =SUMPRODUCT((Feuil1!$B$2:$B$5000=$B100)*(Feuil1!$D$2:$D$5000=L$3)*(Feuil1!$E$2:$E$5000)) -> 180 | M100: =SUMPRODUCT((Feuil1!$B$2:$B$5000=$B100)*(Feuil1!$D$2:$D$5000=M$3)*(Feuil1!$E$2:$E$5000)) -> 0 | N100: =SUMPRODUCT((Feuil1!$B$2:$B$5000=$B100)*(Feuil1!$D$2:$D$5000=N$3)*(Feuil1!$E$2:$E$5000)) -> 0 | O100: =SUMPRODUCT((Feuil1!$B$2:$B$5000=$B100)*(Feuil1!$D$2:$D$5000=O$3)*(Feuil1!$E$2:$E$5000)) -> 0 | P100: =SUMPRODUCT((Feuil1!$B$2:$B$5000=$B100)*(Feuil1!$D$2:$D$5000=P$3)*(Feuil1!$E$2:$E$5000)) -> 0 | Q100: =SUMPRODUCT((Feuil1!$B$2:$B$5000=$B100)*(Feuil1!$D$2:$D$5000=Q$3)*(Feuil1!$E$2:$E$5000)) -> 0 | R100: =SUMPRODUCT((Feuil1!$B$2:$B$5000=$B100)*(Feuil1!$D$2:$D$5000=R$3)*(Feuil1!$E$2:$E$5000)) -> 0
A101: =IF(B101="","",MAX($A$3:A100)+1) -> 98 | B101: =IF(ROWS(B$1:B98)>COUNTIF(Feuil1!$A$2:$A$5000,$A$1),"",INDEX(Feuil1!$B$2:$B$5000,SMALL(IF(Feuil1!$A$2:$A$5000<>"",IF(Feuil1!$A$2:$A$5000=$A$1,ROW($A$2:$A$5000)-ROW($A$2)+1)),ROWS(B$1:B98)))) -> 6279 | C101: =SUMPRODUCT((Feuil1!$B$2:$B$5000=$B101)*(Feuil1!$D$2:$D$5000=C$3)*(Feuil1!$E$2:$E$5000)) -> 180 | D101: =SUMPRODUCT((Feuil1!$B$2:$B$5000=$B101)*(Feuil1!$D$2:$D$5000=D$3)*(Feuil1!$E$2:$E$5000)) -> 180 | E101: =SUMPRODUCT((Feuil1!$B$2:$B$5000=$B101)*(Feuil1!$D$2:$D$5000=E$3)*(Feuil1!$E$2:$E$5000)) -> 180 | F101: =SUMPRODUCT((Feuil1!$B$2:$B$5000=$B101)*(Feuil1!$D$2:$D$5000=F$3)*(Feuil1!$E$2:$E$5000)) -> 180 | G101: =SUMPRODUCT((Feuil1!$B$2:$B$5000=$B101)*(Feuil1!$D$2:$D$5000=G$3)*(Feuil1!$E$2:$E$5000)) -> 180 | H101: =SUMPRODUCT((Feuil1!$B$2:$B$5000=$B101)*(Feuil1!$D$2:$D$5000=H$3)*(Feuil1!$E$2:$E$5000)) -> 180 | I101: =SUMPRODUCT((Feuil1!$B$2:$B$5000=$B101)*(Feuil1!$D$2:$D$5000=I$3)*(Feuil1!$E$2:$E$5000)) -> 180 | J101: =SUMPRODUCT((Feuil1!$B$2:$B$5000=$B101)*(Feuil1!$D$2:$D$5000=J$3)*(Feuil1!$E$2:$E$5000)) -> 180 | K101: =SUMPRODUCT((Feuil1!$B$2:$B$5000=$B101)*(Feuil1!$D$2:$D$5000=K$3)*(Feuil1!$E$2:$E$5000)) -> 180 | L101: =SUMPRODUCT((Feuil1!$B$2:$B$5000=$B101)*(Feuil1!$D$2:$D$5000=L$3)*(Feuil1!$E$2:$E$5000)) -> 180 | M101: =SUMPRODUCT((Feuil1!$B$2:$B$5000=$B101)*(Feuil1!$D$2:$D$5000=M$3)*(Feuil1!$E$2:$E$5000)) -> 0 | N101: =SUMPRODUCT((Feuil1!$B$2:$B$5000=$B101)*(Feuil1!$D$2:$D$5000=N$3)*(Feuil1!$E$2:$E$5000)) -> 0 | O101: =SUMPRODUCT((Feuil1!$B$2:$B$5000=$B101)*(Feuil1!$D$2:$D$5000=O$3)*(Feuil1!$E$2:$E$5000)) -> 0 | P101: =SUMPRODUCT((Feuil1!$B$2:$B$5000=$B101)*(Feuil1!$D$2:$D$5000=P$3)*(Feuil1!$E$2:$E$5000)) -> 0 | Q101: =SUMPRODUCT((Feuil1!$B$2:$B$5000=$B101)*(Feuil1!$D$2:$D$5000=Q$3)*(Feuil1!$E$2:$E$5000)) -> 0 | R101: =SUMPRODUCT((Feuil1!$B$2:$B$5000=$B101)*(Feuil1!$D$2:$D$5000=R$3)*(Feuil1!$E$2:$E$5000)) -> 0
A102: =IF(B102="","",MAX($A$3:A101)+1) -> 99 | B102: =IF(ROWS(B$1:B99)>COUNTIF(Feuil1!$A$2:$A$5000,$A$1),"",INDEX(Feuil1!$B$2:$B$5000,SMALL(IF(Feuil1!$A$2:$A$5000<>"",IF(Feuil1!$A$2:$A$5000=$A$1,ROW($A$2:$A$5000)-ROW($A$2)+1)),ROWS(B$1:B99)))) -> 6279 | C102: =SUMPRODUCT((Feuil1!$B$2:$B$5000=$B102)*(Feuil1!$D$2:$D$5000=C$3)*(Feuil1!$E$2:$E$5000)) -> 180 | D102: =SUMPRODUCT((Feuil1!$B$2:$B$5000=$B102)*(Feuil1!$D$2:$D$5000=D$3)*(Feuil1!$E$2:$E$5000)) -> 180 | E102: =SUMPRODUCT((Feuil1!$B$2:$B$5000=$B102)*(Feuil1!$D$2:$D$5000=E$3)*(Feuil1!$E$2:$E$5000)) -> 180 | F102: =SUMPRODUCT((Feuil1!$B$2:$B$5000=$B102)*(Feuil1!$D$2:$D$5000=F$3)*(Feuil1!$E$2:$E$5000)) -> 180 | G102: =SUMPRODUCT((Feuil1!$B$2:$B$5000=$B102)*(Feuil1!$D$2:$D$5000=G$3)*(Feuil1!$E$2:$E$5000)) -> 180 | H102: =SUMPRODUCT((Feuil1!$B$2:$B$5000=$B102)*(Feuil1!$D$2:$D$5000=H$3)*(Feuil1!$E$2:$E$5000)) -> 180 | I102: =SUMPRODUCT((Feuil1!$B$2:$B$5000=$B102)*(Feuil1!$D$2:$D$5000=I$3)*(Feuil1!$E$2:$E$5000)) -> 180 | J102: =SUMPRODUCT((Feuil1!$B$2:$B$5000=$B102)*(Feuil1!$D$2:$D$5000=J$3)*(Feuil1!$E$2:$E$5000)) -> 180 | K102: =SUMPRODUCT((Feuil1!$B$2:$B$5000=$B102)*(Feuil1!$D$2:$D$5000=K$3)*(Feuil1!$E$2:$E$5000)) -> 180 | L102: =SUMPRODUCT((Feuil1!$B$2:$B$5000=$B102)*(Feuil1!$D$2:$D$5000=L$3)*(Feuil1!$E$2:$E$5000)) -> 180 | M102: =SUMPRODUCT((Feuil1!$B$2:$B$5000=$B102)*(Feuil1!$D$2:$D$5000=M$3)*(Feuil1!$E$2:$E$5000)) -> 0 | N102: =SUMPRODUCT((Feuil1!$B$2:$B$5000=$B102)*(Feuil1!$D$2:$D$5000=N$3)*(Feuil1!$E$2:$E$5000)) -> 0 | O102: =SUMPRODUCT((Feuil1!$B$2:$B$5000=$B102)*(Feuil1!$D$2:$D$5000=O$3)*(Feuil1!$E$2:$E$5000)) -> 0 | P102: =SUMPRODUCT((Feuil1!$B$2:$B$5000=$B102)*(Feuil1!$D$2:$D$5000=P$3)*(Feuil1!$E$2:$E$5000)) -> 0 | Q102: =SUMPRODUCT((Feuil1!$B$2:$B$5000=$B102)*(Feuil1!$D$2:$D$5000=Q$3)*(Feuil1!$E$2:$E$5000)) -> 0 | R102: =SUMPRODUCT((Feuil1!$B$2:$B$5000=$B102)*(Feuil1!$D$2:$D$5000=R$3)*(Feuil1!$E$2:$E$5000)) -> 0
A103: =IF(B103="","",MAX($A$3:A102)+1) -> 100 | B103: =IF(ROWS(B$1:B100)>COUNTIF(Feuil1!$A$2:$A$5000,$A$1),"",INDEX(Feuil1!$B$2:$B$5000,SMALL(IF(Feuil1!$A$2:$A$5000<>"",IF(Feuil1!$A$2:$A$5000=$A$1,ROW($A$2:$A$5000)-ROW($A$2)+1)),ROWS(B$1:B100)))) -> 6280 | C103: =SUMPRODUCT((Feuil1!$B$2:$B$5000=$B103)*(Feuil1!$D$2:$D$5000=C$3)*(Feuil1!$E$2:$E$5000)) -> 180 | D103: =SUMPRODUCT((Feuil1!$B$2:$B$5000=$B103)*(Feuil1!$D$2:$D$5000=D$3)*(Feuil1!$E$2:$E$5000)) -> 180 | E103: =SUMPRODUCT((Feuil1!$B$2:$B$5000=$B103)*(Feuil1!$D$2:$D$5000=E$3)*(Feuil1!$E$2:$E$5000)) -> 180 | F103: =SUMPRODUCT((Feuil1!$B$2:$B$5000=$B103)*(Feuil1!$D$2:$D$5000=F$3)*(Feuil1!$E$2:$E$5000)) -> 180 | G103: =SUMPRODUCT((Feuil1!$B$2:$B$5000=$B103)*(Feuil1!$D$2:$D$5000=G$3)*(Feuil1!$E$2:$E$5000)) -> 180 | H103: =SUMPRODUCT((Feuil1!$B$2:$B$5000=$B103)*(Feuil1!$D$2:$D$5000=H$3)*(Feuil1!$E$2:$E$5000)) -> 180 | I103: =SUMPRODUCT((Feuil1!$B$2:$B$5000=$B103)*(Feuil1!$D$2:$D$5000=I$3)*(Feuil1!$E$2:$E$5000)) -> 180 | J103: =SUMPRODUCT((Feuil1!$B$2:$B$5000=$B103)*(Feuil1!$D$2:$D$5000=J$3)*(Feuil1!$E$2:$E$5000)) -> 180 | K103: =SUMPRODUCT((Feuil1!$B$2:$B$5000=$B103)*(Feuil1!$D$2:$D$5000=K$3)*(Feuil1!$E$2:$E$5000)) -> 180 | L103: =SUMPRODUCT((Feuil1!$B$2:$B$5000=$B103)*(Feuil1!$D$2:$D$5000=L$3)*(Feuil1!$E$2:$E$5000)) -> 180 | M103: =SUMPRODUCT((Feuil1!$B$2:$B$5000=$B103)*(Feuil1!$D$2:$D$5000=M$3)*(Feuil1!$E$2:$E$5000)) -> 0 | N103: =SUMPRODUCT((Feuil1!$B$2:$B$5000=$B103)*(Feuil1!$D$2:$D$5000=N$3)*(Feuil1!$E$2:$E$5000)) -> 0 | O103: =SUMPRODUCT((Feuil1!$B$2:$B$5000=$B103)*(Feuil1!$D$2:$D$5000=O$3)*(Feuil1!$E$2:$E$5000)) -> 0 | P103: =SUMPRODUCT((Feuil1!$B$2:$B$5000=$B103)*(Feuil1!$D$2:$D$5000=P$3)*(Feuil1!$E$2:$E$5000)) -> 0 | Q103: =SUMPRODUCT((Feuil1!$B$2:$B$5000=$B103)*(Feuil1!$D$2:$D$5000=Q$3)*(Feuil1!$E$2:$E$5000)) -> 0 | R103: =SUMPRODUCT((Feuil1!$B$2:$B$5000=$B103)*(Feuil1!$D$2:$D$5000=R$3)*(Feuil1!$E$2:$E$5000)) -> 0
A104: =IF(B104="","",MAX($A$3:A103)+1) -> 101 | B104: =IF(ROWS(B$1:B101)>COUNTIF(Feuil1!$A$2:$A$5000,$A$1),"",INDEX(Feuil1!$B$2:$B$5000,SMALL(IF(Feuil1!$A$2:$A$5000<>"",IF(Feuil1!$A$2:$A$5000=$A$1,ROW($A$2:$A$5000)-ROW($A$2)+1)),ROWS(B$1:B101)))) -> 6280 | C104: =SUMPRODUCT((Feuil1!$B$2:$B$5000=$B104)*(Feuil1!$D$2:$D$5000=C$3)*(Feuil1!$E$2:$E$5000)) -> 180 | D104: =SUMPRODUCT((Feuil1!$B$2:$B$5000=$B104)*(Feuil1!$D$2:$D$5000=D$3)*(Feuil1!$E$2:$E$5000)) -> 180 | E104: =SUMPRODUCT((Feuil1!$B$2:$B$5000=$B104)*(Feuil1!$D$2:$D$5000=E$3)*(Feuil1!$E$2:$E$5000)) -> 180 | F104: =SUMPRODUCT((Feuil1!$B$2:$B$5000=$B104)*(Feuil1!$D$2:$D$5000=F$3)*(Feuil1!$E$2:$E$5000)) -> 180 | G104: =SUMPRODUCT((Feuil1!$B$2:$B$5000=$B104)*(Feuil1!$D$2:$D$5000=G$3)*(Feuil1!$E$2:$E$5000)) -> 180 | H104: =SUMPRODUCT((Feuil1!$B$2:$B$5000=$B104)*(Feuil1!$D$2:$D$5000=H$3)*(Feuil1!$E$2:$E$5000)) -> 180 | I104: =SUMPRODUCT((Feuil1!$B$2:$B$5000=$B104)*(Feuil1!$D$2:$D$5000=I$3)*(Feuil1!$E$2:$E$5000)) -> 180 | J104: =SUMPRODUCT((Feuil1!$B$2:$B$5000=$B104)*(Feuil1!$D$2:$D$5000=J$3)*(Feuil1!$E$2:$E$5000)) -> 180 | K104: =SUMPRODUCT((Feuil1!$B$2:$B$5000=$B104)*(Feuil1!$D$2:$D$5000=K$3)*(Feuil1!$E$2:$E$5000)) -> 180 | L104: =SUMPRODUCT((Feuil1!$B$2:$B$5000=$B104)*(Feuil1!$D$2:$D$5000=L$3)*(Feuil1!$E$2:$E$5000)) -> 180 | M104: =SUMPRODUCT((Feuil1!$B$2:$B$5000=$B104)*(Feuil1!$D$2:$D$5000=M$3)*(Feuil1!$E$2:$E$5000)) -> 0 | N104: =SUMPRODUCT((Feuil1!$B$2:$B$5000=$B104)*(Feuil1!$D$2:$D$5000=N$3)*(Feuil1!$E$2:$E$5000)) -> 0 | O104: =SUMPRODUCT((Feuil1!$B$2:$B$5000=$B104)*(Feuil1!$D$2:$D$5000=O$3)*(Feuil1!$E$2:$E$5000)) -> 0 | P104: =SUMPRODUCT((Feuil1!$B$2:$B$5000=$B104)*(Feuil1!$D$2:$D$5000=P$3)*(Feuil1!$E$2:$E$5000)) -> 0 | Q104: =SUMPRODUCT((Feuil1!$B$2:$B$5000=$B104)*(Feuil1!$D$2:$D$5000=Q$3)*(Feuil1!$E$2:$E$5000)) -> 0 | R104: =SUMPRODUCT((Feuil1!$B$2:$B$5000=$B104)*(Feuil1!$D$2:$D$5000=R$3)*(Feuil1!$E$2:$E$5000)) -> 0
A105: =IF(B105="","",MAX($A$3:A104)+1) -> 102 | B105: =IF(ROWS(B$1:B102)>COUNTIF(Feuil1!$A$2:$A$5000,$A$1),"",INDEX(Feuil1!$B$2:$B$5000,SMALL(IF(Feuil1!$A$2:$A$5000<>"",IF(Feuil1!$A$2:$A$5000=$A$1,ROW($A$2:$A$5000)-ROW($A$2)+1)),ROWS(B$1:B102)))) -> 6280 | C105: =SUMPRODUCT((Feuil1!$B$2:$B$5000=$B105)*(Feuil1!$D$2:$D$5000=C$3)*(Feuil1!$E$2:$E$5000)) -> 180 | D105: =SUMPRODUCT((Feuil1!$B$2:$B$5000=$B105)*(Feuil1!$D$2:$D$5000=D$3)*(Feuil1!$E$2:$E$5000)) -> 180 | E105: =SUMPRODUCT((Feuil1!$B$2:$B$5000=$B105)*(Feuil1!$D$2:$D$5000=E$3)*(Feuil1!$E$2:$E$5000)) -> 180 | F105: =SUMPRODUCT((Feuil1!$B$2:$B$5000=$B105)*(Feuil1!$D$2:$D$5000=F$3)*(Feuil1!$E$2:$E$5000)) -> 180 | G105: =SUMPRODUCT((Feuil1!$B$2:$B$5000=$B105)*(Feuil1!$D$2:$D$5000=G$3)*(Feuil1!$E$2:$E$5000)) -> 180 | H105: =SUMPRODUCT((Feuil1!$B$2:$B$5000=$B105)*(Feuil1!$D$2:$D$5000=H$3)*(Feuil1!$E$2:$E$5000)) -> 180 | I105: =SUMPRODUCT((Feuil1!$B$2:$B$5000=$B105)*(Feuil1!$D$2:$D$5000=I$3)*(Feuil1!$E$2:$E$5000)) -> 180 | J105: =SUMPRODUCT((Feuil1!$B$2:$B$5000=$B105)*(Feuil1!$D$2:$D$5000=J$3)*(Feuil1!$E$2:$E$5000)) -> 180 | K105: =SUMPRODUCT((Feuil1!$B$2:$B$5000=$B105)*(Feuil1!$D$2:$D$5000=K$3)*(Feuil1!$E$2:$E$5000)) -> 180 | L105: =SUMPRODUCT((Feuil1!$B$2:$B$5000=$B105)*(Feuil1!$D$2:$D$5000=L$3)*(Feuil1!$E$2:$E$5000)) -> 180 | M105: =SUMPRODUCT((Feuil1!$B$2:$B$5000=$B105)*(Feuil1!$D$2:$D$5000=M$3)*(Feuil1!$E$2:$E$5000)) -> 0 | N105: =SUMPRODUCT((Feuil1!$B$2:$B$5000=$B105)*(Feuil1!$D$2:$D$5000=N$3)*(Feuil1!$E$2:$E$5000)) -> 0 | O105: =SUMPRODUCT((Feuil1!$B$2:$B$5000=$B105)*(Feuil1!$D$2:$D$5000=O$3)*(Feuil1!$E$2:$E$5000)) -> 0 | P105: =SUMPRODUCT((Feuil1!$B$2:$B$5000=$B105)*(Feuil1!$D$2:$D$5000=P$3)*(Feuil1!$E$2:$E$5000)) -> 0 | Q105: =SUMPRODUCT((Feuil1!$B$2:$B$5000=$B105)*(Feuil1!$D$2:$D$5000=Q$3)*(Feuil1!$E$2:$E$5000)) -> 0 | R105: =SUMPRODUCT((Feuil1!$B$2:$B$5000=$B105)*(Feuil1!$D$2:$D$5000=R$3)*(Feuil1!$E$2:$E$5000)) -> 0
A106: =IF(B106="","",MAX($A$3:A105)+1) -> 103 | B106: =IF(ROWS(B$1:B103)>COUNTIF(Feuil1!$A$2:$A$5000,$A$1),"",INDEX(Feuil1!$B$2:$B$5000,SMALL(IF(Feuil1!$A$2:$A$5000<>"",IF(Feuil1!$A$2:$A$5000=$A$1,ROW($A$2:$A$5000)-ROW($A$2)+1)),ROWS(B$1:B103)))) -> 6280 | C106: =SUMPRODUCT((Feuil1!$B$2:$B$5000=$B106)*(Feuil1!$D$2:$D$5000=C$3)*(Feuil1!$E$2:$E$5000)) -> 180 | D106: =SUMPRODUCT((Feuil1!$B$2:$B$5000=$B106)*(Feuil1!$D$2:$D$5000=D$3)*(Feuil1!$E$2:$E$5000)) -> 180 | E106: =SUMPRODUCT((Feuil1!$B$2:$B$5000=$B106)*(Feuil1!$D$2:$D$5000=E$3)*(Feuil1!$E$2:$E$5000)) -> 180 | F106: =SUMPRODUCT((Feuil1!$B$2:$B$5000=$B106)*(Feuil1!$D$2:$D$5000=F$3)*(Feuil1!$E$2:$E$5000)) -> 180 | G106: =SUMPRODUCT((Feuil1!$B$2:$B$5000=$B106)*(Feuil1!$D$2:$D$5000=G$3)*(Feuil1!$E$2:$E$5000)) -> 180 | H106: =SUMPRODUCT((Feuil1!$B$2:$B$5000=$B106)*(Feuil1!$D$2:$D$5000=H$3)*(Feuil1!$E$2:$E$5000)) -> 180 | I106: =SUMPRODUCT((Feuil1!$B$2:$B$5000=$B106)*(Feuil1!$D$2:$D$5000=I$3)*(Feuil1!$E$2:$E$5000)) -> 180 | J106: =SUMPRODUCT((Feuil1!$B$2:$B$5000=$B106)*(Feuil1!$D$2:$D$5000=J$3)*(Feuil1!$E$2:$E$5000)) -> 180 | K106: =SUMPRODUCT((Feuil1!$B$2:$B$5000=$B106)*(Feuil1!$D$2:$D$5000=K$3)*(Feuil1!$E$2:$E$5000)) -> 180 | L106: =SUMPRODUCT((Feuil1!$B$2:$B$5000=$B106)*(Feuil1!$D$2:$D$5000=L$3)*(Feuil1!$E$2:$E$5000)) -> 180 | M106: =SUMPRODUCT((Feuil1!$B$2:$B$5000=$B106)*(Feuil1!$D$2:$D$5000=M$3)*(Feuil1!$E$2:$E$5000)) -> 0 | N106: =SUMPRODUCT((Feuil1!$B$2:$B$5000=$B106)*(Feuil1!$D$2:$D$5000=N$3)*(Feuil1!$E$2:$E$5000)) -> 0 | O106: =SUMPRODUCT((Feuil1!$B$2:$B$5000=$B106)*(Feuil1!$D$2:$D$5000=O$3)*(Feuil1!$E$2:$E$5000)) -> 0 | P106: =SUMPRODUCT((Feuil1!$B$2:$B$5000=$B106)*(Feuil1!$D$2:$D$5000=P$3)*(Feuil1!$E$2:$E$5000)) -> 0 | Q106: =SUMPRODUCT((Feuil1!$B$2:$B$5000=$B106)*(Feuil1!$D$2:$D$5000=Q$3)*(Feuil1!$E$2:$E$5000)) -> 0 | R106: =SUMPRODUCT((Feuil1!$B$2:$B$5000=$B106)*(Feuil1!$D$2:$D$5000=R$3)*(Feuil1!$E$2:$E$5000)) -> 0
A107: =IF(B107="","",MAX($A$3:A106)+1) -> 104 | B107: =IF(ROWS(B$1:B104)>COUNTIF(Feuil1!$A$2:$A$5000,$A$1),"",INDEX(Feuil1!$B$2:$B$5000,SMALL(IF(Feuil1!$A$2:$A$5000<>"",IF(Feuil1!$A$2:$A$5000=$A$1,ROW($A$2:$A$5000)-ROW($A$2)+1)),ROWS(B$1:B104)))) -> 6280 | C107: =SUMPRODUCT((Feuil1!$B$2:$B$5000=$B107)*(Feuil1!$D$2:$D$5000=C$3)*(Feuil1!$E$2:$E$5000)) -> 180 | D107: =SUMPRODUCT((Feuil1!$B$2:$B$5000=$B107)*(Feuil1!$D$2:$D$5000=D$3)*(Feuil1!$E$2:$E$5000)) -> 180 | E107: =SUMPRODUCT((Feuil1!$B$2:$B$5000=$B107)*(Feuil1!$D$2:$D$5000=E$3)*(Feuil1!$E$2:$E$5000)) -> 180 | F107: =SUMPRODUCT((Feuil1!$B$2:$B$5000=$B107)*(Feuil1!$D$2:$D$5000=F$3)*(Feuil1!$E$2:$E$5000)) -> 180 | G107: =SUMPRODUCT((Feuil1!$B$2:$B$5000=$B107)*(Feuil1!$D$2:$D$5000=G$3)*(Feuil1!$E$2:$E$5000)) -> 180 | H107: =SUMPRODUCT((Feuil1!$B$2:$B$5000=$B107)*(Feuil1!$D$2:$D$5000=H$3)*(Feuil1!$E$2:$E$5000)) -> 180 | I107: =SUMPRODUCT((Feuil1!$B$2:$B$5000=$B107)*(Feuil1!$D$2:$D$5000=I$3)*(Feuil1!$E$2:$E$5000)) -> 180 | J107: =SUMPRODUCT((Feuil1!$B$2:$B$5000=$B107)*(Feuil1!$D$2:$D$5000=J$3)*(Feuil1!$E$2:$E$5000)) -> 180 | K107: =SUMPRODUCT((Feuil1!$B$2:$B$5000=$B107)*(Feuil1!$D$2:$D$5000=K$3)*(Feuil1!$E$2:$E$5000)) -> 180 | L107: =SUMPRODUCT((Feuil1!$B$2:$B$5000=$B107)*(Feuil1!$D$2:$D$5000=L$3)*(Feuil1!$E$2:$E$5000)) -> 180 | M107: =SUMPRODUCT((Feuil1!$B$2:$B$5000=$B107)*(Feuil1!$D$2:$D$5000=M$3)*(Feuil1!$E$2:$E$5000)) -> 0 | N107: =SUMPRODUCT((Feuil1!$B$2:$B$5000=$B107)*(Feuil1!$D$2:$D$5000=N$3)*(Feuil1!$E$2:$E$5000)) -> 0 | O107: =SUMPRODUCT((Feuil1!$B$2:$B$5000=$B107)*(Feuil1!$D$2:$D$5000=O$3)*(Feuil1!$E$2:$E$5000)) -> 0 | P107: =SUMPRODUCT((Feuil1!$B$2:$B$5000=$B107)*(Feuil1!$D$2:$D$5000=P$3)*(Feuil1!$E$2:$E$5000)) -> 0 | Q107: =SUMPRODUCT((Feuil1!$B$2:$B$5000=$B107)*(Feuil1!$D$2:$D$5000=Q$3)*(Feuil1!$E$2:$E$5000)) -> 0 | R107: =SUMPRODUCT((Feuil1!$B$2:$B$5000=$B107)*(Feuil1!$D$2:$D$5000=R$3)*(Feuil1!$E$2:$E$5000)) -> 0
A108: =IF(B108="","",MAX($A$3:A107)+1) -> 105 | B108: =IF(ROWS(B$1:B105)>COUNTIF(Feuil1!$A$2:$A$5000,$A$1),"",INDEX(Feuil1!$B$2:$B$5000,SMALL(IF(Feuil1!$A$2:$A$5000<>"",IF(Feuil1!$A$2:$A$5000=$A$1,ROW($A$2:$A$5000)-ROW($A$2)+1)),ROWS(B$1:B105)))) -> 6281 | C108: =SUMPRODUCT((Feuil1!$B$2:$B$5000=$B108)*(Feuil1!$D$2:$D$5000=C$3)*(Feuil1!$E$2:$E$5000)) -> 180 | D108: =SUMPRODUCT((Feuil1!$B$2:$B$5000=$B108)*(Feuil1!$D$2:$D$5000=D$3)*(Feuil1!$E$2:$E$5000)) -> 180 | E108: =SUMPRODUCT((Feuil1!$B$2:$B$5000=$B108)*(Feuil1!$D$2:$D$5000=E$3)*(Feuil1!$E$2:$E$5000)) -> 180 | F108: =SUMPRODUCT((Feuil1!$B$2:$B$5000=$B108)*(Feuil1!$D$2:$D$5000=F$3)*(Feuil1!$E$2:$E$5000)) -> 180 | G108: =SUMPRODUCT((Feuil1!$B$2:$B$5000=$B108)*(Feuil1!$D$2:$D$5000=G$3)*(Feuil1!$E$2:$E$5000)) -> 180 | H108: =SUMPRODUCT((Feuil1!$B$2:$B$5000=$B108)*(Feuil1!$D$2:$D$5000=H$3)*(Feuil1!$E$2:$E$5000)) -> 180 | I108: =SUMPRODUCT((Feuil1!$B$2:$B$5000=$B108)*(Feuil1!$D$2:$D$5000=I$3)*(Feuil1!$E$2:$E$5000)) -> 180 | J108: =SUMPRODUCT((Feuil1!$B$2:$B$5000=$B108)*(Feuil1!$D$2:$D$5000=J$3)*(Feuil1!$E$2:$E$5000)) -> 180 | K108: =SUMPRODUCT((Feuil1!$B$2:$B$5000=$B108)*(Feuil1!$D$2:$D$5000=K$3)*(Feuil1!$E$2:$E$5000)) -> 180 | L108: =SUMPRODUCT((Feuil1!$B$2:$B$5000=$B108)*(Feuil1!$D$2:$D$5000=L$3)*(Feuil1!$E$2:$E$5000)) -> 180 | M108: =SUMPRODUCT((Feuil1!$B$2:$B$5000=$B108)*(Feuil1!$D$2:$D$5000=M$3)*(Feuil1!$E$2:$E$5000)) -> 0 | N108: =SUMPRODUCT((Feuil1!$B$2:$B$5000=$B108)*(Feuil1!$D$2:$D$5000=N$3)*(Feuil1!$E$2:$E$5000)) -> 0 | O108: =SUMPRODUCT((Feuil1!$B$2:$B$5000=$B108)*(Feuil1!$D$2:$D$5000=O$3)*(Feuil1!$E$2:$E$5000)) -> 0 | P108: =SUMPRODUCT((Feuil1!$B$2:$B$5000=$B108)*(Feuil1!$D$2:$D$5000=P$3)*(Feuil1!$E$2:$E$5000)) -> 0 | Q108: =SUMPRODUCT((Feuil1!$B$2:$B$5000=$B108)*(Feuil1!$D$2:$D$5000=Q$3)*(Feuil1!$E$2:$E$5000)) -> 0 | R108: =SUMPRODUCT((Feuil1!$B$2:$B$5000=$B108)*(Feuil1!$D$2:$D$5000=R$3)*(Feuil1!$E$2:$E$5000)) -> 0
A109: =IF(B109="","",MAX($A$3:A108)+1) -> 106 | B109: =IF(ROWS(B$1:B106)>COUNTIF(Feuil1!$A$2:$A$5000,$A$1),"",INDEX(Feuil1!$B$2:$B$5000,SMALL(IF(Feuil1!$A$2:$A$5000<>"",IF(Feuil1!$A$2:$A$5000=$A$1,ROW($A$2:$A$5000)-ROW($A$2)+1)),ROWS(B$1:B106)))) -> 6281 | C109: =SUMPRODUCT((Feuil1!$B$2:$B$5000=$B109)*(Feuil1!$D$2:$D$5000=C$3)*(Feuil1!$E$2:$E$5000)) -> 180 | D109: =SUMPRODUCT((Feuil1!$B$2:$B$5000=$B109)*(Feuil1!$D$2:$D$5000=D$3)*(Feuil1!$E$2:$E$5000)) -> 180 | E109: =SUMPRODUCT((Feuil1!$B$2:$B$5000=$B109)*(Feuil1!$D$2:$D$5000=E$3)*(Feuil1!$E$2:$E$5000)) -> 180 | F109: =SUMPRODUCT((Feuil1!$B$2:$B$5000=$B109)*(Feuil1!$D$2:$D$5000=F$3)*(Feuil1!$E$2:$E$5000)) -> 180 | G109: =SUMPRODUCT((Feuil1!$B$2:$B$5000=$B109)*(Feuil1!$D$2:$D$5000=G$3)*(Feuil1!$E$2:$E$5000)) -> 180 | H109: =SUMPRODUCT((Feuil1!$B$2:$B$5000=$B109)*(Feuil1!$D$2:$D$5000=H$3)*(Feuil1!$E$2:$E$5000)) -> 180 | I109: =SUMPRODUCT((Feuil1!$B$2:$B$5000=$B109)*(Feuil1!$D$2:$D$5000=I$3)*(Feuil1!$E$2:$E$5000)) -> 180 | J109: =SUMPRODUCT((Feuil1!$B$2:$B$5000=$B109)*(Feuil1!$D$2:$D$5000=J$3)*(Feuil1!$E$2:$E$5000)) -> 180 | K109: =SUMPRODUCT((Feuil1!$B$2:$B$5000=$B109)*(Feuil1!$D$2:$D$5000=K$3)*(Feuil1!$E$2:$E$5000)) -> 180 | L109: =SUMPRODUCT((Feuil1!$B$2:$B$5000=$B109)*(Feuil1!$D$2:$D$5000=L$3)*(Feuil1!$E$2:$E$5000)) -> 180 | M109: =SUMPRODUCT((Feuil1!$B$2:$B$5000=$B109)*(Feuil1!$D$2:$D$5000=M$3)*(Feuil1!$E$2:$E$5000)) -> 0 | N109: =SUMPRODUCT((Feuil1!$B$2:$B$5000=$B109)*(Feuil1!$D$2:$D$5000=N$3)*(Feuil1!$E$2:$E$5000)) -> 0 | O109: =SUMPRODUCT((Feuil1!$B$2:$B$5000=$B109)*(Feuil1!$D$2:$D$5000=O$3)*(Feuil1!$E$2:$E$5000)) -> 0 | P109: =SUMPRODUCT((Feuil1!$B$2:$B$5000=$B109)*(Feuil1!$D$2:$D$5000=P$3)*(Feuil1!$E$2:$E$5000)) -> 0 | Q109: =SUMPRODUCT((Feuil1!$B$2:$B$5000=$B109)*(Feuil1!$D$2:$D$5000=Q$3)*(Feuil1!$E$2:$E$5000)) -> 0 | R109: =SUMPRODUCT((Feuil1!$B$2:$B$5000=$B109)*(Feuil1!$D$2:$D$5000=R$3)*(Feuil1!$E$2:$E$5000)) -> 0
A110: =IF(B110="","",MAX($A$3:A109)+1) -> 107 | B110: =IF(ROWS(B$1:B107)>COUNTIF(Feuil1!$A$2:$A$5000,$A$1),"",INDEX(Feuil1!$B$2:$B$5000,SMALL(IF(Feuil1!$A$2:$A$5000<>"",IF(Feuil1!$A$2:$A$5000=$A$1,ROW($A$2:$A$5000)-ROW($A$2)+1)),ROWS(B$1:B107)))) -> 6281 | C110: =SUMPRODUCT((Feuil1!$B$2:$B$5000=$B110)*(Feuil1!$D$2:$D$5000=C$3)*(Feuil1!$E$2:$E$5000)) -> 180 | D110: =SUMPRODUCT((Feuil1!$B$2:$B$5000=$B110)*(Feuil1!$D$2:$D$5000=D$3)*(Feuil1!$E$2:$E$5000)) -> 180 | E110: =SUMPRODUCT((Feuil1!$B$2:$B$5000=$B110)*(Feuil1!$D$2:$D$5000=E$3)*(Feuil1!$E$2:$E$5000)) -> 180 | F110: =SUMPRODUCT((Feuil1!$B$2:$B$5000=$B110)*(Feuil1!$D$2:$D$5000=F$3)*(Feuil1!$E$2:$E$5000)) -> 180 | G110: =SUMPRODUCT((Feuil1!$B$2:$B$5000=$B110)*(Feuil1!$D$2:$D$5000=G$3)*(Feuil1!$E$2:$E$5000)) -> 180 | H110: =SUMPRODUCT((Feuil1!$B$2:$B$5000=$B110)*(Feuil1!$D$2:$D$5000=H$3)*(Feuil1!$E$2:$E$5000)) -> 180 | I110: =SUMPRODUCT((Feuil1!$B$2:$B$5000=$B110)*(Feuil1!$D$2:$D$5000=I$3)*(Feuil1!$E$2:$E$5000)) -> 180 | J110: =SUMPRODUCT((Feuil1!$B$2:$B$5000=$B110)*(Feuil1!$D$2:$D$5000=J$3)*(Feuil1!$E$2:$E$5000)) -> 180 | K110: =SUMPRODUCT((Feuil1!$B$2:$B$5000=$B110)*(Feuil1!$D$2:$D$5000=K$3)*(Feuil1!$E$2:$E$5000)) -> 180 | L110: =SUMPRODUCT((Feuil1!$B$2:$B$5000=$B110)*(Feuil1!$D$2:$D$5000=L$3)*(Feuil1!$E$2:$E$5000)) -> 180 | M110: =SUMPRODUCT((Feuil1!$B$2:$B$5000=$B110)*(Feuil1!$D$2:$D$5000=M$3)*(Feuil1!$E$2:$E$5000)) -> 0 | N110: =SUMPRODUCT((Feuil1!$B$2:$B$5000=$B110)*(Feuil1!$D$2:$D$5000=N$3)*(Feuil1!$E$2:$E$5000)) -> 0 | O110: =SUMPRODUCT((Feuil1!$B$2:$B$5000=$B110)*(Feuil1!$D$2:$D$5000=O$3)*(Feuil1!$E$2:$E$5000)) -> 0 | P110: =SUMPRODUCT((Feuil1!$B$2:$B$5000=$B110)*(Feuil1!$D$2:$D$5000=P$3)*(Feuil1!$E$2:$E$5000)) -> 0 | Q110: =SUMPRODUCT((Feuil1!$B$2:$B$5000=$B110)*(Feuil1!$D$2:$D$5000=Q$3)*(Feuil1!$E$2:$E$5000)) -> 0 | R110: =SUMPRODUCT((Feuil1!$B$2:$B$5000=$B110)*(Feuil1!$D$2:$D$5000=R$3)*(Feuil1!$E$2:$E$5000)) -> 0
A111: =IF(B111="","",MAX($A$3:A110)+1) -> 108 | B111: =IF(ROWS(B$1:B108)>COUNTIF(Feuil1!$A$2:$A$5000,$A$1),"",INDEX(Feuil1!$B$2:$B$5000,SMALL(IF(Feuil1!$A$2:$A$5000<>"",IF(Feuil1!$A$2:$A$5000=$A$1,ROW($A$2:$A$5000)-ROW($A$2)+1)),ROWS(B$1:B108)))) -> 6281 | C111: =SUMPRODUCT((Feuil1!$B$2:$B$5000=$B111)*(Feuil1!$D$2:$D$5000=C$3)*(Feuil1!$E$2:$E$5000)) -> 180 | D111: =SUMPRODUCT((Feuil1!$B$2:$B$5000=$B111)*(Feuil1!$D$2:$D$5000=D$3)*(Feuil1!$E$2:$E$5000)) -> 180 | E111: =SUMPRODUCT((Feuil1!$B$2:$B$5000=$B111)*(Feuil1!$D$2:$D$5000=E$3)*(Feuil1!$E$2:$E$5000)) -> 180 | F111: =SUMPRODUCT((Feuil1!$B$2:$B$5000=$B111)*(Feuil1!$D$2:$D$5000=F$3)*(Feuil1!$E$2:$E$5000)) -> 180 | G111: =SUMPRODUCT((Feuil1!$B$2:$B$5000=$B111)*(Feuil1!$D$2:$D$5000=G$3)*(Feuil1!$E$2:$E$5000)) -> 180 | H111: =SUMPRODUCT((Feuil1!$B$2:$B$5000=$B111)*(Feuil1!$D$2:$D$5000=H$3)*(Feuil1!$E$2:$E$5000)) -> 180 | I111: =SUMPRODUCT((Feuil1!$B$2:$B$5000=$B111)*(Feuil1!$D$2:$D$5000=I$3)*(Feuil1!$E$2:$E$5000)) -> 180 | J111: =SUMPRODUCT((Feuil1!$B$2:$B$5000=$B111)*(Feuil1!$D$2:$D$5000=J$3)*(Feuil1!$E$2:$E$5000)) -> 180 | K111: =SUMPRODUCT((Feuil1!$B$2:$B$5000=$B111)*(Feuil1!$D$2:$D$5000=K$3)*(Feuil1!$E$2:$E$5000)) -> 180 | L111: =SUMPRODUCT((Feuil1!$B$2:$B$5000=$B111)*(Feuil1!$D$2:$D$5000=L$3)*(Feuil1!$E$2:$E$5000)) -> 180 | M111: =SUMPRODUCT((Feuil1!$B$2:$B$5000=$B111)*(Feuil1!$D$2:$D$5000=M$3)*(Feuil1!$E$2:$E$5000)) -> 0 | N111: =SUMPRODUCT((Feuil1!$B$2:$B$5000=$B111)*(Feuil1!$D$2:$D$5000=N$3)*(Feuil1!$E$2:$E$5000)) -> 0 | O111: =SUMPRODUCT((Feuil1!$B$2:$B$5000=$B111)*(Feuil1!$D$2:$D$5000=O$3)*(Feuil1!$E$2:$E$5000)) -> 0 | P111: =SUMPRODUCT((Feuil1!$B$2:$B$5000=$B111)*(Feuil1!$D$2:$D$5000=P$3)*(Feuil1!$E$2:$E$5000)) -> 0 | Q111: =SUMPRODUCT((Feuil1!$B$2:$B$5000=$B111)*(Feuil1!$D$2:$D$5000=Q$3)*(Feuil1!$E$2:$E$5000)) -> 0 | R111: =SUMPRODUCT((Feuil1!$B$2:$B$5000=$B111)*(Feuil1!$D$2:$D$5000=R$3)*(Feuil1!$E$2:$E$5000)) -> 0
A112: =IF(B112="","",MAX($A$3:A111)+1) -> 109 | B112: =IF(ROWS(B$1:B109)>COUNTIF(Feuil1!$A$2:$A$5000,$A$1),"",INDEX(Feuil1!$B$2:$B$5000,SMALL(IF(Feuil1!$A$2:$A$5000<>"",IF(Feuil1!$A$2:$A$5000=$A$1,ROW($A$2:$A$5000)-ROW($A$2)+1)),ROWS(B$1:B109)))) -> 6281 | C112: =SUMPRODUCT((Feuil1!$B$2:$B$5000=$B112)*(Feuil1!$D$2:$D$5000=C$3)*(Feuil1!$E$2:$E$5000)) -> 180 | D112: =SUMPRODUCT((Feuil1!$B$2:$B$5000=$B112)*(Feuil1!$D$2:$D$5000=D$3)*(Feuil1!$E$2:$E$5000)) -> 180 | E112: =SUMPRODUCT((Feuil1!$B$2:$B$5000=$B112)*(Feuil1!$D$2:$D$5000=E$3)*(Feuil1!$E$2:$E$5000)) -> 180 | F112: =SUMPRODUCT((Feuil1!$B$2:$B$5000=$B112)*(Feuil1!$D$2:$D$5000=F$3)*(Feuil1!$E$2:$E$5000)) -> 180 | G112: =SUMPRODUCT((Feuil1!$B$2:$B$5000=$B112)*(Feuil1!$D$2:$D$5000=G$3)*(Feuil1!$E$2:$E$5000)) -> 180 | H112: =SUMPRODUCT((Feuil1!$B$2:$B$5000=$B112)*(Feuil1!$D$2:$D$5000=H$3)*(Feuil1!$E$2:$E$5000)) -> 180 | I112: =SUMPRODUCT((Feuil1!$B$2:$B$5000=$B112)*(Feuil1!$D$2:$D$5000=I$3)*(Feuil1!$E$2:$E$5000)) -> 180 | J112: =SUMPRODUCT((Feuil1!$B$2:$B$5000=$B112)*(Feuil1!$D$2:$D$5000=J$3)*(Feuil1!$E$2:$E$5000)) -> 180 | K112: =SUMPRODUCT((Feuil1!$B$2:$B$5000=$B112)*(Feuil1!$D$2:$D$5000=K$3)*(Feuil1!$E$2:$E$5000)) -> 180 | L112: =SUMPRODUCT((Feuil1!$B$2:$B$5000=$B112)*(Feuil1!$D$2:$D$5000=L$3)*(Feuil1!$E$2:$E$5000)) -> 180 | M112: =SUMPRODUCT((Feuil1!$B$2:$B$5000=$B112)*(Feuil1!$D$2:$D$5000=M$3)*(Feuil1!$E$2:$E$5000)) -> 0 | N112: =SUMPRODUCT((Feuil1!$B$2:$B$5000=$B112)*(Feuil1!$D$2:$D$5000=N$3)*(Feuil1!$E$2:$E$5000)) -> 0 | O112: =SUMPRODUCT((Feuil1!$B$2:$B$5000=$B112)*(Feuil1!$D$2:$D$5000=O$3)*(Feuil1!$E$2:$E$5000)) -> 0 | P112: =SUMPRODUCT((Feuil1!$B$2:$B$5000=$B112)*(Feuil1!$D$2:$D$5000=P$3)*(Feuil1!$E$2:$E$5000)) -> 0 | Q112: =SUMPRODUCT((Feuil1!$B$2:$B$5000=$B112)*(Feuil1!$D$2:$D$5000=Q$3)*(Feuil1!$E$2:$E$5000)) -> 0 | R112: =SUMPRODUCT((Feuil1!$B$2:$B$5000=$B112)*(Feuil1!$D$2:$D$5000=R$3)*(Feuil1!$E$2:$E$5000)) -> 0
A113: =IF(B113="","",MAX($A$3:A112)+1) -> 110 | B113: =IF(ROWS(B$1:B110)>COUNTIF(Feuil1!$A$2:$A$5000,$A$1),"",INDEX(Feuil1!$B$2:$B$5000,SMALL(IF(Feuil1!$A$2:$A$5000<>"",IF(Feuil1!$A$2:$A$5000=$A$1,ROW($A$2:$A$5000)-ROW($A$2)+1)),ROWS(B$1:B110)))) -> 6282 | C113: =SUMPRODUCT((Feuil1!$B$2:$B$5000=$B113)*(Feuil1!$D$2:$D$5000=C$3)*(Feuil1!$E$2:$E$5000)) -> 180 | D113: =SUMPRODUCT((Feuil1!$B$2:$B$5000=$B113)*(Feuil1!$D$2:$D$5000=D$3)*(Feuil1!$E$2:$E$5000)) -> 180 | E113: =SUMPRODUCT((Feuil1!$B$2:$B$5000=$B113)*(Feuil1!$D$2:$D$5000=E$3)*(Feuil1!$E$2:$E$5000)) -> 180 | F113: =SUMPRODUCT((Feuil1!$B$2:$B$5000=$B113)*(Feuil1!$D$2:$D$5000=F$3)*(Feuil1!$E$2:$E$5000)) -> 180 | G113: =SUMPRODUCT((Feuil1!$B$2:$B$5000=$B113)*(Feuil1!$D$2:$D$5000=G$3)*(Feuil1!$E$2:$E$5000)) -> 180 | H113: =SUMPRODUCT((Feuil1!$B$2:$B$5000=$B113)*(Feuil1!$D$2:$D$5000=H$3)*(Feuil1!$E$2:$E$5000)) -> 180 | I113: =SUMPRODUCT((Feuil1!$B$2:$B$5000=$B113)*(Feuil1!$D$2:$D$5000=I$3)*(Feuil1!$E$2:$E$5000)) -> 180 | J113: =SUMPRODUCT((Feuil1!$B$2:$B$5000=$B113)*(Feuil1!$D$2:$D$5000=J$3)*(Feuil1!$E$2:$E$5000)) -> 180 | K113: =SUMPRODUCT((Feuil1!$B$2:$B$5000=$B113)*(Feuil1!$D$2:$D$5000=K$3)*(Feuil1!$E$2:$E$5000)) -> 180 | L113: =SUMPRODUCT((Feuil1!$B$2:$B$5000=$B113)*(Feuil1!$D$2:$D$5000=L$3)*(Feuil1!$E$2:$E$5000)) -> 180 | M113: =SUMPRODUCT((Feuil1!$B$2:$B$5000=$B113)*(Feuil1!$D$2:$D$5000=M$3)*(Feuil1!$E$2:$E$5000)) -> 0 | N113: =SUMPRODUCT((Feuil1!$B$2:$B$5000=$B113)*(Feuil1!$D$2:$D$5000=N$3)*(Feuil1!$E$2:$E$5000)) -> 0 | O113: =SUMPRODUCT((Feuil1!$B$2:$B$5000=$B113)*(Feuil1!$D$2:$D$5000=O$3)*(Feuil1!$E$2:$E$5000)) -> 0 | P113: =SUMPRODUCT((Feuil1!$B$2:$B$5000=$B113)*(Feuil1!$D$2:$D$5000=P$3)*(Feuil1!$E$2:$E$5000)) -> 0 | Q113: =SUMPRODUCT((Feuil1!$B$2:$B$5000=$B113)*(Feuil1!$D$2:$D$5000=Q$3)*(Feuil1!$E$2:$E$5000)) -> 0 | R113: =SUMPRODUCT((Feuil1!$B$2:$B$5000=$B113)*(Feuil1!$D$2:$D$5000=R$3)*(Feuil1!$E$2:$E$5000)) -> 0
A114: =IF(B114="","",MAX($A$3:A113)+1) -> 111 | B114: =IF(ROWS(B$1:B111)>COUNTIF(Feuil1!$A$2:$A$5000,$A$1),"",INDEX(Feuil1!$B$2:$B$5000,SMALL(IF(Feuil1!$A$2:$A$5000<>"",IF(Feuil1!$A$2:$A$5000=$A$1,ROW($A$2:$A$5000)-ROW($A$2)+1)),ROWS(B$1:B111)))) -> 6282 | C114: =SUMPRODUCT((Feuil1!$B$2:$B$5000=$B114)*(Feuil1!$D$2:$D$5000=C$3)*(Feuil1!$E$2:$E$5000)) -> 180 | D114: =SUMPRODUCT((Feuil1!$B$2:$B$5000=$B114)*(Feuil1!$D$2:$D$5000=D$3)*(Feuil1!$E$2:$E$5000)) -> 180 | E114: =SUMPRODUCT((Feuil1!$B$2:$B$5000=$B114)*(Feuil1!$D$2:$D$5000=E$3)*(Feuil1!$E$2:$E$5000)) -> 180 | F114: =SUMPRODUCT((Feuil1!$B$2:$B$5000=$B114)*(Feuil1!$D$2:$D$5000=F$3)*(Feuil1!$E$2:$E$5000)) -> 180 | G114: =SUMPRODUCT((Feuil1!$B$2:$B$5000=$B114)*(Feuil1!$D$2:$D$5000=G$3)*(Feuil1!$E$2:$E$5000)) -> 180 | H114: =SUMPRODUCT((Feuil1!$B$2:$B$5000=$B114)*(Feuil1!$D$2:$D$5000=H$3)*(Feuil1!$E$2:$E$5000)) -> 180 | I114: =SUMPRODUCT((Feuil1!$B$2:$B$5000=$B114)*(Feuil1!$D$2:$D$5000=I$3)*(Feuil1!$E$2:$E$5000)) -> 180 | J114: =SUMPRODUCT((Feuil1!$B$2:$B$5000=$B114)*(Feuil1!$D$2:$D$5000=J$3)*(Feuil1!$E$2:$E$5000)) -> 180 | K114: =SUMPRODUCT((Feuil1!$B$2:$B$5000=$B114)*(Feuil1!$D$2:$D$5000=K$3)*(Feuil1!$E$2:$E$5000)) -> 180 | L114: =SUMPRODUCT((Feuil1!$B$2:$B$5000=$B114)*(Feuil1!$D$2:$D$5000=L$3)*(Feuil1!$E$2:$E$5000)) -> 180 | M114: =SUMPRODUCT((Feuil1!$B$2:$B$5000=$B114)*(Feuil1!$D$2:$D$5000=M$3)*(Feuil1!$E$2:$E$5000)) -> 0 | N114: =SUMPRODUCT((Feuil1!$B$2:$B$5000=$B114)*(Feuil1!$D$2:$D$5000=N$3)*(Feuil1!$E$2:$E$5000)) -> 0 | O114: =SUMPRODUCT((Feuil1!$B$2:$B$5000=$B114)*(Feuil1!$D$2:$D$5000=O$3)*(Feuil1!$E$2:$E$5000)) -> 0 | P114: =SUMPRODUCT((Feuil1!$B$2:$B$5000=$B114)*(Feuil1!$D$2:$D$5000=P$3)*(Feuil1!$E$2:$E$5000)) -> 0 | Q114: =SUMPRODUCT((Feuil1!$B$2:$B$5000=$B114)*(Feuil1!$D$2:$D$5000=Q$3)*(Feuil1!$E$2:$E$5000)) -> 0 | R114: =SUMPRODUCT((Feuil1!$B$2:$B$5000=$B114)*(Feuil1!$D$2:$D$5000=R$3)*(Feuil1!$E$2:$E$5000)) -> 0
A115: =IF(B115="","",MAX($A$3:A114)+1) -> 112 | B115: =IF(ROWS(B$1:B112)>COUNTIF(Feuil1!$A$2:$A$5000,$A$1),"",INDEX(Feuil1!$B$2:$B$5000,SMALL(IF(Feuil1!$A$2:$A$5000<>"",IF(Feuil1!$A$2:$A$5000=$A$1,ROW($A$2:$A$5000)-ROW($A$2)+1)),ROWS(B$1:B112)))) -> 6282 | C115: =SUMPRODUCT((Feuil1!$B$2:$B$5000=$B115)*(Feuil1!$D$2:$D$5000=C$3)*(Feuil1!$E$2:$E$5000)) -> 180 | D115: =SUMPRODUCT((Feuil1!$B$2:$B$5000=$B115)*(Feuil1!$D$2:$D$5000=D$3)*(Feuil1!$E$2:$E$5000)) -> 180 | E115: =SUMPRODUCT((Feuil1!$B$2:$B$5000=$B115)*(Feuil1!$D$2:$D$5000=E$3)*(Feuil1!$E$2:$E$5000)) -> 180 | F115: =SUMPRODUCT((Feuil1!$B$2:$B$5000=$B115)*(Feuil1!$D$2:$D$5000=F$3)*(Feuil1!$E$2:$E$5000)) -> 180 | G115: =SUMPRODUCT((Feuil1!$B$2:$B$5000=$B115)*(Feuil1!$D$2:$D$5000=G$3)*(Feuil1!$E$2:$E$5000)) -> 180 | H115: =SUMPRODUCT((Feuil1!$B$2:$B$5000=$B115)*(Feuil1!$D$2:$D$5000=H$3)*(Feuil1!$E$2:$E$5000)) -> 180 | I115: =SUMPRODUCT((Feuil1!$B$2:$B$5000=$B115)*(Feuil1!$D$2:$D$5000=I$3)*(Feuil1!$E$2:$E$5000)) -> 180 | J115: =SUMPRODUCT((Feuil1!$B$2:$B$5000=$B115)*(Feuil1!$D$2:$D$5000=J$3)*(Feuil1!$E$2:$E$5000)) -> 180 | K115: =SUMPRODUCT((Feuil1!$B$2:$B$5000=$B115)*(Feuil1!$D$2:$D$5000=K$3)*(Feuil1!$E$2:$E$5000)) -> 180 | L115: =SUMPRODUCT((Feuil1!$B$2:$B$5000=$B115)*(Feuil1!$D$2:$D$5000=L$3)*(Feuil1!$E$2:$E$5000)) -> 180 | M115: =SUMPRODUCT((Feuil1!$B$2:$B$5000=$B115)*(Feuil1!$D$2:$D$5000=M$3)*(Feuil1!$E$2:$E$5000)) -> 0 | N115: =SUMPRODUCT((Feuil1!$B$2:$B$5000=$B115)*(Feuil1!$D$2:$D$5000=N$3)*(Feuil1!$E$2:$E$5000)) -> 0 | O115: =SUMPRODUCT((Feuil1!$B$2:$B$5000=$B115)*(Feuil1!$D$2:$D$5000=O$3)*(Feuil1!$E$2:$E$5000)) -> 0 | P115: =SUMPRODUCT((Feuil1!$B$2:$B$5000=$B115)*(Feuil1!$D$2:$D$5000=P$3)*(Feuil1!$E$2:$E$5000)) -> 0 | Q115: =SUMPRODUCT((Feuil1!$B$2:$B$5000=$B115)*(Feuil1!$D$2:$D$5000=Q$3)*(Feuil1!$E$2:$E$5000)) -> 0 | R115: =SUMPRODUCT((Feuil1!$B$2:$B$5000=$B115)*(Feuil1!$D$2:$D$5000=R$3)*(Feuil1!$E$2:$E$5000)) -> 0
A116: =IF(B116="","",MAX($A$3:A115)+1) -> 113 | B116: =IF(ROWS(B$1:B113)>COUNTIF(Feuil1!$A$2:$A$5000,$A$1),"",INDEX(Feuil1!$B$2:$B$5000,SMALL(IF(Feuil1!$A$2:$A$5000<>"",IF(Feuil1!$A$2:$A$5000=$A$1,ROW($A$2:$A$5000)-ROW($A$2)+1)),ROWS(B$1:B113)))) -> 6282 | C116: =SUMPRODUCT((Feuil1!$B$2:$B$5000=$B116)*(Feuil1!$D$2:$D$5000=C$3)*(Feuil1!$E$2:$E$5000)) -> 180 | D116: =SUMPRODUCT((Feuil1!$B$2:$B$5000=$B116)*(Feuil1!$D$2:$D$5000=D$3)*(Feuil1!$E$2:$E$5000)) -> 180 | E116: =SUMPRODUCT((Feuil1!$B$2:$B$5000=$B116)*(Feuil1!$D$2:$D$5000=E$3)*(Feuil1!$E$2:$E$5000)) -> 180 | F116: =SUMPRODUCT((Feuil1!$B$2:$B$5000=$B116)*(Feuil1!$D$2:$D$5000=F$3)*(Feuil1!$E$2:$E$5000)) -> 180 | G116: =SUMPRODUCT((Feuil1!$B$2:$B$5000=$B116)*(Feuil1!$D$2:$D$5000=G$3)*(Feuil1!$E$2:$E$5000)) -> 180 | H116: =SUMPRODUCT((Feuil1!$B$2:$B$5000=$B116)*(Feuil1!$D$2:$D$5000=H$3)*(Feuil1!$E$2:$E$5000)) -> 180 | I116: =SUMPRODUCT((Feuil1!$B$2:$B$5000=$B116)*(Feuil1!$D$2:$D$5000=I$3)*(Feuil1!$E$2:$E$5000)) -> 180 | J116: =SUMPRODUCT((Feuil1!$B$2:$B$5000=$B116)*(Feuil1!$D$2:$D$5000=J$3)*(Feuil1!$E$2:$E$5000)) -> 180 | K116: =SUMPRODUCT((Feuil1!$B$2:$B$5000=$B116)*(Feuil1!$D$2:$D$5000=K$3)*(Feuil1!$E$2:$E$5000)) -> 180 | L116: =SUMPRODUCT((Feuil1!$B$2:$B$5000=$B116)*(Feuil1!$D$2:$D$5000=L$3)*(Feuil1!$E$2:$E$5000)) -> 180 | M116: =SUMPRODUCT((Feuil1!$B$2:$B$5000=$B116)*(Feuil1!$D$2:$D$5000=M$3)*(Feuil1!$E$2:$E$5000)) -> 0 | N116: =SUMPRODUCT((Feuil1!$B$2:$B$5000=$B116)*(Feuil1!$D$2:$D$5000=N$3)*(Feuil1!$E$2:$E$5000)) -> 0 | O116: =SUMPRODUCT((Feuil1!$B$2:$B$5000=$B116)*(Feuil1!$D$2:$D$5000=O$3)*(Feuil1!$E$2:$E$5000)) -> 0 | P116: =SUMPRODUCT((Feuil1!$B$2:$B$5000=$B116)*(Feuil1!$D$2:$D$5000=P$3)*(Feuil1!$E$2:$E$5000)) -> 0 | Q116: =SUMPRODUCT((Feuil1!$B$2:$B$5000=$B116)*(Feuil1!$D$2:$D$5000=Q$3)*(Feuil1!$E$2:$E$5000)) -> 0 | R116: =SUMPRODUCT((Feuil1!$B$2:$B$5000=$B116)*(Feuil1!$D$2:$D$5000=R$3)*(Feuil1!$E$2:$E$5000)) -> 0
A117: =IF(B117="","",MAX($A$3:A116)+1) -> 114 | B117: =IF(ROWS(B$1:B114)>COUNTIF(Feuil1!$A$2:$A$5000,$A$1),"",INDEX(Feuil1!$B$2:$B$5000,SMALL(IF(Feuil1!$A$2:$A$5000<>"",IF(Feuil1!$A$2:$A$5000=$A$1,ROW($A$2:$A$5000)-ROW($A$2)+1)),ROWS(B$1:B114)))) -> 6282 | C117: =SUMPRODUCT((Feuil1!$B$2:$B$5000=$B117)*(Feuil1!$D$2:$D$5000=C$3)*(Feuil1!$E$2:$E$5000)) -> 180 | D117: =SUMPRODUCT((Feuil1!$B$2:$B$5000=$B117)*(Feuil1!$D$2:$D$5000=D$3)*(Feuil1!$E$2:$E$5000)) -> 180 | E117: =SUMPRODUCT((Feuil1!$B$2:$B$5000=$B117)*(Feuil1!$D$2:$D$5000=E$3)*(Feuil1!$E$2:$E$5000)) -> 180 | F117: =SUMPRODUCT((Feuil1!$B$2:$B$5000=$B117)*(Feuil1!$D$2:$D$5000=F$3)*(Feuil1!$E$2:$E$5000)) -> 180 | G117: =SUMPRODUCT((Feuil1!$B$2:$B$5000=$B117)*(Feuil1!$D$2:$D$5000=G$3)*(Feuil1!$E$2:$E$5000)) -> 180 | H117: =SUMPRODUCT((Feuil1!$B$2:$B$5000=$B117)*(Feuil1!$D$2:$D$5000=H$3)*(Feuil1!$E$2:$E$5000)) -> 180 | I117: =SUMPRODUCT((Feuil1!$B$2:$B$5000=$B117)*(Feuil1!$D$2:$D$5000=I$3)*(Feuil1!$E$2:$E$5000)) -> 180 | J117: =SUMPRODUCT((Feuil1!$B$2:$B$5000=$B117)*(Feuil1!$D$2:$D$5000=J$3)*(Feuil1!$E$2:$E$5000)) -> 180 | K117: =SUMPRODUCT((Feuil1!$B$2:$B$5000=$B117)*(Feuil1!$D$2:$D$5000=K$3)*(Feuil1!$E$2:$E$5000)) -> 180 | L117: =SUMPRODUCT((Feuil1!$B$2:$B$5000=$B117)*(Feuil1!$D$2:$D$5000=L$3)*(Feuil1!$E$2:$E$5000)) -> 180 | M117: =SUMPRODUCT((Feuil1!$B$2:$B$5000=$B117)*(Feuil1!$D$2:$D$5000=M$3)*(Feuil1!$E$2:$E$5000)) -> 0 | N117: =SUMPRODUCT((Feuil1!$B$2:$B$5000=$B117)*(Feuil1!$D$2:$D$5000=N$3)*(Feuil1!$E$2:$E$5000)) -> 0 | O117: =SUMPRODUCT((Feuil1!$B$2:$B$5000=$B117)*(Feuil1!$D$2:$D$5000=O$3)*(Feuil1!$E$2:$E$5000)) -> 0 | P117: =SUMPRODUCT((Feuil1!$B$2:$B$5000=$B117)*(Feuil1!$D$2:$D$5000=P$3)*(Feuil1!$E$2:$E$5000)) -> 0 | Q117: =SUMPRODUCT((Feuil1!$B$2:$B$5000=$B117)*(Feuil1!$D$2:$D$5000=Q$3)*(Feuil1!$E$2:$E$5000)) -> 0 | R117: =SUMPRODUCT((Feuil1!$B$2:$B$5000=$B117)*(Feuil1!$D$2:$D$5000=R$3)*(Feuil1!$E$2:$E$5000)) -> 0
A118: =IF(B118="","",MAX($A$3:A117)+1) -> 115 | B118: =IF(ROWS(B$1:B115)>COUNTIF(Feuil1!$A$2:$A$5000,$A$1),"",INDEX(Feuil1!$B$2:$B$5000,SMALL(IF(Feuil1!$A$2:$A$5000<>"",IF(Feuil1!$A$2:$A$5000=$A$1,ROW($A$2:$A$5000)-ROW($A$2)+1)),ROWS(B$1:B115)))) -> 6283 | C118: =SUMPRODUCT((Feuil1!$B$2:$B$5000=$B118)*(Feuil1!$D$2:$D$5000=C$3)*(Feuil1!$E$2:$E$5000)) -> 180 | D118: =SUMPRODUCT((Feuil1!$B$2:$B$5000=$B118)*(Feuil1!$D$2:$D$5000=D$3)*(Feuil1!$E$2:$E$5000)) -> 180 | E118: =SUMPRODUCT((Feuil1!$B$2:$B$5000=$B118)*(Feuil1!$D$2:$D$5000=E$3)*(Feuil1!$E$2:$E$5000)) -> 180 | F118: =SUMPRODUCT((Feuil1!$B$2:$B$5000=$B118)*(Feuil1!$D$2:$D$5000=F$3)*(Feuil1!$E$2:$E$5000)) -> 180 | G118: =SUMPRODUCT((Feuil1!$B$2:$B$5000=$B118)*(Feuil1!$D$2:$D$5000=G$3)*(Feuil1!$E$2:$E$5000)) -> 180 | H118: =SUMPRODUCT((Feuil1!$B$2:$B$5000=$B118)*(Feuil1!$D$2:$D$5000=H$3)*(Feuil1!$E$2:$E$5000)) -> 180 | I118: =SUMPRODUCT((Feuil1!$B$2:$B$5000=$B118)*(Feuil1!$D$2:$D$5000=I$3)*(Feuil1!$E$2:$E$5000)) -> 180 | J118: =SUMPRODUCT((Feuil1!$B$2:$B$5000=$B118)*(Feuil1!$D$2:$D$5000=J$3)*(Feuil1!$E$2:$E$5000)) -> 180 | K118: =SUMPRODUCT((Feuil1!$B$2:$B$5000=$B118)*(Feuil1!$D$2:$D$5000=K$3)*(Feuil1!$E$2:$E$5000)) -> 180 | L118: =SUMPRODUCT((Feuil1!$B$2:$B$5000=$B118)*(Feuil1!$D$2:$D$5000=L$3)*(Feuil1!$E$2:$E$5000)) -> 180 | M118: =SUMPRODUCT((Feuil1!$B$2:$B$5000=$B118)*(Feuil1!$D$2:$D$5000=M$3)*(Feuil1!$E$2:$E$5000)) -> 0 | N118: =SUMPRODUCT((Feuil1!$B$2:$B$5000=$B118)*(Feuil1!$D$2:$D$5000=N$3)*(Feuil1!$E$2:$E$5000)) -> 0 | O118: =SUMPRODUCT((Feuil1!$B$2:$B$5000=$B118)*(Feuil1!$D$2:$D$5000=O$3)*(Feuil1!$E$2:$E$5000)) -> 0 | P118: =SUMPRODUCT((Feuil1!$B$2:$B$5000=$B118)*(Feuil1!$D$2:$D$5000=P$3)*(Feuil1!$E$2:$E$5000)) -> 0 | Q118: =SUMPRODUCT((Feuil1!$B$2:$B$5000=$B118)*(Feuil1!$D$2:$D$5000=Q$3)*(Feuil1!$E$2:$E$5000)) -> 0 | R118: =SUMPRODUCT((Feuil1!$B$2:$B$5000=$B118)*(Feuil1!$D$2:$D$5000=R$3)*(Feuil1!$E$2:$E$5000)) -> 0
A119: =IF(B119="","",MAX($A$3:A118)+1) -> 116 | B119: =IF(ROWS(B$1:B116)>COUNTIF(Feuil1!$A$2:$A$5000,$A$1),"",INDEX(Feuil1!$B$2:$B$5000,SMALL(IF(Feuil1!$A$2:$A$5000<>"",IF(Feuil1!$A$2:$A$5000=$A$1,ROW($A$2:$A$5000)-ROW($A$2)+1)),ROWS(B$1:B116)))) -> 6283 | C119: =SUMPRODUCT((Feuil1!$B$2:$B$5000=$B119)*(Feuil1!$D$2:$D$5000=C$3)*(Feuil1!$E$2:$E$5000)) -> 180 | D119: =SUMPRODUCT((Feuil1!$B$2:$B$5000=$B119)*(Feuil1!$D$2:$D$5000=D$3)*(Feuil1!$E$2:$E$5000)) -> 180 | E119: =SUMPRODUCT((Feuil1!$B$2:$B$5000=$B119)*(Feuil1!$D$2:$D$5000=E$3)*(Feuil1!$E$2:$E$5000)) -> 180 | F119: =SUMPRODUCT((Feuil1!$B$2:$B$5000=$B119)*(Feuil1!$D$2:$D$5000=F$3)*(Feuil1!$E$2:$E$5000)) -> 180 | G119: =SUMPRODUCT((Feuil1!$B$2:$B$5000=$B119)*(Feuil1!$D$2:$D$5000=G$3)*(Feuil1!$E$2:$E$5000)) -> 180 | H119: =SUMPRODUCT((Feuil1!$B$2:$B$5000=$B119)*(Feuil1!$D$2:$D$5000=H$3)*(Feuil1!$E$2:$E$5000)) -> 180 | I119: =SUMPRODUCT((Feuil1!$B$2:$B$5000=$B119)*(Feuil1!$D$2:$D$5000=I$3)*(Feuil1!$E$2:$E$5000)) -> 180 | J119: =SUMPRODUCT((Feuil1!$B$2:$B$5000=$B119)*(Feuil1!$D$2:$D$5000=J$3)*(Feuil1!$E$2:$E$5000)) -> 180 | K119: =SUMPRODUCT((Feuil1!$B$2:$B$5000=$B119)*(Feuil1!$D$2:$D$5000=K$3)*(Feuil1!$E$2:$E$5000)) -> 180 | L119: =SUMPRODUCT((Feuil1!$B$2:$B$5000=$B119)*(Feuil1!$D$2:$D$5000=L$3)*(Feuil1!$E$2:$E$5000)) -> 180 | M119: =SUMPRODUCT((Feuil1!$B$2:$B$5000=$B119)*(Feuil1!$D$2:$D$5000=M$3)*(Feuil1!$E$2:$E$5000)) -> 0 | N119: =SUMPRODUCT((Feuil1!$B$2:$B$5000=$B119)*(Feuil1!$D$2:$D$5000=N$3)*(Feuil1!$E$2:$E$5000)) -> 0 | O119: =SUMPRODUCT((Feuil1!$B$2:$B$5000=$B119)*(Feuil1!$D$2:$D$5000=O$3)*(Feuil1!$E$2:$E$5000)) -> 0 | P119: =SUMPRODUCT((Feuil1!$B$2:$B$5000=$B119)*(Feuil1!$D$2:$D$5000=P$3)*(Feuil1!$E$2:$E$5000)) -> 0 | Q119: =SUMPRODUCT((Feuil1!$B$2:$B$5000=$B119)*(Feuil1!$D$2:$D$5000=Q$3)*(Feuil1!$E$2:$E$5000)) -> 0 | R119: =SUMPRODUCT((Feuil1!$B$2:$B$5000=$B119)*(Feuil1!$D$2:$D$5000=R$3)*(Feuil1!$E$2:$E$5000)) -> 0
A120: =IF(B120="","",MAX($A$3:A119)+1) -> 117 | B120: =IF(ROWS(B$1:B117)>COUNTIF(Feuil1!$A$2:$A$5000,$A$1),"",INDEX(Feuil1!$B$2:$B$5000,SMALL(IF(Feuil1!$A$2:$A$5000<>"",IF(Feuil1!$A$2:$A$5000=$A$1,ROW($A$2:$A$5000)-ROW($A$2)+1)),ROWS(B$1:B117)))) -> 6283 | C120: =SUMPRODUCT((Feuil1!$B$2:$B$5000=$B120)*(Feuil1!$D$2:$D$5000=C$3)*(Feuil1!$E$2:$E$5000)) -> 180 | D120: =SUMPRODUCT((Feuil1!$B$2:$B$5000=$B120)*(Feuil1!$D$2:$D$5000=D$3)*(Feuil1!$E$2:$E$5000)) -> 180 | E120: =SUMPRODUCT((Feuil1!$B$2:$B$5000=$B120)*(Feuil1!$D$2:$D$5000=E$3)*(Feuil1!$E$2:$E$5000)) -> 180 | F120: =SUMPRODUCT((Feuil1!$B$2:$B$5000=$B120)*(Feuil1!$D$2:$D$5000=F$3)*(Feuil1!$E$2:$E$5000)) -> 180 | G120: =SUMPRODUCT((Feuil1!$B$2:$B$5000=$B120)*(Feuil1!$D$2:$D$5000=G$3)*(Feuil1!$E$2:$E$5000)) -> 180 | H120: =SUMPRODUCT((Feuil1!$B$2:$B$5000=$B120)*(Feuil1!$D$2:$D$5000=H$3)*(Feuil1!$E$2:$E$5000)) -> 180 | I120: =SUMPRODUCT((Feuil1!$B$2:$B$5000=$B120)*(Feuil1!$D$2:$D$5000=I$3)*(Feuil1!$E$2:$E$5000)) -> 180 | J120: =SUMPRODUCT((Feuil1!$B$2:$B$5000=$B120)*(Feuil1!$D$2:$D$5000=J$3)*(Feuil1!$E$2:$E$5000)) -> 180 | K120: =SUMPRODUCT((Feuil1!$B$2:$B$5000=$B120)*(Feuil1!$D$2:$D$5000=K$3)*(Feuil1!$E$2:$E$5000)) -> 180 | L120: =SUMPRODUCT((Feuil1!$B$2:$B$5000=$B120)*(Feuil1!$D$2:$D$5000=L$3)*(Feuil1!$E$2:$E$5000)) -> 180 | M120: =SUMPRODUCT((Feuil1!$B$2:$B$5000=$B120)*(Feuil1!$D$2:$D$5000=M$3)*(Feuil1!$E$2:$E$5000)) -> 0 | N120: =SUMPRODUCT((Feuil1!$B$2:$B$5000=$B120)*(Feuil1!$D$2:$D$5000=N$3)*(Feuil1!$E$2:$E$5000)) -> 0 | O120: =SUMPRODUCT((Feuil1!$B$2:$B$5000=$B120)*(Feuil1!$D$2:$D$5000=O$3)*(Feuil1!$E$2:$E$5000)) -> 0 | P120: =SUMPRODUCT((Feuil1!$B$2:$B$5000=$B120)*(Feuil1!$D$2:$D$5000=P$3)*(Feuil1!$E$2:$E$5000)) -> 0 | Q120: =SUMPRODUCT((Feuil1!$B$2:$B$5000=$B120)*(Feuil1!$D$2:$D$5000=Q$3)*(Feuil1!$E$2:$E$5000)) -> 0 | R120: =SUMPRODUCT((Feuil1!$B$2:$B$5000=$B120)*(Feuil1!$D$2:$D$5000=R$3)*(Feuil1!$E$2:$E$5000)) -> 0
A121: =IF(B121="","",MAX($A$3:A120)+1) -> 118 | B121: =IF(ROWS(B$1:B118)>COUNTIF(Feuil1!$A$2:$A$5000,$A$1),"",INDEX(Feuil1!$B$2:$B$5000,SMALL(IF(Feuil1!$A$2:$A$5000<>"",IF(Feuil1!$A$2:$A$5000=$A$1,ROW($A$2:$A$5000)-ROW($A$2)+1)),ROWS(B$1:B118)))) -> 6283 | C121: =SUMPRODUCT((Feuil1!$B$2:$B$5000=$B121)*(Feuil1!$D$2:$D$5000=C$3)*(Feuil1!$E$2:$E$5000)) -> 180 | D121: =SUMPRODUCT((Feuil1!$B$2:$B$5000=$B121)*(Feuil1!$D$2:$D$5000=D$3)*(Feuil1!$E$2:$E$5000)) -> 180 | E121: =SUMPRODUCT((Feuil1!$B$2:$B$5000=$B121)*(Feuil1!$D$2:$D$5000=E$3)*(Feuil1!$E$2:$E$5000)) -> 180 | F121: =SUMPRODUCT((Feuil1!$B$2:$B$5000=$B121)*(Feuil1!$D$2:$D$5000=F$3)*(Feuil1!$E$2:$E$5000)) -> 180 | G121: =SUMPRODUCT((Feuil1!$B$2:$B$5000=$B121)*(Feuil1!$D$2:$D$5000=G$3)*(Feuil1!$E$2:$E$5000)) -> 180 | H121: =SUMPRODUCT((Feuil1!$B$2:$B$5000=$B121)*(Feuil1!$D$2:$D$5000=H$3)*(Feuil1!$E$2:$E$5000)) -> 180 | I121: =SUMPRODUCT((Feuil1!$B$2:$B$5000=$B121)*(Feuil1!$D$2:$D$5000=I$3)*(Feuil1!$E$2:$E$5000)) -> 180 | J121: =SUMPRODUCT((Feuil1!$B$2:$B$5000=$B121)*(Feuil1!$D$2:$D$5000=J$3)*(Feuil1!$E$2:$E$5000)) -> 180 | K121: =SUMPRODUCT((Feuil1!$B$2:$B$5000=$B121)*(Feuil1!$D$2:$D$5000=K$3)*(Feuil1!$E$2:$E$5000)) -> 180 | L121: =SUMPRODUCT((Feuil1!$B$2:$B$5000=$B121)*(Feuil1!$D$2:$D$5000=L$3)*(Feuil1!$E$2:$E$5000)) -> 180 | M121: =SUMPRODUCT((Feuil1!$B$2:$B$5000=$B121)*(Feuil1!$D$2:$D$5000=M$3)*(Feuil1!$E$2:$E$5000)) -> 0 | N121: =SUMPRODUCT((Feuil1!$B$2:$B$5000=$B121)*(Feuil1!$D$2:$D$5000=N$3)*(Feuil1!$E$2:$E$5000)) -> 0 | O121: =SUMPRODUCT((Feuil1!$B$2:$B$5000=$B121)*(Feuil1!$D$2:$D$5000=O$3)*(Feuil1!$E$2:$E$5000)) -> 0 | P121: =SUMPRODUCT((Feuil1!$B$2:$B$5000=$B121)*(Feuil1!$D$2:$D$5000=P$3)*(Feuil1!$E$2:$E$5000)) -> 0 | Q121: =SUMPRODUCT((Feuil1!$B$2:$B$5000=$B121)*(Feuil1!$D$2:$D$5000=Q$3)*(Feuil1!$E$2:$E$5000)) -> 0 | R121: =SUMPRODUCT((Feuil1!$B$2:$B$5000=$B121)*(Feuil1!$D$2:$D$5000=R$3)*(Feuil1!$E$2:$E$5000)) -> 0
A122: =IF(B122="","",MAX($A$3:A121)+1) -> 119 | B122: =IF(ROWS(B$1:B119)>COUNTIF(Feuil1!$A$2:$A$5000,$A$1),"",INDEX(Feuil1!$B$2:$B$5000,SMALL(IF(Feuil1!$A$2:$A$5000<>"",IF(Feuil1!$A$2:$A$5000=$A$1,ROW($A$2:$A$5000)-ROW($A$2)+1)),ROWS(B$1:B119)))) -> 6283 | C122: =SUMPRODUCT((Feuil1!$B$2:$B$5000=$B122)*(Feuil1!$D$2:$D$5000=C$3)*(Feuil1!$E$2:$E$5000)) -> 180 | D122: =SUMPRODUCT((Feuil1!$B$2:$B$5000=$B122)*(Feuil1!$D$2:$D$5000=D$3)*(Feuil1!$E$2:$E$5000)) -> 180 | E122: =SUMPRODUCT((Feuil1!$B$2:$B$5000=$B122)*(Feuil1!$D$2:$D$5000=E$3)*(Feuil1!$E$2:$E$5000)) -> 180 | F122: =SUMPRODUCT((Feuil1!$B$2:$B$5000=$B122)*(Feuil1!$D$2:$D$5000=F$3)*(Feuil1!$E$2:$E$5000)) -> 180 | G122: =SUMPRODUCT((Feuil1!$B$2:$B$5000=$B122)*(Feuil1!$D$2:$D$5000=G$3)*(Feuil1!$E$2:$E$5000)) -> 180 | H122: =SUMPRODUCT((Feuil1!$B$2:$B$5000=$B122)*(Feuil1!$D$2:$D$5000=H$3)*(Feuil1!$E$2:$E$5000)) -> 180 | I122: =SUMPRODUCT((Feuil1!$B$2:$B$5000=$B122)*(Feuil1!$D$2:$D$5000=I$3)*(Feuil1!$E$2:$E$5000)) -> 180 | J122: =SUMPRODUCT((Feuil1!$B$2:$B$5000=$B122)*(Feuil1!$D$2:$D$5000=J$3)*(Feuil1!$E$2:$E$5000)) -> 180 | K122: =SUMPRODUCT((Feuil1!$B$2:$B$5000=$B122)*(Feuil1!$D$2:$D$5000=K$3)*(Feuil1!$E$2:$E$5000)) -> 180 | L122: =SUMPRODUCT((Feuil1!$B$2:$B$5000=$B122)*(Feuil1!$D$2:$D$5000=L$3)*(Feuil1!$E$2:$E$5000)) -> 180 | M122: =SUMPRODUCT((Feuil1!$B$2:$B$5000=$B122)*(Feuil1!$D$2:$D$5000=M$3)*(Feuil1!$E$2:$E$5000)) -> 0 | N122: =SUMPRODUCT((Feuil1!$B$2:$B$5000=$B122)*(Feuil1!$D$2:$D$5000=N$3)*(Feuil1!$E$2:$E$5000)) -> 0 | O122: =SUMPRODUCT((Feuil1!$B$2:$B$5000=$B122)*(Feuil1!$D$2:$D$5000=O$3)*(Feuil1!$E$2:$E$5000)) -> 0 | P122: =SUMPRODUCT((Feuil1!$B$2:$B$5000=$B122)*(Feuil1!$D$2:$D$5000=P$3)*(Feuil1!$E$2:$E$5000)) -> 0 | Q122: =SUMPRODUCT((Feuil1!$B$2:$B$5000=$B122)*(Feuil1!$D$2:$D$5000=Q$3)*(Feuil1!$E$2:$E$5000)) -> 0 | R122: =SUMPRODUCT((Feuil1!$B$2:$B$5000=$B122)*(Feuil1!$D$2:$D$5000=R$3)*(Feuil1!$E$2:$E$5000)) -> 0
A123: =IF(B123="","",MAX($A$3:A122)+1) -> 120 | B123: =IF(ROWS(B$1:B120)>COUNTIF(Feuil1!$A$2:$A$5000,$A$1),"",INDEX(Feuil1!$B$2:$B$5000,SMALL(IF(Feuil1!$A$2:$A$5000<>"",IF(Feuil1!$A$2:$A$5000=$A$1,ROW($A$2:$A$5000)-ROW($A$2)+1)),ROWS(B$1:B120)))) -> 6284 | C123: =SUMPRODUCT((Feuil1!$B$2:$B$5000=$B123)*(Feuil1!$D$2:$D$5000=C$3)*(Feuil1!$E$2:$E$5000)) -> 180 | D123: =SUMPRODUCT((Feuil1!$B$2:$B$5000=$B123)*(Feuil1!$D$2:$D$5000=D$3)*(Feuil1!$E$2:$E$5000)) -> 180 | E123: =SUMPRODUCT((Feuil1!$B$2:$B$5000=$B123)*(Feuil1!$D$2:$D$5000=E$3)*(Feuil1!$E$2:$E$5000)) -> 180 | F123: =SUMPRODUCT((Feuil1!$B$2:$B$5000=$B123)*(Feuil1!$D$2:$D$5000=F$3)*(Feuil1!$E$2:$E$5000)) -> 180 | G123: =SUMPRODUCT((Feuil1!$B$2:$B$5000=$B123)*(Feuil1!$D$2:$D$5000=G$3)*(Feuil1!$E$2:$E$5000)) -> 180 | H123: =SUMPRODUCT((Feuil1!$B$2:$B$5000=$B123)*(Feuil1!$D$2:$D$5000=H$3)*(Feuil1!$E$2:$E$5000)) -> 180 | I123: =SUMPRODUCT((Feuil1!$B$2:$B$5000=$B123)*(Feuil1!$D$2:$D$5000=I$3)*(Feuil1!$E$2:$E$5000)) -> 180 | J123: =SUMPRODUCT((Feuil1!$B$2:$B$5000=$B123)*(Feuil1!$D$2:$D$5000=J$3)*(Feuil1!$E$2:$E$5000)) -> 180 | K123: =SUMPRODUCT((Feuil1!$B$2:$B$5000=$B123)*(Feuil1!$D$2:$D$5000=K$3)*(Feuil1!$E$2:$E$5000)) -> 180 | L123: =SUMPRODUCT((Feuil1!$B$2:$B$5000=$B123)*(Feuil1!$D$2:$D$5000=L$3)*(Feuil1!$E$2:$E$5000)) -> 180 | M123: =SUMPRODUCT((Feuil1!$B$2:$B$5000=$B123)*(Feuil1!$D$2:$D$5000=M$3)*(Feuil1!$E$2:$E$5000)) -> 0 | N123: =SUMPRODUCT((Feuil1!$B$2:$B$5000=$B123)*(Feuil1!$D$2:$D$5000=N$3)*(Feuil1!$E$2:$E$5000)) -> 0 | O123: =SUMPRODUCT((Feuil1!$B$2:$B$5000=$B123)*(Feuil1!$D$2:$D$5000=O$3)*(Feuil1!$E$2:$E$5000)) -> 0 | P123: =SUMPRODUCT((Feuil1!$B$2:$B$5000=$B123)*(Feuil1!$D$2:$D$5000=P$3)*(Feuil1!$E$2:$E$5000)) -> 0 | Q123: =SUMPRODUCT((Feuil1!$B$2:$B$5000=$B123)*(Feuil1!$D$2:$D$5000=Q$3)*(Feuil1!$E$2:$E$5000)) -> 0 | R123: =SUMPRODUCT((Feuil1!$B$2:$B$5000=$B123)*(Feuil1!$D$2:$D$5000=R$3)*(Feuil1!$E$2:$E$5000)) -> 0
A124: =IF(B124="","",MAX($A$3:A123)+1) -> 121 | B124: =IF(ROWS(B$1:B121)>COUNTIF(Feuil1!$A$2:$A$5000,$A$1),"",INDEX(Feuil1!$B$2:$B$5000,SMALL(IF(Feuil1!$A$2:$A$5000<>"",IF(Feuil1!$A$2:$A$5000=$A$1,ROW($A$2:$A$5000)-ROW($A$2)+1)),ROWS(B$1:B121)))) -> 6284 | C124: =SUMPRODUCT((Feuil1!$B$2:$B$5000=$B124)*(Feuil1!$D$2:$D$5000=C$3)*(Feuil1!$E$2:$E$5000)) -> 180 | D124: =SUMPRODUCT((Feuil1!$B$2:$B$5000=$B124)*(Feuil1!$D$2:$D$5000=D$3)*(Feuil1!$E$2:$E$5000)) -> 180 | E124: =SUMPRODUCT((Feuil1!$B$2:$B$5000=$B124)*(Feuil1!$D$2:$D$5000=E$3)*(Feuil1!$E$2:$E$5000)) -> 180 | F124: =SUMPRODUCT((Feuil1!$B$2:$B$5000=$B124)*(Feuil1!$D$2:$D$5000=F$3)*(Feuil1!$E$2:$E$5000)) -> 180 | G124: =SUMPRODUCT((Feuil1!$B$2:$B$5000=$B124)*(Feuil1!$D$2:$D$5000=G$3)*(Feuil1!$E$2:$E$5000)) -> 180 | H124: =SUMPRODUCT((Feuil1!$B$2:$B$5000=$B124)*(Feuil1!$D$2:$D$5000=H$3)*(Feuil1!$E$2:$E$5000)) -> 180 | I124: =SUMPRODUCT((Feuil1!$B$2:$B$5000=$B124)*(Feuil1!$D$2:$D$5000=I$3)*(Feuil1!$E$2:$E$5000)) -> 180 | J124: =SUMPRODUCT((Feuil1!$B$2:$B$5000=$B124)*(Feuil1!$D$2:$D$5000=J$3)*(Feuil1!$E$2:$E$5000)) -> 180 | K124: =SUMPRODUCT((Feuil1!$B$2:$B$5000=$B124)*(Feuil1!$D$2:$D$5000=K$3)*(Feuil1!$E$2:$E$5000)) -> 180 | L124: =SUMPRODUCT((Feuil1!$B$2:$B$5000=$B124)*(Feuil1!$D$2:$D$5000=L$3)*(Feuil1!$E$2:$E$5000)) -> 180 | M124: =SUMPRODUCT((Feuil1!$B$2:$B$5000=$B124)*(Feuil1!$D$2:$D$5000=M$3)*(Feuil1!$E$2:$E$5000)) -> 0 | N124: =SUMPRODUCT((Feuil1!$B$2:$B$5000=$B124)*(Feuil1!$D$2:$D$5000=N$3)*(Feuil1!$E$2:$E$5000)) -> 0 | O124: =SUMPRODUCT((Feuil1!$B$2:$B$5000=$B124)*(Feuil1!$D$2:$D$5000=O$3)*(Feuil1!$E$2:$E$5000)) -> 0 | P124: =SUMPRODUCT((Feuil1!$B$2:$B$5000=$B124)*(Feuil1!$D$2:$D$5000=P$3)*(Feuil1!$E$2:$E$5000)) -> 0 | Q124: =SUMPRODUCT((Feuil1!$B$2:$B$5000=$B124)*(Feuil1!$D$2:$D$5000=Q$3)*(Feuil1!$E$2:$E$5000)) -> 0 | R124: =SUMPRODUCT((Feuil1!$B$2:$B$5000=$B124)*(Feuil1!$D$2:$D$5000=R$3)*(Feuil1!$E$2:$E$5000)) -> 0
A125: =IF(B125="","",MAX($A$3:A124)+1) -> 122 | B125: =IF(ROWS(B$1:B122)>COUNTIF(Feuil1!$A$2:$A$5000,$A$1),"",INDEX(Feuil1!$B$2:$B$5000,SMALL(IF(Feuil1!$A$2:$A$5000<>"",IF(Feuil1!$A$2:$A$5000=$A$1,ROW($A$2:$A$5000)-ROW($A$2)+1)),ROWS(B$1:B122)))) -> 6284 | C125: =SUMPRODUCT((Feuil1!$B$2:$B$5000=$B125)*(Feuil1!$D$2:$D$5000=C$3)*(Feuil1!$E$2:$E$5000)) -> 180 | D125: =SUMPRODUCT((Feuil1!$B$2:$B$5000=$B125)*(Feuil1!$D$2:$D$5000=D$3)*(Feuil1!$E$2:$E$5000)) -> 180 | E125: =SUMPRODUCT((Feuil1!$B$2:$B$5000=$B125)*(Feuil1!$D$2:$D$5000=E$3)*(Feuil1!$E$2:$E$5000)) -> 180 | F125: =SUMPRODUCT((Feuil1!$B$2:$B$5000=$B125)*(Feuil1!$D$2:$D$5000=F$3)*(Feuil1!$E$2:$E$5000)) -> 180 | G125: =SUMPRODUCT((Feuil1!$B$2:$B$5000=$B125)*(Feuil1!$D$2:$D$5000=G$3)*(Feuil1!$E$2:$E$5000)) -> 180 | H125: =SUMPRODUCT((Feuil1!$B$2:$B$5000=$B125)*(Feuil1!$D$2:$D$5000=H$3)*(Feuil1!$E$2:$E$5000)) -> 180 | I125: =SUMPRODUCT((Feuil1!$B$2:$B$5000=$B125)*(Feuil1!$D$2:$D$5000=I$3)*(Feuil1!$E$2:$E$5000)) -> 180 | J125: =SUMPRODUCT((Feuil1!$B$2:$B$5000=$B125)*(Feuil1!$D$2:$D$5000=J$3)*(Feuil1!$E$2:$E$5000)) -> 180 | K125: =SUMPRODUCT((Feuil1!$B$2:$B$5000=$B125)*(Feuil1!$D$2:$D$5000=K$3)*(Feuil1!$E$2:$E$5000)) -> 180 | L125: =SUMPRODUCT((Feuil1!$B$2:$B$5000=$B125)*(Feuil1!$D$2:$D$5000=L$3)*(Feuil1!$E$2:$E$5000)) -> 180 | M125: =SUMPRODUCT((Feuil1!$B$2:$B$5000=$B125)*(Feuil1!$D$2:$D$5000=M$3)*(Feuil1!$E$2:$E$5000)) -> 0 | N125: =SUMPRODUCT((Feuil1!$B$2:$B$5000=$B125)*(Feuil1!$D$2:$D$5000=N$3)*(Feuil1!$E$2:$E$5000)) -> 0 | O125: =SUMPRODUCT((Feuil1!$B$2:$B$5000=$B125)*(Feuil1!$D$2:$D$5000=O$3)*(Feuil1!$E$2:$E$5000)) -> 0 | P125: =SUMPRODUCT((Feuil1!$B$2:$B$5000=$B125)*(Feuil1!$D$2:$D$5000=P$3)*(Feuil1!$E$2:$E$5000)) -> 0 | Q125: =SUMPRODUCT((Feuil1!$B$2:$B$5000=$B125)*(Feuil1!$D$2:$D$5000=Q$3)*(Feuil1!$E$2:$E$5000)) -> 0 | R125: =SUMPRODUCT((Feuil1!$B$2:$B$5000=$B125)*(Feuil1!$D$2:$D$5000=R$3)*(Feuil1!$E$2:$E$5000)) -> 0
A126: =IF(B126="","",MAX($A$3:A125)+1) -> 123 | B126: =IF(ROWS(B$1:B123)>COUNTIF(Feuil1!$A$2:$A$5000,$A$1),"",INDEX(Feuil1!$B$2:$B$5000,SMALL(IF(Feuil1!$A$2:$A$5000<>"",IF(Feuil1!$A$2:$A$5000=$A$1,ROW($A$2:$A$5000)-ROW($A$2)+1)),ROWS(B$1:B123)))) -> 6284 | C126: =SUMPRODUCT((Feuil1!$B$2:$B$5000=$B126)*(Feuil1!$D$2:$D$5000=C$3)*(Feuil1!$E$2:$E$5000)) -> 180 | D126: =SUMPRODUCT((Feuil1!$B$2:$B$5000=$B126)*(Feuil1!$D$2:$D$5000=D$3)*(Feuil1!$E$2:$E$5000)) -> 180 | E126: =SUMPRODUCT((Feuil1!$B$2:$B$5000=$B126)*(Feuil1!$D$2:$D$5000=E$3)*(Feuil1!$E$2:$E$5000)) -> 180 | F126: =SUMPRODUCT((Feuil1!$B$2:$B$5000=$B126)*(Feuil1!$D$2:$D$5000=F$3)*(Feuil1!$E$2:$E$5000)) -> 180 | G126: =SUMPRODUCT((Feuil1!$B$2:$B$5000=$B126)*(Feuil1!$D$2:$D$5000=G$3)*(Feuil1!$E$2:$E$5000)) -> 180 | H126: =SUMPRODUCT((Feuil1!$B$2:$B$5000=$B126)*(Feuil1!$D$2:$D$5000=H$3)*(Feuil1!$E$2:$E$5000)) -> 180 | I126: =SUMPRODUCT((Feuil1!$B$2:$B$5000=$B126)*(Feuil1!$D$2:$D$5000=I$3)*(Feuil1!$E$2:$E$5000)) -> 180 | J126: =SUMPRODUCT((Feuil1!$B$2:$B$5000=$B126)*(Feuil1!$D$2:$D$5000=J$3)*(Feuil1!$E$2:$E$5000)) -> 180 | K126: =SUMPRODUCT((Feuil1!$B$2:$B$5000=$B126)*(Feuil1!$D$2:$D$5000=K$3)*(Feuil1!$E$2:$E$5000)) -> 180 | L126: =SUMPRODUCT((Feuil1!$B$2:$B$5000=$B126)*(Feuil1!$D$2:$D$5000=L$3)*(Feuil1!$E$2:$E$5000)) -> 180 | M126: =SUMPRODUCT((Feuil1!$B$2:$B$5000=$B126)*(Feuil1!$D$2:$D$5000=M$3)*(Feuil1!$E$2:$E$5000)) -> 0 | N126: =SUMPRODUCT((Feuil1!$B$2:$B$5000=$B126)*(Feuil1!$D$2:$D$5000=N$3)*(Feuil1!$E$2:$E$5000)) -> 0 | O126: =SUMPRODUCT((Feuil1!$B$2:$B$5000=$B126)*(Feuil1!$D$2:$D$5000=O$3)*(Feuil1!$E$2:$E$5000)) -> 0 | P126: =SUMPRODUCT((Feuil1!$B$2:$B$5000=$B126)*(Feuil1!$D$2:$D$5000=P$3)*(Feuil1!$E$2:$E$5000)) -> 0 | Q126: =SUMPRODUCT((Feuil1!$B$2:$B$5000=$B126)*(Feuil1!$D$2:$D$5000=Q$3)*(Feuil1!$E$2:$E$5000)) -> 0 | R126: =SUMPRODUCT((Feuil1!$B$2:$B$5000=$B126)*(Feuil1!$D$2:$D$5000=R$3)*(Feuil1!$E$2:$E$5000)) -> 0
A127: =IF(B127="","",MAX($A$3:A126)+1) -> 124 | B127: =IF(ROWS(B$1:B124)>COUNTIF(Feuil1!$A$2:$A$5000,$A$1),"",INDEX(Feuil1!$B$2:$B$5000,SMALL(IF(Feuil1!$A$2:$A$5000<>"",IF(Feuil1!$A$2:$A$5000=$A$1,ROW($A$2:$A$5000)-ROW($A$2)+1)),ROWS(B$1:B124)))) -> 6284 | C127: =SUMPRODUCT((Feuil1!$B$2:$B$5000=$B127)*(Feuil1!$D$2:$D$5000=C$3)*(Feuil1!$E$2:$E$5000)) -> 180 | D127: =SUMPRODUCT((Feuil1!$B$2:$B$5000=$B127)*(Feuil1!$D$2:$D$5000=D$3)*(Feuil1!$E$2:$E$5000)) -> 180 | E127: =SUMPRODUCT((Feuil1!$B$2:$B$5000=$B127)*(Feuil1!$D$2:$D$5000=E$3)*(Feuil1!$E$2:$E$5000)) -> 180 | F127: =SUMPRODUCT((Feuil1!$B$2:$B$5000=$B127)*(Feuil1!$D$2:$D$5000=F$3)*(Feuil1!$E$2:$E$5000)) -> 180 | G127: =SUMPRODUCT((Feuil1!$B$2:$B$5000=$B127)*(Feuil1!$D$2:$D$5000=G$3)*(Feuil1!$E$2:$E$5000)) -> 180 | H127: =SUMPRODUCT((Feuil1!$B$2:$B$5000=$B127)*(Feuil1!$D$2:$D$5000=H$3)*(Feuil1!$E$2:$E$5000)) -> 180 | I127: =SUMPRODUCT((Feuil1!$B$2:$B$5000=$B127)*(Feuil1!$D$2:$D$5000=I$3)*(Feuil1!$E$2:$E$5000)) -> 180 | J127: =SUMPRODUCT((Feuil1!$B$2:$B$5000=$B127)*(Feuil1!$D$2:$D$5000=J$3)*(Feuil1!$E$2:$E$5000)) -> 180 | K127: =SUMPRODUCT((Feuil1!$B$2:$B$5000=$B127)*(Feuil1!$D$2:$D$5000=K$3)*(Feuil1!$E$2:$E$5000)) -> 180 | L127: =SUMPRODUCT((Feuil1!$B$2:$B$5000=$B127)*(Feuil1!$D$2:$D$5000=L$3)*(Feuil1!$E$2:$E$5000)) -> 180 | M127: =SUMPRODUCT((Feuil1!$B$2:$B$5000=$B127)*(Feuil1!$D$2:$D$5000=M$3)*(Feuil1!$E$2:$E$5000)) -> 0 | N127: =SUMPRODUCT((Feuil1!$B$2:$B$5000=$B127)*(Feuil1!$D$2:$D$5000=N$3)*(Feuil1!$E$2:$E$5000)) -> 0 | O127: =SUMPRODUCT((Feuil1!$B$2:$B$5000=$B127)*(Feuil1!$D$2:$D$5000=O$3)*(Feuil1!$E$2:$E$5000)) -> 0 | P127: =SUMPRODUCT((Feuil1!$B$2:$B$5000=$B127)*(Feuil1!$D$2:$D$5000=P$3)*(Feuil1!$E$2:$E$5000)) -> 0 | Q127: =SUMPRODUCT((Feuil1!$B$2:$B$5000=$B127)*(Feuil1!$D$2:$D$5000=Q$3)*(Feuil1!$E$2:$E$5000)) -> 0 | R127: =SUMPRODUCT((Feuil1!$B$2:$B$5000=$B127)*(Feuil1!$D$2:$D$5000=R$3)*(Feuil1!$E$2:$E$5000)) -> 0
A128: =IF(B128="","",MAX($A$3:A127)+1) -> 125 | B128: =IF(ROWS(B$1:B125)>COUNTIF(Feuil1!$A$2:$A$5000,$A$1),"",INDEX(Feuil1!$B$2:$B$5000,SMALL(IF(Feuil1!$A$2:$A$5000<>"",IF(Feuil1!$A$2:$A$5000=$A$1,ROW($A$2:$A$5000)-ROW($A$2)+1)),ROWS(B$1:B125)))) -> 6285 | C128: =SUMPRODUCT((Feuil1!$B$2:$B$5000=$B128)*(Feuil1!$D$2:$D$5000=C$3)*(Feuil1!$E$2:$E$5000)) -> 180 | D128: =SUMPRODUCT((Feuil1!$B$2:$B$5000=$B128)*(Feuil1!$D$2:$D$5000=D$3)*(Feuil1!$E$2:$E$5000)) -> 180 | E128: =SUMPRODUCT((Feuil1!$B$2:$B$5000=$B128)*(Feuil1!$D$2:$D$5000=E$3)*(Feuil1!$E$2:$E$5000)) -> 180 | F128: =SUMPRODUCT((Feuil1!$B$2:$B$5000=$B128)*(Feuil1!$D$2:$D$5000=F$3)*(Feuil1!$E$2:$E$5000)) -> 180 | G128: =SUMPRODUCT((Feuil1!$B$2:$B$5000=$B128)*(Feuil1!$D$2:$D$5000=G$3)*(Feuil1!$E$2:$E$5000)) -> 180 | H128: =SUMPRODUCT((Feuil1!$B$2:$B$5000=$B128)*(Feuil1!$D$2:$D$5000=H$3)*(Feuil1!$E$2:$E$5000)) -> 180 | I128: =SUMPRODUCT((Feuil1!$B$2:$B$5000=$B128)*(Feuil1!$D$2:$D$5000=I$3)*(Feuil1!$E$2:$E$5000)) -> 180 | J128: =SUMPRODUCT((Feuil1!$B$2:$B$5000=$B128)*(Feuil1!$D$2:$D$5000=J$3)*(Feuil1!$E$2:$E$5000)) -> 180 | K128: =SUMPRODUCT((Feuil1!$B$2:$B$5000=$B128)*(Feuil1!$D$2:$D$5000=K$3)*(Feuil1!$E$2:$E$5000)) -> 180 | L128: =SUMPRODUCT((Feuil1!$B$2:$B$5000=$B128)*(Feuil1!$D$2:$D$5000=L$3)*(Feuil1!$E$2:$E$5000)) -> 180 | M128: =SUMPRODUCT((Feuil1!$B$2:$B$5000=$B128)*(Feuil1!$D$2:$D$5000=M$3)*(Feuil1!$E$2:$E$5000)) -> 0 | N128: =SUMPRODUCT((Feuil1!$B$2:$B$5000=$B128)*(Feuil1!$D$2:$D$5000=N$3)*(Feuil1!$E$2:$E$5000)) -> 0 | O128: =SUMPRODUCT((Feuil1!$B$2:$B$5000=$B128)*(Feuil1!$D$2:$D$5000=O$3)*(Feuil1!$E$2:$E$5000)) -> 0 | P128: =SUMPRODUCT((Feuil1!$B$2:$B$5000=$B128)*(Feuil1!$D$2:$D$5000=P$3)*(Feuil1!$E$2:$E$5000)) -> 0 | Q128: =SUMPRODUCT((Feuil1!$B$2:$B$5000=$B128)*(Feuil1!$D$2:$D$5000=Q$3)*(Feuil1!$E$2:$E$5000)) -> 0 | R128: =SUMPRODUCT((Feuil1!$B$2:$B$5000=$B128)*(Feuil1!$D$2:$D$5000=R$3)*(Feuil1!$E$2:$E$5000)) -> 0
A129: =IF(B129="","",MAX($A$3:A128)+1) -> 126 | B129: =IF(ROWS(B$1:B126)>COUNTIF(Feuil1!$A$2:$A$5000,$A$1),"",INDEX(Feuil1!$B$2:$B$5000,SMALL(IF(Feuil1!$A$2:$A$5000<>"",IF(Feuil1!$A$2:$A$5000=$A$1,ROW($A$2:$A$5000)-ROW($A$2)+1)),ROWS(B$1:B126)))) -> 6285 | C129: =SUMPRODUCT((Feuil1!$B$2:$B$5000=$B129)*(Feuil1!$D$2:$D$5000=C$3)*(Feuil1!$E$2:$E$5000)) -> 180 | D129: =SUMPRODUCT((Feuil1!$B$2:$B$5000=$B129)*(Feuil1!$D$2:$D$5000=D$3)*(Feuil1!$E$2:$E$5000)) -> 180 | E129: =SUMPRODUCT((Feuil1!$B$2:$B$5000=$B129)*(Feuil1!$D$2:$D$5000=E$3)*(Feuil1!$E$2:$E$5000)) -> 180 | F129: =SUMPRODUCT((Feuil1!$B$2:$B$5000=$B129)*(Feuil1!$D$2:$D$5000=F$3)*(Feuil1!$E$2:$E$5000)) -> 180 | G129: =SUMPRODUCT((Feuil1!$B$2:$B$5000=$B129)*(Feuil1!$D$2:$D$5000=G$3)*(Feuil1!$E$2:$E$5000)) -> 180 | H129: =SUMPRODUCT((Feuil1!$B$2:$B$5000=$B129)*(Feuil1!$D$2:$D$5000=H$3)*(Feuil1!$E$2:$E$5000)) -> 180 | I129: =SUMPRODUCT((Feuil1!$B$2:$B$5000=$B129)*(Feuil1!$D$2:$D$5000=I$3)*(Feuil1!$E$2:$E$5000)) -> 180 | J129: =SUMPRODUCT((Feuil1!$B$2:$B$5000=$B129)*(Feuil1!$D$2:$D$5000=J$3)*(Feuil1!$E$2:$E$5000)) -> 180 | K129: =SUMPRODUCT((Feuil1!$B$2:$B$5000=$B129)*(Feuil1!$D$2:$D$5000=K$3)*(Feuil1!$E$2:$E$5000)) -> 180 | L129: =SUMPRODUCT((Feuil1!$B$2:$B$5000=$B129)*(Feuil1!$D$2:$D$5000=L$3)*(Feuil1!$E$2:$E$5000)) -> 180 | M129: =SUMPRODUCT((Feuil1!$B$2:$B$5000=$B129)*(Feuil1!$D$2:$D$5000=M$3)*(Feuil1!$E$2:$E$5000)) -> 0 | N129: =SUMPRODUCT((Feuil1!$B$2:$B$5000=$B129)*(Feuil1!$D$2:$D$5000=N$3)*(Feuil1!$E$2:$E$5000)) -> 0 | O129: =SUMPRODUCT((Feuil1!$B$2:$B$5000=$B129)*(Feuil1!$D$2:$D$5000=O$3)*(Feuil1!$E$2:$E$5000)) -> 0 | P129: =SUMPRODUCT((Feuil1!$B$2:$B$5000=$B129)*(Feuil1!$D$2:$D$5000=P$3)*(Feuil1!$E$2:$E$5000)) -> 0 | Q129: =SUMPRODUCT((Feuil1!$B$2:$B$5000=$B129)*(Feuil1!$D$2:$D$5000=Q$3)*(Feuil1!$E$2:$E$5000)) -> 0 | R129: =SUMPRODUCT((Feuil1!$B$2:$B$5000=$B129)*(Feuil1!$D$2:$D$5000=R$3)*(Feuil1!$E$2:$E$5000)) -> 0
A130: =IF(B130="","",MAX($A$3:A129)+1) -> 127 | B130: =IF(ROWS(B$1:B127)>COUNTIF(Feuil1!$A$2:$A$5000,$A$1),"",INDEX(Feuil1!$B$2:$B$5000,SMALL(IF(Feuil1!$A$2:$A$5000<>"",IF(Feuil1!$A$2:$A$5000=$A$1,ROW($A$2:$A$5000)-ROW($A$2)+1)),ROWS(B$1:B127)))) -> 6285 | C130: =SUMPRODUCT((Feuil1!$B$2:$B$5000=$B130)*(Feuil1!$D$2:$D$5000=C$3)*(Feuil1!$E$2:$E$5000)) -> 180 | D130: =SUMPRODUCT((Feuil1!$B$2:$B$5000=$B130)*(Feuil1!$D$2:$D$5000=D$3)*(Feuil1!$E$2:$E$5000)) -> 180 | E130: =SUMPRODUCT((Feuil1!$B$2:$B$5000=$B130)*(Feuil1!$D$2:$D$5000=E$3)*(Feuil1!$E$2:$E$5000)) -> 180 | F130: =SUMPRODUCT((Feuil1!$B$2:$B$5000=$B130)*(Feuil1!$D$2:$D$5000=F$3)*(Feuil1!$E$2:$E$5000)) -> 180 | G130: =SUMPRODUCT((Feuil1!$B$2:$B$5000=$B130)*(Feuil1!$D$2:$D$5000=G$3)*(Feuil1!$E$2:$E$5000)) -> 180 | H130: =SUMPRODUCT((Feuil1!$B$2:$B$5000=$B130)*(Feuil1!$D$2:$D$5000=H$3)*(Feuil1!$E$2:$E$5000)) -> 180 | I130: =SUMPRODUCT((Feuil1!$B$2:$B$5000=$B130)*(Feuil1!$D$2:$D$5000=I$3)*(Feuil1!$E$2:$E$5000)) -> 180 | J130: =SUMPRODUCT((Feuil1!$B$2:$B$5000=$B130)*(Feuil1!$D$2:$D$5000=J$3)*(Feuil1!$E$2:$E$5000)) -> 180 | K130: =SUMPRODUCT((Feuil1!$B$2:$B$5000=$B130)*(Feuil1!$D$2:$D$5000=K$3)*(Feuil1!$E$2:$E$5000)) -> 180 | L130: =SUMPRODUCT((Feuil1!$B$2:$B$5000=$B130)*(Feuil1!$D$2:$D$5000=L$3)*(Feuil1!$E$2:$E$5000)) -> 180 | M130: =SUMPRODUCT((Feuil1!$B$2:$B$5000=$B130)*(Feuil1!$D$2:$D$5000=M$3)*(Feuil1!$E$2:$E$5000)) -> 0 | N130: =SUMPRODUCT((Feuil1!$B$2:$B$5000=$B130)*(Feuil1!$D$2:$D$5000=N$3)*(Feuil1!$E$2:$E$5000)) -> 0 | O130: =SUMPRODUCT((Feuil1!$B$2:$B$5000=$B130)*(Feuil1!$D$2:$D$5000=O$3)*(Feuil1!$E$2:$E$5000)) -> 0 | P130: =SUMPRODUCT((Feuil1!$B$2:$B$5000=$B130)*(Feuil1!$D$2:$D$5000=P$3)*(Feuil1!$E$2:$E$5000)) -> 0 | Q130: =SUMPRODUCT((Feuil1!$B$2:$B$5000=$B130)*(Feuil1!$D$2:$D$5000=Q$3)*(Feuil1!$E$2:$E$5000)) -> 0 | R130: =SUMPRODUCT((Feuil1!$B$2:$B$5000=$B130)*(Feuil1!$D$2:$D$5000=R$3)*(Feuil1!$E$2:$E$5000)) -> 0
A131: =IF(B131="","",MAX($A$3:A130)+1) -> 128 | B131: =IF(ROWS(B$1:B128)>COUNTIF(Feuil1!$A$2:$A$5000,$A$1),"",INDEX(Feuil1!$B$2:$B$5000,SMALL(IF(Feuil1!$A$2:$A$5000<>"",IF(Feuil1!$A$2:$A$5000=$A$1,ROW($A$2:$A$5000)-ROW($A$2)+1)),ROWS(B$1:B128)))) -> 6285 | C131: =SUMPRODUCT((Feuil1!$B$2:$B$5000=$B131)*(Feuil1!$D$2:$D$5000=C$3)*(Feuil1!$E$2:$E$5000)) -> 180 | D131: =SUMPRODUCT((Feuil1!$B$2:$B$5000=$B131)*(Feuil1!$D$2:$D$5000=D$3)*(Feuil1!$E$2:$E$5000)) -> 180 | E131: =SUMPRODUCT((Feuil1!$B$2:$B$5000=$B131)*(Feuil1!$D$2:$D$5000=E$3)*(Feuil1!$E$2:$E$5000)) -> 180 | F131: =SUMPRODUCT((Feuil1!$B$2:$B$5000=$B131)*(Feuil1!$D$2:$D$5000=F$3)*(Feuil1!$E$2:$E$5000)) -> 180 | G131: =SUMPRODUCT((Feuil1!$B$2:$B$5000=$B131)*(Feuil1!$D$2:$D$5000=G$3)*(Feuil1!$E$2:$E$5000)) -> 180 | H131: =SUMPRODUCT((Feuil1!$B$2:$B$5000=$B131)*(Feuil1!$D$2:$D$5000=H$3)*(Feuil1!$E$2:$E$5000)) -> 180 | I131: =SUMPRODUCT((Feuil1!$B$2:$B$5000=$B131)*(Feuil1!$D$2:$D$5000=I$3)*(Feuil1!$E$2:$E$5000)) -> 180 | J131: =SUMPRODUCT((Feuil1!$B$2:$B$5000=$B131)*(Feuil1!$D$2:$D$5000=J$3)*(Feuil1!$E$2:$E$5000)) -> 180 | K131: =SUMPRODUCT((Feuil1!$B$2:$B$5000=$B131)*(Feuil1!$D$2:$D$5000=K$3)*(Feuil1!$E$2:$E$5000)) -> 180 | L131: =SUMPRODUCT((Feuil1!$B$2:$B$5000=$B131)*(Feuil1!$D$2:$D$5000=L$3)*(Feuil1!$E$2:$E$5000)) -> 180 | M131: =SUMPRODUCT((Feuil1!$B$2:$B$5000=$B131)*(Feuil1!$D$2:$D$5000=M$3)*(Feuil1!$E$2:$E$5000)) -> 0 | N131: =SUMPRODUCT((Feuil1!$B$2:$B$5000=$B131)*(Feuil1!$D$2:$D$5000=N$3)*(Feuil1!$E$2:$E$5000)) -> 0 | O131: =SUMPRODUCT((Feuil1!$B$2:$B$5000=$B131)*(Feuil1!$D$2:$D$5000=O$3)*(Feuil1!$E$2:$E$5000)) -> 0 | P131: =SUMPRODUCT((Feuil1!$B$2:$B$5000=$B131)*(Feuil1!$D$2:$D$5000=P$3)*(Feuil1!$E$2:$E$5000)) -> 0 | Q131: =SUMPRODUCT((Feuil1!$B$2:$B$5000=$B131)*(Feuil1!$D$2:$D$5000=Q$3)*(Feuil1!$E$2:$E$5000)) -> 0 | R131: =SUMPRODUCT((Feuil1!$B$2:$B$5000=$B131)*(Feuil1!$D$2:$D$5000=R$3)*(Feuil1!$E$2:$E$5000)) -> 0
A132: =IF(B132="","",MAX($A$3:A131)+1) -> 129 | B132: =IF(ROWS(B$1:B129)>COUNTIF(Feuil1!$A$2:$A$5000,$A$1),"",INDEX(Feuil1!$B$2:$B$5000,SMALL(IF(Feuil1!$A$2:$A$5000<>"",IF(Feuil1!$A$2:$A$5000=$A$1,ROW($A$2:$A$5000)-ROW($A$2)+1)),ROWS(B$1:B129)))) -> 6285 | C132: =SUMPRODUCT((Feuil1!$B$2:$B$5000=$B132)*(Feuil1!$D$2:$D$5000=C$3)*(Feuil1!$E$2:$E$5000)) -> 180 | D132: =SUMPRODUCT((Feuil1!$B$2:$B$5000=$B132)*(Feuil1!$D$2:$D$5000=D$3)*(Feuil1!$E$2:$E$5000)) -> 180 | E132: =SUMPRODUCT((Feuil1!$B$2:$B$5000=$B132)*(Feuil1!$D$2:$D$5000=E$3)*(Feuil1!$E$2:$E$5000)) -> 180 | F132: =SUMPRODUCT((Feuil1!$B$2:$B$5000=$B132)*(Feuil1!$D$2:$D$5000=F$3)*(Feuil1!$E$2:$E$5000)) -> 180 | G132: =SUMPRODUCT((Feuil1!$B$2:$B$5000=$B132)*(Feuil1!$D$2:$D$5000=G$3)*(Feuil1!$E$2:$E$5000)) -> 180 | H132: =SUMPRODUCT((Feuil1!$B$2:$B$5000=$B132)*(Feuil1!$D$2:$D$5000=H$3)*(Feuil1!$E$2:$E$5000)) -> 180 | I132: =SUMPRODUCT((Feuil1!$B$2:$B$5000=$B132)*(Feuil1!$D$2:$D$5000=I$3)*(Feuil1!$E$2:$E$5000)) -> 180 | J132: =SUMPRODUCT((Feuil1!$B$2:$B$5000=$B132)*(Feuil1!$D$2:$D$5000=J$3)*(Feuil1!$E$2:$E$5000)) -> 180 | K132: =SUMPRODUCT((Feuil1!$B$2:$B$5000=$B132)*(Feuil1!$D$2:$D$5000=K$3)*(Feuil1!$E$2:$E$5000)) -> 180 | L132: =SUMPRODUCT((Feuil1!$B$2:$B$5000=$B132)*(Feuil1!$D$2:$D$5000=L$3)*(Feuil1!$E$2:$E$5000)) -> 180 | M132: =SUMPRODUCT((Feuil1!$B$2:$B$5000=$B132)*(Feuil1!$D$2:$D$5000=M$3)*(Feuil1!$E$2:$E$5000)) -> 0 | N132: =SUMPRODUCT((Feuil1!$B$2:$B$5000=$B132)*(Feuil1!$D$2:$D$5000=N$3)*(Feuil1!$E$2:$E$5000)) -> 0 | O132: =SUMPRODUCT((Feuil1!$B$2:$B$5000=$B132)*(Feuil1!$D$2:$D$5000=O$3)*(Feuil1!$E$2:$E$5000)) -> 0 | P132: =SUMPRODUCT((Feuil1!$B$2:$B$5000=$B132)*(Feuil1!$D$2:$D$5000=P$3)*(Feuil1!$E$2:$E$5000)) -> 0 | Q132: =SUMPRODUCT((Feuil1!$B$2:$B$5000=$B132)*(Feuil1!$D$2:$D$5000=Q$3)*(Feuil1!$E$2:$E$5000)) -> 0 | R132: =SUMPRODUCT((Feuil1!$B$2:$B$5000=$B132)*(Feuil1!$D$2:$D$5000=R$3)*(Feuil1!$E$2:$E$5000)) -> 0
A133: =IF(B133="","",MAX($A$3:A132)+1) -> 130 | B133: =IF(ROWS(B$1:B130)>COUNTIF(Feuil1!$A$2:$A$5000,$A$1),"",INDEX(Feuil1!$B$2:$B$5000,SMALL(IF(Feuil1!$A$2:$A$5000<>"",IF(Feuil1!$A$2:$A$5000=$A$1,ROW($A$2:$A$5000)-ROW($A$2)+1)),ROWS(B$1:B130)))) -> 6286 | C133: =SUMPRODUCT((Feuil1!$B$2:$B$5000=$B133)*(Feuil1!$D$2:$D$5000=C$3)*(Feuil1!$E$2:$E$5000)) -> 177 | D133: =SUMPRODUCT((Feuil1!$B$2:$B$5000=$B133)*(Feuil1!$D$2:$D$5000=D$3)*(Feuil1!$E$2:$E$5000)) -> 177 | E133: =SUMPRODUCT((Feuil1!$B$2:$B$5000=$B133)*(Feuil1!$D$2:$D$5000=E$3)*(Feuil1!$E$2:$E$5000)) -> 177 | F133: =SUMPRODUCT((Feuil1!$B$2:$B$5000=$B133)*(Feuil1!$D$2:$D$5000=F$3)*(Feuil1!$E$2:$E$5000)) -> 177 | G133: =SUMPRODUCT((Feuil1!$B$2:$B$5000=$B133)*(Feuil1!$D$2:$D$5000=G$3)*(Feuil1!$E$2:$E$5000)) -> 177 | H133: =SUMPRODUCT((Feuil1!$B$2:$B$5000=$B133)*(Feuil1!$D$2:$D$5000=H$3)*(Feuil1!$E$2:$E$5000)) -> 177 | I133: =SUMPRODUCT((Feuil1!$B$2:$B$5000=$B133)*(Feuil1!$D$2:$D$5000=I$3)*(Feuil1!$E$2:$E$5000)) -> 177 | J133: =SUMPRODUCT((Feuil1!$B$2:$B$5000=$B133)*(Feuil1!$D$2:$D$5000=J$3)*(Feuil1!$E$2:$E$5000)) -> 177 | K133: =SUMPRODUCT((Feuil1!$B$2:$B$5000=$B133)*(Feuil1!$D$2:$D$5000=K$3)*(Feuil1!$E$2:$E$5000)) -> 177 | L133: =SUMPRODUCT((Feuil1!$B$2:$B$5000=$B133)*(Feuil1!$D$2:$D$5000=L$3)*(Feuil1!$E$2:$E$5000)) -> 177 | M133: =SUMPRODUCT((Feuil1!$B$2:$B$5000=$B133)*(Feuil1!$D$2:$D$5000=M$3)*(Feuil1!$E$2:$E$5000)) -> 0 | N133: =SUMPRODUCT((Feuil1!$B$2:$B$5000=$B133)*(Feuil1!$D$2:$D$5000=N$3)*(Feuil1!$E$2:$E$5000)) -> 0 | O133: =SUMPRODUCT((Feuil1!$B$2:$B$5000=$B133)*(Feuil1!$D$2:$D$5000=O$3)*(Feuil1!$E$2:$E$5000)) -> 0 | P133: =SUMPRODUCT((Feuil1!$B$2:$B$5000=$B133)*(Feuil1!$D$2:$D$5000=P$3)*(Feuil1!$E$2:$E$5000)) -> 0 | Q133: =SUMPRODUCT((Feuil1!$B$2:$B$5000=$B133)*(Feuil1!$D$2:$D$5000=Q$3)*(Feuil1!$E$2:$E$5000)) -> 0 | R133: =SUMPRODUCT((Feuil1!$B$2:$B$5000=$B133)*(Feuil1!$D$2:$D$5000=R$3)*(Feuil1!$E$2:$E$5000)) -> 0
A134: =IF(B134="","",MAX($A$3:A133)+1) -> 131 | B134: =IF(ROWS(B$1:B131)>COUNTIF(Feuil1!$A$2:$A$5000,$A$1),"",INDEX(Feuil1!$B$2:$B$5000,SMALL(IF(Feuil1!$A$2:$A$5000<>"",IF(Feuil1!$A$2:$A$5000=$A$1,ROW($A$2:$A$5000)-ROW($A$2)+1)),ROWS(B$1:B131)))) -> 6286 | C134: =SUMPRODUCT((Feuil1!$B$2:$B$5000=$B134)*(Feuil1!$D$2:$D$5000=C$3)*(Feuil1!$E$2:$E$5000)) -> 177 | D134: =SUMPRODUCT((Feuil1!$B$2:$B$5000=$B134)*(Feuil1!$D$2:$D$5000=D$3)*(Feuil1!$E$2:$E$5000)) -> 177 | E134: =SUMPRODUCT((Feuil1!$B$2:$B$5000=$B134)*(Feuil1!$D$2:$D$5000=E$3)*(Feuil1!$E$2:$E$5000)) -> 177 | F134: =SUMPRODUCT((Feuil1!$B$2:$B$5000=$B134)*(Feuil1!$D$2:$D$5000=F$3)*(Feuil1!$E$2:$E$5000)) -> 177 | G134: =SUMPRODUCT((Feuil1!$B$2:$B$5000=$B134)*(Feuil1!$D$2:$D$5000=G$3)*(Feuil1!$E$2:$E$5000)) -> 177 | H134: =SUMPRODUCT((Feuil1!$B$2:$B$5000=$B134)*(Feuil1!$D$2:$D$5000=H$3)*(Feuil1!$E$2:$E$5000)) -> 177 | I134: =SUMPRODUCT((Feuil1!$B$2:$B$5000=$B134)*(Feuil1!$D$2:$D$5000=I$3)*(Feuil1!$E$2:$E$5000)) -> 177 | J134: =SUMPRODUCT((Feuil1!$B$2:$B$5000=$B134)*(Feuil1!$D$2:$D$5000=J$3)*(Feuil1!$E$2:$E$5000)) -> 177 | K134: =SUMPRODUCT((Feuil1!$B$2:$B$5000=$B134)*(Feuil1!$D$2:$D$5000=K$3)*(Feuil1!$E$2:$E$5000)) -> 177 | L134: =SUMPRODUCT((Feuil1!$B$2:$B$5000=$B134)*(Feuil1!$D$2:$D$5000=L$3)*(Feuil1!$E$2:$E$5000)) -> 177 | M134: =SUMPRODUCT((Feuil1!$B$2:$B$5000=$B134)*(Feuil1!$D$2:$D$5000=M$3)*(Feuil1!$E$2:$E$5000)) -> 0 | N134: =SUMPRODUCT((Feuil1!$B$2:$B$5000=$B134)*(Feuil1!$D$2:$D$5000=N$3)*(Feuil1!$E$2:$E$5000)) -> 0 | O134: =SUMPRODUCT((Feuil1!$B$2:$B$5000=$B134)*(Feuil1!$D$2:$D$5000=O$3)*(Feuil1!$E$2:$E$5000)) -> 0 | P134: =SUMPRODUCT((Feuil1!$B$2:$B$5000=$B134)*(Feuil1!$D$2:$D$5000=P$3)*(Feuil1!$E$2:$E$5000)) -> 0 | Q134: =SUMPRODUCT((Feuil1!$B$2:$B$5000=$B134)*(Feuil1!$D$2:$D$5000=Q$3)*(Feuil1!$E$2:$E$5000)) -> 0 | R134: =SUMPRODUCT((Feuil1!$B$2:$B$5000=$B134)*(Feuil1!$D$2:$D$5000=R$3)*(Feuil1!$E$2:$E$5000)) -> 0
A135: =IF(B135="","",MAX($A$3:A134)+1) -> 132 | B135: =IF(ROWS(B$1:B132)>COUNTIF(Feuil1!$A$2:$A$5000,$A$1),"",INDEX(Feuil1!$B$2:$B$5000,SMALL(IF(Feuil1!$A$2:$A$5000<>"",IF(Feuil1!$A$2:$A$5000=$A$1,ROW($A$2:$A$5000)-ROW($A$2)+1)),ROWS(B$1:B132)))) -> 6286 | C135: =SUMPRODUCT((Feuil1!$B$2:$B$5000=$B135)*(Feuil1!$D$2:$D$5000=C$3)*(Feuil1!$E$2:$E$5000)) -> 177 | D135: =SUMPRODUCT((Feuil1!$B$2:$B$5000=$B135)*(Feuil1!$D$2:$D$5000=D$3)*(Feuil1!$E$2:$E$5000)) -> 177 | E135: =SUMPRODUCT((Feuil1!$B$2:$B$5000=$B135)*(Feuil1!$D$2:$D$5000=E$3)*(Feuil1!$E$2:$E$5000)) -> 177 | F135: =SUMPRODUCT((Feuil1!$B$2:$B$5000=$B135)*(Feuil1!$D$2:$D$5000=F$3)*(Feuil1!$E$2:$E$5000)) -> 177 | G135: =SUMPRODUCT((Feuil1!$B$2:$B$5000=$B135)*(Feuil1!$D$2:$D$5000=G$3)*(Feuil1!$E$2:$E$5000)) -> 177 | H135: =SUMPRODUCT((Feuil1!$B$2:$B$5000=$B135)*(Feuil1!$D$2:$D$5000=H$3)*(Feuil1!$E$2:$E$5000)) -> 177 | I135: =SUMPRODUCT((Feuil1!$B$2:$B$5000=$B135)*(Feuil1!$D$2:$D$5000=I$3)*(Feuil1!$E$2:$E$5000)) -> 177 | J135: =SUMPRODUCT((Feuil1!$B$2:$B$5000=$B135)*(Feuil1!$D$2:$D$5000=J$3)*(Feuil1!$E$2:$E$5000)) -> 177 | K135: =SUMPRODUCT((Feuil1!$B$2:$B$5000=$B135)*(Feuil1!$D$2:$D$5000=K$3)*(Feuil1!$E$2:$E$5000)) -> 177 | L135: =SUMPRODUCT((Feuil1!$B$2:$B$5000=$B135)*(Feuil1!$D$2:$D$5000=L$3)*(Feuil1!$E$2:$E$5000)) -> 177 | M135: =SUMPRODUCT((Feuil1!$B$2:$B$5000=$B135)*(Feuil1!$D$2:$D$5000=M$3)*(Feuil1!$E$2:$E$5000)) -> 0 | N135: =SUMPRODUCT((Feuil1!$B$2:$B$5000=$B135)*(Feuil1!$D$2:$D$5000=N$3)*(Feuil1!$E$2:$E$5000)) -> 0 | O135: =SUMPRODUCT((Feuil1!$B$2:$B$5000=$B135)*(Feuil1!$D$2:$D$5000=O$3)*(Feuil1!$E$2:$E$5000)) -> 0 | P135: =SUMPRODUCT((Feuil1!$B$2:$B$5000=$B135)*(Feuil1!$D$2:$D$5000=P$3)*(Feuil1!$E$2:$E$5000)) -> 0 | Q135: =SUMPRODUCT((Feuil1!$B$2:$B$5000=$B135)*(Feuil1!$D$2:$D$5000=Q$3)*(Feuil1!$E$2:$E$5000)) -> 0 | R135: =SUMPRODUCT((Feuil1!$B$2:$B$5000=$B135)*(Feuil1!$D$2:$D$5000=R$3)*(Feuil1!$E$2:$E$5000)) -> 0
A136: =IF(B136="","",MAX($A$3:A135)+1) -> 133 | B136: =IF(ROWS(B$1:B133)>COUNTIF(Feuil1!$A$2:$A$5000,$A$1),"",INDEX(Feuil1!$B$2:$B$5000,SMALL(IF(Feuil1!$A$2:$A$5000<>"",IF(Feuil1!$A$2:$A$5000=$A$1,ROW($A$2:$A$5000)-ROW($A$2)+1)),ROWS(B$1:B133)))) -> 6286 | C136: =SUMPRODUCT((Feuil1!$B$2:$B$5000=$B136)*(Feuil1!$D$2:$D$5000=C$3)*(Feuil1!$E$2:$E$5000)) -> 177 | D136: =SUMPRODUCT((Feuil1!$B$2:$B$5000=$B136)*(Feuil1!$D$2:$D$5000=D$3)*(Feuil1!$E$2:$E$5000)) -> 177 | E136: =SUMPRODUCT((Feuil1!$B$2:$B$5000=$B136)*(Feuil1!$D$2:$D$5000=E$3)*(Feuil1!$E$2:$E$5000)) -> 177 | F136: =SUMPRODUCT((Feuil1!$B$2:$B$5000=$B136)*(Feuil1!$D$2:$D$5000=F$3)*(Feuil1!$E$2:$E$5000)) -> 177 | G136: =SUMPRODUCT((Feuil1!$B$2:$B$5000=$B136)*(Feuil1!$D$2:$D$5000=G$3)*(Feuil1!$E$2:$E$5000)) -> 177 | H136: =SUMPRODUCT((Feuil1!$B$2:$B$5000=$B136)*(Feuil1!$D$2:$D$5000=H$3)*(Feuil1!$E$2:$E$5000)) -> 177 | I136: =SUMPRODUCT((Feuil1!$B$2:$B$5000=$B136)*(Feuil1!$D$2:$D$5000=I$3)*(Feuil1!$E$2:$E$5000)) -> 177 | J136: =SUMPRODUCT((Feuil1!$B$2:$B$5000=$B136)*(Feuil1!$D$2:$D$5000=J$3)*(Feuil1!$E$2:$E$5000)) -> 177 | K136: =SUMPRODUCT((Feuil1!$B$2:$B$5000=$B136)*(Feuil1!$D$2:$D$5000=K$3)*(Feuil1!$E$2:$E$5000)) -> 177 | L136: =SUMPRODUCT((Feuil1!$B$2:$B$5000=$B136)*(Feuil1!$D$2:$D$5000=L$3)*(Feuil1!$E$2:$E$5000)) -> 177 | M136: =SUMPRODUCT((Feuil1!$B$2:$B$5000=$B136)*(Feuil1!$D$2:$D$5000=M$3)*(Feuil1!$E$2:$E$5000)) -> 0 | N136: =SUMPRODUCT((Feuil1!$B$2:$B$5000=$B136)*(Feuil1!$D$2:$D$5000=N$3)*(Feuil1!$E$2:$E$5000)) -> 0 | O136: =SUMPRODUCT((Feuil1!$B$2:$B$5000=$B136)*(Feuil1!$D$2:$D$5000=O$3)*(Feuil1!$E$2:$E$5000)) -> 0 | P136: =SUMPRODUCT((Feuil1!$B$2:$B$5000=$B136)*(Feuil1!$D$2:$D$5000=P$3)*(Feuil1!$E$2:$E$5000)) -> 0 | Q136: =SUMPRODUCT((Feuil1!$B$2:$B$5000=$B136)*(Feuil1!$D$2:$D$5000=Q$3)*(Feuil1!$E$2:$E$5000)) -> 0 | R136: =SUMPRODUCT((Feuil1!$B$2:$B$5000=$B136)*(Feuil1!$D$2:$D$5000=R$3)*(Feuil1!$E$2:$E$5000)) -> 0
A137: =IF(B137="","",MAX($A$3:A136)+1) -> 134 | B137: =IF(ROWS(B$1:B134)>COUNTIF(Feuil1!$A$2:$A$5000,$A$1),"",INDEX(Feuil1!$B$2:$B$5000,SMALL(IF(Feuil1!$A$2:$A$5000<>"",IF(Feuil1!$A$2:$A$5000=$A$1,ROW($A$2:$A$5000)-ROW($A$2)+1)),ROWS(B$1:B134)))) -> 6286 | C137: =SUMPRODUCT((Feuil1!$B$2:$B$5000=$B137)*(Feuil1!$D$2:$D$5000=C$3)*(Feuil1!$E$2:$E$5000)) -> 177 | D137: =SUMPRODUCT((Feuil1!$B$2:$B$5000=$B137)*(Feuil1!$D$2:$D$5000=D$3)*(Feuil1!$E$2:$E$5000)) -> 177 | E137: =SUMPRODUCT((Feuil1!$B$2:$B$5000=$B137)*(Feuil1!$D$2:$D$5000=E$3)*(Feuil1!$E$2:$E$5000)) -> 177 | F137: =SUMPRODUCT((Feuil1!$B$2:$B$5000=$B137)*(Feuil1!$D$2:$D$5000=F$3)*(Feuil1!$E$2:$E$5000)) -> 177 | G137: =SUMPRODUCT((Feuil1!$B$2:$B$5000=$B137)*(Feuil1!$D$2:$D$5000=G$3)*(Feuil1!$E$2:$E$5000)) -> 177 | H137: =SUMPRODUCT((Feuil1!$B$2:$B$5000=$B137)*(Feuil1!$D$2:$D$5000=H$3)*(Feuil1!$E$2:$E$5000)) -> 177 | I137: =SUMPRODUCT((Feuil1!$B$2:$B$5000=$B137)*(Feuil1!$D$2:$D$5000=I$3)*(Feuil1!$E$2:$E$5000)) -> 177 | J137: =SUMPRODUCT((Feuil1!$B$2:$B$5000=$B137)*(Feuil1!$D$2:$D$5000=J$3)*(Feuil1!$E$2:$E$5000)) -> 177 | K137: =SUMPRODUCT((Feuil1!$B$2:$B$5000=$B137)*(Feuil1!$D$2:$D$5000=K$3)*(Feuil1!$E$2:$E$5000)) -> 177 | L137: =SUMPRODUCT((Feuil1!$B$2:$B$5000=$B137)*(Feuil1!$D$2:$D$5000=L$3)*(Feuil1!$E$2:$E$5000)) -> 177 | M137: =SUMPRODUCT((Feuil1!$B$2:$B$5000=$B137)*(Feuil1!$D$2:$D$5000=M$3)*(Feuil1!$E$2:$E$5000)) -> 0 | N137: =SUMPRODUCT((Feuil1!$B$2:$B$5000=$B137)*(Feuil1!$D$2:$D$5000=N$3)*(Feuil1!$E$2:$E$5000)) -> 0 | O137: =SUMPRODUCT((Feuil1!$B$2:$B$5000=$B137)*(Feuil1!$D$2:$D$5000=O$3)*(Feuil1!$E$2:$E$5000)) -> 0 | P137: =SUMPRODUCT((Feuil1!$B$2:$B$5000=$B137)*(Feuil1!$D$2:$D$5000=P$3)*(Feuil1!$E$2:$E$5000)) -> 0 | Q137: =SUMPRODUCT((Feuil1!$B$2:$B$5000=$B137)*(Feuil1!$D$2:$D$5000=Q$3)*(Feuil1!$E$2:$E$5000)) -> 0 | R137: =SUMPRODUCT((Feuil1!$B$2:$B$5000=$B137)*(Feuil1!$D$2:$D$5000=R$3)*(Feuil1!$E$2:$E$5000)) -> 0
A138: =IF(B138="","",MAX($A$3:A137)+1) -> 135 | B138: =IF(ROWS(B$1:B135)>COUNTIF(Feuil1!$A$2:$A$5000,$A$1),"",INDEX(Feuil1!$B$2:$B$5000,SMALL(IF(Feuil1!$A$2:$A$5000<>"",IF(Feuil1!$A$2:$A$5000=$A$1,ROW($A$2:$A$5000)-ROW($A$2)+1)),ROWS(B$1:B135)))) -> 6287 | C138: =SUMPRODUCT((Feuil1!$B$2:$B$5000=$B138)*(Feuil1!$D$2:$D$5000=C$3)*(Feuil1!$E$2:$E$5000)) -> 179 | D138: =SUMPRODUCT((Feuil1!$B$2:$B$5000=$B138)*(Feuil1!$D$2:$D$5000=D$3)*(Feuil1!$E$2:$E$5000)) -> 179 | E138: =SUMPRODUCT((Feuil1!$B$2:$B$5000=$B138)*(Feuil1!$D$2:$D$5000=E$3)*(Feuil1!$E$2:$E$5000)) -> 179 | F138: =SUMPRODUCT((Feuil1!$B$2:$B$5000=$B138)*(Feuil1!$D$2:$D$5000=F$3)*(Feuil1!$E$2:$E$5000)) -> 179 | G138: =SUMPRODUCT((Feuil1!$B$2:$B$5000=$B138)*(Feuil1!$D$2:$D$5000=G$3)*(Feuil1!$E$2:$E$5000)) -> 179 | H138: =SUMPRODUCT((Feuil1!$B$2:$B$5000=$B138)*(Feuil1!$D$2:$D$5000=H$3)*(Feuil1!$E$2:$E$5000)) -> 179 | I138: =SUMPRODUCT((Feuil1!$B$2:$B$5000=$B138)*(Feuil1!$D$2:$D$5000=I$3)*(Feuil1!$E$2:$E$5000)) -> 179 | J138: =SUMPRODUCT((Feuil1!$B$2:$B$5000=$B138)*(Feuil1!$D$2:$D$5000=J$3)*(Feuil1!$E$2:$E$5000)) -> 179 | K138: =SUMPRODUCT((Feuil1!$B$2:$B$5000=$B138)*(Feuil1!$D$2:$D$5000=K$3)*(Feuil1!$E$2:$E$5000)) -> 179 | L138: =SUMPRODUCT((Feuil1!$B$2:$B$5000=$B138)*(Feuil1!$D$2:$D$5000=L$3)*(Feuil1!$E$2:$E$5000)) -> 179 | M138: =SUMPRODUCT((Feuil1!$B$2:$B$5000=$B138)*(Feuil1!$D$2:$D$5000=M$3)*(Feuil1!$E$2:$E$5000)) -> 0 | N138: =SUMPRODUCT((Feuil1!$B$2:$B$5000=$B138)*(Feuil1!$D$2:$D$5000=N$3)*(Feuil1!$E$2:$E$5000)) -> 0 | O138: =SUMPRODUCT((Feuil1!$B$2:$B$5000=$B138)*(Feuil1!$D$2:$D$5000=O$3)*(Feuil1!$E$2:$E$5000)) -> 0 | P138: =SUMPRODUCT((Feuil1!$B$2:$B$5000=$B138)*(Feuil1!$D$2:$D$5000=P$3)*(Feuil1!$E$2:$E$5000)) -> 0 | Q138: =SUMPRODUCT((Feuil1!$B$2:$B$5000=$B138)*(Feuil1!$D$2:$D$5000=Q$3)*(Feuil1!$E$2:$E$5000)) -> 0 | R138: =SUMPRODUCT((Feuil1!$B$2:$B$5000=$B138)*(Feuil1!$D$2:$D$5000=R$3)*(Feuil1!$E$2:$E$5000)) -> 0
A139: =IF(B139="","",MAX($A$3:A138)+1) -> 136 | B139: =IF(ROWS(B$1:B136)>COUNTIF(Feuil1!$A$2:$A$5000,$A$1),"",INDEX(Feuil1!$B$2:$B$5000,SMALL(IF(Feuil1!$A$2:$A$5000<>"",IF(Feuil1!$A$2:$A$5000=$A$1,ROW($A$2:$A$5000)-ROW($A$2)+1)),ROWS(B$1:B136)))) -> 6287 | C139: =SUMPRODUCT((Feuil1!$B$2:$B$5000=$B139)*(Feuil1!$D$2:$D$5000=C$3)*(Feuil1!$E$2:$E$5000)) -> 179 | D139: =SUMPRODUCT((Feuil1!$B$2:$B$5000=$B139)*(Feuil1!$D$2:$D$5000=D$3)*(Feuil1!$E$2:$E$5000)) -> 179 | E139: =SUMPRODUCT((Feuil1!$B$2:$B$5000=$B139)*(Feuil1!$D$2:$D$5000=E$3)*(Feuil1!$E$2:$E$5000)) -> 179 | F139: =SUMPRODUCT((Feuil1!$B$2:$B$5000=$B139)*(Feuil1!$D$2:$D$5000=F$3)*(Feuil1!$E$2:$E$5000)) -> 179 | G139: =SUMPRODUCT((Feuil1!$B$2:$B$5000=$B139)*(Feuil1!$D$2:$D$5000=G$3)*(Feuil1!$E$2:$E$5000)) -> 179 | H139: =SUMPRODUCT((Feuil1!$B$2:$B$5000=$B139)*(Feuil1!$D$2:$D$5000=H$3)*(Feuil1!$E$2:$E$5000)) -> 179 | I139: =SUMPRODUCT((Feuil1!$B$2:$B$5000=$B139)*(Feuil1!$D$2:$D$5000=I$3)*(Feuil1!$E$2:$E$5000)) -> 179 | J139: =SUMPRODUCT((Feuil1!$B$2:$B$5000=$B139)*(Feuil1!$D$2:$D$5000=J$3)*(Feuil1!$E$2:$E$5000)) -> 179 | K139: =SUMPRODUCT((Feuil1!$B$2:$B$5000=$B139)*(Feuil1!$D$2:$D$5000=K$3)*(Feuil1!$E$2:$E$5000)) -> 179 | L139: =SUMPRODUCT((Feuil1!$B$2:$B$5000=$B139)*(Feuil1!$D$2:$D$5000=L$3)*(Feuil1!$E$2:$E$5000)) -> 179 | M139: =SUMPRODUCT((Feuil1!$B$2:$B$5000=$B139)*(Feuil1!$D$2:$D$5000=M$3)*(Feuil1!$E$2:$E$5000)) -> 0 | N139: =SUMPRODUCT((Feuil1!$B$2:$B$5000=$B139)*(Feuil1!$D$2:$D$5000=N$3)*(Feuil1!$E$2:$E$5000)) -> 0 | O139: =SUMPRODUCT((Feuil1!$B$2:$B$5000=$B139)*(Feuil1!$D$2:$D$5000=O$3)*(Feuil1!$E$2:$E$5000)) -> 0 | P139: =SUMPRODUCT((Feuil1!$B$2:$B$5000=$B139)*(Feuil1!$D$2:$D$5000=P$3)*(Feuil1!$E$2:$E$5000)) -> 0 | Q139: =SUMPRODUCT((Feuil1!$B$2:$B$5000=$B139)*(Feuil1!$D$2:$D$5000=Q$3)*(Feuil1!$E$2:$E$5000)) -> 0 | R139: =SUMPRODUCT((Feuil1!$B$2:$B$5000=$B139)*(Feuil1!$D$2:$D$5000=R$3)*(Feuil1!$E$2:$E$5000)) -> 0
A140: =IF(B140="","",MAX($A$3:A139)+1) -> 137 | B140: =IF(ROWS(B$1:B137)>COUNTIF(Feuil1!$A$2:$A$5000,$A$1),"",INDEX(Feuil1!$B$2:$B$5000,SMALL(IF(Feuil1!$A$2:$A$5000<>"",IF(Feuil1!$A$2:$A$5000=$A$1,ROW($A$2:$A$5000)-ROW($A$2)+1)),ROWS(B$1:B137)))) -> 6287 | C140: =SUMPRODUCT((Feuil1!$B$2:$B$5000=$B140)*(Feuil1!$D$2:$D$5000=C$3)*(Feuil1!$E$2:$E$5000)) -> 179 | D140: =SUMPRODUCT((Feuil1!$B$2:$B$5000=$B140)*(Feuil1!$D$2:$D$5000=D$3)*(Feuil1!$E$2:$E$5000)) -> 179 | E140: =SUMPRODUCT((Feuil1!$B$2:$B$5000=$B140)*(Feuil1!$D$2:$D$5000=E$3)*(Feuil1!$E$2:$E$5000)) -> 179 | F140: =SUMPRODUCT((Feuil1!$B$2:$B$5000=$B140)*(Feuil1!$D$2:$D$5000=F$3)*(Feuil1!$E$2:$E$5000)) -> 179 | G140: =SUMPRODUCT((Feuil1!$B$2:$B$5000=$B140)*(Feuil1!$D$2:$D$5000=G$3)*(Feuil1!$E$2:$E$5000)) -> 179 | H140: =SUMPRODUCT((Feuil1!$B$2:$B$5000=$B140)*(Feuil1!$D$2:$D$5000=H$3)*(Feuil1!$E$2:$E$5000)) -> 179 | I140: =SUMPRODUCT((Feuil1!$B$2:$B$5000=$B140)*(Feuil1!$D$2:$D$5000=I$3)*(Feuil1!$E$2:$E$5000)) -> 179 | J140: =SUMPRODUCT((Feuil1!$B$2:$B$5000=$B140)*(Feuil1!$D$2:$D$5000=J$3)*(Feuil1!$E$2:$E$5000)) -> 179 | K140: =SUMPRODUCT((Feuil1!$B$2:$B$5000=$B140)*(Feuil1!$D$2:$D$5000=K$3)*(Feuil1!$E$2:$E$5000)) -> 179 | L140: =SUMPRODUCT((Feuil1!$B$2:$B$5000=$B140)*(Feuil1!$D$2:$D$5000=L$3)*(Feuil1!$E$2:$E$5000)) -> 179 | M140: =SUMPRODUCT((Feuil1!$B$2:$B$5000=$B140)*(Feuil1!$D$2:$D$5000=M$3)*(Feuil1!$E$2:$E$5000)) -> 0 | N140: =SUMPRODUCT((Feuil1!$B$2:$B$5000=$B140)*(Feuil1!$D$2:$D$5000=N$3)*(Feuil1!$E$2:$E$5000)) -> 0 | O140: =SUMPRODUCT((Feuil1!$B$2:$B$5000=$B140)*(Feuil1!$D$2:$D$5000=O$3)*(Feuil1!$E$2:$E$5000)) -> 0 | P140: =SUMPRODUCT((Feuil1!$B$2:$B$5000=$B140)*(Feuil1!$D$2:$D$5000=P$3)*(Feuil1!$E$2:$E$5000)) -> 0 | Q140: =SUMPRODUCT((Feuil1!$B$2:$B$5000=$B140)*(Feuil1!$D$2:$D$5000=Q$3)*(Feuil1!$E$2:$E$5000)) -> 0 | R140: =SUMPRODUCT((Feuil1!$B$2:$B$5000=$B140)*(Feuil1!$D$2:$D$5000=R$3)*(Feuil1!$E$2:$E$5000)) -> 0
A141: =IF(B141="","",MAX($A$3:A140)+1) -> 138 | B141: =IF(ROWS(B$1:B138)>COUNTIF(Feuil1!$A$2:$A$5000,$A$1),"",INDEX(Feuil1!$B$2:$B$5000,SMALL(IF(Feuil1!$A$2:$A$5000<>"",IF(Feuil1!$A$2:$A$5000=$A$1,ROW($A$2:$A$5000)-ROW($A$2)+1)),ROWS(B$1:B138)))) -> 6287 | C141: =SUMPRODUCT((Feuil1!$B$2:$B$5000=$B141)*(Feuil1!$D$2:$D$5000=C$3)*(Feuil1!$E$2:$E$5000)) -> 179 | D141: =SUMPRODUCT((Feuil1!$B$2:$B$5000=$B141)*(Feuil1!$D$2:$D$5000=D$3)*(Feuil1!$E$2:$E$5000)) -> 179 | E141: =SUMPRODUCT((Feuil1!$B$2:$B$5000=$B141)*(Feuil1!$D$2:$D$5000=E$3)*(Feuil1!$E$2:$E$5000)) -> 179 | F141: =SUMPRODUCT((Feuil1!$B$2:$B$5000=$B141)*(Feuil1!$D$2:$D$5000=F$3)*(Feuil1!$E$2:$E$5000)) -> 179 | G141: =SUMPRODUCT((Feuil1!$B$2:$B$5000=$B141)*(Feuil1!$D$2:$D$5000=G$3)*(Feuil1!$E$2:$E$5000)) -> 179 | H141: =SUMPRODUCT((Feuil1!$B$2:$B$5000=$B141)*(Feuil1!$D$2:$D$5000=H$3)*(Feuil1!$E$2:$E$5000)) -> 179 | I141: =SUMPRODUCT((Feuil1!$B$2:$B$5000=$B141)*(Feuil1!$D$2:$D$5000=I$3)*(Feuil1!$E$2:$E$5000)) -> 179 | J141: =SUMPRODUCT((Feuil1!$B$2:$B$5000=$B141)*(Feuil1!$D$2:$D$5000=J$3)*(Feuil1!$E$2:$E$5000)) -> 179 | K141: =SUMPRODUCT((Feuil1!$B$2:$B$5000=$B141)*(Feuil1!$D$2:$D$5000=K$3)*(Feuil1!$E$2:$E$5000)) -> 179 | L141: =SUMPRODUCT((Feuil1!$B$2:$B$5000=$B141)*(Feuil1!$D$2:$D$5000=L$3)*(Feuil1!$E$2:$E$5000)) -> 179 | M141: =SUMPRODUCT((Feuil1!$B$2:$B$5000=$B141)*(Feuil1!$D$2:$D$5000=M$3)*(Feuil1!$E$2:$E$5000)) -> 0 | N141: =SUMPRODUCT((Feuil1!$B$2:$B$5000=$B141)*(Feuil1!$D$2:$D$5000=N$3)*(Feuil1!$E$2:$E$5000)) -> 0 | O141: =SUMPRODUCT((Feuil1!$B$2:$B$5000=$B141)*(Feuil1!$D$2:$D$5000=O$3)*(Feuil1!$E$2:$E$5000)) -> 0 | P141: =SUMPRODUCT((Feuil1!$B$2:$B$5000=$B141)*(Feuil1!$D$2:$D$5000=P$3)*(Feuil1!$E$2:$E$5000)) -> 0 | Q141: =SUMPRODUCT((Feuil1!$B$2:$B$5000=$B141)*(Feuil1!$D$2:$D$5000=Q$3)*(Feuil1!$E$2:$E$5000)) -> 0 | R141: =SUMPRODUCT((Feuil1!$B$2:$B$5000=$B141)*(Feuil1!$D$2:$D$5000=R$3)*(Feuil1!$E$2:$E$5000)) -> 0
A142: =IF(B142="","",MAX($A$3:A141)+1) -> 139 | B142: =IF(ROWS(B$1:B139)>COUNTIF(Feuil1!$A$2:$A$5000,$A$1),"",INDEX(Feuil1!$B$2:$B$5000,SMALL(IF(Feuil1!$A$2:$A$5000<>"",IF(Feuil1!$A$2:$A$5000=$A$1,ROW($A$2:$A$5000)-ROW($A$2)+1)),ROWS(B$1:B139)))) -> 6287 | C142: =SUMPRODUCT((Feuil1!$B$2:$B$5000=$B142)*(Feuil1!$D$2:$D$5000=C$3)*(Feuil1!$E$2:$E$5000)) -> 179 | D142: =SUMPRODUCT((Feuil1!$B$2:$B$5000=$B142)*(Feuil1!$D$2:$D$5000=D$3)*(Feuil1!$E$2:$E$5000)) -> 179 | E142: =SUMPRODUCT((Feuil1!$B$2:$B$5000=$B142)*(Feuil1!$D$2:$D$5000=E$3)*(Feuil1!$E$2:$E$5000)) -> 179 | F142: =SUMPRODUCT((Feuil1!$B$2:$B$5000=$B142)*(Feuil1!$D$2:$D$5000=F$3)*(Feuil1!$E$2:$E$5000)) -> 179 | G142: =SUMPRODUCT((Feuil1!$B$2:$B$5000=$B142)*(Feuil1!$D$2:$D$5000=G$3)*(Feuil1!$E$2:$E$5000)) -> 179 | H142: =SUMPRODUCT((Feuil1!$B$2:$B$5000=$B142)*(Feuil1!$D$2:$D$5000=H$3)*(Feuil1!$E$2:$E$5000)) -> 179 | I142: =SUMPRODUCT((Feuil1!$B$2:$B$5000=$B142)*(Feuil1!$D$2:$D$5000=I$3)*(Feuil1!$E$2:$E$5000)) -> 179 | J142: =SUMPRODUCT((Feuil1!$B$2:$B$5000=$B142)*(Feuil1!$D$2:$D$5000=J$3)*(Feuil1!$E$2:$E$5000)) -> 179 | K142: =SUMPRODUCT((Feuil1!$B$2:$B$5000=$B142)*(Feuil1!$D$2:$D$5000=K$3)*(Feuil1!$E$2:$E$5000)) -> 179 | L142: =SUMPRODUCT((Feuil1!$B$2:$B$5000=$B142)*(Feuil1!$D$2:$D$5000=L$3)*(Feuil1!$E$2:$E$5000)) -> 179 | M142: =SUMPRODUCT((Feuil1!$B$2:$B$5000=$B142)*(Feuil1!$D$2:$D$5000=M$3)*(Feuil1!$E$2:$E$5000)) -> 0 | N142: =SUMPRODUCT((Feuil1!$B$2:$B$5000=$B142)*(Feuil1!$D$2:$D$5000=N$3)*(Feuil1!$E$2:$E$5000)) -> 0 | O142: =SUMPRODUCT((Feuil1!$B$2:$B$5000=$B142)*(Feuil1!$D$2:$D$5000=O$3)*(Feuil1!$E$2:$E$5000)) -> 0 | P142: =SUMPRODUCT((Feuil1!$B$2:$B$5000=$B142)*(Feuil1!$D$2:$D$5000=P$3)*(Feuil1!$E$2:$E$5000)) -> 0 | Q142: =SUMPRODUCT((Feuil1!$B$2:$B$5000=$B142)*(Feuil1!$D$2:$D$5000=Q$3)*(Feuil1!$E$2:$E$5000)) -> 0 | R142: =SUMPRODUCT((Feuil1!$B$2:$B$5000=$B142)*(Feuil1!$D$2:$D$5000=R$3)*(Feuil1!$E$2:$E$5000)) -> 0
A143: =IF(B143="","",MAX($A$3:A142)+1) -> 140 | B143: =IF(ROWS(B$1:B140)>COUNTIF(Feuil1!$A$2:$A$5000,$A$1),"",INDEX(Feuil1!$B$2:$B$5000,SMALL(IF(Feuil1!$A$2:$A$5000<>"",IF(Feuil1!$A$2:$A$5000=$A$1,ROW($A$2:$A$5000)-ROW($A$2)+1)),ROWS(B$1:B140)))) -> 6287 | C143: =SUMPRODUCT((Feuil1!$B$2:$B$5000=$B143)*(Feuil1!$D$2:$D$5000=C$3)*(Feuil1!$E$2:$E$5000)) -> 179 | D143: =SUMPRODUCT((Feuil1!$B$2:$B$5000=$B143)*(Feuil1!$D$2:$D$5000=D$3)*(Feuil1!$E$2:$E$5000)) -> 179 | E143: =SUMPRODUCT((Feuil1!$B$2:$B$5000=$B143)*(Feuil1!$D$2:$D$5000=E$3)*(Feuil1!$E$2:$E$5000)) -> 179 | F143: =SUMPRODUCT((Feuil1!$B$2:$B$5000=$B143)*(Feuil1!$D$2:$D$5000=F$3)*(Feuil1!$E$2:$E$5000)) -> 179 | G143: =SUMPRODUCT((Feuil1!$B$2:$B$5000=$B143)*(Feuil1!$D$2:$D$5000=G$3)*(Feuil1!$E$2:$E$5000)) -> 179 | H143: =SUMPRODUCT((Feuil1!$B$2:$B$5000=$B143)*(Feuil1!$D$2:$D$5000=H$3)*(Feuil1!$E$2:$E$5000)) -> 179 | I143: =SUMPRODUCT((Feuil1!$B$2:$B$5000=$B143)*(Feuil1!$D$2:$D$5000=I$3)*(Feuil1!$E$2:$E$5000)) -> 179 | J143: =SUMPRODUCT((Feuil1!$B$2:$B$5000=$B143)*(Feuil1!$D$2:$D$5000=J$3)*(Feuil1!$E$2:$E$5000)) -> 179 | K143: =SUMPRODUCT((Feuil1!$B$2:$B$5000=$B143)*(Feuil1!$D$2:$D$5000=K$3)*(Feuil1!$E$2:$E$5000)) -> 179 | L143: =SUMPRODUCT((Feuil1!$B$2:$B$5000=$B143)*(Feuil1!$D$2:$D$5000=L$3)*(Feuil1!$E$2:$E$5000)) -> 179 | M143: =SUMPRODUCT((Feuil1!$B$2:$B$5000=$B143)*(Feuil1!$D$2:$D$5000=M$3)*(Feuil1!$E$2:$E$5000)) -> 0 | N143: =SUMPRODUCT((Feuil1!$B$2:$B$5000=$B143)*(Feuil1!$D$2:$D$5000=N$3)*(Feuil1!$E$2:$E$5000)) -> 0 | O143: =SUMPRODUCT((Feuil1!$B$2:$B$5000=$B143)*(Feuil1!$D$2:$D$5000=O$3)*(Feuil1!$E$2:$E$5000)) -> 0 | P143: =SUMPRODUCT((Feuil1!$B$2:$B$5000=$B143)*(Feuil1!$D$2:$D$5000=P$3)*(Feuil1!$E$2:$E$5000)) -> 0 | Q143: =SUMPRODUCT((Feuil1!$B$2:$B$5000=$B143)*(Feuil1!$D$2:$D$5000=Q$3)*(Feuil1!$E$2:$E$5000)) -> 0 | R143: =SUMPRODUCT((Feuil1!$B$2:$B$5000=$B143)*(Feuil1!$D$2:$D$5000=R$3)*(Feuil1!$E$2:$E$5000)) -> 0
A144: =IF(B144="","",MAX($A$3:A143)+1) -> 141 | B144: =IF(ROWS(B$1:B141)>COUNTIF(Feuil1!$A$2:$A$5000,$A$1),"",INDEX(Feuil1!$B$2:$B$5000,SMALL(IF(Feuil1!$A$2:$A$5000<>"",IF(Feuil1!$A$2:$A$5000=$A$1,ROW($A$2:$A$5000)-ROW($A$2)+1)),ROWS(B$1:B141)))) -> 6287 | C144: =SUMPRODUCT((Feuil1!$B$2:$B$5000=$B144)*(Feuil1!$D$2:$D$5000=C$3)*(Feuil1!$E$2:$E$5000)) -> 179 | D144: =SUMPRODUCT((Feuil1!$B$2:$B$5000=$B144)*(Feuil1!$D$2:$D$5000=D$3)*(Feuil1!$E$2:$E$5000)) -> 179 | E144: =SUMPRODUCT((Feuil1!$B$2:$B$5000=$B144)*(Feuil1!$D$2:$D$5000=E$3)*(Feuil1!$E$2:$E$5000)) -> 179 | F144: =SUMPRODUCT((Feuil1!$B$2:$B$5000=$B144)*(Feuil1!$D$2:$D$5000=F$3)*(Feuil1!$E$2:$E$5000)) -> 179 | G144: =SUMPRODUCT((Feuil1!$B$2:$B$5000=$B144)*(Feuil1!$D$2:$D$5000=G$3)*(Feuil1!$E$2:$E$5000)) -> 179 | H144: =SUMPRODUCT((Feuil1!$B$2:$B$5000=$B144)*(Feuil1!$D$2:$D$5000=H$3)*(Feuil1!$E$2:$E$5000)) -> 179 | I144: =SUMPRODUCT((Feuil1!$B$2:$B$5000=$B144)*(Feuil1!$D$2:$D$5000=I$3)*(Feuil1!$E$2:$E$5000)) -> 179 | J144: =SUMPRODUCT((Feuil1!$B$2:$B$5000=$B144)*(Feuil1!$D$2:$D$5000=J$3)*(Feuil1!$E$2:$E$5000)) -> 179 | K144: =SUMPRODUCT((Feuil1!$B$2:$B$5000=$B144)*(Feuil1!$D$2:$D$5000=K$3)*(Feuil1!$E$2:$E$5000)) -> 179 | L144: =SUMPRODUCT((Feuil1!$B$2:$B$5000=$B144)*(Feuil1!$D$2:$D$5000=L$3)*(Feuil1!$E$2:$E$5000)) -> 179 | M144: =SUMPRODUCT((Feuil1!$B$2:$B$5000=$B144)*(Feuil1!$D$2:$D$5000=M$3)*(Feuil1!$E$2:$E$5000)) -> 0 | N144: =SUMPRODUCT((Feuil1!$B$2:$B$5000=$B144)*(Feuil1!$D$2:$D$5000=N$3)*(Feuil1!$E$2:$E$5000)) -> 0 | O144: =SUMPRODUCT((Feuil1!$B$2:$B$5000=$B144)*(Feuil1!$D$2:$D$5000=O$3)*(Feuil1!$E$2:$E$5000)) -> 0 | P144: =SUMPRODUCT((Feuil1!$B$2:$B$5000=$B144)*(Feuil1!$D$2:$D$5000=P$3)*(Feuil1!$E$2:$E$5000)) -> 0 | Q144: =SUMPRODUCT((Feuil1!$B$2:$B$5000=$B144)*(Feuil1!$D$2:$D$5000=Q$3)*(Feuil1!$E$2:$E$5000)) -> 0 | R144: =SUMPRODUCT((Feuil1!$B$2:$B$5000=$B144)*(Feuil1!$D$2:$D$5000=R$3)*(Feuil1!$E$2:$E$5000)) -> 0
A145: =IF(B145="","",MAX($A$3:A144)+1) -> 142 | B145: =IF(ROWS(B$1:B142)>COUNTIF(Feuil1!$A$2:$A$5000,$A$1),"",INDEX(Feuil1!$B$2:$B$5000,SMALL(IF(Feuil1!$A$2:$A$5000<>"",IF(Feuil1!$A$2:$A$5000=$A$1,ROW($A$2:$A$5000)-ROW($A$2)+1)),ROWS(B$1:B142)))) -> 6287 | C145: =SUMPRODUCT((Feuil1!$B$2:$B$5000=$B145)*(Feuil1!$D$2:$D$5000=C$3)*(Feuil1!$E$2:$E$5000)) -> 179 | D145: =SUMPRODUCT((Feuil1!$B$2:$B$5000=$B145)*(Feuil1!$D$2:$D$5000=D$3)*(Feuil1!$E$2:$E$5000)) -> 179 | E145: =SUMPRODUCT((Feuil1!$B$2:$B$5000=$B145)*(Feuil1!$D$2:$D$5000=E$3)*(Feuil1!$E$2:$E$5000)) -> 179 | F145: =SUMPRODUCT((Feuil1!$B$2:$B$5000=$B145)*(Feuil1!$D$2:$D$5000=F$3)*(Feuil1!$E$2:$E$5000)) -> 179 | G145: =SUMPRODUCT((Feuil1!$B$2:$B$5000=$B145)*(Feuil1!$D$2:$D$5000=G$3)*(Feuil1!$E$2:$E$5000)) -> 179 | H145: =SUMPRODUCT((Feuil1!$B$2:$B$5000=$B145)*(Feuil1!$D$2:$D$5000=H$3)*(Feuil1!$E$2:$E$5000)) -> 179 | I145: =SUMPRODUCT((Feuil1!$B$2:$B$5000=$B145)*(Feuil1!$D$2:$D$5000=I$3)*(Feuil1!$E$2:$E$5000)) -> 179 | J145: =SUMPRODUCT((Feuil1!$B$2:$B$5000=$B145)*(Feuil1!$D$2:$D$5000=J$3)*(Feuil1!$E$2:$E$5000)) -> 179 | K145: =SUMPRODUCT((Feuil1!$B$2:$B$5000=$B145)*(Feuil1!$D$2:$D$5000=K$3)*(Feuil1!$E$2:$E$5000)) -> 179 | L145: =SUMPRODUCT((Feuil1!$B$2:$B$5000=$B145)*(Feuil1!$D$2:$D$5000=L$3)*(Feuil1!$E$2:$E$5000)) -> 179 | M145: =SUMPRODUCT((Feuil1!$B$2:$B$5000=$B145)*(Feuil1!$D$2:$D$5000=M$3)*(Feuil1!$E$2:$E$5000)) -> 0 | N145: =SUMPRODUCT((Feuil1!$B$2:$B$5000=$B145)*(Feuil1!$D$2:$D$5000=N$3)*(Feuil1!$E$2:$E$5000)) -> 0 | O145: =SUMPRODUCT((Feuil1!$B$2:$B$5000=$B145)*(Feuil1!$D$2:$D$5000=O$3)*(Feuil1!$E$2:$E$5000)) -> 0 | P145: =SUMPRODUCT((Feuil1!$B$2:$B$5000=$B145)*(Feuil1!$D$2:$D$5000=P$3)*(Feuil1!$E$2:$E$5000)) -> 0 | Q145: =SUMPRODUCT((Feuil1!$B$2:$B$5000=$B145)*(Feuil1!$D$2:$D$5000=Q$3)*(Feuil1!$E$2:$E$5000)) -> 0 | R145: =SUMPRODUCT((Feuil1!$B$2:$B$5000=$B145)*(Feuil1!$D$2:$D$5000=R$3)*(Feuil1!$E$2:$E$5000)) -> 0
A146: =IF(B146="","",MAX($A$3:A145)+1) -> 143 | B146: =IF(ROWS(B$1:B143)>COUNTIF(Feuil1!$A$2:$A$5000,$A$1),"",INDEX(Feuil1!$B$2:$B$5000,SMALL(IF(Feuil1!$A$2:$A$5000<>"",IF(Feuil1!$A$2:$A$5000=$A$1,ROW($A$2:$A$5000)-ROW($A$2)+1)),ROWS(B$1:B143)))) -> 6287 | C146: =SUMPRODUCT((Feuil1!$B$2:$B$5000=$B146)*(Feuil1!$D$2:$D$5000=C$3)*(Feuil1!$E$2:$E$5000)) -> 179 | D146: =SUMPRODUCT((Feuil1!$B$2:$B$5000=$B146)*(Feuil1!$D$2:$D$5000=D$3)*(Feuil1!$E$2:$E$5000)) -> 179 | E146: =SUMPRODUCT((Feuil1!$B$2:$B$5000=$B146)*(Feuil1!$D$2:$D$5000=E$3)*(Feuil1!$E$2:$E$5000)) -> 179 | F146: =SUMPRODUCT((Feuil1!$B$2:$B$5000=$B146)*(Feuil1!$D$2:$D$5000=F$3)*(Feuil1!$E$2:$E$5000)) -> 179 | G146: =SUMPRODUCT((Feuil1!$B$2:$B$5000=$B146)*(Feuil1!$D$2:$D$5000=G$3)*(Feuil1!$E$2:$E$5000)) -> 179 | H146: =SUMPRODUCT((Feuil1!$B$2:$B$5000=$B146)*(Feuil1!$D$2:$D$5000=H$3)*(Feuil1!$E$2:$E$5000)) -> 179 | I146: =SUMPRODUCT((Feuil1!$B$2:$B$5000=$B146)*(Feuil1!$D$2:$D$5000=I$3)*(Feuil1!$E$2:$E$5000)) -> 179 | J146: =SUMPRODUCT((Feuil1!$B$2:$B$5000=$B146)*(Feuil1!$D$2:$D$5000=J$3)*(Feuil1!$E$2:$E$5000)) -> 179 | K146: =SUMPRODUCT((Feuil1!$B$2:$B$5000=$B146)*(Feuil1!$D$2:$D$5000=K$3)*(Feuil1!$E$2:$E$5000)) -> 179 | L146: =SUMPRODUCT((Feuil1!$B$2:$B$5000=$B146)*(Feuil1!$D$2:$D$5000=L$3)*(Feuil1!$E$2:$E$5000)) -> 179 | M146: =SUMPRODUCT((Feuil1!$B$2:$B$5000=$B146)*(Feuil1!$D$2:$D$5000=M$3)*(Feuil1!$E$2:$E$5000)) -> 0 | N146: =SUMPRODUCT((Feuil1!$B$2:$B$5000=$B146)*(Feuil1!$D$2:$D$5000=N$3)*(Feuil1!$E$2:$E$5000)) -> 0 | O146: =SUMPRODUCT((Feuil1!$B$2:$B$5000=$B146)*(Feuil1!$D$2:$D$5000=O$3)*(Feuil1!$E$2:$E$5000)) -> 0 | P146: =SUMPRODUCT((Feuil1!$B$2:$B$5000=$B146)*(Feuil1!$D$2:$D$5000=P$3)*(Feuil1!$E$2:$E$5000)) -> 0 | Q146: =SUMPRODUCT((Feuil1!$B$2:$B$5000=$B146)*(Feuil1!$D$2:$D$5000=Q$3)*(Feuil1!$E$2:$E$5000)) -> 0 | R146: =SUMPRODUCT((Feuil1!$B$2:$B$5000=$B146)*(Feuil1!$D$2:$D$5000=R$3)*(Feuil1!$E$2:$E$5000)) -> 0
A147: =IF(B147="","",MAX($A$3:A146)+1) -> 144 | B147: =IF(ROWS(B$1:B144)>COUNTIF(Feuil1!$A$2:$A$5000,$A$1),"",INDEX(Feuil1!$B$2:$B$5000,SMALL(IF(Feuil1!$A$2:$A$5000<>"",IF(Feuil1!$A$2:$A$5000=$A$1,ROW($A$2:$A$5000)-ROW($A$2)+1)),ROWS(B$1:B144)))) -> 6287 | C147: =SUMPRODUCT((Feuil1!$B$2:$B$5000=$B147)*(Feuil1!$D$2:$D$5000=C$3)*(Feuil1!$E$2:$E$5000)) -> 179 | D147: =SUMPRODUCT((Feuil1!$B$2:$B$5000=$B147)*(Feuil1!$D$2:$D$5000=D$3)*(Feuil1!$E$2:$E$5000)) -> 179 | E147: =SUMPRODUCT((Feuil1!$B$2:$B$5000=$B147)*(Feuil1!$D$2:$D$5000=E$3)*(Feuil1!$E$2:$E$5000)) -> 179 | F147: =SUMPRODUCT((Feuil1!$B$2:$B$5000=$B147)*(Feuil1!$D$2:$D$5000=F$3)*(Feuil1!$E$2:$E$5000)) -> 179 | G147: =SUMPRODUCT((Feuil1!$B$2:$B$5000=$B147)*(Feuil1!$D$2:$D$5000=G$3)*(Feuil1!$E$2:$E$5000)) -> 179 | H147: =SUMPRODUCT((Feuil1!$B$2:$B$5000=$B147)*(Feuil1!$D$2:$D$5000=H$3)*(Feuil1!$E$2:$E$5000)) -> 179 | I147: =SUMPRODUCT((Feuil1!$B$2:$B$5000=$B147)*(Feuil1!$D$2:$D$5000=I$3)*(Feuil1!$E$2:$E$5000)) -> 179 | J147: =SUMPRODUCT((Feuil1!$B$2:$B$5000=$B147)*(Feuil1!$D$2:$D$5000=J$3)*(Feuil1!$E$2:$E$5000)) -> 179 | K147: =SUMPRODUCT((Feuil1!$B$2:$B$5000=$B147)*(Feuil1!$D$2:$D$5000=K$3)*(Feuil1!$E$2:$E$5000)) -> 179 | L147: =SUMPRODUCT((Feuil1!$B$2:$B$5000=$B147)*(Feuil1!$D$2:$D$5000=L$3)*(Feuil1!$E$2:$E$5000)) -> 179 | M147: =SUMPRODUCT((Feuil1!$B$2:$B$5000=$B147)*(Feuil1!$D$2:$D$5000=M$3)*(Feuil1!$E$2:$E$5000)) -> 0 | N147: =SUMPRODUCT((Feuil1!$B$2:$B$5000=$B147)*(Feuil1!$D$2:$D$5000=N$3)*(Feuil1!$E$2:$E$5000)) -> 0 | O147: =SUMPRODUCT((Feuil1!$B$2:$B$5000=$B147)*(Feuil1!$D$2:$D$5000=O$3)*(Feuil1!$E$2:$E$5000)) -> 0 | P147: =SUMPRODUCT((Feuil1!$B$2:$B$5000=$B147)*(Feuil1!$D$2:$D$5000=P$3)*(Feuil1!$E$2:$E$5000)) -> 0 | Q147: =SUMPRODUCT((Feuil1!$B$2:$B$5000=$B147)*(Feuil1!$D$2:$D$5000=Q$3)*(Feuil1!$E$2:$E$5000)) -> 0 | R147: =SUMPRODUCT((Feuil1!$B$2:$B$5000=$B147)*(Feuil1!$D$2:$D$5000=R$3)*(Feuil1!$E$2:$E$5000)) -> 0
A148: =IF(B148="","",MAX($A$3:A147)+1) -> 145 | B148: =IF(ROWS(B$1:B145)>COUNTIF(Feuil1!$A$2:$A$5000,$A$1),"",INDEX(Feuil1!$B$2:$B$5000,SMALL(IF(Feuil1!$A$2:$A$5000<>"",IF(Feuil1!$A$2:$A$5000=$A$1,ROW($A$2:$A$5000)-ROW($A$2)+1)),ROWS(B$1:B145)))) -> 6288 | C148: =SUMPRODUCT((Feuil1!$B$2:$B$5000=$B148)*(Feuil1!$D$2:$D$5000=C$3)*(Feuil1!$E$2:$E$5000)) -> 177 | D148: =SUMPRODUCT((Feuil1!$B$2:$B$5000=$B148)*(Feuil1!$D$2:$D$5000=D$3)*(Feuil1!$E$2:$E$5000)) -> 177 | E148: =SUMPRODUCT((Feuil1!$B$2:$B$5000=$B148)*(Feuil1!$D$2:$D$5000=E$3)*(Feuil1!$E$2:$E$5000)) -> 177 | F148: =SUMPRODUCT((Feuil1!$B$2:$B$5000=$B148)*(Feuil1!$D$2:$D$5000=F$3)*(Feuil1!$E$2:$E$5000)) -> 177 | G148: =SUMPRODUCT((Feuil1!$B$2:$B$5000=$B148)*(Feuil1!$D$2:$D$5000=G$3)*(Feuil1!$E$2:$E$5000)) -> 177 | H148: =SUMPRODUCT((Feuil1!$B$2:$B$5000=$B148)*(Feuil1!$D$2:$D$5000=H$3)*(Feuil1!$E$2:$E$5000)) -> 177 | I148: =SUMPRODUCT((Feuil1!$B$2:$B$5000=$B148)*(Feuil1!$D$2:$D$5000=I$3)*(Feuil1!$E$2:$E$5000)) -> 177 | J148: =SUMPRODUCT((Feuil1!$B$2:$B$5000=$B148)*(Feuil1!$D$2:$D$5000=J$3)*(Feuil1!$E$2:$E$5000)) -> 177 | K148: =SUMPRODUCT((Feuil1!$B$2:$B$5000=$B148)*(Feuil1!$D$2:$D$5000=K$3)*(Feuil1!$E$2:$E$5000)) -> 177 | L148: =SUMPRODUCT((Feuil1!$B$2:$B$5000=$B148)*(Feuil1!$D$2:$D$5000=L$3)*(Feuil1!$E$2:$E$5000)) -> 177 | M148: =SUMPRODUCT((Feuil1!$B$2:$B$5000=$B148)*(Feuil1!$D$2:$D$5000=M$3)*(Feuil1!$E$2:$E$5000)) -> 0 | N148: =SUMPRODUCT((Feuil1!$B$2:$B$5000=$B148)*(Feuil1!$D$2:$D$5000=N$3)*(Feuil1!$E$2:$E$5000)) -> 0 | O148: =SUMPRODUCT((Feuil1!$B$2:$B$5000=$B148)*(Feuil1!$D$2:$D$5000=O$3)*(Feuil1!$E$2:$E$5000)) -> 0 | P148: =SUMPRODUCT((Feuil1!$B$2:$B$5000=$B148)*(Feuil1!$D$2:$D$5000=P$3)*(Feuil1!$E$2:$E$5000)) -> 0 | Q148: =SUMPRODUCT((Feuil1!$B$2:$B$5000=$B148)*(Feuil1!$D$2:$D$5000=Q$3)*(Feuil1!$E$2:$E$5000)) -> 0 | R148: =SUMPRODUCT((Feuil1!$B$2:$B$5000=$B148)*(Feuil1!$D$2:$D$5000=R$3)*(Feuil1!$E$2:$E$5000)) -> 0
A149: =IF(B149="","",MAX($A$3:A148)+1) -> 146 | B149: =IF(ROWS(B$1:B146)>COUNTIF(Feuil1!$A$2:$A$5000,$A$1),"",INDEX(Feuil1!$B$2:$B$5000,SMALL(IF(Feuil1!$A$2:$A$5000<>"",IF(Feuil1!$A$2:$A$5000=$A$1,ROW($A$2:$A$5000)-ROW($A$2)+1)),ROWS(B$1:B146)))) -> 6288 | C149: =SUMPRODUCT((Feuil1!$B$2:$B$5000=$B149)*(Feuil1!$D$2:$D$5000=C$3)*(Feuil1!$E$2:$E$5000)) -> 177 | D149: =SUMPRODUCT((Feuil1!$B$2:$B$5000=$B149)*(Feuil1!$D$2:$D$5000=D$3)*(Feuil1!$E$2:$E$5000)) -> 177 | E149: =SUMPRODUCT((Feuil1!$B$2:$B$5000=$B149)*(Feuil1!$D$2:$D$5000=E$3)*(Feuil1!$E$2:$E$5000)) -> 177 | F149: =SUMPRODUCT((Feuil1!$B$2:$B$5000=$B149)*(Feuil1!$D$2:$D$5000=F$3)*(Feuil1!$E$2:$E$5000)) -> 177 | G149: =SUMPRODUCT((Feuil1!$B$2:$B$5000=$B149)*(Feuil1!$D$2:$D$5000=G$3)*(Feuil1!$E$2:$E$5000)) -> 177 | H149: =SUMPRODUCT((Feuil1!$B$2:$B$5000=$B149)*(Feuil1!$D$2:$D$5000=H$3)*(Feuil1!$E$2:$E$5000)) -> 177 | I149: =SUMPRODUCT((Feuil1!$B$2:$B$5000=$B149)*(Feuil1!$D$2:$D$5000=I$3)*(Feuil1!$E$2:$E$5000)) -> 177 | J149: =SUMPRODUCT((Feuil1!$B$2:$B$5000=$B149)*(Feuil1!$D$2:$D$5000=J$3)*(Feuil1!$E$2:$E$5000)) -> 177 | K149: =SUMPRODUCT((Feuil1!$B$2:$B$5000=$B149)*(Feuil1!$D$2:$D$5000=K$3)*(Feuil1!$E$2:$E$5000)) -> 177 | L149: =SUMPRODUCT((Feuil1!$B$2:$B$5000=$B149)*(Feuil1!$D$2:$D$5000=L$3)*(Feuil1!$E$2:$E$5000)) -> 177 | M149: =SUMPRODUCT((Feuil1!$B$2:$B$5000=$B149)*(Feuil1!$D$2:$D$5000=M$3)*(Feuil1!$E$2:$E$5000)) -> 0 | N149: =SUMPRODUCT((Feuil1!$B$2:$B$5000=$B149)*(Feuil1!$D$2:$D$5000=N$3)*(Feuil1!$E$2:$E$5000)) -> 0 | O149: =SUMPRODUCT((Feuil1!$B$2:$B$5000=$B149)*(Feuil1!$D$2:$D$5000=O$3)*(Feuil1!$E$2:$E$5000)) -> 0 | P149: =SUMPRODUCT((Feuil1!$B$2:$B$5000=$B149)*(Feuil1!$D$2:$D$5000=P$3)*(Feuil1!$E$2:$E$5000)) -> 0 | Q149: =SUMPRODUCT((Feuil1!$B$2:$B$5000=$B149)*(Feuil1!$D$2:$D$5000=Q$3)*(Feuil1!$E$2:$E$5000)) -> 0 | R149: =SUMPRODUCT((Feuil1!$B$2:$B$5000=$B149)*(Feuil1!$D$2:$D$5000=R$3)*(Feuil1!$E$2:$E$5000)) -> 0
A150: =IF(B150="","",MAX($A$3:A149)+1) -> 147 | B150: =IF(ROWS(B$1:B147)>COUNTIF(Feuil1!$A$2:$A$5000,$A$1),"",INDEX(Feuil1!$B$2:$B$5000,SMALL(IF(Feuil1!$A$2:$A$5000<>"",IF(Feuil1!$A$2:$A$5000=$A$1,ROW($A$2:$A$5000)-ROW($A$2)+1)),ROWS(B$1:B147)))) -> 6288 | C150: =SUMPRODUCT((Feuil1!$B$2:$B$5000=$B150)*(Feuil1!$D$2:$D$5000=C$3)*(Feuil1!$E$2:$E$5000)) -> 177 | D150: =SUMPRODUCT((Feuil1!$B$2:$B$5000=$B150)*(Feuil1!$D$2:$D$5000=D$3)*(Feuil1!$E$2:$E$5000)) -> 177 | E150: =SUMPRODUCT((Feuil1!$B$2:$B$5000=$B150)*(Feuil1!$D$2:$D$5000=E$3)*(Feuil1!$E$2:$E$5000)) -> 177 | F150: =SUMPRODUCT((Feuil1!$B$2:$B$5000=$B150)*(Feuil1!$D$2:$D$5000=F$3)*(Feuil1!$E$2:$E$5000)) -> 177 | G150: =SUMPRODUCT((Feuil1!$B$2:$B$5000=$B150)*(Feuil1!$D$2:$D$5000=G$3)*(Feuil1!$E$2:$E$5000)) -> 177 | H150: =SUMPRODUCT((Feuil1!$B$2:$B$5000=$B150)*(Feuil1!$D$2:$D$5000=H$3)*(Feuil1!$E$2:$E$5000)) -> 177 | I150: =SUMPRODUCT((Feuil1!$B$2:$B$5000=$B150)*(Feuil1!$D$2:$D$5000=I$3)*(Feuil1!$E$2:$E$5000)) -> 177 | J150: =SUMPRODUCT((Feuil1!$B$2:$B$5000=$B150)*(Feuil1!$D$2:$D$5000=J$3)*(Feuil1!$E$2:$E$5000)) -> 177 | K150: =SUMPRODUCT((Feuil1!$B$2:$B$5000=$B150)*(Feuil1!$D$2:$D$5000=K$3)*(Feuil1!$E$2:$E$5000)) -> 177 | L150: =SUMPRODUCT((Feuil1!$B$2:$B$5000=$B150)*(Feuil1!$D$2:$D$5000=L$3)*(Feuil1!$E$2:$E$5000)) -> 177 | M150: =SUMPRODUCT((Feuil1!$B$2:$B$5000=$B150)*(Feuil1!$D$2:$D$5000=M$3)*(Feuil1!$E$2:$E$5000)) -> 0 | N150: =SUMPRODUCT((Feuil1!$B$2:$B$5000=$B150)*(Feuil1!$D$2:$D$5000=N$3)*(Feuil1!$E$2:$E$5000)) -> 0 | O150: =SUMPRODUCT((Feuil1!$B$2:$B$5000=$B150)*(Feuil1!$D$2:$D$5000=O$3)*(Feuil1!$E$2:$E$5000)) -> 0 | P150: =SUMPRODUCT((Feuil1!$B$2:$B$5000=$B150)*(Feuil1!$D$2:$D$5000=P$3)*(Feuil1!$E$2:$E$5000)) -> 0 | Q150: =SUMPRODUCT((Feuil1!$B$2:$B$5000=$B150)*(Feuil1!$D$2:$D$5000=Q$3)*(Feuil1!$E$2:$E$5000)) -> 0 | R150: =SUMPRODUCT((Feuil1!$B$2:$B$5000=$B150)*(Feuil1!$D$2:$D$5000=R$3)*(Feuil1!$E$2:$E$5000)) -> 0
A151: =IF(B151="","",MAX($A$3:A150)+1) -> 148 | B151: =IF(ROWS(B$1:B148)>COUNTIF(Feuil1!$A$2:$A$5000,$A$1),"",INDEX(Feuil1!$B$2:$B$5000,SMALL(IF(Feuil1!$A$2:$A$5000<>"",IF(Feuil1!$A$2:$A$5000=$A$1,ROW($A$2:$A$5000)-ROW($A$2)+1)),ROWS(B$1:B148)))) -> 6288 | C151: =SUMPRODUCT((Feuil1!$B$2:$B$5000=$B151)*(Feuil1!$D$2:$D$5000=C$3)*(Feuil1!$E$2:$E$5000)) -> 177 | D151: =SUMPRODUCT((Feuil1!$B$2:$B$5000=$B151)*(Feuil1!$D$2:$D$5000=D$3)*(Feuil1!$E$2:$E$5000)) -> 177 | E151: =SUMPRODUCT((Feuil1!$B$2:$B$5000=$B151)*(Feuil1!$D$2:$D$5000=E$3)*(Feuil1!$E$2:$E$5000)) -> 177 | F151: =SUMPRODUCT((Feuil1!$B$2:$B$5000=$B151)*(Feuil1!$D$2:$D$5000=F$3)*(Feuil1!$E$2:$E$5000)) -> 177 | G151: =SUMPRODUCT((Feuil1!$B$2:$B$5000=$B151)*(Feuil1!$D$2:$D$5000=G$3)*(Feuil1!$E$2:$E$5000)) -> 177 | H151: =SUMPRODUCT((Feuil1!$B$2:$B$5000=$B151)*(Feuil1!$D$2:$D$5000=H$3)*(Feuil1!$E$2:$E$5000)) -> 177 | I151: =SUMPRODUCT((Feuil1!$B$2:$B$5000=$B151)*(Feuil1!$D$2:$D$5000=I$3)*(Feuil1!$E$2:$E$5000)) -> 177 | J151: =SUMPRODUCT((Feuil1!$B$2:$B$5000=$B151)*(Feuil1!$D$2:$D$5000=J$3)*(Feuil1!$E$2:$E$5000)) -> 177 | K151: =SUMPRODUCT((Feuil1!$B$2:$B$5000=$B151)*(Feuil1!$D$2:$D$5000=K$3)*(Feuil1!$E$2:$E$5000)) -> 177 | L151: =SUMPRODUCT((Feuil1!$B$2:$B$5000=$B151)*(Feuil1!$D$2:$D$5000=L$3)*(Feuil1!$E$2:$E$5000)) -> 177 | M151: =SUMPRODUCT((Feuil1!$B$2:$B$5000=$B151)*(Feuil1!$D$2:$D$5000=M$3)*(Feuil1!$E$2:$E$5000)) -> 0 | N151: =SUMPRODUCT((Feuil1!$B$2:$B$5000=$B151)*(Feuil1!$D$2:$D$5000=N$3)*(Feuil1!$E$2:$E$5000)) -> 0 | O151: =SUMPRODUCT((Feuil1!$B$2:$B$5000=$B151)*(Feuil1!$D$2:$D$5000=O$3)*(Feuil1!$E$2:$E$5000)) -> 0 | P151: =SUMPRODUCT((Feuil1!$B$2:$B$5000=$B151)*(Feuil1!$D$2:$D$5000=P$3)*(Feuil1!$E$2:$E$5000)) -> 0 | Q151: =SUMPRODUCT((Feuil1!$B$2:$B$5000=$B151)*(Feuil1!$D$2:$D$5000=Q$3)*(Feuil1!$E$2:$E$5000)) -> 0 | R151: =SUMPRODUCT((Feuil1!$B$2:$B$5000=$B151)*(Feuil1!$D$2:$D$5000=R$3)*(Feuil1!$E$2:$E$5000)) -> 0
